Workbook

Sheet Info
D1: -1 | E1: 0 | F1: 1 | G1: 2 | H1: 3 | I1: 4 | J1: 5 | K1: 6 | L1: 7 | M1: 8 | N1: 9 | O1: 10 | P1: 11 | Q1: 12 | R1: 13 | S1: 14 | T1: 15 | Y1: =IF(OR(Z3="",Z4=""),"※ 市町村（左側）から順に選択してください","") -> ※ 市町村（左側）から順に選択してください | AD1: ｖ | AK1: v
V2: 表示行 | W2: 旧市町村数 | X2: 市町村行 | Y2: 参照シート、セル | Z2: check | AA2: 表示名 | AD2: 表示行 | AE2: 集落数 | AF2: 旧市町村行 | AG2: 参照シート | AH2: check | AK2: 表示行 | AL2: 集落数 | AM2: 旧市町村行 | AN2: 参照シート | AO2: check
D3: 県名 | G3: 市町村名 | J3: 旧市町村名 | V3: =IF(M4="",-1,IFERROR(MATCH(M4,OFFSET(集落2010,1,0,ROWS(集落2010),1),0)-1,3000))+AF3 -> 5 | W3: =COUNTIF('2010年'!B:B,Info!G4)-1 -> -1 | X3: =IF(G4="",6,MATCH(G4,'2010年'!B:B,0)) -> 6 | Y3: '2010年'!$A$1 | Z3: =OFFSET(INDIRECT(Y3),V3,1)&OFFSET(INDIRECT(Y3),V3,2)&OFFSET(INDIRECT(Y3),V3,3) ->  | AA3: =IF(OR(ISERROR(G4),ISERROR(J4),ISERROR(M4)),"表示できません",IF(G4&J4&M4="",D4,IF(M4<>"",M4,IF(J4<>"",IF($G$4=$J$4,"（旧）","")&$J$4,IF(J4<>"",J4,G4))))) -> 茨城県 | AD3: =IF(M4="",-1,IFERROR(MATCH(M4,OFFSET(集落2010,1,0,ROWS(集落2010),1),0)-1,999))+AF3 -> 5 | AE3: =COUNTIF('2010年'!C:C,Info!J4)-1 -> 1044205 | AF3: =IF(J4="",X3,MATCH(J4,'2010年'!C:C,0)) -> 6 | AG3: '2010年'!$A$1 | AH3: =OFFSET(INDIRECT(AG3),AD3,1)&OFFSET(INDIRECT(AG3),AD3,2)&OFFSET(INDIRECT(AG3),AD3,3) ->  | AI3: =IF(OR(ISERROR(AJ3),ISERROR(AL3)),"表示できません",IF(V4<>"",V4,IF(R4<>"",IF($G$4=$J$4,"（旧）","")&$J$4,IF(O4<>"",O4,L4)))) -> 5 | AK3: =IF(M4="",-1,IFERROR(MATCH(M4,OFFSET(集落2010,1,0,ROWS(集落2010),1),0)-1,999))+AM3 -> 5 | AL3: =COUNTIF('2010年'!C:C,Info!J4)-1 -> 1044205 | AM3: =IF(J4="",X3,MATCH(J4,'2010年'!C:C,0)) -> 6 | AN3: '2010年'!$A$1 | AO3: =OFFSET(INDIRECT(AN3),AK3,1)&OFFSET(INDIRECT(AN3),AK3,2)&OFFSET(INDIRECT(AN3),AK3,3) ->  | AP3: =IF(OR(ISERROR(AQ3),ISERROR(AS3)),"表示できません",IF(AC4<>"",AC4,IF(Y4<>"",IF($G$4=$J$4,"（旧）","")&$J$4,IF(V4<>"",V4,S4)))) -> （旧）
D4: 茨城県 | V4: =IF(M4="",-1,IFERROR(MATCH(M4,OFFSET(集落2015,1,0,ROWS(集落2015),1),0)-1,3000))+AF4 -> 5 | W4: =COUNTIF('2015年'!B:B,Info!G4)-1 -> -1 | X4: =IF(G4="",6,MATCH(G4,'2015年'!B:B,0)) -> 6 | Y4: '2015年'!$A$1 | Z4: =OFFSET(INDIRECT(Y4),V4,1)&OFFSET(INDIRECT(Y4),V4,2)&OFFSET(INDIRECT(Y4),V4,3) ->  | AD4: =IF(M4="",-1,IFERROR(MATCH(M4,OFFSET(集落2015,1,0,ROWS(集落2015),1),0)-1,999))+AF4 -> 5 | AE4: =COUNTIF('2015年'!C:C,Info!J4)-1 -> 1044205 | AF4: =IF(J4="",X3,MATCH(J4,'2015年'!C:C,0)) -> 6 | AG4: '2015年'!$A$1 | AH4: =OFFSET(INDIRECT(AG4),AD4,1)&OFFSET(INDIRECT(AG4),AD4,2)&OFFSET(INDIRECT(AG4),AD4,3) ->  | AK4: =IF(M4="",-1,IFERROR(MATCH(M4,OFFSET(集落2015,1,0,ROWS(集落2015),1),0)-1,999))+AM4 -> 5 | AL4: =COUNTIF('2015年'!C:C,Info!J4)-1 -> 1044205 | AM4: =IF(J4="",X4,MATCH(J4,'2010年'!C:C,0)) -> 6 | AN4: '2015年'!$A$1 | AO4: =OFFSET(INDIRECT(AN4),AK4,1)&OFFSET(INDIRECT(AN4),AK4,2)&OFFSET(INDIRECT(AN4),AK4,3) -> 
C6: ="総農家数" -> 総農家数 | G6: =IFERROR("◎ "&W11&IF(LEFT(R8,1)="県","の総農家に占める割合は "&TEXT(G13,"0.0")&"% で、"&D4&"（"&TEXT(G14,"0.0")&"%） "&X13,"は "&TEXT(G12,"#,###戸 で ")&W13&"、"&"総農家の "&TEXT(G13,"0.0")&"% を占める"),"") -> ◎ 販売農家の総農家に占める割合は 65.3% で、茨城県（65.3%） と同率である
K7: 単位：戸 | L7: 《主副業別割合》
F8: 総農家 | L8: =" "&IF(AND(LEFT(R8,1)<>"県",G4=""),D4,IF(LEFT(R8,1)="県",D12,$AA$3)) -> 2015年 | R8: 県との比較
G9: 販売 農家 | K9: 自給的農家 | R9: ="外円："&IF(AND(LEFT(R8,1)="県",G4=""),D4,IF(LEFT(R8,1)="県",$AA$3,"2015年"))&CHAR(10)&"内円："&IF(LEFT(R8,1)="県",$D$4,"2010年") -> 外円：茨城県 内円：茨城県
H10: 主業 農家 | I10: 準主業 農家 | J10: 副業的 農家 | V10: 列番号 | W10: 概要 | Y10: 凡例 | AC10: 内円
D11: 2010年 | F11: =IFERROR(OFFSET(INDIRECT($Y$3),$V$3,$V11+E$1),"nc") -> 103,221 | G11: =IFERROR(OFFSET(INDIRECT($Y$3),$V$3,$V11+F$1),"nc") -> 70,884 | H11: =IFERROR(OFFSET(INDIRECT($Y$3),$V$3,$V11+G$1),"nc") -> 14,860 | I11: =IFERROR(OFFSET(INDIRECT($Y$3),$V$3,$V11+I$1),"nc") -> 15,032 | J11: =IFERROR(OFFSET(INDIRECT($Y$3),$V$3,$V11+K$1),"nc") -> 40,992 | K11: =IFERROR(OFFSET(INDIRECT($Y$3),$V$3,$V11+L$1),"nc") -> 32,337 | V11: =CELL("col",'2010年'!E6)-1 -> 4 | W11: 販売農家 | X11: 対県 | Y11: 主業農家 | Z11: 準主業農家 | AA11: 副業的農家 | AB11: 自給的農家 | AC11: =IF(LEFT(R8,1)="県",2,-1) -> 2
D12: 2015年 | F12: =IFERROR(OFFSET(INDIRECT($Y$4),$V$4,$V12+E$1),"nc") -> 87,678 | G12: =IFERROR(OFFSET(INDIRECT($Y$4),$V$4,$V12+F$1),"nc") -> 57,239 | H12: =IFERROR(OFFSET(INDIRECT($Y$4),$V$4,$V12+G$1),"nc") -> 12,196 | I12: =IFERROR(OFFSET(INDIRECT($Y$4),$V$4,$V12+I$1),"nc") -> 10,021 | J12: =IFERROR(OFFSET(INDIRECT($Y$4),$V$4,$V12+K$1),"nc") -> 35,022 | K12: =IFERROR(OFFSET(INDIRECT($Y$4),$V$4,$V12+L$1),"nc") -> 30,439 | V12: =CELL("col",'2015年'!E6)-1 -> 4 | W12: =G12/G11-1 -> -0.1924976017 | X12: =G13-G14 -> 0.0
E13: 構成比(%) | F13: =IF(OR(AND(ISTEXT($F12),$F12<>"X",$F12<>"-"),AND(ISTEXT(F12),F12<>"X",F12<>"-")),"nc",IF(OR($F12="X",F12="X"),"X",IF(ROUND(SUM($F12),0)=0,"nc",SUM(F12)/$F12%))) -> 100.0 | G13: =IF(OR(AND(ISTEXT($F12),$F12<>"X",$F12<>"-"),AND(ISTEXT(G12),G12<>"X",G12<>"-")),"nc",IF(OR($F12="X",G12="X"),"X",IF(ROUND(SUM($F12),0)=0,"nc",SUM(G12)/$F12%))) -> 65.3 | H13: 13.9 | I13: 11.4 | J13: 39.9 | K13: 34.7 | W13: =IF(W12=0,"変化なし",TEXT(ABS(G12-G11),"#,##0")&"戸（"&TEXT(ABS(W12),"0.0%")&"） "&IF(W12>0,"増加","減少")) -> 13,645戸（19.2%） 減少 | X13: =IF(X12=0,"と同率である","を"&TEXT(ABS(X12),"#,##0.0")&"ポイント "&IF(X12>0,"上回る","下回る")) -> と同率である
E14: 県計 構成比(%) | F14: 100.0 | G14: =IFERROR(OFFSET(INDIRECT($Y$4),5,$V$12+F1)/OFFSET(INDIRECT($Y$4),5,V12)*100,"nc") -> 65.3 | H14: =IFERROR(OFFSET(INDIRECT($Y$4),5,$V$12+G1)/OFFSET(INDIRECT($Y$4),5,V12)*100,"nc") -> 13.9 | I14: =IFERROR(OFFSET(INDIRECT($Y$4),5,$V$12+I1)/OFFSET(INDIRECT($Y$4),5,V12)*100,"nc") -> 11.4 | J14: =IFERROR(OFFSET(INDIRECT($Y$4),5,$V$12+K1)/OFFSET(INDIRECT($Y$4),5,V12)*100,"nc") -> 39.9 | K14: =IFERROR(OFFSET(INDIRECT($Y$4),5,$V$12+L1)/OFFSET(INDIRECT($Y$4),5,V12)*100,"nc") -> 34.7
D15: =IFERROR("《参考》"&G4&"の総農家数の全国順位："&TEXT(OFFSET(#REF!,MATCH(Info!G4,#REF!,0),0),"#,##0")&"位","") -> 
C18: 基幹的農業従事者数
D19: =IFERROR(IF(RIGHT(C18,4)="ください","","◎ "&C18&"は "&TEXT(F23,"#,##0人 で ")&W24&IFERROR("、平均年齢 "&TEXT(S23,"0.0歳は")&IF(LEFT(R28,1)="県","県平均","2010年")&X24,"")),"") -> ◎ 基幹的農業従事者数は 76,821人 で 14,745人（16.1%） 減少、平均年齢 66.8歳は2010年を 0.8歳上回る
S20: 単位：人
F21: 計 | G21: 15～39歳 | H21: 40～44 | I21: 45～49 | J21: 50～54 | K21: 55～59 | L21: 60～64 | M21: 65～69 | N21: 70～74 | O21: 75～79 | P21: 80～84 | Q21: 85歳以上 | R21: 65歳以上 | S21: 平均 年齢 （歳） | V21: 列番号 | W21: 概要 | Y21: 縦棒 左 | Z21: 縦棒 右 | AA21: 凡例
D22: 2010年 | F22: =IFERROR(OFFSET(INDIRECT($Y$3),$V$3,V23-1),"nc") -> 91,566 | G22: =IFERROR(IF(COUNTIF(OFFSET(INDIRECT($Y$3),$V$3,V23,1,5),"@")>0,"@",IF(COUNTIF(OFFSET(INDIRECT($Y$3),$V$3,V23,1,5),"X")>0,"X",SUM(OFFSET(INDIRECT($Y$3),$V$3,V23,1,5)))),"nc") -> 4,313 | H22: =IFERROR(OFFSET(INDIRECT($Y$3),$V$3,$V23+J$1),"nc") -> 1,988 | I22: =IFERROR(OFFSET(INDIRECT($Y$3),$V$3,$V23+K$1),"nc") -> 3,102 | J22: 5,168 | K22: 9,174 | L22: 12,280 | M22: 13,642 | N22: 16,302 | O22: 14,901 | P22: 8,317 | Q22: 2,379 | R22: =IF(COUNTIF(M22:Q22,"@"),"@",(IF(COUNTIF(M22:Q22,"X"),"X",SUM(M22:Q22)))) -> 55,541 | S22: =IFERROR(OFFSET(INDIRECT($Y$3),$V$3,V23+15),"nc") -> 66.0 | V22: =IF(C18="農業従事者数",1,IF(C18="農業就業人口",2,IF(C18="基幹的農業従事者数",3,ERROR.TYPE(5)))) -> 3 | W22: 人数 | X22: 平均年齢 | Y22: =IF(LEFT(R28,1)="県",3,-1) -> -1 | Z22: =IF(LEFT(R28,1)="県",1,0) -> 0 | AA22: =IF(LEFT(R28,1)="県",$D$4,$D22) -> 2010年
D23: 2015年 | F23: =IFERROR(OFFSET(INDIRECT($Y$4),$V$4,$V24-1),"nc") -> 76,821 | G23: =IFERROR(IF(COUNTIF(OFFSET(INDIRECT($Y$4),$V$4,$V24,1,5),"X")>0,"X",SUM(OFFSET(INDIRECT($Y$4),$V$4,$V24,1,5))),"nc") -> 3,956 | H23: =IFERROR(OFFSET(INDIRECT($Y$4),$V$4,$V24+5),"nc") -> 1,768 | I23: =IFERROR(OFFSET(INDIRECT($Y$4),$V$4,$V24+6),"nc") -> 2,111 | J23: =IFERROR(OFFSET(INDIRECT($Y$4),$V$4,$V24+7),"nc") -> 3,184 | K23: =IFERROR(OFFSET(INDIRECT($Y$4),$V$4,$V24+8),"nc") -> 5,448 | L23: =IFERROR(OFFSET(INDIRECT($Y$4),$V$4,$V24+9),"nc") -> 11,311 | M23: =IFERROR(OFFSET(INDIRECT($Y$4),$V$4,$V24+10),"nc") -> 13,627 | N23: =IFERROR(OFFSET(INDIRECT($Y$4),$V$4,$V24+11),"nc") -> 12,464 | O23: =IFERROR(OFFSET(INDIRECT($Y$4),$V$4,$V24+12),"nc") -> 11,786 | P23: =IFERROR(OFFSET(INDIRECT($Y$4),$V$4,$V24+13),"nc") -> 7,705 | Q23: =IFERROR(OFFSET(INDIRECT($Y$4),$V$4,$V24+14),"nc") -> 3,461 | R23: =IF(COUNTIF(M23:Q23,"X"),"X",SUM(M23:Q23)) -> 49,043 | S23: =IFERROR(OFFSET(INDIRECT($Y$4),$V$4,$V24+15),"nc") -> 66.8 | V23: =IFERROR(CHOOSE(V22,CELL("col",'2010年'!N6),CELL("col",'2010年'!AG6),CELL("col",'2010年'!AZ6))-1,555) -> 51 | W23: =F23/F22-1 -> -0.1610313872 | X23: =S23-IF(LEFT(R28,1)="県",S26,S22) -> 0.8 | AA23: =IF(AND(LEFT(R28,1)="県",G4=""),D4,IF(LEFT(R28,1)="県",AA3,D23)) -> 2015年
E24: 構成比(%) | F24: =IF(OR(AND(ISTEXT($F23),$F23<>"X",$F23<>"-"),AND(ISTEXT(F23),F23<>"X",F23<>"-")),"nc",IF(OR($F23="X",F23="X"),"X",IF(ROUND(SUM($F23),0)=0,"nc",SUM(F23)/$F23%))) -> 100.0 | G24: 5.1 | H24: 2.3 | I24: 2.7 | J24: 4.1 | K24: 7.1 | L24: 14.7 | M24: 17.7 | N24: 16.2 | O24: 15.3 | P24: 10.0 | Q24: 4.5 | R24: 63.8 | V24: =IFERROR(CHOOSE(V22,CELL("col",'2015年'!N6),CELL("col",'2015年'!AG6),CELL("col",'2015年'!AZ6))-1,555) -> 51 | W24: =IF(W23=0,"変化なし",TEXT(ABS(F23-F22),"#,##0人")&"（"&TEXT(ABS(W23),"0.0%")&"） "&IF(W23>0,"増加","減少")) -> 14,745人（16.1%） 減少 | X24: =IF(X23=0,"と同じである","を "&TEXT(ABS(X23),"0.0歳")&IF(X23>0,"上回る","下回る")) -> を 0.8歳上回る
E25: 2015年 | F25: =IFERROR(OFFSET(INDIRECT($Y$4),5,V24-1),"nc") -> 76,821 | G25: =IFERROR(SUM(OFFSET(INDIRECT($Y$4),5,V24,1,5)),"nc") -> 3,956 | H25: =IFERROR(OFFSET(INDIRECT($Y$4),5,V24+5),"nc") -> 1,768 | I25: =IFERROR(OFFSET(INDIRECT($Y$4),5,V24+6),"nc") -> 2,111 | J25: =IFERROR(OFFSET(INDIRECT($Y$4),5,V24+7),"nc") -> 3,184 | K25: =IFERROR(OFFSET(INDIRECT($Y$4),5,V24+8),"nc") -> 5,448 | L25: =IFERROR(OFFSET(INDIRECT($Y$4),5,V24+9),"nc") -> 11,311 | M25: =IFERROR(OFFSET(INDIRECT($Y$4),5,V24+10),"nc") -> 13,627 | N25: =IFERROR(OFFSET(INDIRECT($Y$4),5,V24+11),"nc") -> 12,464 | O25: =IFERROR(OFFSET(INDIRECT($Y$4),5,V24+12),"nc") -> 11,786 | P25: =IFERROR(OFFSET(INDIRECT($Y$4),5,V24+13),"nc") -> 7,705 | Q25: =IFERROR(OFFSET(INDIRECT($Y$4),5,V24+14),"nc") -> 3,461 | R25: =SUM(M25:Q25) -> 49,043
E26: 県計 構成比(%) | F26: 100.0 | G26: =IFERROR(ROUND(G25/$F25*100,1),"nc") -> 5.1 | H26: =IFERROR(ROUND(H25/$F25*100,1),"nc") -> 2.3 | I26: 2.7 | J26: 4.1 | K26: 7.1 | L26: 14.7 | M26: 17.7 | N26: 16.2 | O26: 15.3 | P26: 10.0 | Q26: 4.5 | R26: 63.8 | S26: =IFERROR(OFFSET(INDIRECT($Y$4),5,V24+15),"nc") -> 66.8
D27: =IF(LEFT(R28,1)="県","（％）","（人）") -> （人） | G27: ="《年齢階層別"&C18&IF(LEFT(R28,1)="県","割合","")&"》 "&IF(AND(LEFT(R28,1)<>"県",G4=""),D4,IF(LEFT(R28,1)="県",D23,AA3)) -> 《年齢階層別基幹的農業従事者数》 茨城県
R28: 前回との比較
C41: 後継者がいる農家数（販売農家）
D42: =IFERROR(" ◎ 後継者がいる農家数の割合は "&TEXT(H51,"0.0")&"％（"&TEXT(H50,"#,##0")&"戸）で、"&IF(LEFT(Z48,1)="県","県平均の "&TEXT(H52,"0.0"),"2010年の "&TEXT(H48,"0.0"))&"％"&AB49,"") -> ◎ 後継者がいる農家数の割合は 46.9％（26,838戸）で、県平均の 46.9％と同率である
D43: =IFERROR(IF(LEFT(Z49,1)="県","県平均の "&TEXT(H52,"0.0")," 2010年の "&TEXT(H48,"0.0"))&"％"&AB47,"") -> 2010年の 60.4％ を 13.5ポイント 下回る
H44: 単位：戸 | J44: ="《後継者のいる農家数"&IF(LEFT(Z49,1)="県","割合","")&"》 "&IF(AND(LEFT(Z49,1)<>"県",G4=""),D4,IF(LEFT(Z49,1)="県","2015年",AA3)) -> 《後継者のいる農家数》 茨城県 | P44: ="《後継者のいる農家数"&IF(LEFT(Z48,1)="県","割合","")&"》 "&IF(AND(LEFT(Z48,1)<>"県",M4=""),J4,IF(LEFT(Z48,1)="県","2015年",AA3)) -> 《後継者のいる農家数割合》 2015年
H45: 計 | V45: 列番号 | W45: 2015年 | X45: 2010年 | Y45: 縦棒左 | Z45: 縦棒右 | AA45: 凡例 | AB45: 差
D46: 2010年 | E46: 農家数 | H46: =IFERROR(OFFSET(INDIRECT($Y$3),$V$3,X46-1),"nc") -> 70,884 | V46: 農家数 | W46: =CELL("col",'2015年'!BS6)-1 -> 70 | X46: =CELL("col",'2010年'!BS6)-1 -> 70 | Y46: 1 | Z46: 0 | AA46: =IF(LEFT(Z49,1)="県",$D$4,$D46) -> 2010年 | AB46: =H51-IF(LEFT(Z49,1)="県",H52,H48) -> -13.54915834048270
G47: 後継者がいる農家数 | H47: =IFERROR(OFFSET(INDIRECT(Y3),V3,X47-1),"nc") -> 42,840 | V47: 後継者有 | W47: =CELL("col",'2015年'!CI5)-1 -> 86 | X47: =CELL("col",'2010年'!CI5)-1 -> 86 | Y47: -4 | Z47: -1 | AA47: =IF(AND(LEFT(Z49,1)="県",G4=""),D4,IF(LEFT(Z49,1)="県",AA3,D49)) -> 2015年 | AB47: =IF(AB46=0,"と同率である"," を "&TEXT(ABS(AB46),"0.0")&"ポイント "&IF(AB46>0,"上回る","下回る")) -> を 13.5ポイント 下回る
G48: 割合(%) | H48: =IF(OR(AND(ISTEXT(H46),H46<>"X",H46<>"-"),AND(ISTEXT(H47),H47<>"X",H47<>"-")),"nc",IF(OR(H46="X",H47="X"),"X",IF(ROUND(SUM(H46),0)=0,"nc",SUM(H47)/H46%))) -> 60.4 | Z48: 県との比較 | AA48: =IF(LEFT(Z48,1)="県",$D$4,$D46) -> 茨城県 | AB48: =H51-IF(LEFT(Z48,1)="県",H52,H48) -> 0.00000000000000
D49: 2015年 | E49: 農家数 | H49: =IFERROR(OFFSET(INDIRECT($Y$4),$V$4,W46-1),"nc") -> 57,239 | Z49: 前回との比較 | AA49: =AA3 -> 茨城県 | AB49: =IF(AB48=0,"と同率である"," を "&TEXT(ABS(AB48),"0.0")&"ポイント "&IF(AB48>0,"上回る","下回る")) -> と同率である
G50: 後継者がいる農家数 | H50: =IFERROR(OFFSET(INDIRECT($Y$4),$V$4,$W47-1),"nc") -> 26,838
G51: 割合(%) | H51: =IF(OR(AND(ISTEXT(H49),H49<>"X",H49<>"-"),AND(ISTEXT(H50),H50<>"X",H50<>"-")),"nc",IF(OR(H49="X",H50="X"),"X",IF(ROUND(SUM(H49),0)=0,"nc",SUM(H50)/H49%))) -> 46.9
D52: 県計 | G52: 後継者がいる割合(%) | H52: =IFERROR(OFFSET(INDIRECT($Y$4),5,$W$47-1)/OFFSET(INDIRECT($Y$4),5,$W$46-1)*100,"nc") -> 46.9
D73: =IFERROR(" ◎ 一世代家族経営の割合は "&TEXT(G79/100,"0.0%")&"（"&TEXT(G78,"#,##0")&"戸）で、"&IF(LEFT(R75,1)="県","県平均の "&TEXT(G80/100,"0.0%"),"2010年の "&TEXT(G77/F77,"0.0%"))&W78,"") -> 
L74: 単位：戸
F75: 計 | G75: 一世代家族 経営 | J75: 二世代家族 経営 | L75: 三世代家族 経営 | R75: 前回との比較
H76: 一人家族経営 | I76: 夫婦家族経営 | K76: 親子家族経営 | V76: 列番号 | W76: 県、前回との差 | X76: グラフ用 | Y76: 一世代 | Z76: 二世代 | AA76: 三世代
D77: 2010年 | F77: =IFERROR(OFFSET(INDIRECT($Y$3),$V$3,$V77),"nc") -> nc | G77: =IFERROR(OFFSET(INDIRECT($Y$3),$V$3,$V$77+F1),"nc") -> nc | H77: nc | I77: nc | J77: nc | K77: nc | L77: nc | V77: =CELL("col",#REF!)-1 ->  | W77: =IF(LEFT(R75,1)="県",G79-G80,G79-G77/F77*100) ->  | X77: =IF(LEFT($R$75,1)="県",AA3,D77) -> 2010年 | Y77: =IF(LEFT($R$75,1)="県",G79,G77/F77*100) ->  | Z77: =IF(LEFT($R$75,1)="県",J79,J77/F77*100) ->  | AA77: =IF(LEFT($R$75,1)="県",L79,L77/F77*100) -> 
D78: 2015年 | F78: =IFERROR(OFFSET(INDIRECT($Y$4),$V$4,$V78),"nc") -> 0 | G78: =IFERROR(SUM(OFFSET(INDIRECT($Y$4),$V$4,$V$78+F1)),"nc") -> 0 | H78: 0 | I78: 0 | J78: 0 | K78: 0 | L78: 0 | V78: =CELL("col",'2015年'!CV6)-1 -> 99 | W78: =IF(W77=0," と同率である"," を "&TEXT(ABS(W77),"0.0")&"ポイント "&IF(W77>0,"上回る","下回る")) ->  | X78: =IF(LEFT($R$75,1)="県",D4,D78) -> 2015年 | Y78: =IF(LEFT($R$75,1)="県",G80,G79) -> nc | Z78: =IF(LEFT($R$75,1)="県",J80,J79) -> nc | AA78: =IF(LEFT($R$75,1)="県",L80,L79) -> nc
E79: 構成比(%) | F79: =IF(OR(AND(ISTEXT($F78),$F78<>"X",$F78<>"-"),AND(ISTEXT(F78),F78<>"X",F78<>"-")),"nc",IF(OR($F78="X",F78="X"),"X",IF(ROUND(SUM($F78),0)=0,"nc",SUM(F78)/$F78%))) -> nc | G79: nc | H79: nc | I79: nc | J79: nc | K79: nc | L79: nc
E80: 県計 構成比(%) | F80: 100.0 | G80: =IFERROR(OFFSET(INDIRECT($Y$4),5,$V$78+F1)/OFFSET(INDIRECT($Y$4),5,$V$78)%,"nc") -> nc | H80: nc | I80: nc | J80: nc | K80: nc | L80: nc
C84: 過去１年間の生活の主な状態別世帯員数（計）
D85: =IFERROR(" ◎ 「自営農業が主」の割合は "&TEXT(H91/100,"0.0%")&"（"&TEXT(H90,"#,###")&"戸）で、"&IF(LEFT(R87,1)="県"," 県平均"&"の "&TEXT(H93/100,"0.0%")&W90,"2010年の "&TEXT(H89/F89,"0.0%")&X90),"") -> ◎ 「自営農業が主」の割合は 37.6%（76,824戸）で、2010年の 33.8% を 3.8ポイント 上回る
M86: 単位：人 | N86: =" 《主な状態別世帯員数割合》 " -> 《主な状態別世帯員数割合》
F87: 計 | G87: 主に仕事 | K87: 主に 家事・育児 | L87: 学生 | M87: その他 | N87: =" "&IF(AND(LEFT(R87,1)<>"県",G4=""),D4,IF(LEFT(R87,1)="県",D90,AA3)) -> 茨城県 | R87: 前回との比較 | W87: 自営農業の増減 | Y87: 凡例用 | AE87: 内円
G88: 小計 | H88: 自営農業が主 | I88: 勤務が主 | J88: 農業以外の自営が主 | R88: ="外円："&IF(AND(LEFT(R87,1)="県",G4=""),D4,IF(LEFT(R87,1)="県",$AA$3,"2015年"))&CHAR(10)&"内円："&IF(LEFT(R87,1)="県",$D$4,"2010年") -> 外円：2015年 内円：2010年 | V88: 列番号 | W88: 県 | X88: 前回 | Y88: 自営農業 | Z88: 勤務 | AA88: 農業以外の自営 | AB88: 家事・育児 | AC88: 学生 | AD88: その他 | AE88: offset 行数
A89: 15 | D89: 2010年 | F89: =IFERROR(OFFSET(INDIRECT($Y$3),$V$3,$V95-1),"nc") -> 270,964 | G89: =IFERROR(OFFSET(INDIRECT($Y$3),$V$3,$V95),"nc") -> 196,470 | H89: =IFERROR(OFFSET(INDIRECT($Y$3),$V$3,$V95+1),"nc") -> 91,667 | I89: =IFERROR(OFFSET(INDIRECT($Y$3),$V$3,$V95+2),"nc") -> 95,626 | J89: =IFERROR(OFFSET(INDIRECT($Y$3),$V$3,$V95+3),"nc") -> 9,177 | K89: =IFERROR(OFFSET(INDIRECT($Y$3),$V$3,$V95+4),"nc") -> 22,122 | L89: =IFERROR(OFFSET(INDIRECT($Y$3),$V$3,$V95+5),"nc") -> 19,045 | M89: =IFERROR(OFFSET(INDIRECT($Y$3),$V$3,$V95+6),"nc") -> 33,327 | V89: =CELL("col",'2010年'!DC6)-1 -> 106 | W89: =H91-H93 -> 0.00 | X89: =H91-H89/F89*100 -> 3.813921425 | AE89: =IF(LEFT(R87,1)="県",2,-1) -> -1
D90: 2015年 | F90: =IFERROR(OFFSET(INDIRECT($Y$4),$V$4,$V96-1),"nc") -> 204,081 | G90: =IFERROR((OFFSET(INDIRECT($Y$4),$V$4,$V96)),"nc") -> 154,101 | H90: =IFERROR((OFFSET(INDIRECT($Y$4),$V$4,$V96+1)),"nc") -> 76,824 | I90: =IFERROR((OFFSET(INDIRECT($Y$4),$V$4,$V96+2)),"nc") -> 68,675 | J90: =IFERROR((OFFSET(INDIRECT($Y$4),$V$4,$V96+3)),"nc") -> 8,602 | K90: =IFERROR((OFFSET(INDIRECT($Y$4),$V$4,$V96+4)),"nc") -> 14,491 | L90: =IFERROR((OFFSET(INDIRECT($Y$4),$V$4,$V96+5)),"nc") -> 12,036 | M90: =IFERROR((OFFSET(INDIRECT($Y$4),$V$4,$V96+6)),"nc") -> 23,453 | V90: =CELL("col",'2015年'!DC6)-1 -> 106 | W90: =" "&IF(W89=0,"と同率である"," を "&TEXT(ABS(W89),"0.0")&"ポイント "&IF(W89>0,"上回る","下回る")) -> と同率である | X90: =IF(X89=0,"と同率である"," を "&TEXT(ABS(X89),"0.0")&"ポイント "&IF(X89>0,"上回る","下回る")) -> を 3.8ポイント 上回る
E91: 構成比(%) | F91: =IF(OR(AND(ISTEXT($F90),$F90<>"X",$F90<>"-"),AND(ISTEXT(F90),F90<>"X",F90<>"-")),"nc",IF(OR($F90="X",F90="X"),"X",IF(ROUND(SUM($F90),0)=0,"nc",SUM(F90)/$F90%))) -> 100.0 | G91: 75.5 | H91: 37.6 | I91: 33.7 | J91: 4.2 | K91: 7.1 | L91: 5.9 | M91: 11.5
E92: 県計 実数 | F92: =IFERROR(OFFSET(INDIRECT($Y$4),5,V96-1),"nc") -> 204,081 | G92: =IFERROR(OFFSET(INDIRECT($Y$4),5,$V$96),"nc") -> 154,101 | H92: =IFERROR(OFFSET(INDIRECT($Y$4),5,V96+1),"nc") -> 76,824 | I92: =IFERROR(OFFSET(INDIRECT($Y$4),5,V96+2),"nc") -> 68,675 | J92: =IFERROR(OFFSET(INDIRECT($Y$4),5,V96+3),"nc") -> 8,602 | K92: =IFERROR(OFFSET(INDIRECT($Y$4),5,V96+4),"nc") -> 14,491 | L92: =IFERROR(OFFSET(INDIRECT($Y$4),5,V96+5),"nc") -> 12,036 | M92: =IFERROR(OFFSET(INDIRECT($Y$4),5,V96+6),"nc") -> 23,453
E93: 県計 構成比(%) | F93: 100.0 | G93: =IFERROR(OFFSET(INDIRECT($Y$4),5,$V$96)/OFFSET(INDIRECT($Y$4),5,$V$96-1)*100,"nc") -> 75.5 | H93: =IFERROR(OFFSET(INDIRECT($Y$4),5,$V$96+F1)/OFFSET(INDIRECT($Y$4),5,$V$96-1)*100,"nc") -> 37.6 | I93: 33.7 | J93: 4.2 | K93: 7.1 | L93: 5.9 | M93: 11.5 | V93: 列番号 | W93: 概要 | Y93: 縦棒 左 | Z93: 縦棒 右 | AA93: 凡例
V94: =IF(C84="過去１年間の生活の主な状態別世帯員数（計）",1,IF(C84="過去１年間の生活の主な状態別世帯員数（男）",2,IF(C84="過去１年間の生活の主な状態別世帯員数（女）",3,ERROR.TYPE(5)))) -> 1 | W94: 人数 | X94: 平均年齢 | Y94: =IF(LEFT(R100,1)="県",3,-1) -> -1 | Z94: =IF(LEFT(R100,1)="県",1,0) -> 0 | AA94: =IF(LEFT(R100,1)="県",$D$4,$D94) -> 0
V95: =IFERROR(CHOOSE(V94,CELL("col",'2010年'!DD6),CELL("col",'2010年'!EG6),CELL("col",'2010年'!EO6))-1,555) -> 107 | W95: =F95/F94-1 ->  | X95: =S95-IF(LEFT(R100,1)="県",S98,S94) -> 0.0 | AA95: =IF(LEFT(R100,1)="県",AA75,D95) -> 0
V96: =IFERROR(CHOOSE(V94,CELL("col",'2015年'!DD6),CELL("col",'2015年'!EG6),CELL("col",'2015年'!EO6))-1,555) -> 107 | W96: =IF(W95=0,"変化なし",TEXT(ABS(F95-F94),"#,##0人")&"（"&TEXT(ABS(W95),"0.0%")&"） "&IF(W95>0,"増加","減少")) ->  | X96: =IF(X95=0,"と同じである","を "&TEXT(ABS(X95),"0.0歳")&IF(X95>0,"上回る","下回る")) -> と同じである
C98: 農産物販売金額１位の部門別農家数（販売のあった農家）
D99: =IF(AA105="",""," ◎ "&AA105&"（"&TEXT(Z105,"0.0")&"%） が最も多く、次いで"&SUBSTITUTE(AA106&AA107,"」「","」、「")&"の順で、この"&DBCS(COUNTIF(AB103:AN103,"<4"))&"部門で全体の "&TEXT(Z104,"0.0")&"% を占める") -> ◎ 「稲作」（64.9%） が最も多く、次いで「露地野菜」、「施設野菜」の順で、この３部門で全体の 85.0% を占める
S100: 単位：戸
F101: 計 | G101: 稲作 | H101: 麦類作 | I101: 雑穀・ いも類・ 豆類 | J101: 工芸農作物 | K101: 野菜類 | M101: 果樹類 | N101: 花き・ 花木 | O101: その他の作物 | P101: 酪農 | Q101: 肉用牛 | R101: 養豚 | S101: 養鶏
K102: 露地 | L102: 施設 | O102: その他の作物 | P102: 畜産 | V102: 列番号 | W102: offset行数 | Y102: 凡例 | Z102: 上位 | AB102: 稲作 | AC102: 麦類作 | AD102: 雑穀・ いも類・ 豆類 | AE102: 工芸 農作物 | AF102: 露地 野菜 | AG102: 施設 野菜 | AH102: 果樹類 | AI102: 花き・ 花木 | AJ102: その他 の作物 | AK102: 酪農 | AL102: 肉用牛 | AM102: 養豚 | AN102: 養鶏
D103: 2010年 | F103: =IFERROR(OFFSET(INDIRECT($Y$3),$V$3,$V103),"nc") -> 63,815 | G103: =IFERROR(OFFSET(INDIRECT($Y$3),$V$3,$V103+F$1),"nc") -> 42,207 | H103: 123 | I103: 2,430 | J103: 596 | K103: 7,439 | L103: 4,562 | M103: 3,088 | N103: 918 | O103: 1,005 | P103: =IFERROR(OFFSET(INDIRECT($Y$3),$V$3,$V103+O$1),"nc") -> 502 | Q103: =IFERROR(OFFSET(INDIRECT($Y$3),$V$3,$V103+P$1),"nc") -> 494 | R103: =IFERROR(OFFSET(INDIRECT($Y$3),$V$3,$V103+Q$1),"nc") -> 313 | S103: =IFERROR(OFFSET(INDIRECT($Y$3),$V$3,$V103+R$1),"nc") -> 114 | V103: =CELL("col",'2010年'!DK6)-1 -> 114 | W103: 縦棒左 | X103: 縦棒右 | Y103: =IF(LEFT(R108,1)="県",D4,D103) -> 2010年 | Z103: ３品目計 | AA103: 順位 | AB103: =IFERROR(RANK(G104,$G$104:$S$104,0),99) -> 1 | AC103: 13 | AD103: 5 | AE103: 10 | AF103: 2 | AG103: 3 | AH103: 4 | AI103: 6 | AJ103: 6 | AK103: 8 | AL103: 9 | AM103: 11 | AN103: 12
D104: 2015年 | F104: =IFERROR(OFFSET(INDIRECT($Y$4),$V$4,V104),"nc") -> 51,919 | G104: =IFERROR(OFFSET(INDIRECT($Y$4),$V$4,$V104+F1),"nc") -> 33,704 | H104: 78 | I104: 2,047 | J104: 261 | K104: 6,381 | L104: 4,037 | M104: 2,707 | N104: 823 | O104: 823 | P104: =IFERROR(OFFSET(INDIRECT($Y$4),$V$4,$V104+O1),"nc") -> 368 | Q104: =IFERROR(OFFSET(INDIRECT($Y$4),$V$4,$V104+P1),"nc") -> 360 | R104: =IFERROR(OFFSET(INDIRECT($Y$4),$V$4,$V104+Q1),"nc") -> 223 | S104: =IFERROR(OFFSET(INDIRECT($Y$4),$V$4,$V104+R1),"nc") -> 91 | V104: =CELL("col",'2015年'!DK6)-1 -> 114 | W104: =IF(LEFT(R108,1)="県",2,-1) -> -1 | X104: =IF(LEFT(R108,1)="県",1,0) -> 0 | Y104: =IF(AND(LEFT(R108,1)="県",G4=""),D4,IF(LEFT(R108,1)="県",AA3,D104)) -> 2015年 | Z104: =SUM(AB104:AN104) -> 84.98237639 | AA104: ％ | AB104: =IF(AB103<4,G104/$F$104%,0) -> 64.91650456 | AC104: =IF(AC103<4,H104/$F$104%,0) -> 0 | AD104: =IF(AD103<4,I104/$F$104%,0) -> 0 | AE104: 0 | AF104: 12.29029835 | AG104: 7.775573489 | AH104: 0 | AI104: 0 | AJ104: 0 | AK104: 0 | AL104: =IF(AL103<4,Q104/$F$104%,0) -> 0 | AM104: =IF(AM103<4,R104/$F$104%,0) -> 0 | AN104: =IF(AN103<4,S104/$F$104%,0) -> 0
E105: 構成比(%) | F105: =IF(OR(AND(ISTEXT($F104),$F104<>"X",$F104<>"-"),AND(ISTEXT(F104),F104<>"X",F104<>"-")),"nc",IF(OR($F104="X",F104="X"),"X",IF(ROUND(SUM($F104),0)=0,"nc",SUM(F104)/$F104%))) -> 100.0 | G105: 64.9 | H105: 0.2 | I105: 3.9 | J105: 0.5 | K105: 12.3 | L105: 7.8 | M105: 5.2 | N105: 1.6 | O105: 1.6 | P105: 0.7 | Q105: 0.7 | R105: 0.4 | S105: 0.2 | Y105: １位 | Z105: =SUMIF($AB$103:$AN$103,1,AB104:AN104) -> 64.91650456 | AA105: =SUBSTITUTE(AB105&AC105&AD105&AE105&AF105&AG105&AH105&AI105&AJ105&AK105&AL105&AM105&AN105,"」「","」と「") -> 「稲作」 | AB105: =IF(AB103=1,"「"&CLEAN(AB102)&"」","") -> 「稲作」
E106: 県計 構成比(%) | F106: 100.0 | G106: =IFERROR(IF(OFFSET(INDIRECT($Y$4),5,$V$104+F1)="-","-",ROUND(OFFSET(INDIRECT($Y$4),5,$V$104+F1)/OFFSET(INDIRECT($Y$4),5,$V$104)*100,1)),"nc") -> 64.9 | H106: =IFERROR(IF(OFFSET(INDIRECT($Y$4),5,$V$104+G1)="-","-",ROUND(OFFSET(INDIRECT($Y$4),5,$V$104+G1)/OFFSET(INDIRECT($Y$4),5,$V$104)*100,1)),"nc") -> 0.2 | I106: =IFERROR(IF(OFFSET(INDIRECT($Y$4),5,$V$104+H1)="-","-",ROUND(OFFSET(INDIRECT($Y$4),5,$V$104+H1)/OFFSET(INDIRECT($Y$4),5,$V$104)*100,1)),"nc") -> 3.9 | J106: =IFERROR(IF(OFFSET(INDIRECT($Y$4),5,$V$104+I1)="-","-",ROUND(OFFSET(INDIRECT($Y$4),5,$V$104+I1)/OFFSET(INDIRECT($Y$4),5,$V$104)*100,1)),"nc") -> 0.5 | K106: =IFERROR(IF(OFFSET(INDIRECT($Y$4),5,$V$104+J1)="-","-",ROUND(OFFSET(INDIRECT($Y$4),5,$V$104+J1)/OFFSET(INDIRECT($Y$4),5,$V$104)*100,1)),"nc") -> 12.3 | L106: 7.8 | M106: 5.2 | N106: 1.6 | O106: 1.6 | P106: =IFERROR(IF(OFFSET(INDIRECT($Y$4),5,$V$104+O1)="-","-",ROUND(OFFSET(INDIRECT($Y$4),5,$V$104+O1)/OFFSET(INDIRECT($Y$4),5,$V$104)*100,1)),"nc") -> 0.7 | Q106: =IFERROR(IF(OFFSET(INDIRECT($Y$4),5,$V$104+P1)="-","-",ROUND(OFFSET(INDIRECT($Y$4),5,$V$104+P1)/OFFSET(INDIRECT($Y$4),5,$V$104)*100,1)),"nc") -> 0.7 | R106: =IFERROR(IF(OFFSET(INDIRECT($Y$4),5,$V$104+Q1)="-","-",ROUND(OFFSET(INDIRECT($Y$4),5,$V$104+Q1)/OFFSET(INDIRECT($Y$4),5,$V$104)*100,1)),"nc") -> 0.4 | S106: =IFERROR(IF(OFFSET(INDIRECT($Y$4),5,$V$104+R1)="-","-",ROUND(OFFSET(INDIRECT($Y$4),5,$V$104+R1)/OFFSET(INDIRECT($Y$4),5,$V$104)*100,1)),"nc") -> 0.2 | Y106: ２位 | Z106: =SUMIF($AB$103:$AN$103,2,$AB$104:$AN$104) -> 12.29029835 | AA106: =SUBSTITUTE(AB106&AC106&AD106&AE106&AF106&AG106&AH106&AI106&AJ106&AK106&AL106&AM106&AN106,"」「","」と「") -> 「露地野菜」 | AB106: =IF(AB103=2,"「"&CLEAN(AB102)&"」","") ->  | AF106: 「露地野菜」
D107: =IF(LEFT(R108,1)="県","（％）","（戸）") -> （戸） | H107: ="《農産物販売金額１位の部門別農家数"&IF(LEFT(R108,1)="県","割合","")&"》 "&IF(AND(LEFT(R108,1)<>"県",G4=""),D4,IF(LEFT(R108,1)="県","2015年",AA3)) -> 《農産物販売金額１位の部門別農家数》 茨城県 | Y107: ３位 | Z107: =SUMIF($AB$103:$AN$103,3,$AB$104:$AN$104) -> 7.775573489 | AA107: =SUBSTITUTE(AB107&AC107&AD107&AE107&AF107&AG107&AH107&AI107&AJ107&AK107&AL107&AM107&AN107,"」「","」と「") -> 「施設野菜」 | AB107: =IF(AB103=3,"「"&CLEAN(AB102)&"」","") ->  | AG107: 「施設野菜」
R108: 前回との比較
C121: 経営耕地面積（販売農家） | I121: =IFERROR(" ◎ 経営耕地面積は "&IF(G126=G125,"変化なし",TEXT(ABS(G126-G125),"#,##0")&"ha（"&TEXT(ABS(G126/G125-1),"0.0%"&"） "))&IF(F126=F125,"",IF(G126<G125,"減少","増加"))&"、１戸当たりでは "&IF(X125=0,"変動無し",TEXT(ABS(X125),"0.00")&"ha "&IF(X125>0,"増加","減少")),"") -> ◎ 経営耕地面積は 9,430ha（8.1%) 減少、１戸当たりでは 0.23ha 増加
D122: =AA3 -> 茨城県 | K122: 単位：ha
F123: 経 営 耕 地 のある農家数 | G123: 経 営 耕 地 面 積 | K123: １戸当たり経営耕地面積
H124: 田 | I124: 畑 （樹園地を除く） | J124: 樹園地 | V124: 列番号 | W124: 凡例用 | X124: １戸当たり増減
D125: 2010年 | F125: =IFERROR(OFFSET(INDIRECT($Y$3),$V$3,V125),"nc") -> 70,787 | G125: =IFERROR(ROUND(OFFSET(INDIRECT($Y$3),$V$3,$V$125+F1)/100,0),OFFSET(INDIRECT($Y$3),$V$3,$V$125+F1)) -> 116,601 | H125: =IFERROR(ROUND(OFFSET(INDIRECT($Y$3),$V$3,$V$125+G1)/100,0),OFFSET(INDIRECT($Y$3),$V$3,$V$125+G1)) -> 72,544 | I125: =IFERROR(ROUND(OFFSET(INDIRECT($Y$3),$V$3,$V$125+H1)/100,0),OFFSET(INDIRECT($Y$3),$V$3,$V$125+H1)) -> 39,156 | J125: =IFERROR(ROUND(OFFSET(INDIRECT($Y$3),$V$3,$V$125+I1)/100,0),OFFSET(INDIRECT($Y$3),$V$3,$V$125+I1)) -> 4,900 | K125: =IF(OR(AND(ISTEXT($F125),$F125<>"X",$F125<>"-"),AND(ISTEXT(G125),G125<>"X",G125<>"-")),"nc",IF(OR($F125="X",G125="X"),"X",IF(ROUND(SUM($F125),0)=0,"nc",ROUND(SUM(G125)/$F125,2)))) -> 1.65 | V125: =CELL("col",'2010年'!EA6)-1 -> 130 | W125: 田 | X125: =K126-K125 -> 0.23
D126: 2015年 | F126: =IFERROR(OFFSET(INDIRECT($Y$4),$V$4,$V126),"nc") -> 57,098 | G126: =IFERROR(ROUND(OFFSET(INDIRECT($Y$4),$V$4,$V126+F1)/100,0),OFFSET(INDIRECT($Y$4),$V$4,$V126+F1)) -> 107,171 | H126: =IFERROR(ROUND(OFFSET(INDIRECT($Y$4),$V$4,$V126+G1)/100,0),OFFSET(INDIRECT($Y$4),$V$4,$V126+G1)) -> 67,776 | I126: =IFERROR(ROUND(OFFSET(INDIRECT($Y$4),$V$4,$V126+H1)/100,0),OFFSET(INDIRECT($Y$4),$V$4,$V126+H1)) -> 35,144 | J126: =IFERROR(ROUND(OFFSET(INDIRECT($Y$4),$V$4,$V126+I1)/100,0),OFFSET(INDIRECT($Y$4),$V$4,$V126+I1)) -> 4,252 | K126: =IF(OR(AND(ISTEXT($F126),$F126<>"X",$F126<>"-"),AND(ISTEXT(G126),G126<>"X",G126<>"-")),"nc",IF(OR($F126="X",G126="X"),"X",IF(ROUND(SUM($F126),0)=0,"nc",ROUND(SUM(G126)/$F126,2)))) -> 1.88 | V126: =CELL("col",'2015年'!EA6)-1 -> 130 | W126: 畑
E127: 構成比(%) | G127: =IF(OR(AND(ISTEXT($G126),$G126<>"X",$G126<>"-"),AND(ISTEXT(G126),G126<>"X",G126<>"-")),"nc",IF(OR($G126="X",G126="X"),"X",IF(ROUND(SUM($G126),0)=0,"nc",SUM(G126)/$G126%))) -> 100.0 | H127: =IF(OR(AND(ISTEXT($G126),$G126<>"X",$G126<>"-"),AND(ISTEXT(H126),H126<>"X",H126<>"-")),"nc",IF(OR($G126="X",H126="X"),"X",IF(ROUND(SUM($G126),0)=0,"nc",SUM(H126)/$G126%))) -> 63.2 | I127: 32.8 | J127: 4.0 | W127: 樹園地
E128: 県計 構成比(%) | G128: 100.0 | H128: =IFERROR(ROUND(OFFSET(INDIRECT($Y$4),5,$V$126+G1)/OFFSET(INDIRECT($Y$4),5,$V$126+1)*100,1),"nc") -> 63.2 | I128: =IFERROR(ROUND(OFFSET(INDIRECT($Y$4),5,$V$126+H1)/OFFSET(INDIRECT($Y$4),5,$V$126+1)*100,1),"nc") -> 32.8 | J128: =IFERROR(ROUND(OFFSET(INDIRECT($Y$4),5,$V$126+I1)/OFFSET(INDIRECT($Y$4),5,$V$126+1)*100,1),"nc") -> 4.0 | K128: =IFERROR(OFFSET(INDIRECT($Y$4),5,V126+1)/OFFSET(INDIRECT($Y$4),5,V126)/100,"nc") -> 1.88
D129: =IFERROR("《参考》"&G4&"の経営耕地面積の全国順位："&TEXT(OFFSET(#REF!,MATCH(Info!G4,#REF!,0),0),"#,##0")&"位","") -> 

Sheet Sheet1 (hidden)

Sheet 2010年 (hidden)
A1: 都道府県名（支庁名） | B1: 市区町村名 | C1: 旧市区町村名 | D1: 農業集落名 | E1: 総農家数 | M1: （７）年齢別の農業従事者数（自営農業に従事した世帯員数）男女計 | AC1: 農業従事者の平均年齢 | AF1: 年齢別の農業就業人口（自営農業に主として従事した世帯員数）男女計 | AV1: 農業就業人口 | AY1: （11）年齢別の基幹的農業従事者数（自営農業に主として従事した世帯員のうち仕事が主の世帯員数）男女計 | BO1: 基幹的農業従事者 平均年齢 | BR1: （２）年齢別の経営者数男女計 | CH1: ウ後継者がいる経営者 | CV1: 家族経営構成別農家数 | DC1: （６）過去１年間の生活の主な状態別世帯員数 | DH1: 男女計 | DK1: （４）農産物販売金額１位の部門別農家数 | EA1: （１）経営耕地の状況 | EF1: （６）過去１年間の生活の主な状態別世帯員数(男) | EN1: （６）過去１年間の生活の主な状態別世帯員数(女)
F2: 販売農家数 | L2: 自給的農家 | M2: 計 | N2: 15～19歳 | O2: 20～24 | P2: 25～29 | Q2: 30～34 | R2: 35～39 | S2: 40～44 | T2: 45～49 | U2: 50～54 | V2: 55～59 | W2: 60～64 | X2: 65～69 | Y2: 70～74 | Z2: 75～79 | AA2: 80～84 | AB2: 85歳以上 | AC2: 男女計 | AD2: 男 | AE2: 女 | AF2: 計 | AG2: 15～19歳 | AH2: 20～24 | AI2: 25～29 | AJ2: 30～34 | AK2: 35～39 | AL2: 40～44 | AM2: 45～49 | AN2: 50～54 | AO2: 55～59 | AP2: 60～64 | AQ2: 65～69 | AR2: 70～74 | AS2: 75～79 | AT2: 80～84 | AU2: 85歳以上 | AY2: 計 | AZ2: 15～19歳 | BA2: 20～24 | BB2: 25～29 | BC2: 30～34 | BD2: 35～39 | BE2: 40～44 | BF2: 45～49 | BG2: 50～54 | BH2: 55～59 | BI2: 60～64 | BJ2: 65～69 | BK2: 70～74 | BL2: 75～79 | BM2: 80～84 | BN2: 85歳以上 | BR2: 計 | BS2: 15～19歳 | BT2: 20～24 | BU2: 25～29 | BV2: 30～34 | BW2: 35～39 | BX2: 40～44 | BY2: 45～49 | BZ2: 50～54 | CA2: 55～59 | CB2: 60～64 | CC2: 65～69 | CD2: 70～74 | CE2: 75～79 | CF2: 80～84 | CG2: 85歳以上 | CH2: 計 | CI2: 30歳未満 | CJ2: 30～34 | CK2: 35～39 | CL2: 40～44 | CM2: 45～49 | CN2: 50～54 | CO2: 55～59 | CP2: 60～64 | CQ2: 65～69 | CR2: 70～74 | CS2: 75～79 | CT2: 80～84 | CU2: 85歳以上 | DD2: 主に仕事 | DN2: 雑穀・ | EA2: 経営耕地 のある 農家数 | EB2: 経営耕地 総面積 | EC2: 田 | ED2: 畑（樹園地を除く） | EE2: 樹園地 | EF2: 計 | EG2: 主に仕事 | EK2: 主に家事 ・育児 | EL2: 学生 | EM2: その他 | EN2: 計 | EO2: 主に仕事 | ES2: 主に家事 ・育児 | ET2: 学生 | EU2: その他
G3: 主業農家 | I3: 準主業農家 | K3: 副業的農家 | AV3: 男女計の 平均年齢 | AW3: 男の 平均年齢 | AX3: 女の 平均年齢 | BO3: 男女計 | BP3: 男 | BQ3: 女 | DC3: 計 | DD3: 小計 | DE3: 自営農業 が主 | DF3: 勤務が主 | DG3: 農業以外の | DH3: 主に家事 ・育児 | DI3: 学生 | DJ3: その他 | DK3: 計 | DL3: 稲作 | DM3: 麦類作 | DN3: いも類 | DO3: 工芸農作物 | DP3: 露地野菜 | DQ3: 施設野菜 | DR3: 果樹類 | DS3: 花き・花木 | DT3: その他の 作物 | DU3: 酪農 | DV3: 肉用牛 | DW3: 養豚 | DX3: 養鶏 | DY3: 養蚕 | DZ3: その他の 畜産 | EG3: 小計 | EH3: 自営農業 が主 | EI3: 勤務が主 | EJ3: 農業以外の 自営業が主 | EO3: 小計 | EP3: 自営農業 が主 | EQ3: 勤務が主 | ER3: 農業以外の 自営業が主
H4: 65歳未満の農業専従者がいる | J4: 65歳未満の農業専従者がいる | DG4: 自営業が主 | DN4: ・豆類
A6: 茨城県 | E6: 103,221 | F6: 70,884 | G6: 14,860 | H6: 12,740 | I6: 15,032 | J6: 4,817 | K6: 40,992 | L6: 32,337 | M6: 195,396 | N6: 2,482 | O6: 4,912 | P6: 6,211 | Q6: 7,004 | R6: 8,161 | S6: 9,723 | T6: 13,879 | U6: 19,149 | V6: 24,546 | W6: 22,510 | X6: 18,728 | Y6: 20,535 | Z6: 19,733 | AA6: 13,069 | AB6: 4,754 | AC6: 58.5 | AD6: 57.1 | AE6: 60.2 | AF6: 113,287 | AG6: 1,103 | AH6: 1,203 | AI6: 1,285 | AJ6: 1,767 | AK6: 2,138 | AL6: 2,546 | AM6: 3,784 | AN6: 6,029 | AO6: 10,445 | AP6: 13,973 | AQ6: 15,389 | AR6: 18,828 | AS6: 18,421 | AT6: 12,095 | AU6: 4,281 | AV6: 65.7 | AW6: 65.7 | AX6: 65.8 | AY6: 91,566 | AZ6: 41 | BA6: 422 | BB6: 968 | BC6: 1,304 | BD6: 1,578 | BE6: 1,988 | BF6: 3,102 | BG6: 5,168 | BH6: 9,174 | BI6: 12,280 | BJ6: 13,642 | BK6: 16,302 | BL6: 14,901 | BM6: 8,317 | BN6: 2,379 | BO6: 66.0 | BP6: 65.8 | BQ6: 66.2 | BR6: 70,884 | BS6: - | BT6: 13 | BU6: 53 | BV6: 196 | BW6: 595 | BX6: 1,636 | BY6: 3,993 | BZ6: 7,573 | CA6: 11,757 | CB6: 12,097 | CC6: 9,641 | CD6: 9,781 | CE6: 7,951 | CF6: 4,236 | CG6: 1,362 | CH6: 42,840 | CI6: 4 | CJ6: 7 | CK6: 64 | CL6: 399 | CM6: 1,608 | CN6: 3,867 | CO6: 6,816 | CP6: 7,337 | CQ6: 6,176 | CR6: 6,566 | CS6: 5,651 | CT6: 3,230 | CU6: 1,115 | DC6: 270,964 | DD6: 196,470 | DE6: 91,667 | DF6: 95,626 | DG6: 9,177 | DH6: 22,122 | DI6: 19,045 | DJ6: 33,327 | DK6: 63,815 | DL6: 42,207 | DM6: 123 | DN6: 2,430 | DO6: 596 | DP6: 7,439 | DQ6: 4,562 | DR6: 3,088 | DS6: 918 | DT6: 1,005 | DU6: 502 | DV6: 494 | DW6: 313 | DX6: 114 | DY6: 12 | DZ6: 12 | EA6: 70,787 | EB6: 11,660,069 | EC6: 7,254,418 | ED6: 3,915,627 | EE6: 490,024 | EF6: 134,973 | EG6: 112,441 | EH6: 50,421 | EI6: 55,633 | EJ6: 6,387 | EK6: 287 | EL6: 9,956 | EM6: 12,289 | EN6: 135,991 | EO6: 84,029 | EP6: 41,246 | EQ6: 39,993 | ER6: 2,790 | ES6: 21,835 | ET6: 9,089 | EU6: 21,038
A7: 茨城県 | D7: 霞ヶ浦（非認定） | E7: - | F7: - | G7: - | H7: - | I7: - | J7: - | K7: - | L7: - | M7: - | N7: - | O7: - | P7: - | Q7: - | R7: - | S7: - | T7: - | U7: - | V7: - | W7: - | X7: - | Y7: - | Z7: - | AA7: - | AB7: - | AF7: - | AG7: - | AH7: - | AI7: - | AJ7: - | AK7: - | AL7: - | AM7: - | AN7: - | AO7: - | AP7: - | AQ7: - | AR7: - | AS7: - | AT7: - | AU7: - | AY7: - | AZ7: - | BA7: - | BB7: - | BC7: - | BD7: - | BE7: - | BF7: - | BG7: - | BH7: - | BI7: - | BJ7: - | BK7: - | BL7: - | BM7: - | BN7: -
A8: 茨城県 | B8: 水戸市 | E8: 4,820 | F8: 3,245 | G8: 466 | H8: 305 | I8: 866 | J8: 235 | K8: 1,913 | L8: 1,575 | M8: 8,815 | N8: 122 | O8: 227 | P8: 262 | Q8: 267 | R8: 318 | S8: 398 | T8: 638 | U8: 850 | V8: 1,078 | W8: 979 | X8: 831 | Y8: 952 | Z8: 922 | AA8: 670 | AB8: 301 | AC8: 59.4 | AD8: 58.1 | AE8: 61.0 | AF8: 4,859 | AG8: 35 | AH8: 33 | AI8: 35 | AJ8: 37 | AK8: 60 | AL8: 67 | AM8: 118 | AN8: 206 | AO8: 369 | AP8: 549 | AQ8: 697 | AR8: 885 | AS8: 867 | AT8: 623 | AU8: 278 | AV8: 68.4 | AW8: 69.0 | AX8: 67.9 | AY8: 3,884 | AZ8: - | BA8: 11 | BB8: 24 | BC8: 24 | BD8: 42 | BE8: 39 | BF8: 77 | BG8: 163 | BH8: 313 | BI8: 461 | BJ8: 616 | BK8: 789 | BL8: 726 | BM8: 447 | BN8: 152 | BO8: 68.8 | BP8: 68.9 | BQ8: 68.8 | BR8: 3,245 | BS8: - | BT8: - | BU8: 3 | BV8: 3 | BW8: 18 | BX8: 51 | BY8: 145 | BZ8: 295 | CA8: 479 | CB8: 519 | CC8: 425 | CD8: 505 | CE8: 405 | CF8: 268 | CG8: 129 | CH8: 2,040 | CI8: - | CJ8: - | CK8: 3 | CL8: 5 | CM8: 51 | CN8: 161 | CO8: 280 | CP8: 328 | CQ8: 277 | CR8: 333 | CS8: 291 | CT8: 205 | CU8: 106 | DC8: 11,576 | DD8: 8,468 | DE8: 3,893 | DF8: 4,156 | DG8: 419 | DH8: 930 | DI8: 787 | DJ8: 1,391 | DK8: 2,834 | DL8: 2,302 | DM8: 5 | DN8: 20 | DO8: 1 | DP8: 229 | DQ8: 92 | DR8: 105 | DS8: 27 | DT8: 4 | DU8: 20 | DV8: 16 | DW8: 12 | DX8: 1 | DY8: - | DZ8: - | EA8: 3,243 | EB8: 452,849 | EC8: 324,251 | ED8: 113,390 | EE8: 15,208 | EF8: 5,673 | EG8: 4,796 | EH8: 2,063 | EI8: 2,436 | EJ8: 297 | EK8: 10 | EL8: 394 | EM8: 473 | EN8: 5,903 | EO8: 3,672 | EP8: 1,830 | EQ8: 1,720 | ER8: 122 | ES8: 920 | ET8: 393 | EU8: 918
A9: 茨城県 | B9: 水戸市 | C9: 水戸市 | E9: 98 | F9: 37 | G9: 7 | H9: 3 | I9: 5 | J9: - | K9: 25 | L9: 61 | M9: 95 | N9: 1 | O9: - | P9: 1 | Q9: - | R9: 7 | S9: 7 | T9: 8 | U9: 5 | V9: 7 | W9: 9 | X9: 16 | Y9: 7 | Z9: 8 | AA9: 13 | AB9: 6 | AC9: 62.6 | AD9: 60.6 | AE9: 65.0 | AF9: 59 | AG9: - | AH9: - | AI9: - | AJ9: - | AK9: 2 | AL9: 2 | AM9: 2 | AN9: 2 | AO9: - | AP9: 5 | AQ9: 15 | AR9: 5 | AS9: 8 | AT9: 12 | AU9: 6 | AV9: 70.3 | AW9: 71.8 | AX9: 68.8 | AY9: 53 | AZ9: - | BA9: - | BB9: - | BC9: - | BD9: 1 | BE9: 2 | BF9: 2 | BG9: 2 | BH9: - | BI9: 4 | BJ9: 13 | BK9: 5 | BL9: 8 | BM9: 10 | BN9: 6 | BO9: 70.8 | BP9: 71.4 | BQ9: 70.1 | BR9: 37 | BS9: - | BT9: - | BU9: - | BV9: - | BW9: 1 | BX9: 2 | BY9: - | BZ9: 1 | CA9: 4 | CB9: 3 | CC9: 7 | CD9: 5 | CE9: 4 | CF9: 7 | CG9: 3 | CH9: 21 | CI9: - | CJ9: - | CK9: 1 | CL9: - | CM9: - | CN9: 1 | CO9: 2 | CP9: 1 | CQ9: 5 | CR9: 3 | CS9: 1 | CT9: 5 | CU9: 2 | DC9: 130 | DD9: 98 | DE9: 53 | DF9: 39 | DG9: 6 | DH9: 12 | DI9: 9 | DJ9: 11 | DK9: 27 | DL9: 17 | DM9: - | DN9: - | DO9: - | DP9: 6 | DQ9: 2 | DR9: - | DS9: 2 | DT9: - | DU9: - | DV9: - | DW9: - | DX9: - | DY9: - | DZ9: - | EA9: 37 | EB9: 4,054 | EC9: 2,476 | ED9: 1,477 | EE9: 101 | EF9: 68 | EG9: 53 | EH9: 28 | EI9: 22 | EJ9: 3 | EK9: - | EL9: 8 | EM9: 7 | EN9: 62 | EO9: 45 | EP9: 25 | EQ9: 17 | ER9: 3 | ES9: 12 | ET9: 1 | EU9: 4
A10: 茨城県 | B10: 水戸市 | C10: 水戸市 | D10: 柵町一、二、三、四町目、大手町 | E10: - | F10: - | G10: - | H10: - | I10: - | J10: - | K10: - | L10: - | M10: - | N10: - | O10: - | P10: - | Q10: - | R10: - | S10: - | T10: - | U10: - | V10: - | W10: - | X10: - | Y10: - | Z10: - | AA10: - | AB10: - | AC10: … | AD10: … | AE10: … | AF10: - | AG10: - | AH10: - | AI10: - | AJ10: - | AK10: - | AL10: - | AM10: - | AN10: - | AO10: - | AP10: - | AQ10: - | AR10: - | AS10: - | AT10: - | AU10: - | AV10: … | AW10: … | AX10: … | AY10: - | AZ10: - | BA10: - | BB10: - | BC10: - | BD10: - | BE10: - | BF10: - | BG10: - | BH10: - | BI10: - | BJ10: - | BK10: - | BL10: - | BM10: - | BN10: - | BO10: … | BP10: … | BQ10: … | BR10: - | BS10: - | BT10: - | BU10: - | BV10: - | BW10: - | BX10: - | BY10: - | BZ10: - | CA10: - | CB10: - | CC10: - | CD10: - | CE10: - | CF10: - | CG10: - | CH10: - | CI10: - | CJ10: - | CK10: - | CL10: - | CM10: - | CN10: - | CO10: - | CP10: - | CQ10: - | CR10: - | CS10: - | CT10: - | CU10: - | DC10: - | DD10: - | DE10: - | DF10: - | DG10: - | DH10: - | DI10: - | DJ10: - | DK10: - | DL10: - | DM10: - | DN10: - | DO10: - | DP10: - | DQ10: - | DR10: - | DS10: - | DT10: - | DU10: - | DV10: - | DW10: - | DX10: - | DY10: - | DZ10: - | EA10: - | EB10: - | EC10: - | ED10: - | EE10: - | EF10: - | EG10: - | EH10: - | EI10: - | EJ10: - | EK10: - | EL10: - | EM10: - | EN10: - | EO10: - | EP10: - | EQ10: - | ER10: - | ES10: - | ET10: - | EU10: -
A11: 茨城県 | B11: 水戸市 | C11: 水戸市 | D11: 柵町五，六町目 | E11: - | F11: - | G11: - | H11: - | I11: - | J11: - | K11: - | L11: - | M11: - | N11: - | O11: - | P11: - | Q11: - | R11: - | S11: - | T11: - | U11: - | V11: - | W11: - | X11: - | Y11: - | Z11: - | AA11: - | AB11: - | AC11: … | AD11: … | AE11: … | AF11: - | AG11: - | AH11: - | AI11: - | AJ11: - | AK11: - | AL11: - | AM11: - | AN11: - | AO11: - | AP11: - | AQ11: - | AR11: - | AS11: - | AT11: - | AU11: - | AV11: … | AW11: … | AX11: … | AY11: - | AZ11: - | BA11: - | BB11: - | BC11: - | BD11: - | BE11: - | BF11: - | BG11: - | BH11: - | BI11: - | BJ11: - | BK11: - | BL11: - | BM11: - | BN11: - | BO11: … | BP11: … | BQ11: … | BR11: - | BS11: - | BT11: - | BU11: - | BV11: - | BW11: - | BX11: - | BY11: - | BZ11: - | CA11: - | CB11: - | CC11: - | CD11: - | CE11: - | CF11: - | CG11: - | CH11: - | CI11: - | CJ11: - | CK11: - | CL11: - | CM11: - | CN11: - | CO11: - | CP11: - | CQ11: - | CR11: - | CS11: - | CT11: - | CU11: - | DC11: - | DD11: - | DE11: - | DF11: - | DG11: - | DH11: - | DI11: - | DJ11: - | DK11: - | DL11: - | DM11: - | DN11: - | DO11: - | DP11: - | DQ11: - | DR11: - | DS11: - | DT11: - | DU11: - | DV11: - | DW11: - | DX11: - | DY11: - | DZ11: - | EA11: - | EB11: - | EC11: - | ED11: - | EE11: - | EF11: - | EG11: - | EH11: - | EI11: - | EJ11: - | EK11: - | EL11: - | EM11: - | EN11: - | EO11: - | EP11: - | EQ11: - | ER11: - | ES11: - | ET11: - | EU11: -
A12: 茨城県 | B12: 水戸市 | C12: 水戸市 | D12: 霞町北三の丸 | E12: 1 | F12: - | G12: - | H12: - | I12: - | J12: - | K12: - | L12: 1 | M12: - | N12: - | O12: - | P12: - | Q12: - | R12: - | S12: - | T12: - | U12: - | V12: - | W12: - | X12: - | Y12: - | Z12: - | AA12: - | AB12: - | AC12: … | AD12: … | AE12: … | AF12: - | AG12: - | AH12: - | AI12: - | AJ12: - | AK12: - | AL12: - | AM12: - | AN12: - | AO12: - | AP12: - | AQ12: - | AR12: - | AS12: - | AT12: - | AU12: - | AV12: … | AW12: … | AX12: … | AY12: - | AZ12: - | BA12: - | BB12: - | BC12: - | BD12: - | BE12: - | BF12: - | BG12: - | BH12: - | BI12: - | BJ12: - | BK12: - | BL12: - | BM12: - | BN12: - | BO12: … | BP12: … | BQ12: … | BR12: - | BS12: - | BT12: - | BU12: - | BV12: - | BW12: - | BX12: - | BY12: - | BZ12: - | CA12: - | CB12: - | CC12: - | CD12: - | CE12: - | CF12: - | CG12: - | CH12: - | CI12: - | CJ12: - | CK12: - | CL12: - | CM12: - | CN12: - | CO12: - | CP12: - | CQ12: - | CR12: - | CS12: - | CT12: - | CU12: - | DC12: - | DD12: - | DE12: - | DF12: - | DG12: - | DH12: - | DI12: - | DJ12: - | DK12: - | DL12: - | DM12: - | DN12: - | DO12: - | DP12: - | DQ12: - | DR12: - | DS12: - | DT12: - | DU12: - | DV12: - | DW12: - | DX12: - | DY12: - | DZ12: - | EA12: - | EB12: - | EC12: - | ED12: - | EE12: - | EF12: - | EG12: - | EH12: - | EI12: - | EJ12: - | EK12: - | EL12: - | EM12: - | EN12: - | EO12: - | EP12: - | EQ12: - | ER12: - | ES12: - | ET12: - | EU12: -
A13: 茨城県 | B13: 水戸市 | C13: 水戸市 | D13: 銀否、宮下、奈良屋町、南三の丸 | E13: - | F13: - | G13: - | H13: - | I13: - | J13: - | K13: - | L13: - | M13: - | N13: - | O13: - | P13: - | Q13: - | R13: - | S13: - | T13: - | U13: - | V13: - | W13: - | X13: - | Y13: - | Z13: - | AA13: - | AB13: - | AC13: … | AD13: … | AE13: … | AF13: - | AG13: - | AH13: - | AI13: - | AJ13: - | AK13: - | AL13: - | AM13: - | AN13: - | AO13: - | AP13: - | AQ13: - | AR13: - | AS13: - | AT13: - | AU13: - | AV13: … | AW13: … | AX13: … | AY13: - | AZ13: - | BA13: - | BB13: - | BC13: - | BD13: - | BE13: - | BF13: - | BG13: - | BH13: - | BI13: - | BJ13: - | BK13: - | BL13: - | BM13: - | BN13: - | BO13: … | BP13: … | BQ13: … | BR13: - | BS13: - | BT13: - | BU13: - | BV13: - | BW13: - | BX13: - | BY13: - | BZ13: - | CA13: - | CB13: - | CC13: - | CD13: - | CE13: - | CF13: - | CG13: - | CH13: - | CI13: - | CJ13: - | CK13: - | CL13: - | CM13: - | CN13: - | CO13: - | CP13: - | CQ13: - | CR13: - | CS13: - | CT13: - | CU13: - | DC13: - | DD13: - | DE13: - | DF13: - | DG13: - | DH13: - | DI13: - | DJ13: - | DK13: - | DL13: - | DM13: - | DN13: - | DO13: - | DP13: - | DQ13: - | DR13: - | DS13: - | DT13: - | DU13: - | DV13: - | DW13: - | DX13: - | DY13: - | DZ13: - | EA13: - | EB13: - | EC13: - | ED13: - | EE13: - | EF13: - | EG13: - | EH13: - | EI13: - | EJ13: - | EK13: - | EL13: - | EM13: - | EN13: - | EO13: - | EP13: - | EQ13: - | ER13: - | ES13: - | ET13: - | EU13: -
A14: 茨城県 | B14: 水戸市 | C14: 水戸市 | D14: 黒羽根，田見小路，その他１０町 | E14: - | F14: - | G14: - | H14: - | I14: - | J14: - | K14: - | L14: - | M14: - | N14: - | O14: - | P14: - | Q14: - | R14: - | S14: - | T14: - | U14: - | V14: - | W14: - | X14: - | Y14: - | Z14: - | AA14: - | AB14: - | AC14: … | AD14: … | AE14: … | AF14: - | AG14: - | AH14: - | AI14: - | AJ14: - | AK14: - | AL14: - | AM14: - | AN14: - | AO14: - | AP14: - | AQ14: - | AR14: - | AS14: - | AT14: - | AU14: - | AV14: … | AW14: … | AX14: … | AY14: - | AZ14: - | BA14: - | BB14: - | BC14: - | BD14: - | BE14: - | BF14: - | BG14: - | BH14: - | BI14: - | BJ14: - | BK14: - | BL14: - | BM14: - | BN14: - | BO14: … | BP14: … | BQ14: … | BR14: - | BS14: - | BT14: - | BU14: - | BV14: - | BW14: - | BX14: - | BY14: - | BZ14: - | CA14: - | CB14: - | CC14: - | CD14: - | CE14: - | CF14: - | CG14: - | CH14: - | CI14: - | CJ14: - | CK14: - | CL14: - | CM14: - | CN14: - | CO14: - | CP14: - | CQ14: - | CR14: - | CS14: - | CT14: - | CU14: - | DC14: - | DD14: - | DE14: - | DF14: - | DG14: - | DH14: - | DI14: - | DJ14: - | DK14: - | DL14: - | DM14: - | DN14: - | DO14: - | DP14: - | DQ14: - | DR14: - | DS14: - | DT14: - | DU14: - | DV14: - | DW14: - | DX14: - | DY14: - | DZ14: - | EA14: - | EB14: - | EC14: - | ED14: - | EE14: - | EF14: - | EG14: - | EH14: - | EI14: - | EJ14: - | EK14: - | EL14: - | EM14: - | EN14: - | EO14: - | EP14: - | EQ14: - | ER14: - | ES14: - | ET14: - | EU14: -
A15: 茨城県 | B15: 水戸市 | C15: 水戸市 | D15: 根本町一区 | E15: 5 | F15: 3 | G15: 1 | H15: 1 | I15: - | J15: - | K15: 2 | L15: 2 | M15: 6 | N15: - | O15: - | P15: - | Q15: - | R15: - | S15: 1 | T15: - | U15: - | V15: 1 | W15: 2 | X15: - | Y15: - | Z15: 1 | AA15: 1 | AB15: - | AC15: 62.2 | AD15: 59.3 | AE15: 68.0 | AF15: 4 | AG15: - | AH15: - | AI15: - | AJ15: - | AK15: - | AL15: 1 | AM15: - | AN15: - | AO15: - | AP15: 1 | AQ15: - | AR15: - | AS15: 1 | AT15: 1 | AU15: - | AV15: 64.0 | AW15: 60.0 | AX15: 68.0 | AY15: 4 | AZ15: - | BA15: - | BB15: - | BC15: - | BD15: - | BE15: 1 | BF15: - | BG15: - | BH15: - | BI15: 1 | BJ15: - | BK15: - | BL15: 1 | BM15: 1 | BN15: - | BO15: 64.0 | BP15: 60.0 | BQ15: 68.0 | BR15: 3 | BS15: - | BT15: - | BU15: - | BV15: - | BW15: - | BX15: 1 | BY15: - | BZ15: - | CA15: 1 | CB15: 1 | CC15: - | CD15: - | CE15: - | CF15: - | CG15: - | CH15: - | CI15: - | CJ15: - | CK15: - | CL15: - | CM15: - | CN15: - | CO15: - | CP15: - | CQ15: - | CR15: - | CS15: - | CT15: - | CU15: - | DC15: 8 | DD15: 7 | DE15: 4 | DF15: 3 | DG15: - | DH15: - | DI15: - | DJ15: 1 | DK15: 1 | DL15: 1 | DM15: - | DN15: - | DO15: - | DP15: - | DQ15: - | DR15: - | DS15: - | DT15: - | DU15: - | DV15: - | DW15: - | DX15: - | DY15: - | DZ15: - | EA15: 3 | EB15: 189 | EC15: 114 | ED15: 75 | EE15: - | EF15: 4 | EG15: 4 | EH15: 2 | EI15: 2 | EJ15: - | EK15: - | EL15: - | EM15: - | EN15: 4 | EO15: 3 | EP15: 2 | EQ15: 1 | ER15: - | ES15: - | ET15: - | EU15: 1
A16: 茨城県 | B16: 水戸市 | C16: 水戸市 | D16: 根本町二，三区 | E16: 16 | F16: 6 | G16: - | H16: - | I16: - | J16: - | K16: 6 | L16: 10 | M16: 13 | N16: - | O16: - | P16: - | Q16: - | R16: 2 | S16: - | T16: - | U16: - | V16: - | W16: - | X16: 7 | Y16: 2 | Z16: 2 | AA16: - | AB16: - | AC16: 64.5 | AD16: 63.1 | AE16: 66.8 | AF16: 9 | AG16: - | AH16: - | AI16: - | AJ16: - | AK16: - | AL16: - | AM16: - | AN16: - | AO16: - | AP16: - | AQ16: 6 | AR16: 1 | AS16: 2 | AT16: - | AU16: - | AV16: 69.4 | AW16: 72.0 | AX16: 66.3 | AY16: 7 | AZ16: - | BA16: - | BB16: - | BC16: - | BD16: - | BE16: - | BF16: - | BG16: - | BH16: - | BI16: - | BJ16: 4 | BK16: 1 | BL16: 2 | BM16: - | BN16: - | BO16: 70.6 | BP16: 72.0 | BQ16: 67.0 | BR16: 6 | BS16: - | BT16: - | BU16: - | BV16: - | BW16: - | BX16: - | BY16: - | BZ16: - | CA16: - | CB16: - | CC16: 3 | CD16: 1 | CE16: 2 | CF16: - | CG16: - | CH16: 3 | CI16: - | CJ16: - | CK16: - | CL16: - | CM16: - | CN16: - | CO16: - | CP16: - | CQ16: 2 | CR16: 1 | CS16: - | CT16: - | CU16: - | DC16: 16 | DD16: 12 | DE16: 7 | DF16: 3 | DG16: 2 | DH16: 2 | DI16: - | DJ16: 2 | DK16: 6 | DL16: 5 | DM16: - | DN16: - | DO16: - | DP16: 1 | DQ16: - | DR16: - | DS16: - | DT16: - | DU16: - | DV16: - | DW16: - | DX16: - | DY16: - | DZ16: - | EA16: 6 | EB16: 919 | EC16: 799 | ED16: 120 | EE16: - | EF16: 9 | EG16: 7 | EH16: 5 | EI16: 1 | EJ16: 1 | EK16: - | EL16: - | EM16: 2 | EN16: 7 | EO16: 5 | EP16: 2 | EQ16: 2 | ER16: 1 | ES16: 2 | ET16: - | EU16: -
A17: 茨城県 | B17: 水戸市 | C17: 水戸市 | D17: 泉町、信願寺町、その他１１町 | E17: - | F17: - | G17: - | H17: - | I17: - | J17: - | K17: - | L17: - | M17: - | N17: - | O17: - | P17: - | Q17: - | R17: - | S17: - | T17: - | U17: - | V17: - | W17: - | X17: - | Y17: - | Z17: - | AA17: - | AB17: - | AC17: … | AD17: … | AE17: … | AF17: - | AG17: - | AH17: - | AI17: - | AJ17: - | AK17: - | AL17: - | AM17: - | AN17: - | AO17: - | AP17: - | AQ17: - | AR17: - | AS17: - | AT17: - | AU17: - | AV17: … | AW17: … | AX17: … | AY17: - | AZ17: - | BA17: - | BB17: - | BC17: - | BD17: - | BE17: - | BF17: - | BG17: - | BH17: - | BI17: - | BJ17: - | BK17: - | BL17: - | BM17: - | BN17: - | BO17: … | BP17: … | BQ17: … | BR17: - | BS17: - | BT17: - | BU17: - | BV17: - | BW17: - | BX17: - | BY17: - | BZ17: - | CA17: - | CB17: - | CC17: - | CD17: - | CE17: - | CF17: - | CG17: - | CH17: - | CI17: - | CJ17: - | CK17: - | CL17: - | CM17: - | CN17: - | CO17: - | CP17: - | CQ17: - | CR17: - | CS17: - | CT17: - | CU17: - | DC17: - | DD17: - | DE17: - | DF17: - | DG17: - | DH17: - | DI17: - | DJ17: - | DK17: - | DL17: - | DM17: - | DN17: - | DO17: - | DP17: - | DQ17: - | DR17: - | DS17: - | DT17: - | DU17: - | DV17: - | DW17: - | DX17: - | DY17: - | DZ17: - | EA17: - | EB17: - | EC17: - | ED17: - | EE17: - | EF17: - | EG17: - | EH17: - | EI17: - | EJ17: - | EK17: - | EL17: - | EM17: - | EN17: - | EO17: - | EP17: - | EQ17: - | ER17: - | ES17: - | ET17: - | EU17: -
A18: 茨城県 | B18: 水戸市 | C18: 水戸市 | D18: 寺町、八幡町、藤坂、橦木町、並 | E18: 3 | F18: - | G18: - | H18: - | I18: - | J18: - | K18: - | L18: 3 | M18: - | N18: - | O18: - | P18: - | Q18: - | R18: - | S18: - | T18: - | U18: - | V18: - | W18: - | X18: - | Y18: - | Z18: - | AA18: - | AB18: - | AC18: … | AD18: … | AE18: … | AF18: - | AG18: - | AH18: - | AI18: - | AJ18: - | AK18: - | AL18: - | AM18: - | AN18: - | AO18: - | AP18: - | AQ18: - | AR18: - | AS18: - | AT18: - | AU18: - | AV18: … | AW18: … | AX18: … | AY18: - | AZ18: - | BA18: - | BB18: - | BC18: - | BD18: - | BE18: - | BF18: - | BG18: - | BH18: - | BI18: - | BJ18: - | BK18: - | BL18: - | BM18: - | BN18: - | BO18: … | BP18: … | BQ18: … | BR18: - | BS18: - | BT18: - | BU18: - | BV18: - | BW18: - | BX18: - | BY18: - | BZ18: - | CA18: - | CB18: - | CC18: - | CD18: - | CE18: - | CF18: - | CG18: - | CH18: - | CI18: - | CJ18: - | CK18: - | CL18: - | CM18: - | CN18: - | CO18: - | CP18: - | CQ18: - | CR18: - | CS18: - | CT18: - | CU18: - | DC18: - | DD18: - | DE18: - | DF18: - | DG18: - | DH18: - | DI18: - | DJ18: - | DK18: - | DL18: - | DM18: - | DN18: - | DO18: - | DP18: - | DQ18: - | DR18: - | DS18: - | DT18: - | DU18: - | DV18: - | DW18: - | DX18: - | DY18: - | DZ18: - | EA18: - | EB18: - | EC18: - | ED18: - | EE18: - | EF18: - | EG18: - | EH18: - | EI18: - | EJ18: - | EK18: - | EL18: - | EM18: - | EN18: - | EO18: - | EP18: - | EQ18: - | ER18: - | ES18: - | ET18: - | EU18: -
A19: 茨城県 | B19: 水戸市 | C19: 水戸市 | D19: 備前町、鈴坂町、その他５町 | E19: - | F19: - | G19: - | H19: - | I19: - | J19: - | K19: - | L19: - | M19: - | N19: - | O19: - | P19: - | Q19: - | R19: - | S19: - | T19: - | U19: - | V19: - | W19: - | X19: - | Y19: - | Z19: - | AA19: - | AB19: - | AC19: … | AD19: … | AE19: … | AF19: - | AG19: - | AH19: - | AI19: - | AJ19: - | AK19: - | AL19: - | AM19: - | AN19: - | AO19: - | AP19: - | AQ19: - | AR19: - | AS19: - | AT19: - | AU19: - | AV19: … | AW19: … | AX19: … | AY19: - | AZ19: - | BA19: - | BB19: - | BC19: - | BD19: - | BE19: - | BF19: - | BG19: - | BH19: - | BI19: - | BJ19: - | BK19: - | BL19: - | BM19: - | BN19: - | BO19: … | BP19: … | BQ19: … | BR19: - | BS19: - | BT19: - | BU19: - | BV19: - | BW19: - | BX19: - | BY19: - | BZ19: - | CA19: - | CB19: - | CC19: - | CD19: - | CE19: - | CF19: - | CG19: - | CH19: - | CI19: - | CJ19: - | CK19: - | CL19: - | CM19: - | CN19: - | CO19: - | CP19: - | CQ19: - | CR19: - | CS19: - | CT19: - | CU19: - | DC19: - | DD19: - | DE19: - | DF19: - | DG19: - | DH19: - | DI19: - | DJ19: - | DK19: - | DL19: - | DM19: - | DN19: - | DO19: - | DP19: - | DQ19: - | DR19: - | DS19: - | DT19: - | DU19: - | DV19: - | DW19: - | DX19: - | DY19: - | DZ19: - | EA19: - | EB19: - | EC19: - | ED19: - | EE19: - | EF19: - | EG19: - | EH19: - | EI19: - | EJ19: - | EK19: - | EL19: - | EM19: - | EN19: - | EO19: - | EP19: - | EQ19: - | ER19: - | ES19: - | ET19: - | EU19: -
A20: 茨城県 | B20: 水戸市 | C20: 水戸市 | D20: 常磐町全域、元山町一、二、三区 | E20: - | F20: - | G20: - | H20: - | I20: - | J20: - | K20: - | L20: - | M20: - | N20: - | O20: - | P20: - | Q20: - | R20: - | S20: - | T20: - | U20: - | V20: - | W20: - | X20: - | Y20: - | Z20: - | AA20: - | AB20: - | AC20: … | AD20: … | AE20: … | AF20: - | AG20: - | AH20: - | AI20: - | AJ20: - | AK20: - | AL20: - | AM20: - | AN20: - | AO20: - | AP20: - | AQ20: - | AR20: - | AS20: - | AT20: - | AU20: - | AV20: … | AW20: … | AX20: … | AY20: - | AZ20: - | BA20: - | BB20: - | BC20: - | BD20: - | BE20: - | BF20: - | BG20: - | BH20: - | BI20: - | BJ20: - | BK20: - | BL20: - | BM20: - | BN20: - | BO20: … | BP20: … | BQ20: … | BR20: - | BS20: - | BT20: - | BU20: - | BV20: - | BW20: - | BX20: - | BY20: - | BZ20: - | CA20: - | CB20: - | CC20: - | CD20: - | CE20: - | CF20: - | CG20: - | CH20: - | CI20: - | CJ20: - | CK20: - | CL20: - | CM20: - | CN20: - | CO20: - | CP20: - | CQ20: - | CR20: - | CS20: - | CT20: - | CU20: - | DC20: - | DD20: - | DE20: - | DF20: - | DG20: - | DH20: - | DI20: - | DJ20: - | DK20: - | DL20: - | DM20: - | DN20: - | DO20: - | DP20: - | DQ20: - | DR20: - | DS20: - | DT20: - | DU20: - | DV20: - | DW20: - | DX20: - | DY20: - | DZ20: - | EA20: - | EB20: - | EC20: - | ED20: - | EE20: - | EF20: - | EG20: - | EH20: - | EI20: - | EJ20: - | EK20: - | EL20: - | EM20: - | EN20: - | EO20: - | EP20: - | EQ20: - | ER20: - | ES20: - | ET20: - | EU20: -
A21: 茨城県 | B21: 水戸市 | C21: 水戸市 | D21: 元山町四区 | E21: - | F21: - | G21: - | H21: - | I21: - | J21: - | K21: - | L21: - | M21: - | N21: - | O21: - | P21: - | Q21: - | R21: - | S21: - | T21: - | U21: - | V21: - | W21: - | X21: - | Y21: - | Z21: - | AA21: - | AB21: - | AC21: … | AD21: … | AE21: … | AF21: - | AG21: - | AH21: - | AI21: - | AJ21: - | AK21: - | AL21: - | AM21: - | AN21: - | AO21: - | AP21: - | AQ21: - | AR21: - | AS21: - | AT21: - | AU21: - | AV21: … | AW21: … | AX21: … | AY21: - | AZ21: - | BA21: - | BB21: - | BC21: - | BD21: - | BE21: - | BF21: - | BG21: - | BH21: - | BI21: - | BJ21: - | BK21: - | BL21: - | BM21: - | BN21: - | BO21: … | BP21: … | BQ21: … | BR21: - | BS21: - | BT21: - | BU21: - | BV21: - | BW21: - | BX21: - | BY21: - | BZ21: - | CA21: - | CB21: - | CC21: - | CD21: - | CE21: - | CF21: - | CG21: - | CH21: - | CI21: - | CJ21: - | CK21: - | CL21: - | CM21: - | CN21: - | CO21: - | CP21: - | CQ21: - | CR21: - | CS21: - | CT21: - | CU21: - | DC21: - | DD21: - | DE21: - | DF21: - | DG21: - | DH21: - | DI21: - | DJ21: - | DK21: - | DL21: - | DM21: - | DN21: - | DO21: - | DP21: - | DQ21: - | DR21: - | DS21: - | DT21: - | DU21: - | DV21: - | DW21: - | DX21: - | DY21: - | DZ21: - | EA21: - | EB21: - | EC21: - | ED21: - | EE21: - | EF21: - | EG21: - | EH21: - | EI21: - | EJ21: - | EK21: - | EL21: - | EM21: - | EN21: - | EO21: - | EP21: - | EQ21: - | ER21: - | ES21: - | ET21: - | EU21: -
A22: 茨城県 | B22: 水戸市 | C22: 水戸市 | D22: 新大工町、寿町、向井町一、二 | E22: - | F22: - | G22: - | H22: - | I22: - | J22: - | K22: - | L22: - | M22: - | N22: - | O22: - | P22: - | Q22: - | R22: - | S22: - | T22: - | U22: - | V22: - | W22: - | X22: - | Y22: - | Z22: - | AA22: - | AB22: - | AC22: … | AD22: … | AE22: … | AF22: - | AG22: - | AH22: - | AI22: - | AJ22: - | AK22: - | AL22: - | AM22: - | AN22: - | AO22: - | AP22: - | AQ22: - | AR22: - | AS22: - | AT22: - | AU22: - | AV22: … | AW22: … | AX22: … | AY22: - | AZ22: - | BA22: - | BB22: - | BC22: - | BD22: - | BE22: - | BF22: - | BG22: - | BH22: - | BI22: - | BJ22: - | BK22: - | BL22: - | BM22: - | BN22: - | BO22: … | BP22: … | BQ22: … | BR22: - | BS22: - | BT22: - | BU22: - | BV22: - | BW22: - | BX22: - | BY22: - | BZ22: - | CA22: - | CB22: - | CC22: - | CD22: - | CE22: - | CF22: - | CG22: - | CH22: - | CI22: - | CJ22: - | CK22: - | CL22: - | CM22: - | CN22: - | CO22: - | CP22: - | CQ22: - | CR22: - | CS22: - | CT22: - | CU22: - | DC22: - | DD22: - | DE22: - | DF22: - | DG22: - | DH22: - | DI22: - | DJ22: - | DK22: - | DL22: - | DM22: - | DN22: - | DO22: - | DP22: - | DQ22: - | DR22: - | DS22: - | DT22: - | DU22: - | DV22: - | DW22: - | DX22: - | DY22: - | DZ22: - | EA22: - | EB22: - | EC22: - | ED22: - | EE22: - | EF22: - | EG22: - | EH22: - | EI22: - | EJ22: - | EK22: - | EL22: - | EM22: - | EN22: - | EO22: - | EP22: - | EQ22: - | ER22: - | ES22: - | ET22: - | EU22: -
A23: 茨城県 | B23: 水戸市 | C23: 水戸市 | D23: 栄町全域、北町、楓小路 | E23: 1 | F23: - | G23: - | H23: - | I23: - | J23: - | K23: - | L23: 1 | M23: - | N23: - | O23: - | P23: - | Q23: - | R23: - | S23: - | T23: - | U23: - | V23: - | W23: - | X23: - | Y23: - | Z23: - | AA23: - | AB23: - | AC23: … | AD23: … | AE23: … | AF23: - | AG23: - | AH23: - | AI23: - | AJ23: - | AK23: - | AL23: - | AM23: - | AN23: - | AO23: - | AP23: - | AQ23: - | AR23: - | AS23: - | AT23: - | AU23: - | AV23: … | AW23: … | AX23: … | AY23: - | AZ23: - | BA23: - | BB23: - | BC23: - | BD23: - | BE23: - | BF23: - | BG23: - | BH23: - | BI23: - | BJ23: - | BK23: - | BL23: - | BM23: - | BN23: - | BO23: … | BP23: … | BQ23: … | BR23: - | BS23: - | BT23: - | BU23: - | BV23: - | BW23: - | BX23: - | BY23: - | BZ23: - | CA23: - | CB23: - | CC23: - | CD23: - | CE23: - | CF23: - | CG23: - | CH23: - | CI23: - | CJ23: - | CK23: - | CL23: - | CM23: - | CN23: - | CO23: - | CP23: - | CQ23: - | CR23: - | CS23: - | CT23: - | CU23: - | DC23: - | DD23: - | DE23: - | DF23: - | DG23: - | DH23: - | DI23: - | DJ23: - | DK23: - | DL23: - | DM23: - | DN23: - | DO23: - | DP23: - | DQ23: - | DR23: - | DS23: - | DT23: - | DU23: - | DV23: - | DW23: - | DX23: - | DY23: - | DZ23: - | EA23: - | EB23: - | EC23: - | ED23: - | EE23: - | EF23: - | EG23: - | EH23: - | EI23: - | EJ23: - | EK23: - | EL23: - | EM23: - | EN23: - | EO23: - | EP23: - | EQ23: - | ER23: - | ES23: - | ET23: - | EU23: -
A24: 茨城県 | B24: 水戸市 | C24: 水戸市 | D24: 谷中一、二、三丁目、馬口労町 | E24: 1 | F24: - | G24: - | H24: - | I24: - | J24: - | K24: - | L24: 1 | M24: - | N24: - | O24: - | P24: - | Q24: - | R24: - | S24: - | T24: - | U24: - | V24: - | W24: - | X24: - | Y24: - | Z24: - | AA24: - | AB24: - | AC24: … | AD24: … | AE24: … | AF24: - | AG24: - | AH24: - | AI24: - | AJ24: - | AK24: - | AL24: - | AM24: - | AN24: - | AO24: - | AP24: - | AQ24: - | AR24: - | AS24: - | AT24: - | AU24: - | AV24: … | AW24: … | AX24: … | AY24: - | AZ24: - | BA24: - | BB24: - | BC24: - | BD24: - | BE24: - | BF24: - | BG24: - | BH24: - | BI24: - | BJ24: - | BK24: - | BL24: - | BM24: - | BN24: - | BO24: … | BP24: … | BQ24: … | BR24: - | BS24: - | BT24: - | BU24: - | BV24: - | BW24: - | BX24: - | BY24: - | BZ24: - | CA24: - | CB24: - | CC24: - | CD24: - | CE24: - | CF24: - | CG24: - | CH24: - | CI24: - | CJ24: - | CK24: - | CL24: - | CM24: - | CN24: - | CO24: - | CP24: - | CQ24: - | CR24: - | CS24: - | CT24: - | CU24: - | DC24: - | DD24: - | DE24: - | DF24: - | DG24: - | DH24: - | DI24: - | DJ24: - | DK24: - | DL24: - | DM24: - | DN24: - | DO24: - | DP24: - | DQ24: - | DR24: - | DS24: - | DT24: - | DU24: - | DV24: - | DW24: - | DX24: - | DY24: - | DZ24: - | EA24: - | EB24: - | EC24: - | ED24: - | EE24: - | EF24: - | EG24: - | EH24: - | EI24: - | EJ24: - | EK24: - | EL24: - | EM24: - | EN24: - | EO24: - | EP24: - | EQ24: - | ER24: - | ES24: - | ET24: - | EU24: -
A25: 茨城県 | B25: 水戸市 | C25: 水戸市 | D25: 砂久保町一，二，三，四，五区 | E25: 1 | F25: - | G25: - | H25: - | I25: - | J25: - | K25: - | L25: 1 | M25: - | N25: - | O25: - | P25: - | Q25: - | R25: - | S25: - | T25: - | U25: - | V25: - | W25: - | X25: - | Y25: - | Z25: - | AA25: - | AB25: - | AC25: … | AD25: … | AE25: … | AF25: - | AG25: - | AH25: - | AI25: - | AJ25: - | AK25: - | AL25: - | AM25: - | AN25: - | AO25: - | AP25: - | AQ25: - | AR25: - | AS25: - | AT25: - | AU25: - | AV25: … | AW25: … | AX25: … | AY25: - | AZ25: - | BA25: - | BB25: - | BC25: - | BD25: - | BE25: - | BF25: - | BG25: - | BH25: - | BI25: - | BJ25: - | BK25: - | BL25: - | BM25: - | BN25: - | BO25: … | BP25: … | BQ25: … | BR25: - | BS25: - | BT25: - | BU25: - | BV25: - | BW25: - | BX25: - | BY25: - | BZ25: - | CA25: - | CB25: - | CC25: - | CD25: - | CE25: - | CF25: - | CG25: - | CH25: - | CI25: - | CJ25: - | CK25: - | CL25: - | CM25: - | CN25: - | CO25: - | CP25: - | CQ25: - | CR25: - | CS25: - | CT25: - | CU25: - | DC25: - | DD25: - | DE25: - | DF25: - | DG25: - | DH25: - | DI25: - | DJ25: - | DK25: - | DL25: - | DM25: - | DN25: - | DO25: - | DP25: - | DQ25: - | DR25: - | DS25: - | DT25: - | DU25: - | DV25: - | DW25: - | DX25: - | DY25: - | DZ25: - | EA25: - | EB25: - | EC25: - | ED25: - | EE25: - | EF25: - | EG25: - | EH25: - | EI25: - | EJ25: - | EK25: - | EL25: - | EM25: - | EN25: - | EO25: - | EP25: - | EQ25: - | ER25: - | ES25: - | ET25: - | EU25: -
A26: 茨城県 | B26: 水戸市 | C26: 水戸市 | D26: 松本町一，二，三丁目 | E26: 2 | F26: - | G26: - | H26: - | I26: - | J26: - | K26: - | L26: 2 | M26: - | N26: - | O26: - | P26: - | Q26: - | R26: - | S26: - | T26: - | U26: - | V26: - | W26: - | X26: - | Y26: - | Z26: - | AA26: - | AB26: - | AC26: … | AD26: … | AE26: … | AF26: - | AG26: - | AH26: - | AI26: - | AJ26: - | AK26: - | AL26: - | AM26: - | AN26: - | AO26: - | AP26: - | AQ26: - | AR26: - | AS26: - | AT26: - | AU26: - | AV26: … | AW26: … | AX26: … | AY26: - | AZ26: - | BA26: - | BB26: - | BC26: - | BD26: - | BE26: - | BF26: - | BG26: - | BH26: - | BI26: - | BJ26: - | BK26: - | BL26: - | BM26: - | BN26: - | BO26: … | BP26: … | BQ26: … | BR26: - | BS26: - | BT26: - | BU26: - | BV26: - | BW26: - | BX26: - | BY26: - | BZ26: - | CA26: - | CB26: - | CC26: - | CD26: - | CE26: - | CF26: - | CG26: - | CH26: - | CI26: - | CJ26: - | CK26: - | CL26: - | CM26: - | CN26: - | CO26: - | CP26: - | CQ26: - | CR26: - | CS26: - | CT26: - | CU26: - | DC26: - | DD26: - | DE26: - | DF26: - | DG26: - | DH26: - | DI26: - | DJ26: - | DK26: - | DL26: - | DM26: - | DN26: - | DO26: - | DP26: - | DQ26: - | DR26: - | DS26: - | DT26: - | DU26: - | DV26: - | DW26: - | DX26: - | DY26: - | DZ26: - | EA26: - | EB26: - | EC26: - | ED26: - | EE26: - | EF26: - | EG26: - | EH26: - | EI26: - | EJ26: - | EK26: - | EL26: - | EM26: - | EN26: - | EO26: - | EP26: - | EQ26: - | ER26: - | ES26: - | ET26: - | EU26: -
A27: 茨城県 | B27: 水戸市 | C27: 水戸市 | D27: 松本町四，五丁目 | E27: 2 | F27: - | G27: - | H27: - | I27: - | J27: - | K27: - | L27: 2 | M27: - | N27: - | O27: - | P27: - | Q27: - | R27: - | S27: - | T27: - | U27: - | V27: - | W27: - | X27: - | Y27: - | Z27: - | AA27: - | AB27: - | AC27: … | AD27: … | AE27: … | AF27: - | AG27: - | AH27: - | AI27: - | AJ27: - | AK27: - | AL27: - | AM27: - | AN27: - | AO27: - | AP27: - | AQ27: - | AR27: - | AS27: - | AT27: - | AU27: - | AV27: … | AW27: … | AX27: … | AY27: - | AZ27: - | BA27: - | BB27: - | BC27: - | BD27: - | BE27: - | BF27: - | BG27: - | BH27: - | BI27: - | BJ27: - | BK27: - | BL27: - | BM27: - | BN27: - | BO27: … | BP27: … | BQ27: … | BR27: - | BS27: - | BT27: - | BU27: - | BV27: - | BW27: - | BX27: - | BY27: - | BZ27: - | CA27: - | CB27: - | CC27: - | CD27: - | CE27: - | CF27: - | CG27: - | CH27: - | CI27: - | CJ27: - | CK27: - | CL27: - | CM27: - | CN27: - | CO27: - | CP27: - | CQ27: - | CR27: - | CS27: - | CT27: - | CU27: - | DC27: - | DD27: - | DE27: - | DF27: - | DG27: - | DH27: - | DI27: - | DJ27: - | DK27: - | DL27: - | DM27: - | DN27: - | DO27: - | DP27: - | DQ27: - | DR27: - | DS27: - | DT27: - | DU27: - | DV27: - | DW27: - | DX27: - | DY27: - | DZ27: - | EA27: - | EB27: - | EC27: - | ED27: - | EE27: - | EF27: - | EG27: - | EH27: - | EI27: - | EJ27: - | EK27: - | EL27: - | EM27: - | EN27: - | EO27: - | EP27: - | EQ27: - | ER27: - | ES27: - | ET27: - | EU27: -
A28: 茨城県 | B28: 水戸市 | C28: 水戸市 | D28: 愛宕町全域 | E28: 5 | F28: 1 | G28: x | H28: x | I28: x | J28: x | K28: x | L28: 4 | M28: x | N28: x | O28: x | P28: x | Q28: x | R28: x | S28: x | T28: x | U28: x | V28: x | W28: x | X28: x | Y28: x | Z28: x | AA28: x | AB28: x | AC28: 60.0 | AD28: 46.0 | AE28: 74.0 | AF28: x | AG28: x | AH28: x | AI28: x | AJ28: x | AK28: x | AL28: x | AM28: x | AN28: x | AO28: x | AP28: x | AQ28: x | AR28: x | AS28: x | AT28: x | AU28: x | AV28: 88.0 | AW28: … | AX28: 88.0 | AY28: x | AZ28: x | BA28: x | BB28: x | BC28: x | BD28: x | BE28: x | BF28: x | BG28: x | BH28: x | BI28: x | BJ28: x | BK28: x | BL28: x | BM28: x | BN28: x | BO28: 88.0 | BP28: … | BQ28: 88.0 | BR28: 1 | BS28: - | BT28: - | BU28: - | BV28: - | BW28: - | BX28: - | BY28: - | BZ28: - | CA28: - | CB28: 1 | CC28: - | CD28: - | CE28: - | CF28: - | CG28: - | CH28: 1 | CI28: - | CJ28: - | CK28: - | CL28: - | CM28: - | CN28: - | CO28: - | CP28: 1 | CQ28: - | CR28: - | CS28: - | CT28: - | CU28: - | DC28: 4 | DD28: 4 | DE28: 1 | DF28: 3 | DG28: - | DH28: - | DI28: - | DJ28: - | DK28: 1 | DL28: 1 | DM28: - | DN28: - | DO28: - | DP28: - | DQ28: - | DR28: - | DS28: - | DT28: - | DU28: - | DV28: - | DW28: - | DX28: - | DY28: - | DZ28: - | EA28: 1 | EB28: 44 | EC28: 44 | ED28: - | EE28: - | EF28: 2 | EG28: 2 | EH28: - | EI28: 2 | EJ28: - | EK28: - | EL28: - | EM28: - | EN28: 2 | EO28: 2 | EP28: 1 | EQ28: 1 | ER28: - | ES28: - | ET28: - | EU28: -
A29: 茨城県 | B29: 水戸市 | C29: 水戸市 | D29: 袴塚一，二丁目 | E29: - | F29: - | G29: - | H29: - | I29: - | J29: - | K29: - | L29: - | M29: - | N29: - | O29: - | P29: - | Q29: - | R29: - | S29: - | T29: - | U29: - | V29: - | W29: - | X29: - | Y29: - | Z29: - | AA29: - | AB29: - | AC29: … | AD29: … | AE29: … | AF29: - | AG29: - | AH29: - | AI29: - | AJ29: - | AK29: - | AL29: - | AM29: - | AN29: - | AO29: - | AP29: - | AQ29: - | AR29: - | AS29: - | AT29: - | AU29: - | AV29: … | AW29: … | AX29: … | AY29: - | AZ29: - | BA29: - | BB29: - | BC29: - | BD29: - | BE29: - | BF29: - | BG29: - | BH29: - | BI29: - | BJ29: - | BK29: - | BL29: - | BM29: - | BN29: - | BO29: … | BP29: … | BQ29: … | BR29: - | BS29: - | BT29: - | BU29: - | BV29: - | BW29: - | BX29: - | BY29: - | BZ29: - | CA29: - | CB29: - | CC29: - | CD29: - | CE29: - | CF29: - | CG29: - | CH29: - | CI29: - | CJ29: - | CK29: - | CL29: - | CM29: - | CN29: - | CO29: - | CP29: - | CQ29: - | CR29: - | CS29: - | CT29: - | CU29: - | DC29: - | DD29: - | DE29: - | DF29: - | DG29: - | DH29: - | DI29: - | DJ29: - | DK29: - | DL29: - | DM29: - | DN29: - | DO29: - | DP29: - | DQ29: - | DR29: - | DS29: - | DT29: - | DU29: - | DV29: - | DW29: - | DX29: - | DY29: - | DZ29: - | EA29: - | EB29: - | EC29: - | ED29: - | EE29: - | EF29: - | EG29: - | EH29: - | EI29: - | EJ29: - | EK29: - | EL29: - | EM29: - | EN29: - | EO29: - | EP29: - | EQ29: - | ER29: - | ES29: - | ET29: - | EU29: -
A30: 茨城県 | B30: 水戸市 | C30: 水戸市 | D30: 袴塚三丁目 | E30: - | F30: - | G30: - | H30: - | I30: - | J30: - | K30: - | L30: - | M30: - | N30: - | O30: - | P30: - | Q30: - | R30: - | S30: - | T30: - | U30: - | V30: - | W30: - | X30: - | Y30: - | Z30: - | AA30: - | AB30: - | AC30: … | AD30: … | AE30: … | AF30: - | AG30: - | AH30: - | AI30: - | AJ30: - | AK30: - | AL30: - | AM30: - | AN30: - | AO30: - | AP30: - | AQ30: - | AR30: - | AS30: - | AT30: - | AU30: - | AV30: … | AW30: … | AX30: … | AY30: - | AZ30: - | BA30: - | BB30: - | BC30: - | BD30: - | BE30: - | BF30: - | BG30: - | BH30: - | BI30: - | BJ30: - | BK30: - | BL30: - | BM30: - | BN30: - | BO30: … | BP30: … | BQ30: … | BR30: - | BS30: - | BT30: - | BU30: - | BV30: - | BW30: - | BX30: - | BY30: - | BZ30: - | CA30: - | CB30: - | CC30: - | CD30: - | CE30: - | CF30: - | CG30: - | CH30: - | CI30: - | CJ30: - | CK30: - | CL30: - | CM30: - | CN30: - | CO30: - | CP30: - | CQ30: - | CR30: - | CS30: - | CT30: - | CU30: - | DC30: - | DD30: - | DE30: - | DF30: - | DG30: - | DH30: - | DI30: - | DJ30: - | DK30: - | DL30: - | DM30: - | DN30: - | DO30: - | DP30: - | DQ30: - | DR30: - | DS30: - | DT30: - | DU30: - | DV30: - | DW30: - | DX30: - | DY30: - | DZ30: - | EA30: - | EB30: - | EC30: - | ED30: - | EE30: - | EF30: - | EG30: - | EH30: - | EI30: - | EJ30: - | EK30: - | EL30: - | EM30: - | EN30: - | EO30: - | EP30: - | EQ30: - | ER30: - | ES30: - | ET30: - | EU30: -
A31: 茨城県 | B31: 水戸市 | C31: 水戸市 | D31: 袴塚四町目、堀原町、南袴塚町 | E31: 5 | F31: 1 | G31: x | H31: x | I31: x | J31: x | K31: x | L31: 4 | M31: x | N31: x | O31: x | P31: x | Q31: x | R31: x | S31: x | T31: x | U31: x | V31: x | W31: x | X31: x | Y31: x | Z31: x | AA31: x | AB31: x | AC31: 50.2 | AD31: 45.3 | AE31: 57.5 | AF31: x | AG31: x | AH31: x | AI31: x | AJ31: x | AK31: x | AL31: x | AM31: x | AN31: x | AO31: x | AP31: x | AQ31: x | AR31: x | AS31: x | AT31: x | AU31: x | AV31: 75.0 | AW31: 75.0 | AX31: … | AY31: x | AZ31: x | BA31: x | BB31: x | BC31: x | BD31: x | BE31: x | BF31: x | BG31: x | BH31: x | BI31: x | BJ31: x | BK31: x | BL31: x | BM31: x | BN31: x | BO31: 75.0 | BP31: 75.0 | BQ31: … | BR31: 1 | BS31: - | BT31: - | BU31: - | BV31: - | BW31: - | BX31: - | BY31: - | BZ31: - | CA31: - | CB31: - | CC31: - | CD31: - | CE31: 1 | CF31: - | CG31: - | CH31: 1 | CI31: - | CJ31: - | CK31: - | CL31: - | CM31: - | CN31: - | CO31: - | CP31: - | CQ31: - | CR31: - | CS31: 1 | CT31: - | CU31: - | DC31: 5 | DD31: 3 | DE31: 1 | DF31: - | DG31: 2 | DH31: 1 | DI31: 1 | DJ31: - | DK31: 1 | DL31: 1 | DM31: - | DN31: - | DO31: - | DP31: - | DQ31: - | DR31: - | DS31: - | DT31: - | DU31: - | DV31: - | DW31: - | DX31: - | DY31: - | DZ31: - | EA31: 1 | EB31: 128 | EC31: 66 | ED31: 62 | EE31: - | EF31: 3 | EG31: 2 | EH31: 1 | EI31: - | EJ31: 1 | EK31: - | EL31: 1 | EM31: - | EN31: 2 | EO31: 1 | EP31: - | EQ31: - | ER31: 1 | ES31: 1 | ET31: - | EU31: -
A32: 茨城県 | B32: 水戸市 | C32: 水戸市 | D32: 西原町一，二，三，四，五区 | E32: 11 | F32: 8 | G32: 3 | H32: 2 | I32: 2 | J32: - | K32: 3 | L32: 3 | M32: 23 | N32: - | O32: - | P32: - | Q32: - | R32: 1 | S32: 2 | T32: 4 | U32: 1 | V32: - | W32: 1 | X32: 4 | Y32: 3 | Z32: 1 | AA32: 5 | AB32: 1 | AC32: 64.4 | AD32: 64.0 | AE32: 64.9 | AF32: 18 | AG32: - | AH32: - | AI32: - | AJ32: - | AK32: - | AL32: - | AM32: 2 | AN32: 1 | AO32: - | AP32: 1 | AQ32: 4 | AR32: 3 | AS32: 1 | AT32: 5 | AU32: 1 | AV32: 70.5 | AW32: 70.0 | AX32: 71.1 | AY32: 17 | AZ32: - | BA32: - | BB32: - | BC32: - | BD32: - | BE32: - | BF32: 2 | BG32: 1 | BH32: - | BI32: 1 | BJ32: 4 | BK32: 3 | BL32: 1 | BM32: 4 | BN32: 1 | BO32: 69.8 | BP32: 70.0 | BQ32: 69.6 | BR32: 8 | BS32: - | BT32: - | BU32: - | BV32: - | BW32: - | BX32: - | BY32: - | BZ32: - | CA32: - | CB32: - | CC32: 2 | CD32: 2 | CE32: - | CF32: 3 | CG32: 1 | CH32: 6 | CI32: - | CJ32: - | CK32: - | CL32: - | CM32: - | CN32: - | CO32: - | CP32: - | CQ32: 1 | CR32: 1 | CS32: - | CT32: 3 | CU32: 1 | DC32: 29 | DD32: 21 | DE32: 17 | DF32: 4 | DG32: - | DH32: 5 | DI32: 2 | DJ32: 1 | DK32: 8 | DL32: 2 | DM32: - | DN32: - | DO32: - | DP32: 4 | DQ32: 2 | DR32: - | DS32: - | DT32: - | DU32: - | DV32: - | DW32: - | DX32: - | DY32: - | DZ32: - | EA32: 8 | EB32: 1,290 | EC32: 532 | ED32: 752 | EE32: 6 | EF32: 15 | EG32: 13 | EH32: 10 | EI32: 3 | EJ32: - | EK32: - | EL32: 2 | EM32: - | EN32: 14 | EO32: 8 | EP32: 7 | EQ32: 1 | ER32: - | ES32: 5 | ET32: - | EU32: 1
A33: 茨城県 | B33: 水戸市 | C33: 水戸市 | D33: 西原町六，七区 | E33: 4 | F33: 2 | G33: x | H33: x | I33: x | J33: x | K33: x | L33: 2 | M33: x | N33: x | O33: x | P33: x | Q33: x | R33: x | S33: x | T33: x | U33: x | V33: x | W33: x | X33: x | Y33: x | Z33: x | AA33: x | AB33: x | AC33: 75.1 | AD33: 69.0 | AE33: 83.3 | AF33: x | AG33: x | AH33: x | AI33: x | AJ33: x | AK33: x | AL33: x | AM33: x | AN33: x | AO33: x | AP33: x | AQ33: x | AR33: x | AS33: x | AT33: x | AU33: x | AV33: 85.0 | AW33: 87.5 | AX33: 83.3 | AY33: x | AZ33: x | BA33: x | BB33: x | BC33: x | BD33: x | BE33: x | BF33: x | BG33: x | BH33: x | BI33: x | BJ33: x | BK33: x | BL33: x | BM33: x | BN33: x | BO33: 85.0 | BP33: 87.5 | BQ33: 83.3 | BR33: 2 | BS33: - | BT33: - | BU33: - | BV33: - | BW33: - | BX33: - | BY33: - | BZ33: - | CA33: - | CB33: - | CC33: - | CD33: - | CE33: - | CF33: - | CG33: 2 | CH33: 1 | CI33: - | CJ33: - | CK33: - | CL33: - | CM33: - | CN33: - | CO33: - | CP33: - | CQ33: - | CR33: - | CS33: - | CT33: - | CU33: 1 | DC33: 7 | DD33: 7 | DE33: 5 | DF33: 2 | DG33: - | DH33: - | DI33: - | DJ33: - | DK33: 2 | DL33: - | DM33: - | DN33: - | DO33: - | DP33: 1 | DQ33: - | DR33: - | DS33: 1 | DT33: - | DU33: - | DV33: - | DW33: - | DX33: - | DY33: - | DZ33: - | EA33: 2 | EB33: 157 | EC33: 54 | ED33: 103 | EE33: - | EF33: 4 | EG33: 4 | EH33: 2 | EI33: 2 | EJ33: - | EK33: - | EL33: - | EM33: - | EN33: 3 | EO33: 3 | EP33: 3 | EQ33: - | ER33: - | ES33: - | ET33: - | EU33: -
A34: 茨城県 | B34: 水戸市 | C34: 水戸市 | D34: 東原町一，二区 | E34: - | F34: - | G34: - | H34: - | I34: - | J34: - | K34: - | L34: - | M34: - | N34: - | O34: - | P34: - | Q34: - | R34: - | S34: - | T34: - | U34: - | V34: - | W34: - | X34: - | Y34: - | Z34: - | AA34: - | AB34: - | AC34: … | AD34: … | AE34: … | AF34: - | AG34: - | AH34: - | AI34: - | AJ34: - | AK34: - | AL34: - | AM34: - | AN34: - | AO34: - | AP34: - | AQ34: - | AR34: - | AS34: - | AT34: - | AU34: - | AV34: … | AW34: … | AX34: … | AY34: - | AZ34: - | BA34: - | BB34: - | BC34: - | BD34: - | BE34: - | BF34: - | BG34: - | BH34: - | BI34: - | BJ34: - | BK34: - | BL34: - | BM34: - | BN34: - | BO34: … | BP34: … | BQ34: … | BR34: - | BS34: - | BT34: - | BU34: - | BV34: - | BW34: - | BX34: - | BY34: - | BZ34: - | CA34: - | CB34: - | CC34: - | CD34: - | CE34: - | CF34: - | CG34: - | CH34: - | CI34: - | CJ34: - | CK34: - | CL34: - | CM34: - | CN34: - | CO34: - | CP34: - | CQ34: - | CR34: - | CS34: - | CT34: - | CU34: - | DC34: - | DD34: - | DE34: - | DF34: - | DG34: - | DH34: - | DI34: - | DJ34: - | DK34: - | DL34: - | DM34: - | DN34: - | DO34: - | DP34: - | DQ34: - | DR34: - | DS34: - | DT34: - | DU34: - | DV34: - | DW34: - | DX34: - | DY34: - | DZ34: - | EA34: - | EB34: - | EC34: - | ED34: - | EE34: - | EF34: - | EG34: - | EH34: - | EI34: - | EJ34: - | EK34: - | EL34: - | EM34: - | EN34: - | EO34: - | EP34: - | EQ34: - | ER34: - | ES34: - | ET34: - | EU34: -
A35: 茨城県 | B35: 水戸市 | C35: 水戸市 | D35: 石川町上区，石川 | E35: 8 | F35: 2 | G35: x | H35: x | I35: x | J35: x | K35: x | L35: 6 | M35: x | N35: x | O35: x | P35: x | Q35: x | R35: x | S35: x | T35: x | U35: x | V35: x | W35: x | X35: x | Y35: x | Z35: x | AA35: x | AB35: x | AC35: 63.4 | AD35: 60.3 | AE35: 65.8 | AF35: x | AG35: x | AH35: x | AI35: x | AJ35: x | AK35: x | AL35: x | AM35: x | AN35: x | AO35: x | AP35: x | AQ35: x | AR35: x | AS35: x | AT35: x | AU35: x | AV35: 69.2 | AW35: 71.5 | AX35: 67.7 | AY35: x | AZ35: x | BA35: x | BB35: x | BC35: x | BD35: x | BE35: x | BF35: x | BG35: x | BH35: x | BI35: x | BJ35: x | BK35: x | BL35: x | BM35: x | BN35: x | BO35: 77.0 | BP35: 71.5 | BQ35: 82.5 | BR35: 2 | BS35: - | BT35: - | BU35: - | BV35: - | BW35: 1 | BX35: - | BY35: - | BZ35: - | CA35: - | CB35: - | CC35: - | CD35: - | CE35: - | CF35: 1 | CG35: - | CH35: 1 | CI35: - | CJ35: - | CK35: 1 | CL35: - | CM35: - | CN35: - | CO35: - | CP35: - | CQ35: - | CR35: - | CS35: - | CT35: - | CU35: - | DC35: 11 | DD35: 8 | DE35: 4 | DF35: 4 | DG35: - | DH35: 1 | DI35: 2 | DJ35: - | DK35: 1 | DL35: 1 | DM35: - | DN35: - | DO35: - | DP35: - | DQ35: - | DR35: - | DS35: - | DT35: - | DU35: - | DV35: - | DW35: - | DX35: - | DY35: - | DZ35: - | EA35: 2 | EB35: 492 | EC35: 245 | ED35: 227 | EE35: 20 | EF35: 6 | EG35: 4 | EH35: 2 | EI35: 2 | EJ35: - | EK35: - | EL35: 2 | EM35: - | EN35: 5 | EO35: 4 | EP35: 2 | EQ35: 2 | ER35: - | ES35: 1 | ET35: - | EU35: -
A36: 茨城県 | B36: 水戸市 | C36: 水戸市 | D36: 石川町下区 | E36: 6 | F36: - | G36: - | H36: - | I36: - | J36: - | K36: - | L36: 6 | M36: - | N36: - | O36: - | P36: - | Q36: - | R36: - | S36: - | T36: - | U36: - | V36: - | W36: - | X36: - | Y36: - | Z36: - | AA36: - | AB36: - | AC36: … | AD36: … | AE36: … | AF36: - | AG36: - | AH36: - | AI36: - | AJ36: - | AK36: - | AL36: - | AM36: - | AN36: - | AO36: - | AP36: - | AQ36: - | AR36: - | AS36: - | AT36: - | AU36: - | AV36: … | AW36: … | AX36: … | AY36: - | AZ36: - | BA36: - | BB36: - | BC36: - | BD36: - | BE36: - | BF36: - | BG36: - | BH36: - | BI36: - | BJ36: - | BK36: - | BL36: - | BM36: - | BN36: - | BO36: … | BP36: … | BQ36: … | BR36: - | BS36: - | BT36: - | BU36: - | BV36: - | BW36: - | BX36: - | BY36: - | BZ36: - | CA36: - | CB36: - | CC36: - | CD36: - | CE36: - | CF36: - | CG36: - | CH36: - | CI36: - | CJ36: - | CK36: - | CL36: - | CM36: - | CN36: - | CO36: - | CP36: - | CQ36: - | CR36: - | CS36: - | CT36: - | CU36: - | DC36: - | DD36: - | DE36: - | DF36: - | DG36: - | DH36: - | DI36: - | DJ36: - | DK36: - | DL36: - | DM36: - | DN36: - | DO36: - | DP36: - | DQ36: - | DR36: - | DS36: - | DT36: - | DU36: - | DV36: - | DW36: - | DX36: - | DY36: - | DZ36: - | EA36: - | EB36: - | EC36: - | ED36: - | EE36: - | EF36: - | EG36: - | EH36: - | EI36: - | EJ36: - | EK36: - | EL36: - | EM36: - | EN36: - | EO36: - | EP36: - | EQ36: - | ER36: - | ES36: - | ET36: - | EU36: -
A37: 茨城県 | B37: 水戸市 | C37: 水戸市 | D37: 東町 | E37: - | F37: - | G37: - | H37: - | I37: - | J37: - | K37: - | L37: - | M37: - | N37: - | O37: - | P37: - | Q37: - | R37: - | S37: - | T37: - | U37: - | V37: - | W37: - | X37: - | Y37: - | Z37: - | AA37: - | AB37: - | AC37: … | AD37: … | AE37: … | AF37: - | AG37: - | AH37: - | AI37: - | AJ37: - | AK37: - | AL37: - | AM37: - | AN37: - | AO37: - | AP37: - | AQ37: - | AR37: - | AS37: - | AT37: - | AU37: - | AV37: … | AW37: … | AX37: … | AY37: - | AZ37: - | BA37: - | BB37: - | BC37: - | BD37: - | BE37: - | BF37: - | BG37: - | BH37: - | BI37: - | BJ37: - | BK37: - | BL37: - | BM37: - | BN37: - | BO37: … | BP37: … | BQ37: … | BR37: - | BS37: - | BT37: - | BU37: - | BV37: - | BW37: - | BX37: - | BY37: - | BZ37: - | CA37: - | CB37: - | CC37: - | CD37: - | CE37: - | CF37: - | CG37: - | CH37: - | CI37: - | CJ37: - | CK37: - | CL37: - | CM37: - | CN37: - | CO37: - | CP37: - | CQ37: - | CR37: - | CS37: - | CT37: - | CU37: - | DC37: - | DD37: - | DE37: - | DF37: - | DG37: - | DH37: - | DI37: - | DJ37: - | DK37: - | DL37: - | DM37: - | DN37: - | DO37: - | DP37: - | DQ37: - | DR37: - | DS37: - | DT37: - | DU37: - | DV37: - | DW37: - | DX37: - | DY37: - | DZ37: - | EA37: - | EB37: - | EC37: - | ED37: - | EE37: - | EF37: - | EG37: - | EH37: - | EI37: - | EJ37: - | EK37: - | EL37: - | EM37: - | EN37: - | EO37: - | EP37: - | EQ37: - | ER37: - | ES37: - | ET37: - | EU37: -
A38: 茨城県 | B38: 水戸市 | C38: 水戸市 | D38: 新原町 | E38: 4 | F38: 3 | G38: 1 | H38: - | I38: - | J38: - | K38: 2 | L38: 1 | M38: 6 | N38: - | O38: - | P38: - | Q38: - | R38: 1 | S38: - | T38: - | U38: 1 | V38: 2 | W38: - | X38: - | Y38: 1 | Z38: - | AA38: 1 | AB38: - | AC38: 58.8 | AD38: 59.3 | AE38: 58.3 | AF38: 2 | AG38: - | AH38: - | AI38: - | AJ38: - | AK38: 1 | AL38: - | AM38: - | AN38: - | AO38: - | AP38: - | AQ38: - | AR38: 1 | AS38: - | AT38: - | AU38: - | AV38: 55.0 | AW38: 71.0 | AX38: 39.0 | AY38: 2 | AZ38: - | BA38: - | BB38: - | BC38: - | BD38: 1 | BE38: - | BF38: - | BG38: - | BH38: - | BI38: - | BJ38: - | BK38: 1 | BL38: - | BM38: - | BN38: - | BO38: 55.0 | BP38: 71.0 | BQ38: 39.0 | BR38: 3 | BS38: - | BT38: - | BU38: - | BV38: - | BW38: - | BX38: - | BY38: - | BZ38: 1 | CA38: 1 | CB38: - | CC38: - | CD38: 1 | CE38: - | CF38: - | CG38: - | CH38: 2 | CI38: - | CJ38: - | CK38: - | CL38: - | CM38: - | CN38: 1 | CO38: 1 | CP38: - | CQ38: - | CR38: - | CS38: - | CT38: - | CU38: - | DC38: 14 | DD38: 9 | DE38: 2 | DF38: 5 | DG38: 2 | DH38: 2 | DI38: - | DJ38: 3 | DK38: 2 | DL38: 1 | DM38: - | DN38: - | DO38: - | DP38: - | DQ38: - | DR38: - | DS38: 1 | DT38: - | DU38: - | DV38: - | DW38: - | DX38: - | DY38: - | DZ38: - | EA38: 3 | EB38: 200 | EC38: 52 | ED38: 73 | EE38: 75 | EF38: 6 | EG38: 4 | EH38: 1 | EI38: 2 | EJ38: 1 | EK38: - | EL38: - | EM38: 2 | EN38: 8 | EO38: 5 | EP38: 1 | EQ38: 3 | ER38: 1 | ES38: 2 | ET38: - | EU38: 1
A39: 茨城県 | B39: 水戸市 | C39: 水戸市 | D39: 曙町一、二、三、四、五丁目、雨 | E39: - | F39: - | G39: - | H39: - | I39: - | J39: - | K39: - | L39: - | M39: - | N39: - | O39: - | P39: - | Q39: - | R39: - | S39: - | T39: - | U39: - | V39: - | W39: - | X39: - | Y39: - | Z39: - | AA39: - | AB39: - | AC39: … | AD39: … | AE39: … | AF39: - | AG39: - | AH39: - | AI39: - | AJ39: - | AK39: - | AL39: - | AM39: - | AN39: - | AO39: - | AP39: - | AQ39: - | AR39: - | AS39: - | AT39: - | AU39: - | AV39: … | AW39: … | AX39: … | AY39: - | AZ39: - | BA39: - | BB39: - | BC39: - | BD39: - | BE39: - | BF39: - | BG39: - | BH39: - | BI39: - | BJ39: - | BK39: - | BL39: - | BM39: - | BN39: - | BO39: … | BP39: … | BQ39: … | BR39: - | BS39: - | BT39: - | BU39: - | BV39: - | BW39: - | BX39: - | BY39: - | BZ39: - | CA39: - | CB39: - | CC39: - | CD39: - | CE39: - | CF39: - | CG39: - | CH39: - | CI39: - | CJ39: - | CK39: - | CL39: - | CM39: - | CN39: - | CO39: - | CP39: - | CQ39: - | CR39: - | CS39: - | CT39: - | CU39: - | DC39: - | DD39: - | DE39: - | DF39: - | DG39: - | DH39: - | DI39: - | DJ39: - | DK39: - | DL39: - | DM39: - | DN39: - | DO39: - | DP39: - | DQ39: - | DR39: - | DS39: - | DT39: - | DU39: - | DV39: - | DW39: - | DX39: - | DY39: - | DZ39: - | EA39: - | EB39: - | EC39: - | ED39: - | EE39: - | EF39: - | EG39: - | EH39: - | EI39: - | EJ39: - | EK39: - | EL39: - | EM39: - | EN39: - | EO39: - | EP39: - | EQ39: - | ER39: - | ES39: - | ET39: - | EU39: -
A40: 茨城県 | B40: 水戸市 | C40: 水戸市 | D40: 東柵町、東青柳町、根積町、轟町 | E40: 1 | F40: 1 | G40: x | H40: x | I40: x | J40: x | K40: x | L40: - | M40: x | N40: x | O40: x | P40: x | Q40: x | R40: x | S40: x | T40: x | U40: x | V40: x | W40: x | X40: x | Y40: x | Z40: x | AA40: x | AB40: x | AC40: 83.0 | AD40: 83.0 | AE40: … | AF40: x | AG40: x | AH40: x | AI40: x | AJ40: x | AK40: x | AL40: x | AM40: x | AN40: x | AO40: x | AP40: x | AQ40: x | AR40: x | AS40: x | AT40: x | AU40: x | AV40: 83.0 | AW40: 83.0 | AX40: … | AY40: x | AZ40: x | BA40: x | BB40: x | BC40: x | BD40: x | BE40: x | BF40: x | BG40: x | BH40: x | BI40: x | BJ40: x | BK40: x | BL40: x | BM40: x | BN40: x | BO40: … | BP40: … | BQ40: … | BR40: 1 | BS40: - | BT40: - | BU40: - | BV40: - | BW40: - | BX40: - | BY40: - | BZ40: - | CA40: - | CB40: - | CC40: - | CD40: - | CE40: - | CF40: 1 | CG40: - | CH40: - | CI40: - | CJ40: - | CK40: - | CL40: - | CM40: - | CN40: - | CO40: - | CP40: - | CQ40: - | CR40: - | CS40: - | CT40: - | CU40: - | DC40: 2 | DD40: - | DE40: - | DF40: - | DG40: - | DH40: - | DI40: - | DJ40: 2 | DK40: - | DL40: - | DM40: - | DN40: - | DO40: - | DP40: - | DQ40: - | DR40: - | DS40: - | DT40: - | DU40: - | DV40: - | DW40: - | DX40: - | DY40: - | DZ40: - | EA40: 1 | EB40: 33 | EC40: 33 | ED40: - | EE40: - | EF40: 1 | EG40: - | EH40: - | EI40: - | EJ40: - | EK40: - | EL40: - | EM40: 1 | EN40: 1 | EO40: - | EP40: - | EQ40: - | ER40: - | ES40: - | ET40: - | EU40: 1
A41: 茨城県 | B41: 水戸市 | C41: 水戸市 | D41: 立浪町、川岸通り、花畑、蔵前 | E41: - | F41: - | G41: - | H41: - | I41: - | J41: - | K41: - | L41: - | M41: - | N41: - | O41: - | P41: - | Q41: - | R41: - | S41: - | T41: - | U41: - | V41: - | W41: - | X41: - | Y41: - | Z41: - | AA41: - | AB41: - | AC41: … | AD41: … | AE41: … | AF41: - | AG41: - | AH41: - | AI41: - | AJ41: - | AK41: - | AL41: - | AM41: - | AN41: - | AO41: - | AP41: - | AQ41: - | AR41: - | AS41: - | AT41: - | AU41: - | AV41: … | AW41: … | AX41: … | AY41: - | AZ41: - | BA41: - | BB41: - | BC41: - | BD41: - | BE41: - | BF41: - | BG41: - | BH41: - | BI41: - | BJ41: - | BK41: - | BL41: - | BM41: - | BN41: - | BO41: … | BP41: … | BQ41: … | BR41: - | BS41: - | BT41: - | BU41: - | BV41: - | BW41: - | BX41: - | BY41: - | BZ41: - | CA41: - | CB41: - | CC41: - | CD41: - | CE41: - | CF41: - | CG41: - | CH41: - | CI41: - | CJ41: - | CK41: - | CL41: - | CM41: - | CN41: - | CO41: - | CP41: - | CQ41: - | CR41: - | CS41: - | CT41: - | CU41: - | DC41: - | DD41: - | DE41: - | DF41: - | DG41: - | DH41: - | DI41: - | DJ41: - | DK41: - | DL41: - | DM41: - | DN41: - | DO41: - | DP41: - | DQ41: - | DR41: - | DS41: - | DT41: - | DU41: - | DV41: - | DW41: - | DX41: - | DY41: - | DZ41: - | EA41: - | EB41: - | EC41: - | ED41: - | EE41: - | EF41: - | EG41: - | EH41: - | EI41: - | EJ41: - | EK41: - | EL41: - | EM41: - | EN41: - | EO41: - | EP41: - | EQ41: - | ER41: - | ES41: - | ET41: - | EU41: -
A42: 茨城県 | B42: 水戸市 | C42: 水戸市 | D42: 渋田一、二区、細谷、門前町、杉 | E42: 1 | F42: - | G42: - | H42: - | I42: - | J42: - | K42: - | L42: 1 | M42: - | N42: - | O42: - | P42: - | Q42: - | R42: - | S42: - | T42: - | U42: - | V42: - | W42: - | X42: - | Y42: - | Z42: - | AA42: - | AB42: - | AC42: … | AD42: … | AE42: … | AF42: - | AG42: - | AH42: - | AI42: - | AJ42: - | AK42: - | AL42: - | AM42: - | AN42: - | AO42: - | AP42: - | AQ42: - | AR42: - | AS42: - | AT42: - | AU42: - | AV42: … | AW42: … | AX42: … | AY42: - | AZ42: - | BA42: - | BB42: - | BC42: - | BD42: - | BE42: - | BF42: - | BG42: - | BH42: - | BI42: - | BJ42: - | BK42: - | BL42: - | BM42: - | BN42: - | BO42: … | BP42: … | BQ42: … | BR42: - | BS42: - | BT42: - | BU42: - | BV42: - | BW42: - | BX42: - | BY42: - | BZ42: - | CA42: - | CB42: - | CC42: - | CD42: - | CE42: - | CF42: - | CG42: - | CH42: - | CI42: - | CJ42: - | CK42: - | CL42: - | CM42: - | CN42: - | CO42: - | CP42: - | CQ42: - | CR42: - | CS42: - | CT42: - | CU42: - | DC42: - | DD42: - | DE42: - | DF42: - | DG42: - | DH42: - | DI42: - | DJ42: - | DK42: - | DL42: - | DM42: - | DN42: - | DO42: - | DP42: - | DQ42: - | DR42: - | DS42: - | DT42: - | DU42: - | DV42: - | DW42: - | DX42: - | DY42: - | DZ42: - | EA42: - | EB42: - | EC42: - | ED42: - | EE42: - | EF42: - | EG42: - | EH42: - | EI42: - | EJ42: - | EK42: - | EL42: - | EM42: - | EN42: - | EO42: - | EP42: - | EQ42: - | ER42: - | ES42: - | ET42: - | EU42: -
A43: 茨城県 | B43: 水戸市 | C43: 水戸市 | D43: 馬場町、川岸通り、代官町、荒神 | E43: - | F43: - | G43: - | H43: - | I43: - | J43: - | K43: - | L43: - | M43: - | N43: - | O43: - | P43: - | Q43: - | R43: - | S43: - | T43: - | U43: - | V43: - | W43: - | X43: - | Y43: - | Z43: - | AA43: - | AB43: - | AC43: … | AD43: … | AE43: … | AF43: - | AG43: - | AH43: - | AI43: - | AJ43: - | AK43: - | AL43: - | AM43: - | AN43: - | AO43: - | AP43: - | AQ43: - | AR43: - | AS43: - | AT43: - | AU43: - | AV43: … | AW43: … | AX43: … | AY43: - | AZ43: - | BA43: - | BB43: - | BC43: - | BD43: - | BE43: - | BF43: - | BG43: - | BH43: - | BI43: - | BJ43: - | BK43: - | BL43: - | BM43: - | BN43: - | BO43: … | BP43: … | BQ43: … | BR43: - | BS43: - | BT43: - | BU43: - | BV43: - | BW43: - | BX43: - | BY43: - | BZ43: - | CA43: - | CB43: - | CC43: - | CD43: - | CE43: - | CF43: - | CG43: - | CH43: - | CI43: - | CJ43: - | CK43: - | CL43: - | CM43: - | CN43: - | CO43: - | CP43: - | CQ43: - | CR43: - | CS43: - | CT43: - | CU43: - | DC43: - | DD43: - | DE43: - | DF43: - | DG43: - | DH43: - | DI43: - | DJ43: - | DK43: - | DL43: - | DM43: - | DN43: - | DO43: - | DP43: - | DQ43: - | DR43: - | DS43: - | DT43: - | DU43: - | DV43: - | DW43: - | DX43: - | DY43: - | DZ43: - | EA43: - | EB43: - | EC43: - | ED43: - | EE43: - | EF43: - | EG43: - | EH43: - | EI43: - | EJ43: - | EK43: - | EL43: - | EM43: - | EN43: - | EO43: - | EP43: - | EQ43: - | ER43: - | ES43: - | ET43: - | EU43: -
A44: 茨城県 | B44: 水戸市 | C44: 水戸市 | D44: 蓮池町、蘋町、元仲ノ町九丁目 | E44: 2 | F44: 1 | G44: x | H44: x | I44: x | J44: x | K44: x | L44: 1 | M44: x | N44: x | O44: x | P44: x | Q44: x | R44: x | S44: x | T44: x | U44: x | V44: x | W44: x | X44: x | Y44: x | Z44: x | AA44: x | AB44: x | AC44: 45.0 | AD44: 49.0 | AE44: 41.0 | AF44: x | AG44: x | AH44: x | AI44: x | AJ44: x | AK44: x | AL44: x | AM44: x | AN44: x | AO44: x | AP44: x | AQ44: x | AR44: x | AS44: x | AT44: x | AU44: x | AV44: … | AW44: … | AX44: … | AY44: x | AZ44: x | BA44: x | BB44: x | BC44: x | BD44: x | BE44: x | BF44: x | BG44: x | BH44: x | BI44: x | BJ44: x | BK44: x | BL44: x | BM44: x | BN44: x | BO44: … | BP44: … | BQ44: … | BR44: 1 | BS44: - | BT44: - | BU44: - | BV44: - | BW44: - | BX44: 1 | BY44: - | BZ44: - | CA44: - | CB44: - | CC44: - | CD44: - | CE44: - | CF44: - | CG44: - | CH44: - | CI44: - | CJ44: - | CK44: - | CL44: - | CM44: - | CN44: - | CO44: - | CP44: - | CQ44: - | CR44: - | CS44: - | CT44: - | CU44: - | DC44: 2 | DD44: 2 | DE44: - | DF44: 2 | DG44: - | DH44: - | DI44: - | DJ44: - | DK44: - | DL44: - | DM44: - | DN44: - | DO44: - | DP44: - | DQ44: - | DR44: - | DS44: - | DT44: - | DU44: - | DV44: - | DW44: - | DX44: - | DY44: - | DZ44: - | EA44: 1 | EB44: 50 | EC44: 50 | ED44: - | EE44: - | EF44: 1 | EG44: 1 | EH44: - | EI44: 1 | EJ44: - | EK44: - | EL44: - | EM44: - | EN44: 1 | EO44: 1 | EP44: - | EQ44: 1 | ER44: - | ES44: - | ET44: - | EU44: -
A45: 茨城県 | B45: 水戸市 | C45: 水戸市 | D45: 曲尺手町、十軒町、鍛治町、八丁 | E45: - | F45: - | G45: - | H45: - | I45: - | J45: - | K45: - | L45: - | M45: - | N45: - | O45: - | P45: - | Q45: - | R45: - | S45: - | T45: - | U45: - | V45: - | W45: - | X45: - | Y45: - | Z45: - | AA45: - | AB45: - | AC45: … | AD45: … | AE45: … | AF45: - | AG45: - | AH45: - | AI45: - | AJ45: - | AK45: - | AL45: - | AM45: - | AN45: - | AO45: - | AP45: - | AQ45: - | AR45: - | AS45: - | AT45: - | AU45: - | AV45: … | AW45: … | AX45: … | AY45: - | AZ45: - | BA45: - | BB45: - | BC45: - | BD45: - | BE45: - | BF45: - | BG45: - | BH45: - | BI45: - | BJ45: - | BK45: - | BL45: - | BM45: - | BN45: - | BO45: … | BP45: … | BQ45: … | BR45: - | BS45: - | BT45: - | BU45: - | BV45: - | BW45: - | BX45: - | BY45: - | BZ45: - | CA45: - | CB45: - | CC45: - | CD45: - | CE45: - | CF45: - | CG45: - | CH45: - | CI45: - | CJ45: - | CK45: - | CL45: - | CM45: - | CN45: - | CO45: - | CP45: - | CQ45: - | CR45: - | CS45: - | CT45: - | CU45: - | DC45: - | DD45: - | DE45: - | DF45: - | DG45: - | DH45: - | DI45: - | DJ45: - | DK45: - | DL45: - | DM45: - | DN45: - | DO45: - | DP45: - | DQ45: - | DR45: - | DS45: - | DT45: - | DU45: - | DV45: - | DW45: - | DX45: - | DY45: - | DZ45: - | EA45: - | EB45: - | EC45: - | ED45: - | EE45: - | EF45: - | EG45: - | EH45: - | EI45: - | EJ45: - | EK45: - | EL45: - | EM45: - | EN45: - | EO45: - | EP45: - | EQ45: - | ER45: - | ES45: - | ET45: - | EU45: -
A46: 茨城県 | B46: 水戸市 | C46: 水戸市 | D46: 細谷町、蔵脇、細谷本郷町 | E46: - | F46: - | G46: - | H46: - | I46: - | J46: - | K46: - | L46: - | M46: - | N46: - | O46: - | P46: - | Q46: - | R46: - | S46: - | T46: - | U46: - | V46: - | W46: - | X46: - | Y46: - | Z46: - | AA46: - | AB46: - | AC46: … | AD46: … | AE46: … | AF46: - | AG46: - | AH46: - | AI46: - | AJ46: - | AK46: - | AL46: - | AM46: - | AN46: - | AO46: - | AP46: - | AQ46: - | AR46: - | AS46: - | AT46: - | AU46: - | AV46: … | AW46: … | AX46: … | AY46: - | AZ46: - | BA46: - | BB46: - | BC46: - | BD46: - | BE46: - | BF46: - | BG46: - | BH46: - | BI46: - | BJ46: - | BK46: - | BL46: - | BM46: - | BN46: - | BO46: … | BP46: … | BQ46: … | BR46: - | BS46: - | BT46: - | BU46: - | BV46: - | BW46: - | BX46: - | BY46: - | BZ46: - | CA46: - | CB46: - | CC46: - | CD46: - | CE46: - | CF46: - | CG46: - | CH46: - | CI46: - | CJ46: - | CK46: - | CL46: - | CM46: - | CN46: - | CO46: - | CP46: - | CQ46: - | CR46: - | CS46: - | CT46: - | CU46: - | DC46: - | DD46: - | DE46: - | DF46: - | DG46: - | DH46: - | DI46: - | DJ46: - | DK46: - | DL46: - | DM46: - | DN46: - | DO46: - | DP46: - | DQ46: - | DR46: - | DS46: - | DT46: - | DU46: - | DV46: - | DW46: - | DX46: - | DY46: - | DZ46: - | EA46: - | EB46: - | EC46: - | ED46: - | EE46: - | EF46: - | EG46: - | EH46: - | EI46: - | EJ46: - | EK46: - | EL46: - | EM46: - | EN46: - | EO46: - | EP46: - | EQ46: - | ER46: - | ES46: - | ET46: - | EU46: -
A47: 茨城県 | B47: 水戸市 | C47: 水戸市 | D47: 新町，十町目 | E47: 2 | F47: - | G47: - | H47: - | I47: - | J47: - | K47: - | L47: 2 | M47: - | N47: - | O47: - | P47: - | Q47: - | R47: - | S47: - | T47: - | U47: - | V47: - | W47: - | X47: - | Y47: - | Z47: - | AA47: - | AB47: - | AC47: … | AD47: … | AE47: … | AF47: - | AG47: - | AH47: - | AI47: - | AJ47: - | AK47: - | AL47: - | AM47: - | AN47: - | AO47: - | AP47: - | AQ47: - | AR47: - | AS47: - | AT47: - | AU47: - | AV47: … | AW47: … | AX47: … | AY47: - | AZ47: - | BA47: - | BB47: - | BC47: - | BD47: - | BE47: - | BF47: - | BG47: - | BH47: - | BI47: - | BJ47: - | BK47: - | BL47: - | BM47: - | BN47: - | BO47: … | BP47: … | BQ47: … | BR47: - | BS47: - | BT47: - | BU47: - | BV47: - | BW47: - | BX47: - | BY47: - | BZ47: - | CA47: - | CB47: - | CC47: - | CD47: - | CE47: - | CF47: - | CG47: - | CH47: - | CI47: - | CJ47: - | CK47: - | CL47: - | CM47: - | CN47: - | CO47: - | CP47: - | CQ47: - | CR47: - | CS47: - | CT47: - | CU47: - | DC47: - | DD47: - | DE47: - | DF47: - | DG47: - | DH47: - | DI47: - | DJ47: - | DK47: - | DL47: - | DM47: - | DN47: - | DO47: - | DP47: - | DQ47: - | DR47: - | DS47: - | DT47: - | DU47: - | DV47: - | DW47: - | DX47: - | DY47: - | DZ47: - | EA47: - | EB47: - | EC47: - | ED47: - | EE47: - | EF47: - | EG47: - | EH47: - | EI47: - | EJ47: - | EK47: - | EL47: - | EM47: - | EN47: - | EO47: - | EP47: - | EQ47: - | ER47: - | ES47: - | ET47: - | EU47: -
A48: 茨城県 | B48: 水戸市 | C48: 水戸市 | D48: 若宮町 | E48: 7 | F48: 4 | G48: 1 | H48: - | I48: - | J48: - | K48: 3 | L48: 3 | M48: 10 | N48: - | O48: - | P48: - | Q48: - | R48: - | S48: - | T48: - | U48: 2 | V48: 3 | W48: 2 | X48: - | Y48: - | Z48: - | AA48: 3 | AB48: - | AC48: 63.6 | AD48: 64.0 | AE48: 63.3 | AF48: 6 | AG48: - | AH48: - | AI48: - | AJ48: - | AK48: - | AL48: - | AM48: - | AN48: 1 | AO48: - | AP48: 2 | AQ48: - | AR48: - | AS48: - | AT48: 3 | AU48: - | AV48: 69.5 | AW48: 71.0 | AX48: 68.8 | AY48: 5 | AZ48: - | BA48: - | BB48: - | BC48: - | BD48: - | BE48: - | BF48: - | BG48: 1 | BH48: - | BI48: 1 | BJ48: - | BK48: - | BL48: - | BM48: 3 | BN48: - | BO48: 71.0 | BP48: 71.0 | BQ48: 71.0 | BR48: 4 | BS48: - | BT48: - | BU48: - | BV48: - | BW48: - | BX48: - | BY48: - | BZ48: - | CA48: 1 | CB48: 1 | CC48: - | CD48: - | CE48: - | CF48: 2 | CG48: - | CH48: 3 | CI48: - | CJ48: - | CK48: - | CL48: - | CM48: - | CN48: - | CO48: 1 | CP48: - | CQ48: - | CR48: - | CS48: - | CT48: 2 | CU48: - | DC48: 19 | DD48: 13 | DE48: 5 | DF48: 8 | DG48: - | DH48: 1 | DI48: 4 | DJ48: 1 | DK48: 2 | DL48: 2 | DM48: - | DN48: - | DO48: - | DP48: - | DQ48: - | DR48: - | DS48: - | DT48: - | DU48: - | DV48: - | DW48: - | DX48: - | DY48: - | DZ48: - | EA48: 4 | EB48: 240 | EC48: 197 | ED48: 43 | EE48: - | EF48: 9 | EG48: 5 | EH48: 2 | EI48: 3 | EJ48: - | EK48: - | EL48: 3 | EM48: 1 | EN48: 10 | EO48: 8 | EP48: 3 | EQ48: 5 | ER48: - | ES48: 1 | ET48: 1 | EU48: -
A49: 茨城県 | B49: 水戸市 | C49: 水戸市 | D49: 元台町一、二丁目、宮内町 | E49: 1 | F49: - | G49: - | H49: - | I49: - | J49: - | K49: - | L49: 1 | M49: - | N49: - | O49: - | P49: - | Q49: - | R49: - | S49: - | T49: - | U49: - | V49: - | W49: - | X49: - | Y49: - | Z49: - | AA49: - | AB49: - | AC49: … | AD49: … | AE49: … | AF49: - | AG49: - | AH49: - | AI49: - | AJ49: - | AK49: - | AL49: - | AM49: - | AN49: - | AO49: - | AP49: - | AQ49: - | AR49: - | AS49: - | AT49: - | AU49: - | AV49: … | AW49: … | AX49: … | AY49: - | AZ49: - | BA49: - | BB49: - | BC49: - | BD49: - | BE49: - | BF49: - | BG49: - | BH49: - | BI49: - | BJ49: - | BK49: - | BL49: - | BM49: - | BN49: - | BO49: … | BP49: … | BQ49: … | BR49: - | BS49: - | BT49: - | BU49: - | BV49: - | BW49: - | BX49: - | BY49: - | BZ49: - | CA49: - | CB49: - | CC49: - | CD49: - | CE49: - | CF49: - | CG49: - | CH49: - | CI49: - | CJ49: - | CK49: - | CL49: - | CM49: - | CN49: - | CO49: - | CP49: - | CQ49: - | CR49: - | CS49: - | CT49: - | CU49: - | DC49: - | DD49: - | DE49: - | DF49: - | DG49: - | DH49: - | DI49: - | DJ49: - | DK49: - | DL49: - | DM49: - | DN49: - | DO49: - | DP49: - | DQ49: - | DR49: - | DS49: - | DT49: - | DU49: - | DV49: - | DW49: - | DX49: - | DY49: - | DZ49: - | EA49: - | EB49: - | EC49: - | ED49: - | EE49: - | EF49: - | EG49: - | EH49: - | EI49: - | EJ49: - | EK49: - | EL49: - | EM49: - | EN49: - | EO49: - | EP49: - | EQ49: - | ER49: - | ES49: - | ET49: - | EU49: -
A50: 茨城県 | B50: 水戸市 | C50: 水戸市 | D50: 元台町三，四，五，六丁目 | E50: - | F50: - | G50: - | H50: - | I50: - | J50: - | K50: - | L50: - | M50: - | N50: - | O50: - | P50: - | Q50: - | R50: - | S50: - | T50: - | U50: - | V50: - | W50: - | X50: - | Y50: - | Z50: - | AA50: - | AB50: - | AC50: … | AD50: … | AE50: … | AF50: - | AG50: - | AH50: - | AI50: - | AJ50: - | AK50: - | AL50: - | AM50: - | AN50: - | AO50: - | AP50: - | AQ50: - | AR50: - | AS50: - | AT50: - | AU50: - | AV50: … | AW50: … | AX50: … | AY50: - | AZ50: - | BA50: - | BB50: - | BC50: - | BD50: - | BE50: - | BF50: - | BG50: - | BH50: - | BI50: - | BJ50: - | BK50: - | BL50: - | BM50: - | BN50: - | BO50: … | BP50: … | BQ50: … | BR50: - | BS50: - | BT50: - | BU50: - | BV50: - | BW50: - | BX50: - | BY50: - | BZ50: - | CA50: - | CB50: - | CC50: - | CD50: - | CE50: - | CF50: - | CG50: - | CH50: - | CI50: - | CJ50: - | CK50: - | CL50: - | CM50: - | CN50: - | CO50: - | CP50: - | CQ50: - | CR50: - | CS50: - | CT50: - | CU50: - | DC50: - | DD50: - | DE50: - | DF50: - | DG50: - | DH50: - | DI50: - | DJ50: - | DK50: - | DL50: - | DM50: - | DN50: - | DO50: - | DP50: - | DQ50: - | DR50: - | DS50: - | DT50: - | DU50: - | DV50: - | DW50: - | DX50: - | DY50: - | DZ50: - | EA50: - | EB50: - | EC50: - | ED50: - | EE50: - | EF50: - | EG50: - | EH50: - | EI50: - | EJ50: - | EK50: - | EL50: - | EM50: - | EN50: - | EO50: - | EP50: - | EQ50: - | ER50: - | ES50: - | ET50: - | EU50: -
A51: 茨城県 | B51: 水戸市 | C51: 水戸市 | D51: 吉田町、七軒町、裡一丁目、藤柄 | E51: - | F51: - | G51: - | H51: - | I51: - | J51: - | K51: - | L51: - | M51: - | N51: - | O51: - | P51: - | Q51: - | R51: - | S51: - | T51: - | U51: - | V51: - | W51: - | X51: - | Y51: - | Z51: - | AA51: - | AB51: - | AC51: … | AD51: … | AE51: … | AF51: - | AG51: - | AH51: - | AI51: - | AJ51: - | AK51: - | AL51: - | AM51: - | AN51: - | AO51: - | AP51: - | AQ51: - | AR51: - | AS51: - | AT51: - | AU51: - | AV51: … | AW51: … | AX51: … | AY51: - | AZ51: - | BA51: - | BB51: - | BC51: - | BD51: - | BE51: - | BF51: - | BG51: - | BH51: - | BI51: - | BJ51: - | BK51: - | BL51: - | BM51: - | BN51: - | BO51: … | BP51: … | BQ51: … | BR51: - | BS51: - | BT51: - | BU51: - | BV51: - | BW51: - | BX51: - | BY51: - | BZ51: - | CA51: - | CB51: - | CC51: - | CD51: - | CE51: - | CF51: - | CG51: - | CH51: - | CI51: - | CJ51: - | CK51: - | CL51: - | CM51: - | CN51: - | CO51: - | CP51: - | CQ51: - | CR51: - | CS51: - | CT51: - | CU51: - | DC51: - | DD51: - | DE51: - | DF51: - | DG51: - | DH51: - | DI51: - | DJ51: - | DK51: - | DL51: - | DM51: - | DN51: - | DO51: - | DP51: - | DQ51: - | DR51: - | DS51: - | DT51: - | DU51: - | DV51: - | DW51: - | DX51: - | DY51: - | DZ51: - | EA51: - | EB51: - | EC51: - | ED51: - | EE51: - | EF51: - | EG51: - | EH51: - | EI51: - | EJ51: - | EK51: - | EL51: - | EM51: - | EN51: - | EO51: - | EP51: - | EQ51: - | ER51: - | ES51: - | ET51: - | EU51: -
A52: 茨城県 | B52: 水戸市 | C52: 水戸市 | D52: 水門町、裡二丁目、その他３町 | E52: - | F52: - | G52: - | H52: - | I52: - | J52: - | K52: - | L52: - | M52: - | N52: - | O52: - | P52: - | Q52: - | R52: - | S52: - | T52: - | U52: - | V52: - | W52: - | X52: - | Y52: - | Z52: - | AA52: - | AB52: - | AC52: … | AD52: … | AE52: … | AF52: - | AG52: - | AH52: - | AI52: - | AJ52: - | AK52: - | AL52: - | AM52: - | AN52: - | AO52: - | AP52: - | AQ52: - | AR52: - | AS52: - | AT52: - | AU52: - | AV52: … | AW52: … | AX52: … | AY52: - | AZ52: - | BA52: - | BB52: - | BC52: - | BD52: - | BE52: - | BF52: - | BG52: - | BH52: - | BI52: - | BJ52: - | BK52: - | BL52: - | BM52: - | BN52: - | BO52: … | BP52: … | BQ52: … | BR52: - | BS52: - | BT52: - | BU52: - | BV52: - | BW52: - | BX52: - | BY52: - | BZ52: - | CA52: - | CB52: - | CC52: - | CD52: - | CE52: - | CF52: - | CG52: - | CH52: - | CI52: - | CJ52: - | CK52: - | CL52: - | CM52: - | CN52: - | CO52: - | CP52: - | CQ52: - | CR52: - | CS52: - | CT52: - | CU52: - | DC52: - | DD52: - | DE52: - | DF52: - | DG52: - | DH52: - | DI52: - | DJ52: - | DK52: - | DL52: - | DM52: - | DN52: - | DO52: - | DP52: - | DQ52: - | DR52: - | DS52: - | DT52: - | DU52: - | DV52: - | DW52: - | DX52: - | DY52: - | DZ52: - | EA52: - | EB52: - | EC52: - | ED52: - | EE52: - | EF52: - | EG52: - | EH52: - | EI52: - | EJ52: - | EK52: - | EL52: - | EM52: - | EN52: - | EO52: - | EP52: - | EQ52: - | ER52: - | ES52: - | ET52: - | EU52: -
A53: 茨城県 | B53: 水戸市 | C53: 水戸市 | D53: 紺屋町、浜町、亙谷町、檜物町 | E53: - | F53: - | G53: - | H53: - | I53: - | J53: - | K53: - | L53: - | M53: - | N53: - | O53: - | P53: - | Q53: - | R53: - | S53: - | T53: - | U53: - | V53: - | W53: - | X53: - | Y53: - | Z53: - | AA53: - | AB53: - | AC53: … | AD53: … | AE53: … | AF53: - | AG53: - | AH53: - | AI53: - | AJ53: - | AK53: - | AL53: - | AM53: - | AN53: - | AO53: - | AP53: - | AQ53: - | AR53: - | AS53: - | AT53: - | AU53: - | AV53: … | AW53: … | AX53: … | AY53: - | AZ53: - | BA53: - | BB53: - | BC53: - | BD53: - | BE53: - | BF53: - | BG53: - | BH53: - | BI53: - | BJ53: - | BK53: - | BL53: - | BM53: - | BN53: - | BO53: … | BP53: … | BQ53: … | BR53: - | BS53: - | BT53: - | BU53: - | BV53: - | BW53: - | BX53: - | BY53: - | BZ53: - | CA53: - | CB53: - | CC53: - | CD53: - | CE53: - | CF53: - | CG53: - | CH53: - | CI53: - | CJ53: - | CK53: - | CL53: - | CM53: - | CN53: - | CO53: - | CP53: - | CQ53: - | CR53: - | CS53: - | CT53: - | CU53: - | DC53: - | DD53: - | DE53: - | DF53: - | DG53: - | DH53: - | DI53: - | DJ53: - | DK53: - | DL53: - | DM53: - | DN53: - | DO53: - | DP53: - | DQ53: - | DR53: - | DS53: - | DT53: - | DU53: - | DV53: - | DW53: - | DX53: - | DY53: - | DZ53: - | EA53: - | EB53: - | EC53: - | ED53: - | EE53: - | EF53: - | EG53: - | EH53: - | EI53: - | EJ53: - | EK53: - | EL53: - | EM53: - | EN53: - | EO53: - | EP53: - | EQ53: - | ER53: - | ES53: - | ET53: - | EU53: -
A54: 茨城県 | B54: 水戸市 | C54: 水戸市 | D54: 裡三丁目、肴町、本三、四丁目 | E54: - | F54: - | G54: - | H54: - | I54: - | J54: - | K54: - | L54: - | M54: - | N54: - | O54: - | P54: - | Q54: - | R54: - | S54: - | T54: - | U54: - | V54: - | W54: - | X54: - | Y54: - | Z54: - | AA54: - | AB54: - | AC54: … | AD54: … | AE54: … | AF54: - | AG54: - | AH54: - | AI54: - | AJ54: - | AK54: - | AL54: - | AM54: - | AN54: - | AO54: - | AP54: - | AQ54: - | AR54: - | AS54: - | AT54: - | AU54: - | AV54: … | AW54: … | AX54: … | AY54: - | AZ54: - | BA54: - | BB54: - | BC54: - | BD54: - | BE54: - | BF54: - | BG54: - | BH54: - | BI54: - | BJ54: - | BK54: - | BL54: - | BM54: - | BN54: - | BO54: … | BP54: … | BQ54: … | BR54: - | BS54: - | BT54: - | BU54: - | BV54: - | BW54: - | BX54: - | BY54: - | BZ54: - | CA54: - | CB54: - | CC54: - | CD54: - | CE54: - | CF54: - | CG54: - | CH54: - | CI54: - | CJ54: - | CK54: - | CL54: - | CM54: - | CN54: - | CO54: - | CP54: - | CQ54: - | CR54: - | CS54: - | CT54: - | CU54: - | DC54: - | DD54: - | DE54: - | DF54: - | DG54: - | DH54: - | DI54: - | DJ54: - | DK54: - | DL54: - | DM54: - | DN54: - | DO54: - | DP54: - | DQ54: - | DR54: - | DS54: - | DT54: - | DU54: - | DV54: - | DW54: - | DX54: - | DY54: - | DZ54: - | EA54: - | EB54: - | EC54: - | ED54: - | EE54: - | EF54: - | EG54: - | EH54: - | EI54: - | EJ54: - | EK54: - | EL54: - | EM54: - | EN54: - | EO54: - | EP54: - | EQ54: - | ER54: - | ES54: - | ET54: - | EU54: -
A55: 茨城県 | B55: 水戸市 | C55: 水戸市 | D55: 東台、白銀町、本五、六、七丁目 | E55: - | F55: - | G55: - | H55: - | I55: - | J55: - | K55: - | L55: - | M55: - | N55: - | O55: - | P55: - | Q55: - | R55: - | S55: - | T55: - | U55: - | V55: - | W55: - | X55: - | Y55: - | Z55: - | AA55: - | AB55: - | AC55: … | AD55: … | AE55: … | AF55: - | AG55: - | AH55: - | AI55: - | AJ55: - | AK55: - | AL55: - | AM55: - | AN55: - | AO55: - | AP55: - | AQ55: - | AR55: - | AS55: - | AT55: - | AU55: - | AV55: … | AW55: … | AX55: … | AY55: - | AZ55: - | BA55: - | BB55: - | BC55: - | BD55: - | BE55: - | BF55: - | BG55: - | BH55: - | BI55: - | BJ55: - | BK55: - | BL55: - | BM55: - | BN55: - | BO55: … | BP55: … | BQ55: … | BR55: - | BS55: - | BT55: - | BU55: - | BV55: - | BW55: - | BX55: - | BY55: - | BZ55: - | CA55: - | CB55: - | CC55: - | CD55: - | CE55: - | CF55: - | CG55: - | CH55: - | CI55: - | CJ55: - | CK55: - | CL55: - | CM55: - | CN55: - | CO55: - | CP55: - | CQ55: - | CR55: - | CS55: - | CT55: - | CU55: - | DC55: - | DD55: - | DE55: - | DF55: - | DG55: - | DH55: - | DI55: - | DJ55: - | DK55: - | DL55: - | DM55: - | DN55: - | DO55: - | DP55: - | DQ55: - | DR55: - | DS55: - | DT55: - | DU55: - | DV55: - | DW55: - | DX55: - | DY55: - | DZ55: - | EA55: - | EB55: - | EC55: - | ED55: - | EE55: - | EF55: - | EG55: - | EH55: - | EI55: - | EJ55: - | EK55: - | EL55: - | EM55: - | EN55: - | EO55: - | EP55: - | EQ55: - | ER55: - | ES55: - | ET55: - | EU55: -
A56: 茨城県 | B56: 水戸市 | C56: 水戸市 | D56: 裡四～七丁目、銭谷町、青物町 | E56: 1 | F56: 1 | G56: x | H56: x | I56: x | J56: x | K56: x | L56: - | M56: x | N56: x | O56: x | P56: x | Q56: x | R56: x | S56: x | T56: x | U56: x | V56: x | W56: x | X56: x | Y56: x | Z56: x | AA56: x | AB56: x | AC56: 59.0 | AD56: 59.0 | AE56: … | AF56: x | AG56: x | AH56: x | AI56: x | AJ56: x | AK56: x | AL56: x | AM56: x | AN56: x | AO56: x | AP56: x | AQ56: x | AR56: x | AS56: x | AT56: x | AU56: x | AV56: … | AW56: … | AX56: … | AY56: x | AZ56: x | BA56: x | BB56: x | BC56: x | BD56: x | BE56: x | BF56: x | BG56: x | BH56: x | BI56: x | BJ56: x | BK56: x | BL56: x | BM56: x | BN56: x | BO56: … | BP56: … | BQ56: … | BR56: 1 | BS56: - | BT56: - | BU56: - | BV56: - | BW56: - | BX56: - | BY56: - | BZ56: - | CA56: 1 | CB56: - | CC56: - | CD56: - | CE56: - | CF56: - | CG56: - | CH56: - | CI56: - | CJ56: - | CK56: - | CL56: - | CM56: - | CN56: - | CO56: - | CP56: - | CQ56: - | CR56: - | CS56: - | CT56: - | CU56: - | DC56: 1 | DD56: 1 | DE56: - | DF56: 1 | DG56: - | DH56: - | DI56: - | DJ56: - | DK56: - | DL56: - | DM56: - | DN56: - | DO56: - | DP56: - | DQ56: - | DR56: - | DS56: - | DT56: - | DU56: - | DV56: - | DW56: - | DX56: - | DY56: - | DZ56: - | EA56: 1 | EB56: 31 | EC56: 23 | ED56: 8 | EE56: - | EF56: 1 | EG56: 1 | EH56: - | EI56: 1 | EJ56: - | EK56: - | EL56: - | EM56: - | EN56: - | EO56: - | EP56: - | EQ56: - | ER56: - | ES56: - | ET56: - | EU56: -
A57: 茨城県 | B57: 水戸市 | C57: 水戸市 | D57: 高橋町，朝日町 | E57: - | F57: - | G57: - | H57: - | I57: - | J57: - | K57: - | L57: - | M57: - | N57: - | O57: - | P57: - | Q57: - | R57: - | S57: - | T57: - | U57: - | V57: - | W57: - | X57: - | Y57: - | Z57: - | AA57: - | AB57: - | AC57: … | AD57: … | AE57: … | AF57: - | AG57: - | AH57: - | AI57: - | AJ57: - | AK57: - | AL57: - | AM57: - | AN57: - | AO57: - | AP57: - | AQ57: - | AR57: - | AS57: - | AT57: - | AU57: - | AV57: … | AW57: … | AX57: … | AY57: - | AZ57: - | BA57: - | BB57: - | BC57: - | BD57: - | BE57: - | BF57: - | BG57: - | BH57: - | BI57: - | BJ57: - | BK57: - | BL57: - | BM57: - | BN57: - | BO57: … | BP57: … | BQ57: … | BR57: - | BS57: - | BT57: - | BU57: - | BV57: - | BW57: - | BX57: - | BY57: - | BZ57: - | CA57: - | CB57: - | CC57: - | CD57: - | CE57: - | CF57: - | CG57: - | CH57: - | CI57: - | CJ57: - | CK57: - | CL57: - | CM57: - | CN57: - | CO57: - | CP57: - | CQ57: - | CR57: - | CS57: - | CT57: - | CU57: - | DC57: - | DD57: - | DE57: - | DF57: - | DG57: - | DH57: - | DI57: - | DJ57: - | DK57: - | DL57: - | DM57: - | DN57: - | DO57: - | DP57: - | DQ57: - | DR57: - | DS57: - | DT57: - | DU57: - | DV57: - | DW57: - | DX57: - | DY57: - | DZ57: - | EA57: - | EB57: - | EC57: - | ED57: - | EE57: - | EF57: - | EG57: - | EH57: - | EI57: - | EJ57: - | EK57: - | EL57: - | EM57: - | EN57: - | EO57: - | EP57: - | EQ57: - | ER57: - | ES57: - | ET57: - | EU57: -
A58: 茨城県 | B58: 水戸市 | C58: 水戸市 | D58: 浜田町 | E58: 8 | F58: 4 | G58: 1 | H58: - | I58: - | J58: - | K58: 3 | L58: 4 | M58: 10 | N58: - | O58: - | P58: - | Q58: - | R58: 1 | S58: 3 | T58: - | U58: - | V58: - | W58: - | X58: 5 | Y58: - | Z58: 1 | AA58: - | AB58: - | AC58: 56.8 | AD58: 54.7 | AE58: 60.0 | AF58: 7 | AG58: - | AH58: - | AI58: - | AJ58: - | AK58: - | AL58: 1 | AM58: - | AN58: - | AO58: - | AP58: - | AQ58: 5 | AR58: - | AS58: 1 | AT58: - | AU58: - | AV58: 64.6 | AW58: 70.7 | AX58: 60.0 | AY58: 7 | AZ58: - | BA58: - | BB58: - | BC58: - | BD58: - | BE58: 1 | BF58: - | BG58: - | BH58: - | BI58: - | BJ58: 5 | BK58: - | BL58: 1 | BM58: - | BN58: - | BO58: 64.6 | BP58: 70.7 | BQ58: 60.0 | BR58: 4 | BS58: - | BT58: - | BU58: - | BV58: - | BW58: - | BX58: - | BY58: - | BZ58: - | CA58: - | CB58: - | CC58: 2 | CD58: 1 | CE58: 1 | CF58: - | CG58: - | CH58: 3 | CI58: - | CJ58: - | CK58: - | CL58: - | CM58: - | CN58: - | CO58: - | CP58: - | CQ58: 2 | CR58: 1 | CS58: - | CT58: - | CU58: - | DC58: 12 | DD58: 11 | DE58: 7 | DF58: 4 | DG58: - | DH58: - | DI58: - | DJ58: 1 | DK58: 3 | DL58: 3 | DM58: - | DN58: - | DO58: - | DP58: - | DQ58: - | DR58: - | DS58: - | DT58: - | DU58: - | DV58: - | DW58: - | DX58: - | DY58: - | DZ58: - | EA58: 4 | EB58: 281 | EC58: 267 | ED58: 14 | EE58: - | EF58: 7 | EG58: 6 | EH58: 3 | EI58: 3 | EJ58: - | EK58: - | EL58: - | EM58: 1 | EN58: 5 | EO58: 5 | EP58: 4 | EQ58: 1 | ER58: - | ES58: - | ET58: - | EU58: -
A59: 茨城県 | B59: 水戸市 | C59: 国田村 | E59: 388 | F59: 280 | G59: 28 | H59: 17 | I59: 62 | J59: 8 | K59: 190 | L59: 108 | M59: 709 | N59: 14 | O59: 16 | P59: 20 | Q59: 16 | R59: 31 | S59: 31 | T59: 53 | U59: 54 | V59: 82 | W59: 78 | X59: 94 | Y59: 61 | Z59: 71 | AA59: 63 | AB59: 25 | AC59: 59.8 | AD59: 58.3 | AE59: 61.5 | AF59: 391 | AG59: 3 | AH59: 3 | AI59: 1 | AJ59: 2 | AK59: 4 | AL59: 5 | AM59: 6 | AN59: 10 | AO59: 15 | AP59: 42 | AQ59: 89 | AR59: 59 | AS59: 68 | AT59: 60 | AU59: 24 | AV59: 69.9 | AW59: 69.5 | AX59: 70.2 | AY59: 316 | AZ59: - | BA59: - | BB59: - | BC59: 2 | BD59: 3 | BE59: 3 | BF59: 4 | BG59: 6 | BH59: 9 | BI59: 35 | BJ59: 83 | BK59: 56 | BL59: 60 | BM59: 42 | BN59: 13 | BO59: 70.6 | BP59: 70.4 | BQ59: 70.8 | BR59: 280 | BS59: - | BT59: - | BU59: 1 | BV59: - | BW59: 2 | BX59: 7 | BY59: 12 | BZ59: 19 | CA59: 36 | CB59: 41 | CC59: 55 | CD59: 33 | CE59: 33 | CF59: 31 | CG59: 10 | CH59: 160 | CI59: - | CJ59: - | CK59: - | CL59: - | CM59: 2 | CN59: 7 | CO59: 24 | CP59: 17 | CQ59: 35 | CR59: 25 | CS59: 23 | CT59: 20 | CU59: 7 | DC59: 937 | DD59: 668 | DE59: 316 | DF59: 324 | DG59: 28 | DH59: 79 | DI59: 84 | DJ59: 106 | DK59: 255 | DL59: 241 | DM59: - | DN59: - | DO59: - | DP59: 8 | DQ59: 4 | DR59: - | DS59: 1 | DT59: - | DU59: - | DV59: - | DW59: 1 | DX59: - | DY59: - | DZ59: - | EA59: 280 | EB59: 33,003 | EC59: 24,245 | ED59: 8,651 | EE59: 107 | EF59: 462 | EG59: 385 | EH59: 168 | EI59: 200 | EJ59: 17 | EK59: 1 | EL59: 40 | EM59: 36 | EN59: 475 | EO59: 283 | EP59: 148 | EQ59: 124 | ER59: 11 | ES59: 78 | ET59: 44 | EU59: 70
A60: 茨城県 | B60: 水戸市 | C60: 国田村 | D60: 舟渡，庄司，台畑 | E60: 22 | F60: 10 | G60: - | H60: - | I60: 3 | J60: - | K60: 7 | L60: 12 | M60: 22 | N60: - | O60: 3 | P60: - | Q60: - | R60: - | S60: - | T60: 4 | U60: 3 | V60: 2 | W60: 1 | X60: 1 | Y60: 3 | Z60: 4 | AA60: 1 | AB60: - | AC60: 56.9 | AD60: 53.5 | AE60: 60.9 | AF60: 7 | AG60: - | AH60: - | AI60: - | AJ60: - | AK60: - | AL60: - | AM60: - | AN60: - | AO60: - | AP60: - | AQ60: - | AR60: 2 | AS60: 4 | AT60: 1 | AU60: - | AV60: 76.3 | AW60: 77.5 | AX60: 75.8 | AY60: 4 | AZ60: - | BA60: - | BB60: - | BC60: - | BD60: - | BE60: - | BF60: - | BG60: - | BH60: - | BI60: - | BJ60: - | BK60: 2 | BL60: 2 | BM60: - | BN60: - | BO60: 73.8 | BP60: 76.0 | BQ60: 73.0 | BR60: 10 | BS60: - | BT60: - | BU60: - | BV60: - | BW60: - | BX60: - | BY60: 1 | BZ60: 2 | CA60: 2 | CB60: 1 | CC60: - | CD60: 1 | CE60: 2 | CF60: 1 | CG60: - | CH60: 5 | CI60: - | CJ60: - | CK60: - | CL60: - | CM60: - | CN60: 1 | CO60: 2 | CP60: - | CQ60: - | CR60: - | CS60: 1 | CT60: 1 | CU60: - | DC60: 31 | DD60: 21 | DE60: 4 | DF60: 13 | DG60: 4 | DH60: 1 | DI60: 6 | DJ60: 3 | DK60: 7 | DL60: 7 | DM60: - | DN60: - | DO60: - | DP60: - | DQ60: - | DR60: - | DS60: - | DT60: - | DU60: - | DV60: - | DW60: - | DX60: - | DY60: - | DZ60: - | EA60: 10 | EB60: 754 | EC60: 607 | ED60: 147 | EE60: - | EF60: 16 | EG60: 12 | EH60: 1 | EI60: 9 | EJ60: 2 | EK60: - | EL60: 3 | EM60: 1 | EN60: 15 | EO60: 9 | EP60: 3 | EQ60: 4 | ER60: 2 | ES60: 1 | ET60: 3 | EU60: 2
A61: 茨城県 | B61: 水戸市 | C61: 国田村 | D61: 後原東，後原西 | E61: 24 | F61: 15 | G61: 1 | H61: 1 | I61: 1 | J61: - | K61: 13 | L61: 9 | M61: 39 | N61: - | O61: - | P61: - | Q61: 1 | R61: 3 | S61: 3 | T61: 3 | U61: 2 | V61: 3 | W61: 2 | X61: 6 | Y61: 5 | Z61: 6 | AA61: 5 | AB61: - | AC61: 62.6 | AD61: 60.6 | AE61: 64.9 | AF61: 23 | AG61: - | AH61: - | AI61: - | AJ61: - | AK61: 2 | AL61: - | AM61: - | AN61: - | AO61: 1 | AP61: - | AQ61: 6 | AR61: 5 | AS61: 6 | AT61: 3 | AU61: - | AV61: 69.9 | AW61: 68.3 | AX61: 71.6 | AY61: 21 | AZ61: - | BA61: - | BB61: - | BC61: - | BD61: 2 | BE61: - | BF61: - | BG61: - | BH61: 1 | BI61: - | BJ61: 6 | BK61: 4 | BL61: 5 | BM61: 3 | BN61: - | BO61: 69.4 | BP61: 67.8 | BQ61: 71.1 | BR61: 15 | BS61: - | BT61: - | BU61: - | BV61: - | BW61: - | BX61: - | BY61: 1 | BZ61: - | CA61: 1 | CB61: 1 | CC61: 2 | CD61: 4 | CE61: 4 | CF61: 2 | CG61: - | CH61: 7 | CI61: - | CJ61: - | CK61: - | CL61: - | CM61: - | CN61: - | CO61: - | CP61: 1 | CQ61: 1 | CR61: 3 | CS61: 2 | CT61: - | CU61: - | DC61: 58 | DD61: 42 | DE61: 21 | DF61: 19 | DG61: 2 | DH61: 5 | DI61: 2 | DJ61: 9 | DK61: 10 | DL61: 10 | DM61: - | DN61: - | DO61: - | DP61: - | DQ61: - | DR61: - | DS61: - | DT61: - | DU61: - | DV61: - | DW61: - | DX61: - | DY61: - | DZ61: - | EA61: 15 | EB61: 2,298 | EC61: 1,790 | ED61: 508 | EE61: - | EF61: 31 | EG61: 25 | EH61: 11 | EI61: 13 | EJ61: 1 | EK61: - | EL61: 2 | EM61: 4 | EN61: 27 | EO61: 17 | EP61: 10 | EQ61: 6 | ER61: 1 | ES61: 5 | ET61: - | EU61: 5
A62: 茨城県 | B62: 水戸市 | C62: 国田村 | D62: 南横町，北横町 | E62: 18 | F62: 9 | G62: 1 | H62: 1 | I62: - | J62: - | K62: 8 | L62: 9 | M62: 26 | N62: 2 | O62: 2 | P62: 1 | Q62: - | R62: 1 | S62: 1 | T62: 3 | U62: 4 | V62: 2 | W62: 2 | X62: 3 | Y62: 3 | Z62: 1 | AA62: - | AB62: 1 | AC62: 51.8 | AD62: 49.5 | AE62: 54.2 | AF62: 12 | AG62: 1 | AH62: 2 | AI62: - | AJ62: - | AK62: - | AL62: - | AM62: 1 | AN62: 1 | AO62: - | AP62: - | AQ62: 2 | AR62: 3 | AS62: 1 | AT62: - | AU62: 1 | AV62: 55.8 | AW62: 51.2 | AX62: 60.5 | AY62: 9 | AZ62: - | BA62: - | BB62: - | BC62: - | BD62: - | BE62: - | BF62: 1 | BG62: 1 | BH62: - | BI62: - | BJ62: 2 | BK62: 3 | BL62: 1 | BM62: - | BN62: 1 | BO62: 67.7 | BP62: 66.8 | BQ62: 68.4 | BR62: 9 | BS62: - | BT62: - | BU62: - | BV62: - | BW62: - | BX62: 1 | BY62: - | BZ62: 2 | CA62: 1 | CB62: 2 | CC62: 2 | CD62: - | CE62: 1 | CF62: - | CG62: - | CH62: 6 | CI62: - | CJ62: - | CK62: - | CL62: - | CM62: - | CN62: 1 | CO62: 1 | CP62: 1 | CQ62: 2 | CR62: - | CS62: 1 | CT62: - | CU62: - | DC62: 31 | DD62: 21 | DE62: 9 | DF62: 9 | DG62: 3 | DH62: 1 | DI62: 6 | DJ62: 3 | DK62: 9 | DL62: 8 | DM62: - | DN62: - | DO62: - | DP62: - | DQ62: - | DR62: - | DS62: 1 | DT62: - | DU62: - | DV62: - | DW62: - | DX62: - | DY62: - | DZ62: - | EA62: 9 | EB62: 1,106 | EC62: 503 | ED62: 603 | EE62: - | EF62: 15 | EG62: 10 | EH62: 4 | EI62: 5 | EJ62: 1 | EK62: - | EL62: 4 | EM62: 1 | EN62: 16 | EO62: 11 | EP62: 5 | EQ62: 4 | ER62: 2 | ES62: 1 | ET62: 2 | EU62: 2
A63: 茨城県 | B63: 水戸市 | C63: 国田村 | D63: 宮本前，宮本後 | E63: 17 | F63: 15 | G63: 1 | H63: - | I63: 1 | J63: - | K63: 13 | L63: 2 | M63: 37 | N63: 1 | O63: 1 | P63: 1 | Q63: - | R63: 3 | S63: 3 | T63: 2 | U63: 3 | V63: 1 | W63: 1 | X63: 10 | Y63: 5 | Z63: 4 | AA63: 1 | AB63: 1 | AC63: 59.2 | AD63: 55.6 | AE63: 64.4 | AF63: 20 | AG63: - | AH63: - | AI63: - | AJ63: - | AK63: - | AL63: 1 | AM63: - | AN63: - | AO63: - | AP63: - | AQ63: 8 | AR63: 5 | AS63: 4 | AT63: 1 | AU63: 1 | AV63: 71.4 | AW63: 72.5 | AX63: 70.2 | AY63: 18 | AZ63: - | BA63: - | BB63: - | BC63: - | BD63: - | BE63: - | BF63: - | BG63: - | BH63: - | BI63: - | BJ63: 8 | BK63: 5 | BL63: 4 | BM63: 1 | BN63: - | BO63: 71.7 | BP63: 72.5 | BQ63: 70.6 | BR63: 15 | BS63: - | BT63: - | BU63: - | BV63: - | BW63: - | BX63: 1 | BY63: - | BZ63: - | CA63: 1 | CB63: - | CC63: 6 | CD63: 2 | CE63: 3 | CF63: 1 | CG63: 1 | CH63: 11 | CI63: - | CJ63: - | CK63: - | CL63: - | CM63: - | CN63: - | CO63: 1 | CP63: - | CQ63: 5 | CR63: 2 | CS63: 1 | CT63: 1 | CU63: 1 | DC63: 46 | DD63: 34 | DE63: 18 | DF63: 16 | DG63: - | DH63: 4 | DI63: 4 | DJ63: 4 | DK63: 14 | DL63: 14 | DM63: - | DN63: - | DO63: - | DP63: - | DQ63: - | DR63: - | DS63: - | DT63: - | DU63: - | DV63: - | DW63: - | DX63: - | DY63: - | DZ63: - | EA63: 15 | EB63: 1,330 | EC63: 873 | ED63: 457 | EE63: - | EF63: 23 | EG63: 20 | EH63: 10 | EI63: 10 | EJ63: - | EK63: - | EL63: 3 | EM63: - | EN63: 23 | EO63: 14 | EP63: 8 | EQ63: 6 | ER63: - | ES63: 4 | ET63: 1 | EU63: 4
A64: 茨城県 | B64: 水戸市 | C64: 国田村 | D64: 田向，仲畑 | E64: 21 | F64: 15 | G64: - | H64: - | I64: 3 | J64: - | K64: 12 | L64: 6 | M64: 33 | N64: - | O64: - | P64: - | Q64: 1 | R64: 1 | S64: 2 | T64: 2 | U64: 2 | V64: 4 | W64: 4 | X64: 4 | Y64: 4 | Z64: 4 | AA64: 4 | AB64: 1 | AC64: 63.8 | AD64: 62.6 | AE64: 65.6 | AF64: 17 | AG64: - | AH64: - | AI64: - | AJ64: 1 | AK64: - | AL64: - | AM64: - | AN64: - | AO64: 1 | AP64: - | AQ64: 4 | AR64: 4 | AS64: 2 | AT64: 4 | AU64: 1 | AV64: 71.5 | AW64: 70.5 | AX64: 72.3 | AY64: 16 | AZ64: - | BA64: - | BB64: - | BC64: 1 | BD64: - | BE64: - | BF64: - | BG64: - | BH64: - | BI64: - | BJ64: 4 | BK64: 4 | BL64: 2 | BM64: 4 | BN64: 1 | BO64: 72.5 | BP64: 70.5 | BQ64: 74.5 | BR64: 15 | BS64: - | BT64: - | BU64: - | BV64: - | BW64: - | BX64: - | BY64: - | BZ64: 2 | CA64: 2 | CB64: 4 | CC64: 1 | CD64: 3 | CE64: 3 | CF64: - | CG64: - | CH64: 6 | CI64: - | CJ64: - | CK64: - | CL64: - | CM64: - | CN64: - | CO64: 1 | CP64: - | CQ64: - | CR64: 2 | CS64: 3 | CT64: - | CU64: - | DC64: 47 | DD64: 36 | DE64: 16 | DF64: 17 | DG64: 3 | DH64: 4 | DI64: 2 | DJ64: 5 | DK64: 14 | DL64: 14 | DM64: - | DN64: - | DO64: - | DP64: - | DQ64: - | DR64: - | DS64: - | DT64: - | DU64: - | DV64: - | DW64: - | DX64: - | DY64: - | DZ64: - | EA64: 15 | EB64: 1,372 | EC64: 1,149 | ED64: 223 | EE64: - | EF64: 22 | EG64: 21 | EH64: 8 | EI64: 11 | EJ64: 2 | EK64: - | EL64: - | EM64: 1 | EN64: 25 | EO64: 15 | EP64: 8 | EQ64: 6 | ER64: 1 | ES64: 4 | ET64: 2 | EU64: 4
A65: 茨城県 | B65: 水戸市 | C65: 国田村 | D65: 外の内前，外の内後 | E65: 21 | F65: 18 | G65: 3 | H65: 1 | I65: 4 | J65: - | K65: 11 | L65: 3 | M65: 39 | N65: 1 | O65: - | P65: 4 | Q65: 1 | R65: 1 | S65: 2 | T65: 2 | U65: 3 | V65: 5 | W65: 4 | X65: 4 | Y65: 3 | Z65: 4 | AA65: 3 | AB65: 2 | AC65: 58.5 | AD65: 56.0 | AE65: 61.3 | AF65: 18 | AG65: - | AH65: - | AI65: - | AJ65: - | AK65: - | AL65: - | AM65: - | AN65: - | AO65: 1 | AP65: 2 | AQ65: 4 | AR65: 3 | AS65: 4 | AT65: 2 | AU65: 2 | AV65: 72.7 | AW65: 73.3 | AX65: 72.3 | AY65: 16 | AZ65: - | BA65: - | BB65: - | BC65: - | BD65: - | BE65: - | BF65: - | BG65: - | BH65: - | BI65: 2 | BJ65: 3 | BK65: 3 | BL65: 4 | BM65: 2 | BN65: 2 | BO65: 73.9 | BP65: 74.1 | BQ65: 73.8 | BR65: 18 | BS65: - | BT65: - | BU65: - | BV65: - | BW65: - | BX65: 1 | BY65: 2 | BZ65: 2 | CA65: 1 | CB65: 2 | CC65: 3 | CD65: 2 | CE65: 2 | CF65: 2 | CG65: 1 | CH65: 6 | CI65: - | CJ65: - | CK65: - | CL65: - | CM65: - | CN65: 1 | CO65: 1 | CP65: - | CQ65: 1 | CR65: 1 | CS65: 1 | CT65: - | CU65: 1 | DC65: 54 | DD65: 39 | DE65: 16 | DF65: 22 | DG65: 1 | DH65: 3 | DI65: 5 | DJ65: 7 | DK65: 18 | DL65: 18 | DM65: - | DN65: - | DO65: - | DP65: - | DQ65: - | DR65: - | DS65: - | DT65: - | DU65: - | DV65: - | DW65: - | DX65: - | DY65: - | DZ65: - | EA65: 18 | EB65: 1,672 | EC65: 1,319 | ED65: 353 | EE65: - | EF65: 23 | EG65: 21 | EH65: 7 | EI65: 13 | EJ65: 1 | EK65: - | EL65: 1 | EM65: 1 | EN65: 31 | EO65: 18 | EP65: 9 | EQ65: 9 | ER65: - | ES65: 3 | ET65: 4 | EU65: 6
A66: 茨城県 | B66: 水戸市 | C66: 国田村 | D66: 柳内西 | E66: 16 | F66: 13 | G66: - | H66: - | I66: 7 | J66: 2 | K66: 6 | L66: 3 | M66: 40 | N66: 2 | O66: 1 | P66: 1 | Q66: 1 | R66: 1 | S66: 3 | T66: 3 | U66: 4 | V66: 3 | W66: 3 | X66: 5 | Y66: 3 | Z66: 3 | AA66: 6 | AB66: 1 | AC66: 58.2 | AD66: 54.8 | AE66: 62.3 | AF66: 24 | AG66: 2 | AH66: 1 | AI66: - | AJ66: - | AK66: - | AL66: - | AM66: - | AN66: 2 | AO66: 1 | AP66: - | AQ66: 5 | AR66: 3 | AS66: 3 | AT66: 6 | AU66: 1 | AV66: 65.4 | AW66: 59.7 | AX66: 71.1 | AY66: 15 | AZ66: - | BA66: - | BB66: - | BC66: - | BD66: - | BE66: - | BF66: - | BG66: - | BH66: - | BI66: - | BJ66: 5 | BK66: 3 | BL66: 3 | BM66: 4 | BN66: - | BO66: 73.9 | BP66: 73.4 | BQ66: 74.7 | BR66: 13 | BS66: - | BT66: - | BU66: - | BV66: - | BW66: - | BX66: - | BY66: 1 | BZ66: 1 | CA66: 1 | CB66: 2 | CC66: 4 | CD66: 1 | CE66: 1 | CF66: 2 | CG66: - | CH66: 9 | CI66: - | CJ66: - | CK66: - | CL66: - | CM66: 1 | CN66: - | CO66: 1 | CP66: 1 | CQ66: 2 | CR66: 1 | CS66: 1 | CT66: 2 | CU66: - | DC66: 49 | DD66: 37 | DE66: 15 | DF66: 20 | DG66: 2 | DH66: 5 | DI66: 4 | DJ66: 3 | DK66: 13 | DL66: 13 | DM66: - | DN66: - | DO66: - | DP66: - | DQ66: - | DR66: - | DS66: - | DT66: - | DU66: - | DV66: - | DW66: - | DX66: - | DY66: - | DZ66: - | EA66: 13 | EB66: 1,809 | EC66: 1,574 | ED66: 235 | EE66: - | EF66: 28 | EG66: 23 | EH66: 9 | EI66: 13 | EJ66: 1 | EK66: - | EL66: 4 | EM66: 1 | EN66: 21 | EO66: 14 | EP66: 6 | EQ66: 7 | ER66: 1 | ES66: 5 | ET66: - | EU66: 2
A67: 茨城県 | B67: 水戸市 | C67: 国田村 | D67: 水戸内西，柳内中 | E67: 26 | F67: 16 | G67: 1 | H67: 1 | I67: 6 | J67: 1 | K67: 9 | L67: 10 | M67: 49 | N67: 1 | O67: 1 | P67: 4 | Q67: 2 | R67: 2 | S67: - | T67: 3 | U67: 4 | V67: 11 | W67: 4 | X67: 8 | Y67: 3 | Z67: 3 | AA67: 2 | AB67: 1 | AC67: 55.6 | AD67: 51.8 | AE67: 60.8 | AF67: 19 | AG67: - | AH67: - | AI67: 1 | AJ67: - | AK67: - | AL67: - | AM67: - | AN67: - | AO67: - | AP67: 1 | AQ67: 8 | AR67: 3 | AS67: 3 | AT67: 2 | AU67: 1 | AV67: 69.5 | AW67: 66.9 | AX67: 71.9 | AY67: 17 | AZ67: - | BA67: - | BB67: - | BC67: - | BD67: - | BE67: - | BF67: - | BG67: - | BH67: - | BI67: 1 | BJ67: 8 | BK67: 3 | BL67: 3 | BM67: 2 | BN67: - | BO67: 71.1 | BP67: 71.9 | BQ67: 70.4 | BR67: 16 | BS67: - | BT67: - | BU67: - | BV67: - | BW67: - | BX67: - | BY67: - | BZ67: 1 | CA67: 5 | CB67: 3 | CC67: 5 | CD67: 1 | CE67: 1 | CF67: - | CG67: - | CH67: 12 | CI67: - | CJ67: - | CK67: - | CL67: - | CM67: - | CN67: 1 | CO67: 4 | CP67: 1 | CQ67: 4 | CR67: 1 | CS67: 1 | CT67: - | CU67: - | DC67: 65 | DD67: 45 | DE67: 17 | DF67: 26 | DG67: 2 | DH67: 2 | DI67: 12 | DJ67: 6 | DK67: 14 | DL67: 13 | DM67: - | DN67: - | DO67: - | DP67: - | DQ67: 1 | DR67: - | DS67: - | DT67: - | DU67: - | DV67: - | DW67: - | DX67: - | DY67: - | DZ67: - | EA67: 16 | EB67: 1,933 | EC67: 1,247 | ED67: 686 | EE67: - | EF67: 34 | EG67: 25 | EH67: 8 | EI67: 16 | EJ67: 1 | EK67: - | EL67: 7 | EM67: 2 | EN67: 31 | EO67: 20 | EP67: 9 | EQ67: 10 | ER67: 1 | ES67: 2 | ET67: 5 | EU67: 4
A68: 茨城県 | B68: 水戸市 | C68: 国田村 | D68: 柳内東，水戸内東 | E68: 22 | F68: 20 | G68: 2 | H68: 2 | I68: 3 | J68: - | K68: 15 | L68: 2 | M68: 45 | N68: - | O68: 1 | P68: - | Q68: 1 | R68: 2 | S68: 2 | T68: 4 | U68: 3 | V68: 5 | W68: 6 | X68: 4 | Y68: 3 | Z68: 8 | AA68: 3 | AB68: 3 | AC68: 62.8 | AD68: 61.8 | AE68: 64.2 | AF68: 27 | AG68: - | AH68: - | AI68: - | AJ68: - | AK68: - | AL68: 1 | AM68: 1 | AN68: 2 | AO68: 1 | AP68: 2 | AQ68: 4 | AR68: 3 | AS68: 7 | AT68: 3 | AU68: 3 | AV68: 70.8 | AW68: 70.8 | AX68: 70.8 | AY68: 20 | AZ68: - | BA68: - | BB68: - | BC68: - | BD68: - | BE68: 1 | BF68: - | BG68: 1 | BH68: - | BI68: 1 | BJ68: 4 | BK68: 3 | BL68: 7 | BM68: - | BN68: 3 | BO68: 72.3 | BP68: 70.8 | BQ68: 75.8 | BR68: 20 | BS68: - | BT68: - | BU68: - | BV68: - | BW68: - | BX68: 1 | BY68: 1 | BZ68: - | CA68: 3 | CB68: 4 | CC68: 3 | CD68: 2 | CE68: 4 | CF68: - | CG68: 2 | CH68: 14 | CI68: - | CJ68: - | CK68: - | CL68: - | CM68: - | CN68: - | CO68: 3 | CP68: 2 | CQ68: 2 | CR68: 2 | CS68: 4 | CT68: - | CU68: 1 | DC68: 56 | DD68: 38 | DE68: 20 | DF68: 16 | DG68: 2 | DH68: 8 | DI68: 6 | DJ68: 4 | DK68: 20 | DL68: 20 | DM68: - | DN68: - | DO68: - | DP68: - | DQ68: - | DR68: - | DS68: - | DT68: - | DU68: - | DV68: - | DW68: - | DX68: - | DY68: - | DZ68: - | EA68: 20 | EB68: 1,930 | EC68: 1,268 | ED68: 662 | EE68: - | EF68: 29 | EG68: 26 | EH68: 14 | EI68: 11 | EJ68: 1 | EK68: - | EL68: 2 | EM68: 1 | EN68: 27 | EO68: 12 | EP68: 6 | EQ68: 5 | ER68: 1 | ES68: 8 | ET68: 4 | EU68: 3
A69: 茨城県 | B69: 水戸市 | C69: 国田村 | D69: 沢尻 | E69: 24 | F69: 15 | G69: - | H69: - | I69: 2 | J69: 1 | K69: 13 | L69: 9 | M69: 39 | N69: - | O69: - | P69: - | Q69: 4 | R69: 1 | S69: 1 | T69: 4 | U69: 1 | V69: 5 | W69: 4 | X69: 8 | Y69: 4 | Z69: 3 | AA69: 3 | AB69: 1 | AC69: 60.8 | AD69: 60.4 | AE69: 61.1 | AF69: 22 | AG69: - | AH69: - | AI69: - | AJ69: - | AK69: - | AL69: - | AM69: - | AN69: - | AO69: 1 | AP69: 3 | AQ69: 8 | AR69: 4 | AS69: 3 | AT69: 3 | AU69: - | AV69: 70.2 | AW69: 70.4 | AX69: 70.1 | AY69: 18 | AZ69: - | BA69: - | BB69: - | BC69: - | BD69: - | BE69: - | BF69: - | BG69: - | BH69: 1 | BI69: 3 | BJ69: 6 | BK69: 3 | BL69: 3 | BM69: 2 | BN69: - | BO69: 69.9 | BP69: 68.9 | BQ69: 71.0 | BR69: 15 | BS69: - | BT69: - | BU69: - | BV69: - | BW69: - | BX69: - | BY69: 1 | BZ69: - | CA69: 1 | CB69: 2 | CC69: 4 | CD69: 3 | CE69: 2 | CF69: 2 | CG69: - | CH69: 13 | CI69: - | CJ69: - | CK69: - | CL69: - | CM69: - | CN69: - | CO69: 1 | CP69: 1 | CQ69: 4 | CR69: 3 | CS69: 2 | CT69: 2 | CU69: - | DC69: 45 | DD69: 33 | DE69: 18 | DF69: 14 | DG69: 1 | DH69: 5 | DI69: 2 | DJ69: 5 | DK69: 14 | DL69: 14 | DM69: - | DN69: - | DO69: - | DP69: - | DQ69: - | DR69: - | DS69: - | DT69: - | DU69: - | DV69: - | DW69: - | DX69: - | DY69: - | DZ69: - | EA69: 15 | EB69: 1,052 | EC69: 943 | ED69: 95 | EE69: 14 | EF69: 21 | EG69: 16 | EH69: 9 | EI69: 6 | EJ69: 1 | EK69: - | EL69: 2 | EM69: 3 | EN69: 24 | EO69: 17 | EP69: 9 | EQ69: 8 | ER69: - | ES69: 5 | ET69: - | EU69: 2
A70: 茨城県 | B70: 水戸市 | C70: 国田村 | D70: 阿川，泉 | E70: 17 | F70: 14 | G70: 1 | H70: 1 | I70: 3 | J70: - | K70: 10 | L70: 3 | M70: 26 | N70: - | O70: - | P70: - | Q70: - | R70: - | S70: - | T70: 2 | U70: - | V70: 4 | W70: 3 | X70: 3 | Y70: 2 | Z70: 3 | AA70: 6 | AB70: 3 | AC70: 70.6 | AD70: 70.8 | AE70: 70.3 | AF70: 18 | AG70: - | AH70: - | AI70: - | AJ70: - | AK70: - | AL70: - | AM70: - | AN70: - | AO70: 1 | AP70: 1 | AQ70: 2 | AR70: 2 | AS70: 3 | AT70: 6 | AU70: 3 | AV70: 77.0 | AW70: 76.9 | AX70: 77.1 | AY70: 16 | AZ70: - | BA70: - | BB70: - | BC70: - | BD70: - | BE70: - | BF70: - | BG70: - | BH70: 1 | BI70: 1 | BJ70: 2 | BK70: 2 | BL70: 3 | BM70: 5 | BN70: 2 | BO70: 75.6 | BP70: 75.1 | BQ70: 76.3 | BR70: 14 | BS70: - | BT70: - | BU70: - | BV70: - | BW70: - | BX70: - | BY70: 1 | BZ70: - | CA70: 2 | CB70: 1 | CC70: 3 | CD70: 1 | CE70: - | CF70: 3 | CG70: 3 | CH70: 3 | CI70: - | CJ70: - | CK70: - | CL70: - | CM70: - | CN70: - | CO70: - | CP70: - | CQ70: - | CR70: - | CS70: - | CT70: 2 | CU70: 1 | DC70: 41 | DD70: 31 | DE70: 16 | DF70: 15 | DG70: - | DH70: 2 | DI70: 2 | DJ70: 6 | DK70: 14 | DL70: 13 | DM70: - | DN70: - | DO70: - | DP70: - | DQ70: 1 | DR70: - | DS70: - | DT70: - | DU70: - | DV70: - | DW70: - | DX70: - | DY70: - | DZ70: - | EA70: 14 | EB70: 1,382 | EC70: 856 | ED70: 488 | EE70: 38 | EF70: 22 | EG70: 19 | EH70: 10 | EI70: 9 | EJ70: - | EK70: - | EL70: 1 | EM70: 2 | EN70: 19 | EO70: 12 | EP70: 6 | EQ70: 6 | ER70: - | ES70: 2 | ET70: 1 | EU70: 4
A71: 茨城県 | B71: 水戸市 | C71: 国田村 | D71: 合滝の上，根本 | E71: 24 | F71: 17 | G71: 4 | H71: 2 | I71: 6 | J71: - | K71: 7 | L71: 7 | M71: 43 | N71: 1 | O71: 3 | P71: 3 | Q71: - | R71: 5 | S71: - | T71: 1 | U71: 1 | V71: 6 | W71: 10 | X71: 5 | Y71: 3 | Z71: 2 | AA71: 3 | AB71: - | AC71: 54.9 | AD71: 53.7 | AE71: 56.5 | AF71: 26 | AG71: - | AH71: - | AI71: - | AJ71: - | AK71: - | AL71: - | AM71: 1 | AN71: 1 | AO71: 2 | AP71: 9 | AQ71: 5 | AR71: 3 | AS71: 2 | AT71: 3 | AU71: - | AV71: 66.4 | AW71: 68.1 | AX71: 64.4 | AY71: 22 | AZ71: - | BA71: - | BB71: - | BC71: - | BD71: - | BE71: - | BF71: 1 | BG71: 1 | BH71: 1 | BI71: 9 | BJ71: 5 | BK71: 3 | BL71: 1 | BM71: 1 | BN71: - | BO71: 65.0 | BP71: 67.2 | BQ71: 61.8 | BR71: 17 | BS71: - | BT71: - | BU71: - | BV71: - | BW71: 1 | BX71: - | BY71: - | BZ71: 1 | CA71: 1 | CB71: 4 | CC71: 4 | CD71: 3 | CE71: 1 | CF71: 2 | CG71: - | CH71: 9 | CI71: - | CJ71: - | CK71: - | CL71: - | CM71: - | CN71: 1 | CO71: 1 | CP71: 2 | CQ71: 2 | CR71: 2 | CS71: - | CT71: 1 | CU71: - | DC71: 52 | DD71: 41 | DE71: 22 | DF71: 19 | DG71: - | DH71: 4 | DI71: 2 | DJ71: 5 | DK71: 16 | DL71: 15 | DM71: - | DN71: - | DO71: - | DP71: 1 | DQ71: - | DR71: - | DS71: - | DT71: - | DU71: - | DV71: - | DW71: - | DX71: - | DY71: - | DZ71: - | EA71: 17 | EB71: 2,533 | EC71: 1,882 | ED71: 651 | EE71: - | EF71: 29 | EG71: 25 | EH71: 13 | EI71: 12 | EJ71: - | EK71: 1 | EL71: 2 | EM71: 1 | EN71: 23 | EO71: 16 | EP71: 9 | EQ71: 7 | ER71: - | ES71: 3 | ET71: - | EU71: 4
A72: 茨城県 | B72: 水戸市 | C72: 国田村 | D72: 南原 | E72: 3 | F72: - | G72: - | H72: - | I72: - | J72: - | K72: - | L72: 3 | M72: - | N72: - | O72: - | P72: - | Q72: - | R72: - | S72: - | T72: - | U72: - | V72: - | W72: - | X72: - | Y72: - | Z72: - | AA72: - | AB72: - | AC72: … | AD72: … | AE72: … | AF72: - | AG72: - | AH72: - | AI72: - | AJ72: - | AK72: - | AL72: - | AM72: - | AN72: - | AO72: - | AP72: - | AQ72: - | AR72: - | AS72: - | AT72: - | AU72: - | AV72: … | AW72: … | AX72: … | AY72: - | AZ72: - | BA72: - | BB72: - | BC72: - | BD72: - | BE72: - | BF72: - | BG72: - | BH72: - | BI72: - | BJ72: - | BK72: - | BL72: - | BM72: - | BN72: - | BO72: … | BP72: … | BQ72: … | BR72: - | BS72: - | BT72: - | BU72: - | BV72: - | BW72: - | BX72: - | BY72: - | BZ72: - | CA72: - | CB72: - | CC72: - | CD72: - | CE72: - | CF72: - | CG72: - | CH72: - | CI72: - | CJ72: - | CK72: - | CL72: - | CM72: - | CN72: - | CO72: - | CP72: - | CQ72: - | CR72: - | CS72: - | CT72: - | CU72: - | DC72: - | DD72: - | DE72: - | DF72: - | DG72: - | DH72: - | DI72: - | DJ72: - | DK72: - | DL72: - | DM72: - | DN72: - | DO72: - | DP72: - | DQ72: - | DR72: - | DS72: - | DT72: - | DU72: - | DV72: - | DW72: - | DX72: - | DY72: - | DZ72: - | EA72: - | EB72: - | EC72: - | ED72: - | EE72: - | EF72: - | EG72: - | EH72: - | EI72: - | EJ72: - | EK72: - | EL72: - | EM72: - | EN72: - | EO72: - | EP72: - | EQ72: - | ER72: - | ES72: - | ET72: - | EU72: -
A73: 茨城県 | B73: 水戸市 | C73: 国田村 | D73: 小原内，更正，平塚 | E73: 33 | F73: 19 | G73: 3 | H73: 1 | I73: 3 | J73: 1 | K73: 13 | L73: 14 | M73: 51 | N73: 2 | O73: 4 | P73: 2 | Q73: - | R73: - | S73: 3 | T73: 5 | U73: 8 | V73: 1 | W73: 6 | X73: 1 | Y73: 4 | Z73: 7 | AA73: 6 | AB73: 2 | AC73: 58.0 | AD73: 60.9 | AE73: 54.7 | AF73: 28 | AG73: - | AH73: - | AI73: - | AJ73: - | AK73: - | AL73: 1 | AM73: 2 | AN73: 1 | AO73: - | AP73: 4 | AQ73: 1 | AR73: 4 | AS73: 7 | AT73: 6 | AU73: 2 | AV73: 71.6 | AW73: 73.3 | AX73: 69.7 | AY73: 20 | AZ73: - | BA73: - | BB73: - | BC73: - | BD73: - | BE73: - | BF73: 1 | BG73: 1 | BH73: - | BI73: 4 | BJ73: 1 | BK73: 3 | BL73: 5 | BM73: 5 | BN73: - | BO73: 71.6 | BP73: 71.3 | BQ73: 72.0 | BR73: 19 | BS73: - | BT73: - | BU73: - | BV73: - | BW73: - | BX73: 1 | BY73: - | BZ73: 2 | CA73: - | CB73: 5 | CC73: - | CD73: 2 | CE73: 2 | CF73: 7 | CG73: - | CH73: 11 | CI73: - | CJ73: - | CK73: - | CL73: - | CM73: - | CN73: 2 | CO73: - | CP73: 2 | CQ73: - | CR73: 2 | CS73: 2 | CT73: 3 | CU73: - | DC73: 68 | DD73: 40 | DE73: 20 | DF73: 20 | DG73: - | DH73: 7 | DI73: 11 | DJ73: 10 | DK73: 16 | DL73: 15 | DM73: - | DN73: - | DO73: - | DP73: - | DQ73: - | DR73: - | DS73: - | DT73: - | DU73: - | DV73: - | DW73: 1 | DX73: - | DY73: - | DZ73: - | EA73: 19 | EB73: 2,043 | EC73: 1,598 | ED73: 445 | EE73: - | EF73: 31 | EG73: 24 | EH73: 12 | EI73: 12 | EJ73: - | EK73: - | EL73: 3 | EM73: 4 | EN73: 37 | EO73: 16 | EP73: 8 | EQ73: 8 | ER73: - | ES73: 7 | ET73: 8 | EU73: 6
A74: 茨城県 | B74: 水戸市 | C74: 国田村 | D74: 関戸，山根 | E74: 28 | F74: 26 | G74: 2 | H74: 1 | I74: 3 | J74: - | K74: 21 | L74: 2 | M74: 67 | N74: - | O74: - | P74: 2 | Q74: 2 | R74: 7 | S74: 5 | T74: 1 | U74: 6 | V74: 4 | W74: 4 | X74: 14 | Y74: 8 | Z74: 6 | AA74: 6 | AB74: 2 | AC74: 60.9 | AD74: 60.3 | AE74: 61.5 | AF74: 42 | AG74: - | AH74: - | AI74: - | AJ74: 1 | AK74: 1 | AL74: 1 | AM74: - | AN74: - | AO74: - | AP74: 3 | AQ74: 14 | AR74: 8 | AS74: 6 | AT74: 6 | AU74: 2 | AV74: 70.6 | AW74: 74.2 | AX74: 67.9 | AY74: 35 | AZ74: - | BA74: - | BB74: - | BC74: 1 | BD74: - | BE74: 1 | BF74: - | BG74: - | BH74: - | BI74: 1 | BJ74: 13 | BK74: 8 | BL74: 6 | BM74: 4 | BN74: 1 | BO74: 70.8 | BP74: 72.4 | BQ74: 69.4 | BR74: 26 | BS74: - | BT74: - | BU74: 1 | BV74: - | BW74: 1 | BX74: - | BY74: 1 | BZ74: 3 | CA74: 1 | CB74: - | CC74: 7 | CD74: 5 | CE74: 2 | CF74: 4 | CG74: 1 | CH74: 12 | CI74: - | CJ74: - | CK74: - | CL74: - | CM74: - | CN74: - | CO74: - | CP74: - | CQ74: 4 | CR74: 3 | CS74: - | CT74: 4 | CU74: 1 | DC74: 86 | DD74: 64 | DE74: 35 | DF74: 27 | DG74: 2 | DH74: 6 | DI74: 5 | DJ74: 11 | DK74: 21 | DL74: 20 | DM74: - | DN74: - | DO74: - | DP74: 1 | DQ74: - | DR74: - | DS74: - | DT74: - | DU74: - | DV74: - | DW74: - | DX74: - | DY74: - | DZ74: - | EA74: 26 | EB74: 3,628 | EC74: 2,938 | ED74: 665 | EE74: 25 | EF74: 43 | EG74: 34 | EH74: 16 | EI74: 16 | EJ74: 2 | EK74: - | EL74: 3 | EM74: 6 | EN74: 43 | EO74: 30 | EP74: 19 | EQ74: 11 | ER74: - | ES74: 6 | ET74: 2 | EU74: 5
A75: 茨城県 | B75: 水戸市 | C75: 国田村 | D75: 圷内前，宿東，上宿 | E75: 21 | F75: 15 | G75: 2 | H75: 1 | I75: 4 | J75: - | K75: 9 | L75: 6 | M75: 41 | N75: 2 | O75: - | P75: 1 | Q75: 1 | R75: - | S75: 1 | T75: 7 | U75: 1 | V75: 6 | W75: 6 | X75: 4 | Y75: 3 | Z75: 3 | AA75: 4 | AB75: 2 | AC75: 59.7 | AD75: 56.8 | AE75: 63.0 | AF75: 22 | AG75: - | AH75: - | AI75: - | AJ75: - | AK75: - | AL75: 1 | AM75: 1 | AN75: - | AO75: 1 | AP75: 3 | AQ75: 4 | AR75: 3 | AS75: 3 | AT75: 4 | AU75: 2 | AV75: 70.5 | AW75: 66.9 | AX75: 74.7 | AY75: 15 | AZ75: - | BA75: - | BB75: - | BC75: - | BD75: - | BE75: 1 | BF75: 1 | BG75: - | BH75: - | BI75: 3 | BJ75: 3 | BK75: 3 | BL75: 2 | BM75: 2 | BN75: - | BO75: 67.6 | BP75: 65.3 | BQ75: 74.0 | BR75: 15 | BS75: - | BT75: - | BU75: - | BV75: - | BW75: - | BX75: - | BY75: 1 | BZ75: - | CA75: 3 | CB75: 3 | CC75: 3 | CD75: 1 | CE75: 1 | CF75: 3 | CG75: - | CH75: 11 | CI75: - | CJ75: - | CK75: - | CL75: - | CM75: - | CN75: - | CO75: 2 | CP75: 2 | CQ75: 2 | CR75: 1 | CS75: 1 | CT75: 3 | CU75: - | DC75: 57 | DD75: 34 | DE75: 15 | DF75: 16 | DG75: 3 | DH75: 10 | DI75: 4 | DJ75: 9 | DK75: 15 | DL75: 14 | DM75: - | DN75: - | DO75: - | DP75: - | DQ75: 1 | DR75: - | DS75: - | DT75: - | DU75: - | DV75: - | DW75: - | DX75: - | DY75: - | DZ75: - | EA75: 15 | EB75: 2,264 | EC75: 1,900 | ED75: 334 | EE75: 30 | EF75: 29 | EG75: 23 | EH75: 11 | EI75: 10 | EJ75: 2 | EK75: - | EL75: 2 | EM75: 4 | EN75: 28 | EO75: 11 | EP75: 4 | EQ75: 6 | ER75: 1 | ES75: 10 | ET75: 2 | EU75: 5
A76: 茨城県 | B76: 水戸市 | C76: 国田村 | D76: 西田谷一，西田谷二 | E76: 26 | F76: 23 | G76: 5 | H76: 5 | I76: 7 | J76: 2 | K76: 11 | L76: 3 | M76: 67 | N76: 2 | O76: - | P76: - | Q76: 1 | R76: 4 | S76: 2 | T76: 5 | U76: 7 | V76: 13 | W76: 10 | X76: 9 | Y76: - | Z76: 8 | AA76: 4 | AB76: 2 | AC76: 59.2 | AD76: 57.2 | AE76: 61.0 | AF76: 37 | AG76: - | AH76: - | AI76: - | AJ76: - | AK76: 1 | AL76: - | AM76: - | AN76: 1 | AO76: 4 | AP76: 8 | AQ76: 9 | AR76: - | AS76: 8 | AT76: 4 | AU76: 2 | AV76: 68.5 | AW76: 66.1 | AX76: 69.9 | AY76: 27 | AZ76: - | BA76: - | BB76: - | BC76: - | BD76: 1 | BE76: - | BF76: - | BG76: 1 | BH76: 4 | BI76: 5 | BJ76: 8 | BK76: - | BL76: 7 | BM76: 1 | BN76: - | BO76: 66.2 | BP76: 64.9 | BQ76: 67.4 | BR76: 23 | BS76: - | BT76: - | BU76: - | BV76: - | BW76: - | BX76: 1 | BY76: 1 | BZ76: 3 | CA76: 7 | CB76: 4 | CC76: 5 | CD76: - | CE76: 2 | CF76: - | CG76: - | CH76: 13 | CI76: - | CJ76: - | CK76: - | CL76: - | CM76: 1 | CN76: - | CO76: 3 | CP76: 3 | CQ76: 4 | CR76: - | CS76: 2 | CT76: - | CU76: - | DC76: 81 | DD76: 56 | DE76: 27 | DF76: 29 | DG76: - | DH76: 6 | DI76: 7 | DJ76: 12 | DK76: 22 | DL76: 17 | DM76: - | DN76: - | DO76: - | DP76: 4 | DQ76: 1 | DR76: - | DS76: - | DT76: - | DU76: - | DV76: - | DW76: - | DX76: - | DY76: - | DZ76: - | EA76: 23 | EB76: 3,642 | EC76: 2,318 | ED76: 1,324 | EE76: - | EF76: 35 | EG76: 32 | EH76: 13 | EI76: 19 | EJ76: - | EK76: - | EL76: 1 | EM76: 2 | EN76: 46 | EO76: 24 | EP76: 14 | EQ76: 10 | ER76: - | ES76: 6 | ET76: 6 | EU76: 10
A77: 茨城県 | B77: 水戸市 | C77: 国田村 | D77: 宮本，宿西 | E77: 25 | F77: 20 | G77: 2 | H77: - | I77: 6 | J77: 1 | K77: 12 | L77: 5 | M77: 45 | N77: - | O77: - | P77: 1 | Q77: 1 | R77: - | S77: 3 | T77: 2 | U77: 2 | V77: 7 | W77: 8 | X77: 5 | Y77: 5 | Z77: 2 | AA77: 6 | AB77: 3 | AC77: 63.9 | AD77: 63.4 | AE77: 64.5 | AF77: 29 | AG77: - | AH77: - | AI77: - | AJ77: - | AK77: - | AL77: - | AM77: - | AN77: 2 | AO77: 1 | AP77: 6 | AQ77: 5 | AR77: 4 | AS77: 2 | AT77: 6 | AU77: 3 | AV77: 70.8 | AW77: 72.3 | AX77: 69.6 | AY77: 27 | AZ77: - | BA77: - | BB77: - | BC77: - | BD77: - | BE77: - | BF77: - | BG77: 1 | BH77: 1 | BI77: 5 | BJ77: 5 | BK77: 4 | BL77: 2 | BM77: 6 | BN77: 3 | BO77: 71.8 | BP77: 73.3 | BQ77: 70.6 | BR77: 20 | BS77: - | BT77: - | BU77: - | BV77: - | BW77: - | BX77: 1 | BY77: 1 | BZ77: - | CA77: 4 | CB77: 3 | CC77: 3 | CD77: 2 | CE77: 2 | CF77: 2 | CG77: 2 | CH77: 12 | CI77: - | CJ77: - | CK77: - | CL77: - | CM77: - | CN77: - | CO77: 3 | CP77: 1 | CQ77: 2 | CR77: 2 | CS77: 1 | CT77: 1 | CU77: 2 | DC77: 70 | DD77: 56 | DE77: 27 | DF77: 26 | DG77: 3 | DH77: 6 | DI77: 4 | DJ77: 4 | DK77: 18 | DL77: 16 | DM77: - | DN77: - | DO77: - | DP77: 2 | DQ77: - | DR77: - | DS77: - | DT77: - | DU77: - | DV77: - | DW77: - | DX77: - | DY77: - | DZ77: - | EA77: 20 | EB77: 2,255 | EC77: 1,480 | ED77: 775 | EE77: - | EF77: 31 | EG77: 29 | EH77: 12 | EI77: 15 | EJ77: 2 | EK77: - | EL77: - | EM77: 2 | EN77: 39 | EO77: 27 | EP77: 15 | EQ77: 11 | ER77: 1 | ES77: 6 | ET77: 4 | EU77: 2
A78: 茨城県 | B78: 水戸市 | C78: 吉田村 | E78: 91 | F78: 40 | G78: 6 | H78: 5 | I78: 8 | J78: 6 | K78: 26 | L78: 51 | M78: 105 | N78: 1 | O78: 3 | P78: 4 | Q78: 1 | R78: 5 | S78: 3 | T78: 4 | U78: 12 | V78: 11 | W78: 15 | X78: 9 | Y78: 5 | Z78: 14 | AA78: 13 | AB78: 5 | AC78: 61.3 | AD78: 61.2 | AE78: 61.5 | AF78: 70 | AG78: 1 | AH78: 1 | AI78: 1 | AJ78: - | AK78: 3 | AL78: 2 | AM78: 2 | AN78: 4 | AO78: 3 | AP78: 10 | AQ78: 8 | AR78: 4 | AS78: 13 | AT78: 13 | AU78: 5 | AV78: 66.9 | AW78: 68.4 | AX78: 65.3 | AY78: 53 | AZ78: - | BA78: - | BB78: - | BC78: - | BD78: 3 | BE78: 2 | BF78: 1 | BG78: 2 | BH78: 2 | BI78: 8 | BJ78: 6 | BK78: 2 | BL78: 12 | BM78: 11 | BN78: 4 | BO78: 69.4 | BP78: 70.4 | BQ78: 68.0 | BR78: 40 | BS78: - | BT78: - | BU78: - | BV78: - | BW78: - | BX78: - | BY78: - | BZ78: 3 | CA78: 3 | CB78: 9 | CC78: 5 | CD78: 3 | CE78: 5 | CF78: 9 | CG78: 3 | CH78: 23 | CI78: - | CJ78: - | CK78: - | CL78: - | CM78: - | CN78: - | CO78: 2 | CP78: 5 | CQ78: 1 | CR78: 2 | CS78: 4 | CT78: 6 | CU78: 3 | DC78: 125 | DD78: 88 | DE78: 54 | DF78: 32 | DG78: 2 | DH78: 15 | DI78: 7 | DJ78: 15 | DK78: 32 | DL78: 27 | DM78: - | DN78: - | DO78: - | DP78: 1 | DQ78: 3 | DR78: - | DS78: - | DT78: - | DU78: 1 | DV78: - | DW78: - | DX78: - | DY78: - | DZ78: - | EA78: 40 | EB78: 4,575 | EC78: 3,546 | ED78: 979 | EE78: 50 | EF78: 68 | EG78: 56 | EH78: 31 | EI78: 24 | EJ78: 1 | EK78: - | EL78: 4 | EM78: 8 | EN78: 57 | EO78: 32 | EP78: 23 | EQ78: 8 | ER78: 1 | ES78: 15 | ET78: 3 | EU78: 7
A79: 茨城県 | B79: 水戸市 | C79: 吉田村 | D79: 東組，西組 | E79: 2 | F79: - | G79: - | H79: - | I79: - | J79: - | K79: - | L79: 2 | M79: - | N79: - | O79: - | P79: - | Q79: - | R79: - | S79: - | T79: - | U79: - | V79: - | W79: - | X79: - | Y79: - | Z79: - | AA79: - | AB79: - | AC79: … | AD79: … | AE79: … | AF79: - | AG79: - | AH79: - | AI79: - | AJ79: - | AK79: - | AL79: - | AM79: - | AN79: - | AO79: - | AP79: - | AQ79: - | AR79: - | AS79: - | AT79: - | AU79: - | AV79: … | AW79: … | AX79: … | AY79: - | AZ79: - | BA79: - | BB79: - | BC79: - | BD79: - | BE79: - | BF79: - | BG79: - | BH79: - | BI79: - | BJ79: - | BK79: - | BL79: - | BM79: - | BN79: - | BO79: … | BP79: … | BQ79: … | BR79: - | BS79: - | BT79: - | BU79: - | BV79: - | BW79: - | BX79: - | BY79: - | BZ79: - | CA79: - | CB79: - | CC79: - | CD79: - | CE79: - | CF79: - | CG79: - | CH79: - | CI79: - | CJ79: - | CK79: - | CL79: - | CM79: - | CN79: - | CO79: - | CP79: - | CQ79: - | CR79: - | CS79: - | CT79: - | CU79: - | DC79: - | DD79: - | DE79: - | DF79: - | DG79: - | DH79: - | DI79: - | DJ79: - | DK79: - | DL79: - | DM79: - | DN79: - | DO79: - | DP79: - | DQ79: - | DR79: - | DS79: - | DT79: - | DU79: - | DV79: - | DW79: - | DX79: - | DY79: - | DZ79: - | EA79: - | EB79: - | EC79: - | ED79: - | EE79: - | EF79: - | EG79: - | EH79: - | EI79: - | EJ79: - | EK79: - | EL79: - | EM79: - | EN79: - | EO79: - | EP79: - | EQ79: - | ER79: - | ES79: - | ET79: - | EU79: -
A80: 茨城県 | B80: 水戸市 | C80: 吉田村 | D80: 一本松，荒谷 | E80: 7 | F80: - | G80: - | H80: - | I80: - | J80: - | K80: - | L80: 7 | M80: - | N80: - | O80: - | P80: - | Q80: - | R80: - | S80: - | T80: - | U80: - | V80: - | W80: - | X80: - | Y80: - | Z80: - | AA80: - | AB80: - | AC80: … | AD80: … | AE80: … | AF80: - | AG80: - | AH80: - | AI80: - | AJ80: - | AK80: - | AL80: - | AM80: - | AN80: - | AO80: - | AP80: - | AQ80: - | AR80: - | AS80: - | AT80: - | AU80: - | AV80: … | AW80: … | AX80: … | AY80: - | AZ80: - | BA80: - | BB80: - | BC80: - | BD80: - | BE80: - | BF80: - | BG80: - | BH80: - | BI80: - | BJ80: - | BK80: - | BL80: - | BM80: - | BN80: - | BO80: … | BP80: … | BQ80: … | BR80: - | BS80: - | BT80: - | BU80: - | BV80: - | BW80: - | BX80: - | BY80: - | BZ80: - | CA80: - | CB80: - | CC80: - | CD80: - | CE80: - | CF80: - | CG80: - | CH80: - | CI80: - | CJ80: - | CK80: - | CL80: - | CM80: - | CN80: - | CO80: - | CP80: - | CQ80: - | CR80: - | CS80: - | CT80: - | CU80: - | DC80: - | DD80: - | DE80: - | DF80: - | DG80: - | DH80: - | DI80: - | DJ80: - | DK80: - | DL80: - | DM80: - | DN80: - | DO80: - | DP80: - | DQ80: - | DR80: - | DS80: - | DT80: - | DU80: - | DV80: - | DW80: - | DX80: - | DY80: - | DZ80: - | EA80: - | EB80: - | EC80: - | ED80: - | EE80: - | EF80: - | EG80: - | EH80: - | EI80: - | EJ80: - | EK80: - | EL80: - | EM80: - | EN80: - | EO80: - | EP80: - | EQ80: - | ER80: - | ES80: - | ET80: - | EU80: -
A81: 茨城県 | B81: 水戸市 | C81: 吉田村 | D81: 同心町，大鋸町，古宿 | E81: 15 | F81: 6 | G81: 1 | H81: 1 | I81: 1 | J81: 1 | K81: 4 | L81: 9 | M81: 14 | N81: - | O81: - | P81: 1 | Q81: - | R81: - | S81: - | T81: - | U81: - | V81: 5 | W81: 2 | X81: - | Y81: 1 | Z81: 2 | AA81: 1 | AB81: 2 | AC81: 65.9 | AD81: 69.4 | AE81: 62.4 | AF81: 11 | AG81: - | AH81: - | AI81: 1 | AJ81: - | AK81: - | AL81: - | AM81: - | AN81: - | AO81: 2 | AP81: 2 | AQ81: - | AR81: 1 | AS81: 2 | AT81: 1 | AU81: 2 | AV81: 68.1 | AW81: 74.0 | AX81: 63.2 | AY81: 7 | AZ81: - | BA81: - | BB81: - | BC81: - | BD81: - | BE81: - | BF81: - | BG81: - | BH81: 1 | BI81: 1 | BJ81: - | BK81: - | BL81: 2 | BM81: 1 | BN81: 2 | BO81: 76.1 | BP81: 77.3 | BQ81: 74.7 | BR81: 6 | BS81: - | BT81: - | BU81: - | BV81: - | BW81: - | BX81: - | BY81: - | BZ81: - | CA81: 2 | CB81: 1 | CC81: - | CD81: - | CE81: 1 | CF81: 1 | CG81: 1 | CH81: 2 | CI81: - | CJ81: - | CK81: - | CL81: - | CM81: - | CN81: - | CO81: 1 | CP81: - | CQ81: - | CR81: - | CS81: - | CT81: - | CU81: 1 | DC81: 15 | DD81: 10 | DE81: 7 | DF81: 2 | DG81: 1 | DH81: 2 | DI81: - | DJ81: 3 | DK81: 3 | DL81: 3 | DM81: - | DN81: - | DO81: - | DP81: - | DQ81: - | DR81: - | DS81: - | DT81: - | DU81: - | DV81: - | DW81: - | DX81: - | DY81: - | DZ81: - | EA81: 6 | EB81: 334 | EC81: 160 | ED81: 154 | EE81: 20 | EF81: 7 | EG81: 6 | EH81: 4 | EI81: 2 | EJ81: - | EK81: - | EL81: - | EM81: 1 | EN81: 8 | EO81: 4 | EP81: 3 | EQ81: - | ER81: 1 | ES81: 2 | ET81: - | EU81: 2
A82: 茨城県 | B82: 水戸市 | C82: 吉田村 | D82: 一里塚 | E82: 4 | F82: 2 | G82: x | H82: x | I82: x | J82: x | K82: x | L82: 2 | M82: x | N82: x | O82: x | P82: x | Q82: x | R82: x | S82: x | T82: x | U82: x | V82: x | W82: x | X82: x | Y82: x | Z82: x | AA82: x | AB82: x | AC82: 47.7 | AD82: 49.7 | AE82: 45.7 | AF82: x | AG82: x | AH82: x | AI82: x | AJ82: x | AK82: x | AL82: x | AM82: x | AN82: x | AO82: x | AP82: x | AQ82: x | AR82: x | AS82: x | AT82: x | AU82: x | AV82: 53.0 | AW82: … | AX82: 53.0 | AY82: x | AZ82: x | BA82: x | BB82: x | BC82: x | BD82: x | BE82: x | BF82: x | BG82: x | BH82: x | BI82: x | BJ82: x | BK82: x | BL82: x | BM82: x | BN82: x | BO82: … | BP82: … | BQ82: … | BR82: 2 | BS82: - | BT82: - | BU82: - | BV82: - | BW82: - | BX82: - | BY82: - | BZ82: - | CA82: - | CB82: 1 | CC82: 1 | CD82: - | CE82: - | CF82: - | CG82: - | CH82: 1 | CI82: - | CJ82: - | CK82: - | CL82: - | CM82: - | CN82: - | CO82: - | CP82: 1 | CQ82: - | CR82: - | CS82: - | CT82: - | CU82: - | DC82: 9 | DD82: 5 | DE82: - | DF82: 5 | DG82: - | DH82: 2 | DI82: - | DJ82: 2 | DK82: - | DL82: - | DM82: - | DN82: - | DO82: - | DP82: - | DQ82: - | DR82: - | DS82: - | DT82: - | DU82: - | DV82: - | DW82: - | DX82: - | DY82: - | DZ82: - | EA82: 2 | EB82: 106 | EC82: 92 | ED82: 14 | EE82: - | EF82: 5 | EG82: 3 | EH82: - | EI82: 3 | EJ82: - | EK82: - | EL82: - | EM82: 2 | EN82: 4 | EO82: 2 | EP82: - | EQ82: 2 | ER82: - | ES82: 2 | ET82: - | EU82: -
A83: 茨城県 | B83: 水戸市 | C83: 吉田村 | D83: 吉沢町 | E83: 21 | F83: 6 | G83: 1 | H83: 1 | I83: - | J83: - | K83: 5 | L83: 15 | M83: 14 | N83: - | O83: - | P83: 1 | Q83: - | R83: - | S83: 1 | T83: 1 | U83: 2 | V83: 1 | W83: 2 | X83: 1 | Y83: - | Z83: 3 | AA83: 1 | AB83: 1 | AC83: 62.1 | AD83: 67.3 | AE83: 55.2 | AF83: 9 | AG83: - | AH83: - | AI83: - | AJ83: - | AK83: - | AL83: 1 | AM83: 1 | AN83: - | AO83: - | AP83: 1 | AQ83: 1 | AR83: - | AS83: 3 | AT83: 1 | AU83: 1 | AV83: 68.7 | AW83: 70.3 | AX83: 65.3 | AY83: 8 | AZ83: - | BA83: - | BB83: - | BC83: - | BD83: - | BE83: 1 | BF83: 1 | BG83: - | BH83: - | BI83: 1 | BJ83: 1 | BK83: - | BL83: 3 | BM83: 1 | BN83: - | BO83: 66.4 | BP83: 67.0 | BQ83: 65.3 | BR83: 6 | BS83: - | BT83: - | BU83: - | BV83: - | BW83: - | BX83: - | BY83: - | BZ83: - | CA83: - | CB83: 2 | CC83: 1 | CD83: - | CE83: 1 | CF83: 1 | CG83: 1 | CH83: 4 | CI83: - | CJ83: - | CK83: - | CL83: - | CM83: - | CN83: - | CO83: - | CP83: 1 | CQ83: - | CR83: - | CS83: 1 | CT83: 1 | CU83: 1 | DC83: 15 | DD83: 11 | DE83: 8 | DF83: 3 | DG83: - | DH83: 2 | DI83: - | DJ83: 2 | DK83: 4 | DL83: 3 | DM83: - | DN83: - | DO83: - | DP83: - | DQ83: 1 | DR83: - | DS83: - | DT83: - | DU83: - | DV83: - | DW83: - | DX83: - | DY83: - | DZ83: - | EA83: 6 | EB83: 547 | EC83: 419 | ED83: 128 | EE83: - | EF83: 8 | EG83: 7 | EH83: 5 | EI83: 2 | EJ83: - | EK83: - | EL83: - | EM83: 1 | EN83: 7 | EO83: 4 | EP83: 3 | EQ83: 1 | ER83: - | ES83: 2 | ET83: - | EU83: 1
A84: 茨城県 | B84: 水戸市 | C84: 吉田村 | D84: 東野町 | E84: 11 | F84: 6 | G84: - | H84: - | I84: 2 | J84: 1 | K84: 4 | L84: 5 | M84: 14 | N84: - | O84: - | P84: - | Q84: - | R84: - | S84: - | T84: - | U84: - | V84: 4 | W84: 2 | X84: 1 | Y84: 2 | Z84: - | AA84: 5 | AB84: - | AC84: 69.6 | AD84: 71.4 | AE84: 67.7 | AF84: 9 | AG84: - | AH84: - | AI84: - | AJ84: - | AK84: - | AL84: - | AM84: - | AN84: - | AO84: 1 | AP84: 1 | AQ84: 1 | AR84: 1 | AS84: - | AT84: 5 | AU84: - | AV84: 74.3 | AW84: 77.8 | AX84: 71.6 | AY84: 7 | AZ84: - | BA84: - | BB84: - | BC84: - | BD84: - | BE84: - | BF84: - | BG84: - | BH84: 1 | BI84: - | BJ84: 1 | BK84: - | BL84: - | BM84: 5 | BN84: - | BO84: 75.9 | BP84: 77.8 | BQ84: 73.3 | BR84: 6 | BS84: - | BT84: - | BU84: - | BV84: - | BW84: - | BX84: - | BY84: - | BZ84: - | CA84: 1 | CB84: 1 | CC84: 1 | CD84: 1 | CE84: - | CF84: 2 | CG84: - | CH84: 3 | CI84: - | CJ84: - | CK84: - | CL84: - | CM84: - | CN84: - | CO84: 1 | CP84: - | CQ84: - | CR84: 1 | CS84: - | CT84: 1 | CU84: - | DC84: 19 | DD84: 15 | DE84: 7 | DF84: 8 | DG84: - | DH84: 2 | DI84: - | DJ84: 2 | DK84: 5 | DL84: 5 | DM84: - | DN84: - | DO84: - | DP84: - | DQ84: - | DR84: - | DS84: - | DT84: - | DU84: - | DV84: - | DW84: - | DX84: - | DY84: - | DZ84: - | EA84: 6 | EB84: 738 | EC84: 630 | ED84: 88 | EE84: 20 | EF84: 10 | EG84: 9 | EH84: 4 | EI84: 5 | EJ84: - | EK84: - | EL84: - | EM84: 1 | EN84: 9 | EO84: 6 | EP84: 3 | EQ84: 3 | ER84: - | ES84: 2 | ET84: - | EU84: 1
A85: 茨城県 | B85: 水戸市 | C85: 吉田村 | D85: 米沢町 | E85: 23 | F85: 16 | G85: 4 | H85: 3 | I85: 3 | J85: 2 | K85: 9 | L85: 7 | M85: 45 | N85: 1 | O85: 1 | P85: - | Q85: 1 | R85: 5 | S85: 2 | T85: 1 | U85: 8 | V85: 1 | W85: 5 | X85: 4 | Y85: 2 | Z85: 8 | AA85: 5 | AB85: 1 | AC85: 59.8 | AD85: 58.4 | AE85: 61.7 | AF85: 34 | AG85: 1 | AH85: 1 | AI85: - | AJ85: - | AK85: 3 | AL85: 1 | AM85: 1 | AN85: 3 | AO85: - | AP85: 5 | AQ85: 4 | AR85: 2 | AS85: 7 | AT85: 5 | AU85: 1 | AV85: 63.4 | AW85: 63.9 | AX85: 62.7 | AY85: 26 | AZ85: - | BA85: - | BB85: - | BC85: - | BD85: 3 | BE85: 1 | BF85: - | BG85: 2 | BH85: - | BI85: 5 | BJ85: 3 | BK85: 2 | BL85: 6 | BM85: 3 | BN85: 1 | BO85: 65.7 | BP85: 67.3 | BQ85: 63.5 | BR85: 16 | BS85: - | BT85: - | BU85: - | BV85: - | BW85: - | BX85: - | BY85: - | BZ85: 2 | CA85: - | CB85: 3 | CC85: 1 | CD85: 2 | CE85: 3 | CF85: 4 | CG85: 1 | CH85: 11 | CI85: - | CJ85: - | CK85: - | CL85: - | CM85: - | CN85: - | CO85: - | CP85: 3 | CQ85: - | CR85: 1 | CS85: 3 | CT85: 3 | CU85: 1 | DC85: 51 | DD85: 35 | DE85: 27 | DF85: 8 | DG85: - | DH85: 6 | DI85: 5 | DJ85: 5 | DK85: 16 | DL85: 13 | DM85: - | DN85: - | DO85: - | DP85: - | DQ85: 2 | DR85: - | DS85: - | DT85: - | DU85: 1 | DV85: - | DW85: - | DX85: - | DY85: - | DZ85: - | EA85: 16 | EB85: 2,435 | EC85: 1,955 | ED85: 470 | EE85: 10 | EF85: 30 | EG85: 23 | EH85: 16 | EI85: 7 | EJ85: - | EK85: - | EL85: 4 | EM85: 3 | EN85: 21 | EO85: 12 | EP85: 11 | EQ85: 1 | ER85: - | ES85: 6 | ET85: 1 | EU85: 2
A86: 茨城県 | B86: 水戸市 | C86: 吉田村 | D86: 住吉町 | E86: 8 | F86: 4 | G86: x | H86: x | I86: x | J86: x | K86: x | L86: 4 | M86: x | N86: x | O86: x | P86: x | Q86: x | R86: x | S86: x | T86: x | U86: x | V86: x | W86: x | X86: x | Y86: x | Z86: x | AA86: x | AB86: x | AC86: 58.1 | AD86: 51.3 | AE86: 67.6 | AF86: x | AG86: x | AH86: x | AI86: x | AJ86: x | AK86: x | AL86: x | AM86: x | AN86: x | AO86: x | AP86: x | AQ86: x | AR86: x | AS86: x | AT86: x | AU86: x | AV86: 73.2 | AW86: 73.5 | AX86: 73.0 | AY86: x | AZ86: x | BA86: x | BB86: x | BC86: x | BD86: x | BE86: x | BF86: x | BG86: x | BH86: x | BI86: x | BJ86: x | BK86: x | BL86: x | BM86: x | BN86: x | BO86: 74.6 | BP86: 73.5 | BQ86: 75.3 | BR86: 4 | BS86: - | BT86: - | BU86: - | BV86: - | BW86: - | BX86: - | BY86: - | BZ86: 1 | CA86: - | CB86: 1 | CC86: 1 | CD86: - | CE86: - | CF86: 1 | CG86: - | CH86: 2 | CI86: - | CJ86: - | CK86: - | CL86: - | CM86: - | CN86: - | CO86: - | CP86: - | CQ86: 1 | CR86: - | CS86: - | CT86: 1 | CU86: - | DC86: 16 | DD86: 12 | DE86: 5 | DF86: 6 | DG86: 1 | DH86: 1 | DI86: 2 | DJ86: 1 | DK86: 4 | DL86: 3 | DM86: - | DN86: - | DO86: - | DP86: 1 | DQ86: - | DR86: - | DS86: - | DT86: - | DU86: - | DV86: - | DW86: - | DX86: - | DY86: - | DZ86: - | EA86: 4 | EB86: 415 | EC86: 290 | ED86: 125 | EE86: - | EF86: 8 | EG86: 8 | EH86: 2 | EI86: 5 | EJ86: 1 | EK86: - | EL86: - | EM86: - | EN86: 8 | EO86: 4 | EP86: 3 | EQ86: 1 | ER86: - | ES86: 1 | ET86: 2 | EU86: 1
A87: 茨城県 | B87: 水戸市 | C87: 酒門村２－１ | E87: 266 | F87: 167 | G87: 26 | H87: 12 | I87: 61 | J87: 16 | K87: 80 | L87: 99 | M87: 488 | N87: 7 | O87: 13 | P87: 18 | Q87: 16 | R87: 20 | S87: 22 | T87: 40 | U87: 42 | V87: 62 | W87: 64 | X87: 35 | Y87: 51 | Z87: 43 | AA87: 34 | AB87: 21 | AC87: 58.5 | AD87: 56.7 | AE87: 60.6 | AF87: 249 | AG87: 1 | AH87: - | AI87: 1 | AJ87: 2 | AK87: 1 | AL87: 6 | AM87: 8 | AN87: 11 | AO87: 23 | AP87: 32 | AQ87: 29 | AR87: 50 | AS87: 39 | AT87: 30 | AU87: 16 | AV87: 68.4 | AW87: 69.9 | AX87: 67.2 | AY87: 214 | AZ87: - | BA87: - | BB87: 1 | BC87: 1 | BD87: 1 | BE87: 5 | BF87: 4 | BG87: 10 | BH87: 19 | BI87: 29 | BJ87: 28 | BK87: 47 | BL87: 35 | BM87: 26 | BN87: 8 | BO87: 68.5 | BP87: 69.6 | BQ87: 67.5 | BR87: 167 | BS87: - | BT87: - | BU87: - | BV87: - | BW87: 2 | BX87: 2 | BY87: 10 | BZ87: 10 | CA87: 26 | CB87: 29 | CC87: 20 | CD87: 22 | CE87: 22 | CF87: 16 | CG87: 8 | CH87: 110 | CI87: - | CJ87: - | CK87: - | CL87: - | CM87: 6 | CN87: 5 | CO87: 12 | CP87: 18 | CQ87: 16 | CR87: 15 | CS87: 18 | CT87: 13 | CU87: 7 | DC87: 628 | DD87: 480 | DE87: 216 | DF87: 227 | DG87: 37 | DH87: 41 | DI87: 40 | DJ87: 67 | DK87: 157 | DL87: 145 | DM87: - | DN87: 1 | DO87: - | DP87: 2 | DQ87: 4 | DR87: 2 | DS87: 2 | DT87: - | DU87: - | DV87: - | DW87: 1 | DX87: - | DY87: - | DZ87: - | EA87: 167 | EB87: 24,075 | EC87: 19,972 | ED87: 3,924 | EE87: 179 | EF87: 307 | EG87: 263 | EH87: 106 | EI87: 132 | EJ87: 25 | EK87: - | EL87: 24 | EM87: 20 | EN87: 321 | EO87: 217 | EP87: 110 | EQ87: 95 | ER87: 12 | ES87: 41 | ET87: 16 | EU87: 47
A88: 茨城県 | B88: 水戸市 | C88: 酒門村２－１ | D88: 大和田 | E88: 26 | F88: 18 | G88: 3 | H88: 1 | I88: 3 | J88: - | K88: 12 | L88: 8 | M88: 40 | N88: - | O88: - | P88: - | Q88: 1 | R88: 4 | S88: 4 | T88: 5 | U88: 3 | V88: 2 | W88: 1 | X88: 3 | Y88: 10 | Z88: 5 | AA88: 2 | AB88: - | AC88: 59.1 | AD88: 58.0 | AE88: 60.8 | AF88: 25 | AG88: - | AH88: - | AI88: - | AJ88: - | AK88: 1 | AL88: 1 | AM88: 1 | AN88: 2 | AO88: - | AP88: - | AQ88: 3 | AR88: 10 | AS88: 5 | AT88: 2 | AU88: - | AV88: 67.6 | AW88: 69.0 | AX88: 66.2 | AY88: 21 | AZ88: - | BA88: - | BB88: - | BC88: - | BD88: 1 | BE88: 1 | BF88: - | BG88: 2 | BH88: - | BI88: - | BJ88: 3 | BK88: 7 | BL88: 5 | BM88: 2 | BN88: - | BO88: 68.0 | BP88: 68.6 | BQ88: 67.2 | BR88: 18 | BS88: - | BT88: - | BU88: - | BV88: - | BW88: 1 | BX88: - | BY88: 2 | BZ88: 1 | CA88: 2 | CB88: - | CC88: 2 | CD88: 4 | CE88: 5 | CF88: 1 | CG88: - | CH88: 7 | CI88: - | CJ88: - | CK88: - | CL88: - | CM88: 1 | CN88: - | CO88: - | CP88: - | CQ88: 1 | CR88: 2 | CS88: 3 | CT88: - | CU88: - | DC88: 53 | DD88: 41 | DE88: 21 | DF88: 20 | DG88: - | DH88: 4 | DI88: 2 | DJ88: 6 | DK88: 16 | DL88: 16 | DM88: - | DN88: - | DO88: - | DP88: - | DQ88: - | DR88: - | DS88: - | DT88: - | DU88: - | DV88: - | DW88: - | DX88: - | DY88: - | DZ88: - | EA88: 18 | EB88: 3,034 | EC88: 2,946 | ED88: 88 | EE88: - | EF88: 29 | EG88: 25 | EH88: 12 | EI88: 13 | EJ88: - | EK88: - | EL88: 1 | EM88: 3 | EN88: 24 | EO88: 16 | EP88: 9 | EQ88: 7 | ER88: - | ES88: 4 | ET88: 1 | EU88: 3
A89: 茨城県 | B89: 水戸市 | C89: 酒門村２－１ | D89: 千束 | E89: 19 | F89: 18 | G89: 4 | H89: 1 | I89: 8 | J89: 2 | K89: 6 | L89: 1 | M89: 54 | N89: 1 | O89: 1 | P89: 1 | Q89: 2 | R89: 1 | S89: 7 | T89: 8 | U89: 2 | V89: 7 | W89: 3 | X89: 5 | Y89: 8 | Z89: 1 | AA89: 6 | AB89: 1 | AC89: 57.1 | AD89: 55.8 | AE89: 58.3 | AF89: 30 | AG89: - | AH89: - | AI89: - | AJ89: - | AK89: - | AL89: 2 | AM89: 2 | AN89: 1 | AO89: 2 | AP89: 3 | AQ89: 4 | AR89: 8 | AS89: 1 | AT89: 6 | AU89: 1 | AV89: 67.5 | AW89: 66.8 | AX89: 68.0 | AY89: 26 | AZ89: - | BA89: - | BB89: - | BC89: - | BD89: - | BE89: 2 | BF89: 2 | BG89: 1 | BH89: 2 | BI89: 3 | BJ89: 3 | BK89: 8 | BL89: 1 | BM89: 4 | BN89: - | BO89: 65.6 | BP89: 64.5 | BQ89: 66.3 | BR89: 18 | BS89: - | BT89: - | BU89: - | BV89: - | BW89: - | BX89: 1 | BY89: 3 | BZ89: 1 | CA89: 3 | CB89: 1 | CC89: 3 | CD89: 3 | CE89: - | CF89: 2 | CG89: 1 | CH89: 17 | CI89: - | CJ89: - | CK89: - | CL89: - | CM89: 3 | CN89: 1 | CO89: 3 | CP89: 1 | CQ89: 3 | CR89: 3 | CS89: - | CT89: 2 | CU89: 1 | DC89: 73 | DD89: 57 | DE89: 26 | DF89: 29 | DG89: 2 | DH89: 4 | DI89: 6 | DJ89: 6 | DK89: 18 | DL89: 15 | DM89: - | DN89: - | DO89: - | DP89: 1 | DQ89: 2 | DR89: - | DS89: - | DT89: - | DU89: - | DV89: - | DW89: - | DX89: - | DY89: - | DZ89: - | EA89: 18 | EB89: 3,295 | EC89: 3,106 | ED89: 189 | EE89: - | EF89: 33 | EG89: 25 | EH89: 10 | EI89: 13 | EJ89: 2 | EK89: - | EL89: 5 | EM89: 3 | EN89: 40 | EO89: 32 | EP89: 16 | EQ89: 16 | ER89: - | ES89: 4 | ET89: 1 | EU89: 3
A90: 茨城県 | B90: 水戸市 | C90: 酒門村２－１ | D90: 酒門 | E90: 59 | F90: 32 | G90: 4 | H90: 3 | I90: 13 | J90: 2 | K90: 15 | L90: 27 | M90: 93 | N90: 1 | O90: 1 | P90: 4 | Q90: 4 | R90: 6 | S90: 1 | T90: 6 | U90: 3 | V90: 18 | W90: 19 | X90: 4 | Y90: 5 | Z90: 10 | AA90: 5 | AB90: 6 | AC90: 59.0 | AD90: 56.9 | AE90: 61.5 | AF90: 40 | AG90: 1 | AH90: - | AI90: - | AJ90: - | AK90: - | AL90: - | AM90: - | AN90: - | AO90: 6 | AP90: 7 | AQ90: 4 | AR90: 5 | AS90: 9 | AT90: 3 | AU90: 5 | AV90: 69.6 | AW90: 70.3 | AX90: 69.0 | AY90: 34 | AZ90: - | BA90: - | BB90: - | BC90: - | BD90: - | BE90: - | BF90: - | BG90: - | BH90: 5 | BI90: 6 | BJ90: 4 | BK90: 5 | BL90: 8 | BM90: 3 | BN90: 3 | BO90: 70.5 | BP90: 72.5 | BQ90: 68.5 | BR90: 32 | BS90: - | BT90: - | BU90: - | BV90: - | BW90: - | BX90: - | BY90: 1 | BZ90: 1 | CA90: 7 | CB90: 9 | CC90: 2 | CD90: 2 | CE90: 5 | CF90: 2 | CG90: 3 | CH90: 21 | CI90: - | CJ90: - | CK90: - | CL90: - | CM90: 1 | CN90: - | CO90: 4 | CP90: 5 | CQ90: 1 | CR90: 1 | CS90: 5 | CT90: 1 | CU90: 3 | DC90: 111 | DD90: 88 | DE90: 35 | DF90: 44 | DG90: 9 | DH90: 10 | DI90: 4 | DJ90: 9 | DK90: 28 | DL90: 24 | DM90: - | DN90: - | DO90: - | DP90: - | DQ90: - | DR90: 2 | DS90: 2 | DT90: - | DU90: - | DV90: - | DW90: - | DX90: - | DY90: - | DZ90: - | EA90: 32 | EB90: 3,132 | EC90: 2,131 | ED90: 849 | EE90: 152 | EF90: 56 | EG90: 52 | EH90: 18 | EI90: 29 | EJ90: 5 | EK90: - | EL90: 3 | EM90: 1 | EN90: 55 | EO90: 36 | EP90: 17 | EQ90: 15 | ER90: 4 | ES90: 10 | ET90: 1 | EU90: 8
A91: 茨城県 | B91: 水戸市 | C91: 酒門村２－１ | D91: 羅漢 | E91: 11 | F91: 5 | G91: 1 | H91: - | I91: - | J91: - | K91: 4 | L91: 6 | M91: 14 | N91: - | O91: - | P91: - | Q91: 1 | R91: - | S91: - | T91: 1 | U91: 2 | V91: - | W91: 2 | X91: 2 | Y91: - | Z91: 3 | AA91: 2 | AB91: 1 | AC91: 65.6 | AD91: 62.9 | AE91: 69.3 | AF91: 11 | AG91: - | AH91: - | AI91: - | AJ91: 1 | AK91: - | AL91: - | AM91: - | AN91: - | AO91: - | AP91: 2 | AQ91: 2 | AR91: - | AS91: 3 | AT91: 2 | AU91: 1 | AV91: 70.0 | AW91: 67.3 | AX91: 73.2 | AY91: 10 | AZ91: - | BA91: - | BB91: - | BC91: 1 | BD91: - | BE91: - | BF91: - | BG91: - | BH91: - | BI91: 2 | BJ91: 2 | BK91: - | BL91: 3 | BM91: 2 | BN91: - | BO91: 68.5 | BP91: 67.3 | BQ91: 70.3 | BR91: 5 | BS91: - | BT91: - | BU91: - | BV91: - | BW91: - | BX91: - | BY91: - | BZ91: - | CA91: - | CB91: 1 | CC91: 1 | CD91: - | CE91: 1 | CF91: 2 | CG91: - | CH91: 4 | CI91: - | CJ91: - | CK91: - | CL91: - | CM91: - | CN91: - | CO91: - | CP91: - | CQ91: 1 | CR91: - | CS91: 1 | CT91: 2 | CU91: - | DC91: 16 | DD91: 15 | DE91: 10 | DF91: 5 | DG91: - | DH91: 1 | DI91: - | DJ91: - | DK91: 3 | DL91: 3 | DM91: - | DN91: - | DO91: - | DP91: - | DQ91: - | DR91: - | DS91: - | DT91: - | DU91: - | DV91: - | DW91: - | DX91: - | DY91: - | DZ91: - | EA91: 5 | EB91: 306 | EC91: 216 | ED91: 90 | EE91: - | EF91: 10 | EG91: 10 | EH91: 6 | EI91: 4 | EJ91: - | EK91: - | EL91: - | EM91: - | EN91: 6 | EO91: 5 | EP91: 4 | EQ91: 1 | ER91: - | ES91: 1 | ET91: - | EU91: -
A92: 茨城県 | B92: 水戸市 | C92: 酒門村２－１ | D92: 谷田 | E92: 29 | F92: 19 | G92: 2 | H92: 1 | I92: 8 | J92: 1 | K92: 9 | L92: 10 | M92: 57 | N92: - | O92: 3 | P92: 1 | Q92: 1 | R92: 2 | S92: - | T92: 9 | U92: 2 | V92: 7 | W92: 11 | X92: 2 | Y92: 7 | Z92: 5 | AA92: 4 | AB92: 3 | AC92: 59.8 | AD92: 57.3 | AE92: 62.6 | AF92: 31 | AG92: - | AH92: - | AI92: - | AJ92: - | AK92: - | AL92: - | AM92: 2 | AN92: - | AO92: 3 | AP92: 5 | AQ92: 2 | AR92: 7 | AS92: 5 | AT92: 4 | AU92: 3 | AV92: 70.5 | AW92: 73.0 | AX92: 68.6 | AY92: 25 | AZ92: - | BA92: - | BB92: - | BC92: - | BD92: - | BE92: - | BF92: - | BG92: - | BH92: 2 | BI92: 3 | BJ92: 2 | BK92: 7 | BL92: 4 | BM92: 4 | BN92: 3 | BO92: 73.4 | BP92: 73.0 | BQ92: 73.8 | BR92: 19 | BS92: - | BT92: - | BU92: - | BV92: - | BW92: - | BX92: - | BY92: 2 | BZ92: - | CA92: 1 | CB92: 5 | CC92: 1 | CD92: 3 | CE92: 3 | CF92: 3 | CG92: 1 | CH92: 14 | CI92: - | CJ92: - | CK92: - | CL92: - | CM92: 1 | CN92: - | CO92: 1 | CP92: 4 | CQ92: 1 | CR92: 2 | CS92: 3 | CT92: 2 | CU92: - | DC92: 70 | DD92: 52 | DE92: 25 | DF92: 26 | DG92: 1 | DH92: 5 | DI92: 8 | DJ92: 5 | DK92: 19 | DL92: 19 | DM92: - | DN92: - | DO92: - | DP92: - | DQ92: - | DR92: - | DS92: - | DT92: - | DU92: - | DV92: - | DW92: - | DX92: - | DY92: - | DZ92: - | EA92: 19 | EB92: 1,602 | EC92: 1,362 | ED92: 240 | EE92: - | EF92: 33 | EG92: 28 | EH92: 13 | EI92: 14 | EJ92: 1 | EK92: - | EL92: 5 | EM92: - | EN92: 37 | EO92: 24 | EP92: 12 | EQ92: 12 | ER92: - | ES92: 5 | ET92: 3 | EU92: 5
A93: 茨城県 | B93: 水戸市 | C93: 酒門村２－１ | D93: 谷田組 | E93: 22 | F93: 11 | G93: - | H93: - | I93: 5 | J93: 1 | K93: 6 | L93: 11 | M93: 41 | N93: - | O93: 1 | P93: 3 | Q93: 1 | R93: 2 | S93: 5 | T93: 1 | U93: 6 | V93: 4 | W93: 3 | X93: - | Y93: 4 | Z93: 6 | AA93: 3 | AB93: 2 | AC93: 57.7 | AD93: 57.2 | AE93: 58.2 | AF93: 21 | AG93: - | AH93: - | AI93: - | AJ93: 1 | AK93: - | AL93: 1 | AM93: 1 | AN93: 2 | AO93: 1 | AP93: - | AQ93: - | AR93: 4 | AS93: 6 | AT93: 3 | AU93: 2 | AV93: 69.0 | AW93: 73.1 | AX93: 66.0 | AY93: 15 | AZ93: - | BA93: - | BB93: - | BC93: - | BD93: - | BE93: - | BF93: 1 | BG93: 1 | BH93: 1 | BI93: - | BJ93: - | BK93: 4 | BL93: 5 | BM93: 3 | BN93: - | BO93: 71.1 | BP93: 70.1 | BQ93: 72.1 | BR93: 11 | BS93: - | BT93: - | BU93: - | BV93: - | BW93: - | BX93: - | BY93: - | BZ93: - | CA93: 1 | CB93: 1 | CC93: - | CD93: 2 | CE93: 3 | CF93: 2 | CG93: 2 | CH93: 9 | CI93: - | CJ93: - | CK93: - | CL93: - | CM93: - | CN93: - | CO93: - | CP93: 1 | CQ93: - | CR93: 2 | CS93: 2 | CT93: 2 | CU93: 2 | DC93: 53 | DD93: 36 | DE93: 15 | DF93: 15 | DG93: 6 | DH93: 2 | DI93: 6 | DJ93: 9 | DK93: 10 | DL93: 10 | DM93: - | DN93: - | DO93: - | DP93: - | DQ93: - | DR93: - | DS93: - | DT93: - | DU93: - | DV93: - | DW93: - | DX93: - | DY93: - | DZ93: - | EA93: 11 | EB93: 1,640 | EC93: 1,087 | ED93: 553 | EE93: - | EF93: 24 | EG93: 20 | EH93: 8 | EI93: 9 | EJ93: 3 | EK93: - | EL93: 2 | EM93: 2 | EN93: 29 | EO93: 16 | EP93: 7 | EQ93: 6 | ER93: 3 | ES93: 2 | ET93: 4 | EU93: 7
A94: 茨城県 | B94: 水戸市 | C94: 酒門村２－１ | D94: 石川 | E94: 86 | F94: 53 | G94: 10 | H94: 4 | I94: 20 | J94: 10 | K94: 23 | L94: 33 | M94: 158 | N94: 5 | O94: 7 | P94: 8 | Q94: 6 | R94: 5 | S94: 5 | T94: 7 | U94: 20 | V94: 18 | W94: 21 | X94: 18 | Y94: 14 | Z94: 11 | AA94: 8 | AB94: 5 | AC94: 56.4 | AD94: 54.7 | AE94: 58.6 | AF94: 75 | AG94: - | AH94: - | AI94: 1 | AJ94: - | AK94: - | AL94: 2 | AM94: 1 | AN94: 5 | AO94: 9 | AP94: 13 | AQ94: 13 | AR94: 13 | AS94: 9 | AT94: 7 | AU94: 2 | AV94: 66.7 | AW94: 68.6 | AX94: 65.1 | AY94: 70 | AZ94: - | BA94: - | BB94: 1 | BC94: - | BD94: - | BE94: 2 | BF94: 1 | BG94: 5 | BH94: 7 | BI94: 13 | BJ94: 13 | BK94: 13 | BL94: 8 | BM94: 5 | BN94: 2 | BO94: 66.4 | BP94: 68.2 | BQ94: 64.9 | BR94: 53 | BS94: - | BT94: - | BU94: - | BV94: - | BW94: 1 | BX94: 1 | BY94: 1 | BZ94: 6 | CA94: 9 | CB94: 11 | CC94: 10 | CD94: 7 | CE94: 4 | CF94: 3 | CG94: - | CH94: 34 | CI94: - | CJ94: - | CK94: - | CL94: - | CM94: - | CN94: 4 | CO94: 4 | CP94: 7 | CQ94: 8 | CR94: 5 | CS94: 3 | CT94: 3 | CU94: - | DC94: 214 | DD94: 166 | DE94: 70 | DF94: 79 | DG94: 17 | DH94: 11 | DI94: 13 | DJ94: 24 | DK94: 52 | DL94: 48 | DM94: - | DN94: 1 | DO94: - | DP94: 1 | DQ94: 1 | DR94: - | DS94: - | DT94: - | DU94: - | DV94: - | DW94: 1 | DX94: - | DY94: - | DZ94: - | EA94: 53 | EB94: 9,561 | EC94: 7,626 | ED94: 1,908 | EE94: 27 | EF94: 108 | EG94: 90 | EH94: 33 | EI94: 45 | EJ94: 12 | EK94: - | EL94: 8 | EM94: 10 | EN94: 106 | EO94: 76 | EP94: 37 | EQ94: 34 | ER94: 5 | ES94: 11 | ET94: 5 | EU94: 14
A95: 茨城県 | B95: 水戸市 | C95: 酒門村２－１ | D95: 西割 | E95: 14 | F95: 11 | G95: 2 | H95: 2 | I95: 4 | J95: - | K95: 5 | L95: 3 | M95: 31 | N95: - | O95: - | P95: 1 | Q95: - | R95: - | S95: - | T95: 3 | U95: 4 | V95: 6 | W95: 4 | X95: 1 | Y95: 3 | Z95: 2 | AA95: 4 | AB95: 3 | AC95: 64.5 | AD95: 62.3 | AE95: 66.4 | AF95: 16 | AG95: - | AH95: - | AI95: - | AJ95: - | AK95: - | AL95: - | AM95: 1 | AN95: 1 | AO95: 2 | AP95: 2 | AQ95: 1 | AR95: 3 | AS95: 1 | AT95: 3 | AU95: 2 | AV95: 70.3 | AW95: 75.7 | AX95: 67.0 | AY95: 13 | AZ95: - | BA95: - | BB95: - | BC95: - | BD95: - | BE95: - | BF95: - | BG95: 1 | BH95: 2 | BI95: 2 | BJ95: 1 | BK95: 3 | BL95: 1 | BM95: 3 | BN95: - | BO95: 69.1 | BP95: 73.8 | BQ95: 66.1 | BR95: 11 | BS95: - | BT95: - | BU95: - | BV95: - | BW95: - | BX95: - | BY95: 1 | BZ95: 1 | CA95: 3 | CB95: 1 | CC95: 1 | CD95: 1 | CE95: 1 | CF95: 1 | CG95: 1 | CH95: 4 | CI95: - | CJ95: - | CK95: - | CL95: - | CM95: - | CN95: - | CO95: - | CP95: - | CQ95: 1 | CR95: - | CS95: 1 | CT95: 1 | CU95: 1 | DC95: 38 | DD95: 25 | DE95: 14 | DF95: 9 | DG95: 2 | DH95: 4 | DI95: 1 | DJ95: 8 | DK95: 11 | DL95: 10 | DM95: - | DN95: - | DO95: - | DP95: - | DQ95: 1 | DR95: - | DS95: - | DT95: - | DU95: - | DV95: - | DW95: - | DX95: - | DY95: - | DZ95: - | EA95: 11 | EB95: 1,505 | EC95: 1,498 | ED95: 7 | EE95: - | EF95: 14 | EG95: 13 | EH95: 6 | EI95: 5 | EJ95: 2 | EK95: - | EL95: - | EM95: 1 | EN95: 24 | EO95: 12 | EP95: 8 | EQ95: 4 | ER95: - | ES95: 4 | ET95: 1 | EU95: 7
A96: 茨城県 | B96: 水戸市 | C96: 柳河村 | E96: 230 | F96: 160 | G96: 21 | H96: 15 | I96: 26 | J96: 9 | K96: 113 | L96: 70 | M96: 407 | N96: 3 | O96: 11 | P96: 7 | Q96: 12 | R96: 11 | S96: 20 | T96: 27 | U96: 25 | V96: 50 | W96: 53 | X96: 48 | Y96: 46 | Z96: 47 | AA96: 28 | AB96: 19 | AC96: 61.3 | AD96: 60.0 | AE96: 62.7 | AF96: 250 | AG96: 2 | AH96: 2 | AI96: 1 | AJ96: 3 | AK96: - | AL96: 2 | AM96: 5 | AN96: 9 | AO96: 19 | AP96: 25 | AQ96: 42 | AR96: 46 | AS96: 47 | AT96: 28 | AU96: 19 | AV96: 69.4 | AW96: 70.4 | AX96: 68.5 | AY96: 202 | AZ96: - | BA96: 1 | BB96: - | BC96: 3 | BD96: - | BE96: 1 | BF96: 5 | BG96: 7 | BH96: 17 | BI96: 19 | BJ96: 37 | BK96: 44 | BL96: 38 | BM96: 21 | BN96: 9 | BO96: 69.2 | BP96: 70.1 | BQ96: 68.3 | BR96: 160 | BS96: - | BT96: - | BU96: - | BV96: - | BW96: - | BX96: - | BY96: 6 | BZ96: 9 | CA96: 14 | CB96: 27 | CC96: 27 | CD96: 23 | CE96: 26 | CF96: 15 | CG96: 13 | CH96: 94 | CI96: - | CJ96: - | CK96: - | CL96: - | CM96: - | CN96: 4 | CO96: 6 | CP96: 15 | CQ96: 14 | CR96: 17 | CS96: 16 | CT96: 11 | CU96: 11 | DC96: 517 | DD96: 387 | DE96: 202 | DF96: 178 | DG96: 7 | DH96: 41 | DI96: 26 | DJ96: 63 | DK96: 138 | DL96: 81 | DM96: - | DN96: - | DO96: - | DP96: 54 | DQ96: 3 | DR96: - | DS96: - | DT96: - | DU96: - | DV96: - | DW96: - | DX96: - | DY96: - | DZ96: - | EA96: 160 | EB96: 20,874 | EC96: 12,783 | ED96: 8,059 | EE96: 32 | EF96: 246 | EG96: 213 | EH96: 104 | EI96: 104 | EJ96: 5 | EK96: - | EL96: 13 | EM96: 20 | EN96: 271 | EO96: 174 | EP96: 98 | EQ96: 74 | ER96: 2 | ES96: 41 | ET96: 13 | EU96: 43
A97: 茨城県 | B97: 水戸市 | C97: 柳河村 | D97: 上河内町 | E97: 32 | F97: 25 | G97: 3 | H97: 2 | I97: 6 | J97: 1 | K97: 16 | L97: 7 | M97: 69 | N97: - | O97: 2 | P97: 1 | Q97: - | R97: 3 | S97: 6 | T97: 2 | U97: 8 | V97: 7 | W97: 13 | X97: 6 | Y97: 4 | Z97: 7 | AA97: 4 | AB97: 6 | AC97: 61.5 | AD97: 62.6 | AE97: 60.1 | AF97: 40 | AG97: - | AH97: 1 | AI97: - | AJ97: - | AK97: - | AL97: 1 | AM97: 1 | AN97: 4 | AO97: 2 | AP97: 5 | AQ97: 5 | AR97: 4 | AS97: 7 | AT97: 4 | AU97: 6 | AV97: 69.5 | AW97: 70.2 | AX97: 68.5 | AY97: 30 | AZ97: - | BA97: 1 | BB97: - | BC97: - | BD97: - | BE97: 1 | BF97: 1 | BG97: 3 | BH97: 2 | BI97: 1 | BJ97: 5 | BK97: 4 | BL97: 6 | BM97: 4 | BN97: 2 | BO97: 67.9 | BP97: 68.6 | BQ97: 66.7 | BR97: 25 | BS97: - | BT97: - | BU97: - | BV97: - | BW97: - | BX97: - | BY97: - | BZ97: 2 | CA97: 4 | CB97: 3 | CC97: 5 | CD97: 2 | CE97: 4 | CF97: 2 | CG97: 3 | CH97: 12 | CI97: - | CJ97: - | CK97: - | CL97: - | CM97: - | CN97: - | CO97: 1 | CP97: 1 | CQ97: 2 | CR97: 2 | CS97: 2 | CT97: 2 | CU97: 2 | DC97: 85 | DD97: 61 | DE97: 30 | DF97: 31 | DG97: - | DH97: 7 | DI97: 2 | DJ97: 15 | DK97: 24 | DL97: 23 | DM97: - | DN97: - | DO97: - | DP97: 1 | DQ97: - | DR97: - | DS97: - | DT97: - | DU97: - | DV97: - | DW97: - | DX97: - | DY97: - | DZ97: - | EA97: 25 | EB97: 3,287 | EC97: 2,720 | ED97: 567 | EE97: - | EF97: 40 | EG97: 35 | EH97: 20 | EI97: 15 | EJ97: - | EK97: - | EL97: 1 | EM97: 4 | EN97: 45 | EO97: 26 | EP97: 10 | EQ97: 16 | ER97: - | ES97: 7 | ET97: 1 | EU97: 11
A98: 茨城県 | B98: 水戸市 | C98: 柳河村 | D98: 中河内町 | E98: 51 | F98: 41 | G98: 10 | H98: 8 | I98: 8 | J98: 6 | K98: 23 | L98: 10 | M98: 99 | N98: 2 | O98: 1 | P98: 2 | Q98: 5 | R98: 1 | S98: 5 | T98: 5 | U98: 2 | V98: 14 | W98: 22 | X98: 11 | Y98: 10 | Z98: 10 | AA98: 5 | AB98: 4 | AC98: 60.4 | AD98: 58.9 | AE98: 61.8 | AF98: 68 | AG98: 2 | AH98: 1 | AI98: 1 | AJ98: 2 | AK98: - | AL98: - | AM98: 3 | AN98: 1 | AO98: 8 | AP98: 13 | AQ98: 8 | AR98: 10 | AS98: 10 | AT98: 5 | AU98: 4 | AV98: 64.2 | AW98: 64.3 | AX98: 64.1 | AY98: 56 | AZ98: - | BA98: - | BB98: - | BC98: 2 | BD98: - | BE98: - | BF98: 3 | BG98: 1 | BH98: 8 | BI98: 13 | BJ98: 8 | BK98: 9 | BL98: 6 | BM98: 4 | BN98: 2 | BO98: 65.1 | BP98: 66.5 | BQ98: 64.1 | BR98: 41 | BS98: - | BT98: - | BU98: - | BV98: - | BW98: - | BX98: - | BY98: 2 | BZ98: 1 | CA98: 3 | CB98: 12 | CC98: 8 | CD98: 2 | CE98: 6 | CF98: 3 | CG98: 4 | CH98: 20 | CI98: - | CJ98: - | CK98: - | CL98: - | CM98: - | CN98: 1 | CO98: 2 | CP98: 6 | CQ98: 2 | CR98: 2 | CS98: 3 | CT98: 1 | CU98: 3 | DC98: 123 | DD98: 95 | DE98: 56 | DF98: 35 | DG98: 4 | DH98: 2 | DI98: 5 | DJ98: 21 | DK98: 39 | DL98: 15 | DM98: - | DN98: - | DO98: - | DP98: 21 | DQ98: 3 | DR98: - | DS98: - | DT98: - | DU98: - | DV98: - | DW98: - | DX98: - | DY98: - | DZ98: - | EA98: 41 | EB98: 5,962 | EC98: 2,853 | ED98: 3,109 | EE98: - | EF98: 55 | EG98: 47 | EH98: 24 | EI98: 21 | EJ98: 2 | EK98: - | EL98: 2 | EM98: 6 | EN98: 68 | EO98: 48 | EP98: 32 | EQ98: 14 | ER98: 2 | ES98: 2 | ET98: 3 | EU98: 15
A99: 茨城県 | B99: 水戸市 | C99: 柳河村 | D99: 柳河町 | E99: 50 | F99: 36 | G99: 3 | H99: 3 | I99: 5 | J99: 1 | K99: 28 | L99: 14 | M99: 94 | N99: - | O99: 2 | P99: 1 | Q99: 2 | R99: 3 | S99: 3 | T99: 3 | U99: 7 | V99: 15 | W99: 7 | X99: 10 | Y99: 14 | Z99: 12 | AA99: 11 | AB99: 4 | AC99: 64.1 | AD99: 63.1 | AE99: 65.5 | AF99: 58 | AG99: - | AH99: - | AI99: - | AJ99: 1 | AK99: - | AL99: - | AM99: - | AN99: 3 | AO99: 3 | AP99: 1 | AQ99: 9 | AR99: 14 | AS99: 12 | AT99: 11 | AU99: 4 | AV99: 72.7 | AW99: 73.7 | AX99: 71.5 | AY99: 48 | AZ99: - | BA99: - | BB99: - | BC99: 1 | BD99: - | BE99: - | BF99: - | BG99: 2 | BH99: 2 | BI99: 1 | BJ99: 7 | BK99: 14 | BL99: 10 | BM99: 8 | BN99: 3 | BO99: 72.4 | BP99: 72.6 | BQ99: 72.2 | BR99: 36 | BS99: - | BT99: - | BU99: - | BV99: - | BW99: - | BX99: - | BY99: 1 | BZ99: - | CA99: 2 | CB99: 6 | CC99: 4 | CD99: 8 | CE99: 5 | CF99: 8 | CG99: 2 | CH99: 20 | CI99: - | CJ99: - | CK99: - | CL99: - | CM99: - | CN99: - | CO99: 1 | CP99: 4 | CQ99: 2 | CR99: 3 | CS99: 2 | CT99: 6 | CU99: 2 | DC99: 119 | DD99: 93 | DE99: 48 | DF99: 44 | DG99: 1 | DH99: 9 | DI99: 3 | DJ99: 14 | DK99: 29 | DL99: 10 | DM99: - | DN99: - | DO99: - | DP99: 19 | DQ99: - | DR99: - | DS99: - | DT99: - | DU99: - | DV99: - | DW99: - | DX99: - | DY99: - | DZ99: - | EA99: 36 | EB99: 5,291 | EC99: 2,826 | ED99: 2,433 | EE99: 32 | EF99: 62 | EG99: 54 | EH99: 26 | EI99: 27 | EJ99: 1 | EK99: - | EL99: 1 | EM99: 7 | EN99: 57 | EO99: 39 | EP99: 22 | EQ99: 17 | ER99: - | ES99: 9 | ET99: 2 | EU99: 7
A100: 茨城県 | B100: 水戸市 | C100: 柳河村 | D100: 青柳町 | E100: 97 | F100: 58 | G100: 5 | H100: 2 | I100: 7 | J100: 1 | K100: 46 | L100: 39 | M100: 145 | N100: 1 | O100: 6 | P100: 3 | Q100: 5 | R100: 4 | S100: 6 | T100: 17 | U100: 8 | V100: 14 | W100: 11 | X100: 21 | Y100: 18 | Z100: 18 | AA100: 8 | AB100: 5 | AC100: 60.0 | AD100: 57.3 | AE100: 62.9 | AF100: 84 | AG100: - | AH100: - | AI100: - | AJ100: - | AK100: - | AL100: 1 | AM100: 1 | AN100: 1 | AO100: 6 | AP100: 6 | AQ100: 20 | AR100: 18 | AS100: 18 | AT100: 8 | AU100: 5 | AV100: 71.3 | AW100: 72.5 | AX100: 70.5 | AY100: 68 | AZ100: - | BA100: - | BB100: - | BC100: - | BD100: - | BE100: - | BF100: 1 | BG100: 1 | BH100: 5 | BI100: 4 | BJ100: 17 | BK100: 17 | BL100: 16 | BM100: 5 | BN100: 2 | BO100: 70.9 | BP100: 71.5 | BQ100: 70.2 | BR100: 58 | BS100: - | BT100: - | BU100: - | BV100: - | BW100: - | BX100: - | BY100: 3 | BZ100: 6 | CA100: 5 | CB100: 6 | CC100: 10 | CD100: 11 | CE100: 11 | CF100: 2 | CG100: 4 | CH100: 42 | CI100: - | CJ100: - | CK100: - | CL100: - | CM100: - | CN100: 3 | CO100: 2 | CP100: 4 | CQ100: 8 | CR100: 10 | CS100: 9 | CT100: 2 | CU100: 4 | DC100: 190 | DD100: 138 | DE100: 68 | DF100: 68 | DG100: 2 | DH100: 23 | DI100: 16 | DJ100: 13 | DK100: 46 | DL100: 33 | DM100: - | DN100: - | DO100: - | DP100: 13 | DQ100: - | DR100: - | DS100: - | DT100: - | DU100: - | DV100: - | DW100: - | DX100: - | DY100: - | DZ100: - | EA100: 58 | EB100: 6,334 | EC100: 4,384 | ED100: 1,950 | EE100: - | EF100: 89 | EG100: 77 | EH100: 34 | EI100: 41 | EJ100: 2 | EK100: - | EL100: 9 | EM100: 3 | EN100: 101 | EO100: 61 | EP100: 34 | EQ100: 27 | ER100: - | ES100: 23 | ET100: 7 | EU100: 10
A101: 茨城県 | B101: 水戸市 | C101: 渡里村 | E101: 207 | F101: 86 | G101: 5 | H101: 3 | I101: 23 | J101: 6 | K101: 58 | L101: 121 | M101: 213 | N101: - | O101: 3 | P101: 3 | Q101: 1 | R101: 7 | S101: 6 | T101: 18 | U101: 19 | V101: 24 | W101: 26 | X101: 22 | Y101: 24 | Z101: 30 | AA101: 19 | AB101: 11 | AC101: 63.5 | AD101: 62.8 | AE101: 64.4 | AF101: 123 | AG101: - | AH101: 1 | AI101: - | AJ101: - | AK101: - | AL101: 2 | AM101: 3 | AN101: 3 | AO101: 7 | AP101: 13 | AQ101: 16 | AR101: 23 | AS101: 28 | AT101: 17 | AU101: 10 | AV101: 71.3 | AW101: 72.7 | AX101: 70.0 | AY101: 103 | AZ101: - | BA101: 1 | BB101: - | BC101: - | BD101: - | BE101: 2 | BF101: 1 | BG101: 1 | BH101: 6 | BI101: 10 | BJ101: 13 | BK101: 22 | BL101: 26 | BM101: 13 | BN101: 8 | BO101: 71.8 | BP101: 72.5 | BQ101: 71.0 | BR101: 86 | BS101: - | BT101: - | BU101: - | BV101: - | BW101: - | BX101: 2 | BY101: 4 | BZ101: 3 | CA101: 12 | CB101: 9 | CC101: 12 | CD101: 11 | CE101: 16 | CF101: 10 | CG101: 7 | CH101: 47 | CI101: - | CJ101: - | CK101: - | CL101: - | CM101: - | CN101: 1 | CO101: 3 | CP101: 5 | CQ101: 6 | CR101: 7 | CS101: 12 | CT101: 8 | CU101: 5 | DC101: 262 | DD101: 201 | DE101: 104 | DF101: 82 | DG101: 15 | DH101: 28 | DI101: 11 | DJ101: 22 | DK101: 72 | DL101: 55 | DM101: - | DN101: - | DO101: - | DP101: 11 | DQ101: 4 | DR101: - | DS101: 1 | DT101: - | DU101: 1 | DV101: - | DW101: - | DX101: - | DY101: - | DZ101: - | EA101: 86 | EB101: 8,184 | EC101: 4,706 | ED101: 3,417 | EE101: 61 | EF101: 128 | EG101: 116 | EH101: 54 | EI101: 52 | EJ101: 10 | EK101: - | EL101: 4 | EM101: 8 | EN101: 134 | EO101: 85 | EP101: 50 | EQ101: 30 | ER101: 5 | ES101: 28 | ET101: 7 | EU101: 14
A102: 茨城県 | B102: 水戸市 | C102: 渡里村 | D102: 圷渡里 | E102: 65 | F102: 33 | G102: 2 | H102: 1 | I102: 7 | J102: 2 | K102: 24 | L102: 32 | M102: 75 | N102: - | O102: - | P102: 1 | Q102: 1 | R102: 4 | S102: 4 | T102: 7 | U102: 5 | V102: 8 | W102: 8 | X102: 7 | Y102: 8 | Z102: 12 | AA102: 8 | AB102: 2 | AC102: 62.9 | AD102: 62.8 | AE102: 62.9 | AF102: 44 | AG102: - | AH102: - | AI102: - | AJ102: - | AK102: - | AL102: 2 | AM102: - | AN102: 1 | AO102: 2 | AP102: 4 | AQ102: 6 | AR102: 8 | AS102: 12 | AT102: 7 | AU102: 2 | AV102: 71.5 | AW102: 74.1 | AX102: 69.1 | AY102: 35 | AZ102: - | BA102: - | BB102: - | BC102: - | BD102: - | BE102: 2 | BF102: - | BG102: - | BH102: 2 | BI102: 3 | BJ102: 4 | BK102: 7 | BL102: 10 | BM102: 6 | BN102: 1 | BO102: 71.6 | BP102: 74.0 | BQ102: 68.7 | BR102: 33 | BS102: - | BT102: - | BU102: - | BV102: - | BW102: - | BX102: 2 | BY102: 1 | BZ102: 2 | CA102: 6 | CB102: 3 | CC102: 4 | CD102: 4 | CE102: 6 | CF102: 4 | CG102: 1 | CH102: 17 | CI102: - | CJ102: - | CK102: - | CL102: - | CM102: - | CN102: - | CO102: 1 | CP102: 2 | CQ102: 3 | CR102: 3 | CS102: 5 | CT102: 3 | CU102: - | DC102: 95 | DD102: 73 | DE102: 35 | DF102: 33 | DG102: 5 | DH102: 11 | DI102: 5 | DJ102: 6 | DK102: 29 | DL102: 20 | DM102: - | DN102: - | DO102: - | DP102: 6 | DQ102: 3 | DR102: - | DS102: - | DT102: - | DU102: - | DV102: - | DW102: - | DX102: - | DY102: - | DZ102: - | EA102: 33 | EB102: 3,164 | EC102: 1,712 | ED102: 1,452 | EE102: - | EF102: 42 | EG102: 40 | EH102: 19 | EI102: 17 | EJ102: 4 | EK102: - | EL102: - | EM102: 2 | EN102: 53 | EO102: 33 | EP102: 16 | EQ102: 16 | ER102: 1 | ES102: 11 | ET102: 5 | EU102: 4
A103: 茨城県 | B103: 水戸市 | C103: 渡里村 | D103: 台渡里 | E103: 16 | F103: - | G103: - | H103: - | I103: - | J103: - | K103: - | L103: 16 | M103: - | N103: - | O103: - | P103: - | Q103: - | R103: - | S103: - | T103: - | U103: - | V103: - | W103: - | X103: - | Y103: - | Z103: - | AA103: - | AB103: - | AC103: … | AD103: … | AE103: … | AF103: - | AG103: - | AH103: - | AI103: - | AJ103: - | AK103: - | AL103: - | AM103: - | AN103: - | AO103: - | AP103: - | AQ103: - | AR103: - | AS103: - | AT103: - | AU103: - | AV103: … | AW103: … | AX103: … | AY103: - | AZ103: - | BA103: - | BB103: - | BC103: - | BD103: - | BE103: - | BF103: - | BG103: - | BH103: - | BI103: - | BJ103: - | BK103: - | BL103: - | BM103: - | BN103: - | BO103: … | BP103: … | BQ103: … | BR103: - | BS103: - | BT103: - | BU103: - | BV103: - | BW103: - | BX103: - | BY103: - | BZ103: - | CA103: - | CB103: - | CC103: - | CD103: - | CE103: - | CF103: - | CG103: - | CH103: - | CI103: - | CJ103: - | CK103: - | CL103: - | CM103: - | CN103: - | CO103: - | CP103: - | CQ103: - | CR103: - | CS103: - | CT103: - | CU103: - | DC103: - | DD103: - | DE103: - | DF103: - | DG103: - | DH103: - | DI103: - | DJ103: - | DK103: - | DL103: - | DM103: - | DN103: - | DO103: - | DP103: - | DQ103: - | DR103: - | DS103: - | DT103: - | DU103: - | DV103: - | DW103: - | DX103: - | DY103: - | DZ103: - | EA103: - | EB103: - | EC103: - | ED103: - | EE103: - | EF103: - | EG103: - | EH103: - | EI103: - | EJ103: - | EK103: - | EL103: - | EM103: - | EN103: - | EO103: - | EP103: - | EQ103: - | ER103: - | ES103: - | ET103: - | EU103: -
A104: 茨城県 | B104: 水戸市 | C104: 渡里村 | D104: 堀町 | E104: 53 | F104: 19 | G104: - | H104: - | I104: 4 | J104: 2 | K104: 15 | L104: 34 | M104: 45 | N104: - | O104: - | P104: - | Q104: - | R104: 1 | S104: - | T104: 6 | U104: 2 | V104: 5 | W104: 6 | X104: 5 | Y104: 8 | Z104: 7 | AA104: 4 | AB104: 1 | AC104: 65.2 | AD104: 64.6 | AE104: 65.7 | AF104: 28 | AG104: - | AH104: - | AI104: - | AJ104: - | AK104: - | AL104: - | AM104: 1 | AN104: - | AO104: 2 | AP104: 3 | AQ104: 2 | AR104: 8 | AS104: 7 | AT104: 4 | AU104: 1 | AV104: 71.6 | AW104: 73.5 | AX104: 70.4 | AY104: 23 | AZ104: - | BA104: - | BB104: - | BC104: - | BD104: - | BE104: - | BF104: - | BG104: - | BH104: 1 | BI104: 3 | BJ104: 2 | BK104: 8 | BL104: 7 | BM104: 1 | BN104: 1 | BO104: 71.8 | BP104: 72.8 | BQ104: 71.1 | BR104: 19 | BS104: - | BT104: - | BU104: - | BV104: - | BW104: - | BX104: - | BY104: 2 | BZ104: - | CA104: 1 | CB104: 3 | CC104: 2 | CD104: 4 | CE104: 3 | CF104: 3 | CG104: 1 | CH104: 9 | CI104: - | CJ104: - | CK104: - | CL104: - | CM104: - | CN104: - | CO104: - | CP104: 2 | CQ104: 1 | CR104: 2 | CS104: 1 | CT104: 2 | CU104: 1 | DC104: 51 | DD104: 42 | DE104: 23 | DF104: 16 | DG104: 3 | DH104: 5 | DI104: 1 | DJ104: 3 | DK104: 14 | DL104: 11 | DM104: - | DN104: - | DO104: - | DP104: 2 | DQ104: 1 | DR104: - | DS104: - | DT104: - | DU104: - | DV104: - | DW104: - | DX104: - | DY104: - | DZ104: - | EA104: 19 | EB104: 1,616 | EC104: 1,043 | ED104: 573 | EE104: - | EF104: 24 | EG104: 23 | EH104: 10 | EI104: 12 | EJ104: 1 | EK104: - | EL104: - | EM104: 1 | EN104: 27 | EO104: 19 | EP104: 13 | EQ104: 4 | ER104: 2 | ES104: 5 | ET104: 1 | EU104: 2
A105: 茨城県 | B105: 水戸市 | C105: 渡里村 | D105: 田野町 | E105: 45 | F105: 18 | G105: 1 | H105: 1 | I105: 6 | J105: 1 | K105: 11 | L105: 27 | M105: 47 | N105: - | O105: 1 | P105: - | Q105: - | R105: 1 | S105: - | T105: 4 | U105: 5 | V105: 5 | W105: 9 | X105: 7 | Y105: 1 | Z105: 6 | AA105: 4 | AB105: 4 | AC105: 64.9 | AD105: 64.6 | AE105: 65.3 | AF105: 30 | AG105: - | AH105: 1 | AI105: - | AJ105: - | AK105: - | AL105: - | AM105: 2 | AN105: 1 | AO105: 1 | AP105: 5 | AQ105: 6 | AR105: 1 | AS105: 5 | AT105: 4 | AU105: 4 | AV105: 69.7 | AW105: 71.4 | AX105: 67.9 | AY105: 26 | AZ105: - | BA105: 1 | BB105: - | BC105: - | BD105: - | BE105: - | BF105: 1 | BG105: 1 | BH105: 1 | BI105: 3 | BJ105: 5 | BK105: 1 | BL105: 5 | BM105: 4 | BN105: 4 | BO105: 71.2 | BP105: 71.4 | BQ105: 70.9 | BR105: 18 | BS105: - | BT105: - | BU105: - | BV105: - | BW105: - | BX105: - | BY105: 1 | BZ105: - | CA105: 3 | CB105: 2 | CC105: 5 | CD105: 1 | CE105: 2 | CF105: 2 | CG105: 2 | CH105: 11 | CI105: - | CJ105: - | CK105: - | CL105: - | CM105: - | CN105: - | CO105: 2 | CP105: 1 | CQ105: 2 | CR105: 1 | CS105: 1 | CT105: 2 | CU105: 2 | DC105: 61 | DD105: 44 | DE105: 26 | DF105: 17 | DG105: 1 | DH105: 7 | DI105: 3 | DJ105: 7 | DK105: 15 | DL105: 13 | DM105: - | DN105: - | DO105: - | DP105: 1 | DQ105: - | DR105: - | DS105: - | DT105: - | DU105: 1 | DV105: - | DW105: - | DX105: - | DY105: - | DZ105: - | EA105: 18 | EB105: 1,923 | EC105: 894 | ED105: 968 | EE105: 61 | EF105: 36 | EG105: 30 | EH105: 16 | EI105: 13 | EJ105: 1 | EK105: - | EL105: 3 | EM105: 3 | EN105: 25 | EO105: 14 | EP105: 10 | EQ105: 4 | ER105: - | ES105: 7 | ET105: - | EU105: 4
A106: 茨城県 | B106: 水戸市 | C106: 渡里村 | D106: 錦 | E106: 2 | F106: 1 | G106: x | H106: x | I106: x | J106: x | K106: x | L106: 1 | M106: x | N106: x | O106: x | P106: x | Q106: x | R106: x | S106: x | T106: x | U106: x | V106: x | W106: x | X106: x | Y106: x | Z106: x | AA106: x | AB106: x | AC106: 87.0 | AD106: 87.0 | AE106: … | AF106: x | AG106: x | AH106: x | AI106: x | AJ106: x | AK106: x | AL106: x | AM106: x | AN106: x | AO106: x | AP106: x | AQ106: x | AR106: x | AS106: x | AT106: x | AU106: x | AV106: … | AW106: … | AX106: … | AY106: x | AZ106: x | BA106: x | BB106: x | BC106: x | BD106: x | BE106: x | BF106: x | BG106: x | BH106: x | BI106: x | BJ106: x | BK106: x | BL106: x | BM106: x | BN106: x | BO106: … | BP106: … | BQ106: … | BR106: 1 | BS106: - | BT106: - | BU106: - | BV106: - | BW106: - | BX106: - | BY106: - | BZ106: - | CA106: - | CB106: - | CC106: - | CD106: - | CE106: - | CF106: - | CG106: 1 | CH106: - | CI106: - | CJ106: - | CK106: - | CL106: - | CM106: - | CN106: - | CO106: - | CP106: - | CQ106: - | CR106: - | CS106: - | CT106: - | CU106: - | DC106: 2 | DD106: 1 | DE106: - | DF106: - | DG106: 1 | DH106: - | DI106: - | DJ106: 1 | DK106: - | DL106: - | DM106: - | DN106: - | DO106: - | DP106: - | DQ106: - | DR106: - | DS106: - | DT106: - | DU106: - | DV106: - | DW106: - | DX106: - | DY106: - | DZ106: - | EA106: 1 | EB106: 66 | EC106: 47 | ED106: 19 | EE106: - | EF106: 1 | EG106: 1 | EH106: - | EI106: - | EJ106: 1 | EK106: - | EL106: - | EM106: - | EN106: 1 | EO106: - | EP106: - | EQ106: - | ER106: - | ES106: - | ET106: - | EU106: 1
A107: 茨城県 | B107: 水戸市 | C107: 渡里村 | D107: 堀町の高野下，野田原 | E107: 26 | F107: 15 | G107: x | H107: x | I107: x | J107: x | K107: x | L107: 11 | M107: x | N107: x | O107: x | P107: x | Q107: x | R107: x | S107: x | T107: x | U107: x | V107: x | W107: x | X107: x | Y107: x | Z107: x | AA107: x | AB107: x | AC107: 61.2 | AD107: 57.6 | AE107: 64.5 | AF107: x | AG107: x | AH107: x | AI107: x | AJ107: x | AK107: x | AL107: x | AM107: x | AN107: x | AO107: x | AP107: x | AQ107: x | AR107: x | AS107: x | AT107: x | AU107: x | AV107: 72.7 | AW107: 70.9 | AX107: 74.0 | AY107: x | AZ107: x | BA107: x | BB107: x | BC107: x | BD107: x | BE107: x | BF107: x | BG107: x | BH107: x | BI107: x | BJ107: x | BK107: x | BL107: x | BM107: x | BN107: x | BO107: 72.8 | BP107: 70.9 | BQ107: 74.6 | BR107: 15 | BS107: - | BT107: - | BU107: - | BV107: - | BW107: - | BX107: - | BY107: - | BZ107: 1 | CA107: 2 | CB107: 1 | CC107: 1 | CD107: 2 | CE107: 5 | CF107: 1 | CG107: 2 | CH107: 10 | CI107: - | CJ107: - | CK107: - | CL107: - | CM107: - | CN107: 1 | CO107: - | CP107: - | CQ107: - | CR107: 1 | CS107: 5 | CT107: 1 | CU107: 2 | DC107: 53 | DD107: 41 | DE107: 20 | DF107: 16 | DG107: 5 | DH107: 5 | DI107: 2 | DJ107: 5 | DK107: 14 | DL107: 11 | DM107: - | DN107: - | DO107: - | DP107: 2 | DQ107: - | DR107: - | DS107: 1 | DT107: - | DU107: - | DV107: - | DW107: - | DX107: - | DY107: - | DZ107: - | EA107: 15 | EB107: 1,415 | EC107: 1,010 | ED107: 405 | EE107: - | EF107: 25 | EG107: 22 | EH107: 9 | EI107: 10 | EJ107: 3 | EK107: - | EL107: 1 | EM107: 2 | EN107: 28 | EO107: 19 | EP107: 11 | EQ107: 6 | ER107: 2 | ES107: 5 | ET107: 1 | EU107: 3
A108: 茨城県 | B108: 水戸市 | C108: 上大野村 | E108: 224 | F108: 178 | G108: 34 | H108: 20 | I108: 44 | J108: 7 | K108: 100 | L108: 46 | M108: 477 | N108: 3 | O108: 13 | P108: 15 | Q108: 16 | R108: 10 | S108: 26 | T108: 35 | U108: 58 | V108: 45 | W108: 58 | X108: 45 | Y108: 65 | Z108: 44 | AA108: 32 | AB108: 12 | AC108: 59.3 | AD108: 57.4 | AE108: 61.3 | AF108: 270 | AG108: 2 | AH108: 2 | AI108: 1 | AJ108: 1 | AK108: 1 | AL108: 3 | AM108: 9 | AN108: 15 | AO108: 12 | AP108: 41 | AQ108: 39 | AR108: 62 | AS108: 41 | AT108: 29 | AU108: 12 | AV108: 68.1 | AW108: 69.1 | AX108: 67.3 | AY108: 206 | AZ108: - | BA108: - | BB108: - | BC108: 1 | BD108: 1 | BE108: 2 | BF108: 4 | BG108: 13 | BH108: 10 | BI108: 33 | BJ108: 33 | BK108: 54 | BL108: 33 | BM108: 17 | BN108: 5 | BO108: 68.6 | BP108: 68.7 | BQ108: 68.4 | BR108: 178 | BS108: - | BT108: - | BU108: - | BV108: - | BW108: 1 | BX108: 5 | BY108: 7 | BZ108: 21 | CA108: 22 | CB108: 27 | CC108: 26 | CD108: 33 | CE108: 19 | CF108: 12 | CG108: 5 | CH108: 97 | CI108: - | CJ108: - | CK108: - | CL108: - | CM108: - | CN108: 8 | CO108: 11 | CP108: 17 | CQ108: 16 | CR108: 15 | CS108: 14 | CT108: 11 | CU108: 5 | DC108: 607 | DD108: 434 | DE108: 206 | DF108: 211 | DG108: 17 | DH108: 52 | DI108: 32 | DJ108: 89 | DK108: 163 | DL108: 143 | DM108: - | DN108: - | DO108: - | DP108: 17 | DQ108: 3 | DR108: - | DS108: - | DT108: - | DU108: - | DV108: - | DW108: - | DX108: - | DY108: - | DZ108: - | EA108: 178 | EB108: 26,474 | EC108: 22,294 | ED108: 4,180 | EE108: - | EF108: 281 | EG108: 242 | EH108: 103 | EI108: 126 | EJ108: 13 | EK108: 1 | EL108: 12 | EM108: 26 | EN108: 326 | EO108: 192 | EP108: 103 | EQ108: 85 | ER108: 4 | ES108: 51 | ET108: 20 | EU108: 63
A109: 茨城県 | B109: 水戸市 | C109: 上大野村 | D109: 吉沼町 | E109: 66 | F109: 48 | G109: 13 | H109: 10 | I109: 15 | J109: 3 | K109: 20 | L109: 18 | M109: 136 | N109: - | O109: 7 | P109: 5 | Q109: 1 | R109: 5 | S109: 9 | T109: 4 | U109: 23 | V109: 15 | W109: 13 | X109: 8 | Y109: 19 | Z109: 14 | AA109: 9 | AB109: 4 | AC109: 58.7 | AD109: 55.4 | AE109: 62.3 | AF109: 82 | AG109: - | AH109: - | AI109: - | AJ109: - | AK109: - | AL109: 2 | AM109: 1 | AN109: 8 | AO109: 7 | AP109: 12 | AQ109: 7 | AR109: 19 | AS109: 13 | AT109: 9 | AU109: 4 | AV109: 68.4 | AW109: 68.9 | AX109: 68.1 | AY109: 56 | AZ109: - | BA109: - | BB109: - | BC109: - | BD109: - | BE109: 1 | BF109: - | BG109: 6 | BH109: 6 | BI109: 8 | BJ109: 7 | BK109: 16 | BL109: 9 | BM109: 2 | BN109: 1 | BO109: 67.1 | BP109: 68.5 | BQ109: 65.4 | BR109: 48 | BS109: - | BT109: - | BU109: - | BV109: - | BW109: 1 | BX109: 2 | BY109: - | BZ109: 7 | CA109: 9 | CB109: 7 | CC109: 4 | CD109: 9 | CE109: 7 | CF109: 2 | CG109: - | CH109: 26 | CI109: - | CJ109: - | CK109: - | CL109: - | CM109: - | CN109: 4 | CO109: 4 | CP109: 6 | CQ109: 2 | CR109: 3 | CS109: 6 | CT109: 1 | CU109: - | DC109: 172 | DD109: 121 | DE109: 56 | DF109: 61 | DG109: 4 | DH109: 16 | DI109: 11 | DJ109: 24 | DK109: 46 | DL109: 32 | DM109: - | DN109: - | DO109: - | DP109: 13 | DQ109: 1 | DR109: - | DS109: - | DT109: - | DU109: - | DV109: - | DW109: - | DX109: - | DY109: - | DZ109: - | EA109: 48 | EB109: 6,387 | EC109: 4,137 | ED109: 2,250 | EE109: - | EF109: 80 | EG109: 70 | EH109: 31 | EI109: 36 | EJ109: 3 | EK109: 1 | EL109: 6 | EM109: 3 | EN109: 92 | EO109: 51 | EP109: 25 | EQ109: 25 | ER109: 1 | ES109: 15 | ET109: 5 | EU109: 21
A110: 茨城県 | B110: 水戸市 | C110: 上大野村 | D110: 渋井町 | E110: 25 | F110: 13 | G110: 1 | H110: - | I110: 1 | J110: - | K110: 11 | L110: 12 | M110: 32 | N110: - | O110: - | P110: 1 | Q110: 2 | R110: - | S110: 1 | T110: 2 | U110: 3 | V110: 4 | W110: 1 | X110: 3 | Y110: 8 | Z110: 5 | AA110: 1 | AB110: 1 | AC110: 62.5 | AD110: 58.8 | AE110: 67.8 | AF110: 19 | AG110: - | AH110: - | AI110: - | AJ110: - | AK110: - | AL110: - | AM110: - | AN110: - | AO110: - | AP110: 1 | AQ110: 3 | AR110: 8 | AS110: 5 | AT110: 1 | AU110: 1 | AV110: 73.4 | AW110: 74.8 | AX110: 72.2 | AY110: 15 | AZ110: - | BA110: - | BB110: - | BC110: - | BD110: - | BE110: - | BF110: - | BG110: - | BH110: - | BI110: 1 | BJ110: 1 | BK110: 8 | BL110: 4 | BM110: 1 | BN110: - | BO110: 73.3 | BP110: 74.3 | BQ110: 72.4 | BR110: 13 | BS110: - | BT110: - | BU110: - | BV110: - | BW110: - | BX110: - | BY110: - | BZ110: - | CA110: 2 | CB110: - | CC110: 1 | CD110: 5 | CE110: 4 | CF110: - | CG110: 1 | CH110: 9 | CI110: - | CJ110: - | CK110: - | CL110: - | CM110: - | CN110: - | CO110: 1 | CP110: - | CQ110: 1 | CR110: 4 | CS110: 2 | CT110: - | CU110: 1 | DC110: 42 | DD110: 30 | DE110: 15 | DF110: 15 | DG110: - | DH110: 4 | DI110: 1 | DJ110: 7 | DK110: 12 | DL110: 11 | DM110: - | DN110: - | DO110: - | DP110: 1 | DQ110: - | DR110: - | DS110: - | DT110: - | DU110: - | DV110: - | DW110: - | DX110: - | DY110: - | DZ110: - | EA110: 13 | EB110: 1,355 | EC110: 1,124 | ED110: 231 | EE110: - | EF110: 21 | EG110: 18 | EH110: 7 | EI110: 11 | EJ110: - | EK110: - | EL110: - | EM110: 3 | EN110: 21 | EO110: 12 | EP110: 8 | EQ110: 4 | ER110: - | ES110: 4 | ET110: 1 | EU110: 4
A111: 茨城県 | B111: 水戸市 | C111: 上大野村 | D111: 東大野 | E111: 32 | F111: 26 | G111: 2 | H111: 2 | I111: 6 | J111: 1 | K111: 18 | L111: 6 | M111: 71 | N111: - | O111: 2 | P111: 3 | Q111: 2 | R111: 2 | S111: 6 | T111: 7 | U111: 7 | V111: 4 | W111: 14 | X111: 15 | Y111: 3 | Z111: 1 | AA111: 4 | AB111: 1 | AC111: 56.2 | AD111: 55.1 | AE111: 57.3 | AF111: 30 | AG111: - | AH111: 2 | AI111: - | AJ111: - | AK111: - | AL111: - | AM111: 2 | AN111: 1 | AO111: - | AP111: 6 | AQ111: 12 | AR111: 3 | AS111: 1 | AT111: 2 | AU111: 1 | AV111: 63.3 | AW111: 64.2 | AX111: 62.7 | AY111: 21 | AZ111: - | BA111: - | BB111: - | BC111: - | BD111: - | BE111: - | BF111: - | BG111: 1 | BH111: - | BI111: 6 | BJ111: 9 | BK111: 1 | BL111: 1 | BM111: 2 | BN111: 1 | BO111: 67.6 | BP111: 68.5 | BQ111: 67.1 | BR111: 26 | BS111: - | BT111: - | BU111: - | BV111: - | BW111: - | BX111: - | BY111: 2 | BZ111: 3 | CA111: 1 | CB111: 6 | CC111: 10 | CD111: 1 | CE111: 1 | CF111: 1 | CG111: 1 | CH111: 13 | CI111: - | CJ111: - | CK111: - | CL111: - | CM111: - | CN111: - | CO111: 1 | CP111: 4 | CQ111: 5 | CR111: 1 | CS111: - | CT111: 1 | CU111: 1 | DC111: 85 | DD111: 55 | DE111: 21 | DF111: 31 | DG111: 3 | DH111: 15 | DI111: 2 | DJ111: 13 | DK111: 19 | DL111: 19 | DM111: - | DN111: - | DO111: - | DP111: - | DQ111: - | DR111: - | DS111: - | DT111: - | DU111: - | DV111: - | DW111: - | DX111: - | DY111: - | DZ111: - | EA111: 26 | EB111: 4,228 | EC111: 3,864 | ED111: 364 | EE111: - | EF111: 39 | EG111: 33 | EH111: 8 | EI111: 22 | EJ111: 3 | EK111: - | EL111: 1 | EM111: 5 | EN111: 46 | EO111: 22 | EP111: 13 | EQ111: 9 | ER111: - | ES111: 15 | ET111: 1 | EU111: 8
A112: 茨城県 | B112: 水戸市 | C112: 上大野村 | D112: 西大野 | E112: 27 | F112: 26 | G112: 6 | H112: 4 | I112: 6 | J112: 1 | K112: 14 | L112: 1 | M112: 71 | N112: - | O112: - | P112: 3 | Q112: 2 | R112: - | S112: 4 | T112: 8 | U112: 6 | V112: 7 | W112: 9 | X112: 7 | Y112: 13 | Z112: 4 | AA112: 5 | AB112: 3 | AC112: 61.1 | AD112: 59.1 | AE112: 63.1 | AF112: 41 | AG112: - | AH112: - | AI112: - | AJ112: - | AK112: - | AL112: - | AM112: 2 | AN112: 2 | AO112: 2 | AP112: 6 | AQ112: 6 | AR112: 12 | AS112: 4 | AT112: 4 | AU112: 3 | AV112: 69.5 | AW112: 67.6 | AX112: 71.5 | AY112: 32 | AZ112: - | BA112: - | BB112: - | BC112: - | BD112: - | BE112: - | BF112: 1 | BG112: 2 | BH112: 2 | BI112: 6 | BJ112: 6 | BK112: 9 | BL112: 2 | BM112: 2 | BN112: 2 | BO112: 68.3 | BP112: 66.7 | BQ112: 70.2 | BR112: 26 | BS112: - | BT112: - | BU112: - | BV112: - | BW112: - | BX112: - | BY112: 1 | BZ112: 3 | CA112: 2 | CB112: 6 | CC112: 3 | CD112: 7 | CE112: 1 | CF112: 2 | CG112: 1 | CH112: 16 | CI112: - | CJ112: - | CK112: - | CL112: - | CM112: - | CN112: - | CO112: 1 | CP112: 5 | CQ112: 3 | CR112: 3 | CS112: 1 | CT112: 2 | CU112: 1 | DC112: 91 | DD112: 65 | DE112: 32 | DF112: 27 | DG112: 6 | DH112: 5 | DI112: 6 | DJ112: 15 | DK112: 24 | DL112: 24 | DM112: - | DN112: - | DO112: - | DP112: - | DQ112: - | DR112: - | DS112: - | DT112: - | DU112: - | DV112: - | DW112: - | DX112: - | DY112: - | DZ112: - | EA112: 26 | EB112: 4,985 | EC112: 4,639 | ED112: 346 | EE112: - | EF112: 40 | EG112: 33 | EH112: 18 | EI112: 10 | EJ112: 5 | EK112: - | EL112: 2 | EM112: 5 | EN112: 51 | EO112: 32 | EP112: 14 | EQ112: 17 | ER112: 1 | ES112: 5 | ET112: 4 | EU112: 10
A113: 茨城県 | B113: 水戸市 | C113: 上大野村 | D113: 圷大野 | E113: 20 | F113: 18 | G113: 3 | H113: 1 | I113: 1 | J113: - | K113: 14 | L113: 2 | M113: 53 | N113: 1 | O113: 2 | P113: 1 | Q113: 1 | R113: 2 | S113: 3 | T113: 4 | U113: 6 | V113: 6 | W113: 3 | X113: 6 | Y113: 7 | Z113: 8 | AA113: 2 | AB113: 1 | AC113: 58.7 | AD113: 55.1 | AE113: 62.8 | AF113: 29 | AG113: 1 | AH113: - | AI113: - | AJ113: - | AK113: - | AL113: 1 | AM113: - | AN113: 1 | AO113: 3 | AP113: 2 | AQ113: 6 | AR113: 6 | AS113: 6 | AT113: 2 | AU113: 1 | AV113: 67.4 | AW113: 70.9 | AX113: 65.0 | AY113: 25 | AZ113: - | BA113: - | BB113: - | BC113: - | BD113: - | BE113: 1 | BF113: - | BG113: 1 | BH113: 2 | BI113: 2 | BJ113: 6 | BK113: 6 | BL113: 5 | BM113: 1 | BN113: 1 | BO113: 68.9 | BP113: 70.0 | BQ113: 68.1 | BR113: 18 | BS113: - | BT113: - | BU113: - | BV113: - | BW113: - | BX113: 1 | BY113: - | BZ113: 4 | CA113: 2 | CB113: - | CC113: 4 | CD113: 3 | CE113: 2 | CF113: 2 | CG113: - | CH113: 10 | CI113: - | CJ113: - | CK113: - | CL113: - | CM113: - | CN113: 2 | CO113: - | CP113: - | CQ113: 4 | CR113: - | CS113: 2 | CT113: 2 | CU113: - | DC113: 69 | DD113: 53 | DE113: 25 | DF113: 28 | DG113: - | DH113: 6 | DI113: 4 | DJ113: 6 | DK113: 17 | DL113: 16 | DM113: - | DN113: - | DO113: - | DP113: - | DQ113: 1 | DR113: - | DS113: - | DT113: - | DU113: - | DV113: - | DW113: - | DX113: - | DY113: - | DZ113: - | EA113: 18 | EB113: 3,039 | EC113: 2,861 | ED113: 178 | EE113: - | EF113: 31 | EG113: 28 | EH113: 11 | EI113: 17 | EJ113: - | EK113: - | EL113: 1 | EM113: 2 | EN113: 38 | EO113: 25 | EP113: 14 | EQ113: 11 | ER113: - | ES113: 6 | ET113: 3 | EU113: 4
A114: 茨城県 | B114: 水戸市 | C114: 上大野村 | D114: 中大野 | E114: 54 | F114: 47 | G114: 9 | H114: 3 | I114: 15 | J114: 2 | K114: 23 | L114: 7 | M114: 114 | N114: 2 | O114: 2 | P114: 2 | Q114: 8 | R114: 1 | S114: 3 | T114: 10 | U114: 13 | V114: 9 | W114: 18 | X114: 6 | Y114: 15 | Z114: 12 | AA114: 11 | AB114: 2 | AC114: 60.0 | AD114: 60.7 | AE114: 59.2 | AF114: 69 | AG114: 1 | AH114: - | AI114: 1 | AJ114: 1 | AK114: 1 | AL114: - | AM114: 4 | AN114: 3 | AO114: - | AP114: 14 | AQ114: 5 | AR114: 14 | AS114: 12 | AT114: 11 | AU114: 2 | AV114: 67.8 | AW114: 69.7 | AX114: 66.2 | AY114: 57 | AZ114: - | BA114: - | BB114: - | BC114: 1 | BD114: 1 | BE114: - | BF114: 3 | BG114: 3 | BH114: - | BI114: 10 | BJ114: 4 | BK114: 14 | BL114: 12 | BM114: 9 | BN114: - | BO114: 69.1 | BP114: 68.4 | BQ114: 69.8 | BR114: 47 | BS114: - | BT114: - | BU114: - | BV114: - | BW114: - | BX114: 2 | BY114: 4 | BZ114: 4 | CA114: 6 | CB114: 8 | CC114: 4 | CD114: 8 | CE114: 4 | CF114: 5 | CG114: 2 | CH114: 23 | CI114: - | CJ114: - | CK114: - | CL114: - | CM114: - | CN114: 2 | CO114: 4 | CP114: 2 | CQ114: 1 | CR114: 4 | CS114: 3 | CT114: 5 | CU114: 2 | DC114: 148 | DD114: 110 | DE114: 57 | DF114: 49 | DG114: 4 | DH114: 6 | DI114: 8 | DJ114: 24 | DK114: 45 | DL114: 41 | DM114: - | DN114: - | DO114: - | DP114: 3 | DQ114: 1 | DR114: - | DS114: - | DT114: - | DU114: - | DV114: - | DW114: - | DX114: - | DY114: - | DZ114: - | EA114: 47 | EB114: 6,480 | EC114: 5,669 | ED114: 811 | EE114: - | EF114: 70 | EG114: 60 | EH114: 28 | EI114: 30 | EJ114: 2 | EK114: - | EL114: 2 | EM114: 8 | EN114: 78 | EO114: 50 | EP114: 29 | EQ114: 19 | ER114: 2 | ES114: 6 | ET114: 6 | EU114: 16
A115: 茨城県 | B115: 水戸市 | C115: 緑岡村 | E115: 335 | F115: 213 | G115: 27 | H115: 20 | I115: 50 | J115: 17 | K115: 136 | L115: 122 | M115: 581 | N115: 8 | O115: 18 | P115: 22 | Q115: 11 | R115: 27 | S115: 26 | T115: 36 | U115: 64 | V115: 68 | W115: 49 | X115: 64 | Y115: 59 | Z115: 73 | AA115: 42 | AB115: 14 | AC115: 59.0 | AD115: 58.4 | AE115: 59.7 | AF115: 329 | AG115: - | AH115: - | AI115: 2 | AJ115: 5 | AK115: 7 | AL115: 3 | AM115: 12 | AN115: 17 | AO115: 22 | AP115: 31 | AQ115: 51 | AR115: 57 | AS115: 66 | AT115: 42 | AU115: 14 | AV115: 68.3 | AW115: 69.7 | AX115: 67.1 | AY115: 265 | AZ115: - | BA115: - | BB115: 2 | BC115: 3 | BD115: 6 | BE115: 3 | BF115: 9 | BG115: 10 | BH115: 18 | BI115: 27 | BJ115: 46 | BK115: 50 | BL115: 54 | BM115: 32 | BN115: 5 | BO115: 68.0 | BP115: 68.7 | BQ115: 67.3 | BR115: 213 | BS115: - | BT115: - | BU115: - | BV115: - | BW115: - | BX115: 2 | BY115: 3 | BZ115: 18 | CA115: 25 | CB115: 27 | CC115: 33 | CD115: 35 | CE115: 36 | CF115: 26 | CG115: 8 | CH115: 138 | CI115: - | CJ115: - | CK115: - | CL115: - | CM115: 2 | CN115: 10 | CO115: 15 | CP115: 17 | CQ115: 24 | CR115: 22 | CS115: 23 | CT115: 18 | CU115: 7 | DC115: 751 | DD115: 549 | DE115: 266 | DF115: 257 | DG115: 26 | DH115: 68 | DI115: 51 | DJ115: 83 | DK115: 162 | DL115: 116 | DM115: - | DN115: 4 | DO115: - | DP115: 11 | DQ115: 11 | DR115: 14 | DS115: 3 | DT115: - | DU115: 2 | DV115: - | DW115: - | DX115: 1 | DY115: - | DZ115: - | EA115: 213 | EB115: 23,036 | EC115: 13,811 | ED115: 8,130 | EE115: 1,095 | EF115: 362 | EG115: 305 | EH115: 139 | EI115: 151 | EJ115: 15 | EK115: - | EL115: 27 | EM115: 30 | EN115: 389 | EO115: 244 | EP115: 127 | EQ115: 106 | ER115: 11 | ES115: 68 | ET115: 24 | EU115: 53
A116: 茨城県 | B116: 水戸市 | C116: 緑岡村 | D116: 舟付 | E116: - | F116: - | G116: - | H116: - | I116: - | J116: - | K116: - | L116: - | M116: - | N116: - | O116: - | P116: - | Q116: - | R116: - | S116: - | T116: - | U116: - | V116: - | W116: - | X116: - | Y116: - | Z116: - | AA116: - | AB116: - | AC116: … | AD116: … | AE116: … | AF116: - | AG116: - | AH116: - | AI116: - | AJ116: - | AK116: - | AL116: - | AM116: - | AN116: - | AO116: - | AP116: - | AQ116: - | AR116: - | AS116: - | AT116: - | AU116: - | AV116: … | AW116: … | AX116: … | AY116: - | AZ116: - | BA116: - | BB116: - | BC116: - | BD116: - | BE116: - | BF116: - | BG116: - | BH116: - | BI116: - | BJ116: - | BK116: - | BL116: - | BM116: - | BN116: - | BO116: … | BP116: … | BQ116: … | BR116: - | BS116: - | BT116: - | BU116: - | BV116: - | BW116: - | BX116: - | BY116: - | BZ116: - | CA116: - | CB116: - | CC116: - | CD116: - | CE116: - | CF116: - | CG116: - | CH116: - | CI116: - | CJ116: - | CK116: - | CL116: - | CM116: - | CN116: - | CO116: - | CP116: - | CQ116: - | CR116: - | CS116: - | CT116: - | CU116: - | DC116: - | DD116: - | DE116: - | DF116: - | DG116: - | DH116: - | DI116: - | DJ116: - | DK116: - | DL116: - | DM116: - | DN116: - | DO116: - | DP116: - | DQ116: - | DR116: - | DS116: - | DT116: - | DU116: - | DV116: - | DW116: - | DX116: - | DY116: - | DZ116: - | EA116: - | EB116: - | EC116: - | ED116: - | EE116: - | EF116: - | EG116: - | EH116: - | EI116: - | EJ116: - | EK116: - | EL116: - | EM116: - | EN116: - | EO116: - | EP116: - | EQ116: - | ER116: - | ES116: - | ET116: - | EU116: -
A117: 茨城県 | B117: 水戸市 | C117: 緑岡村 | D117: 払沢，福沢 | E117: 3 | F117: - | G117: - | H117: - | I117: - | J117: - | K117: - | L117: 3 | M117: - | N117: - | O117: - | P117: - | Q117: - | R117: - | S117: - | T117: - | U117: - | V117: - | W117: - | X117: - | Y117: - | Z117: - | AA117: - | AB117: - | AC117: … | AD117: … | AE117: … | AF117: - | AG117: - | AH117: - | AI117: - | AJ117: - | AK117: - | AL117: - | AM117: - | AN117: - | AO117: - | AP117: - | AQ117: - | AR117: - | AS117: - | AT117: - | AU117: - | AV117: … | AW117: … | AX117: … | AY117: - | AZ117: - | BA117: - | BB117: - | BC117: - | BD117: - | BE117: - | BF117: - | BG117: - | BH117: - | BI117: - | BJ117: - | BK117: - | BL117: - | BM117: - | BN117: - | BO117: … | BP117: … | BQ117: … | BR117: - | BS117: - | BT117: - | BU117: - | BV117: - | BW117: - | BX117: - | BY117: - | BZ117: - | CA117: - | CB117: - | CC117: - | CD117: - | CE117: - | CF117: - | CG117: - | CH117: - | CI117: - | CJ117: - | CK117: - | CL117: - | CM117: - | CN117: - | CO117: - | CP117: - | CQ117: - | CR117: - | CS117: - | CT117: - | CU117: - | DC117: - | DD117: - | DE117: - | DF117: - | DG117: - | DH117: - | DI117: - | DJ117: - | DK117: - | DL117: - | DM117: - | DN117: - | DO117: - | DP117: - | DQ117: - | DR117: - | DS117: - | DT117: - | DU117: - | DV117: - | DW117: - | DX117: - | DY117: - | DZ117: - | EA117: - | EB117: - | EC117: - | ED117: - | EE117: - | EF117: - | EG117: - | EH117: - | EI117: - | EJ117: - | EK117: - | EL117: - | EM117: - | EN117: - | EO117: - | EP117: - | EQ117: - | ER117: - | ES117: - | ET117: - | EU117: -
A118: 茨城県 | B118: 水戸市 | C118: 緑岡村 | D118: 下本郷，南台 | E118: 5 | F118: 3 | G118: 1 | H118: 1 | I118: 1 | J118: 1 | K118: 1 | L118: 2 | M118: 8 | N118: - | O118: - | P118: - | Q118: - | R118: 2 | S118: - | T118: - | U118: - | V118: - | W118: 2 | X118: 3 | Y118: 1 | Z118: - | AA118: - | AB118: - | AC118: 58.9 | AD118: 61.0 | AE118: 56.8 | AF118: 6 | AG118: - | AH118: - | AI118: - | AJ118: - | AK118: - | AL118: - | AM118: - | AN118: - | AO118: - | AP118: 2 | AQ118: 3 | AR118: 1 | AS118: - | AT118: - | AU118: - | AV118: 66.3 | AW118: 69.0 | AX118: 63.7 | AY118: 6 | AZ118: - | BA118: - | BB118: - | BC118: - | BD118: - | BE118: - | BF118: - | BG118: - | BH118: - | BI118: 2 | BJ118: 3 | BK118: 1 | BL118: - | BM118: - | BN118: - | BO118: 66.3 | BP118: 69.0 | BQ118: 63.7 | BR118: 3 | BS118: - | BT118: - | BU118: - | BV118: - | BW118: - | BX118: - | BY118: - | BZ118: - | CA118: - | CB118: - | CC118: 2 | CD118: 1 | CE118: - | CF118: - | CG118: - | CH118: 3 | CI118: - | CJ118: - | CK118: - | CL118: - | CM118: - | CN118: - | CO118: - | CP118: - | CQ118: 2 | CR118: 1 | CS118: - | CT118: - | CU118: - | DC118: 8 | DD118: 7 | DE118: 6 | DF118: 1 | DG118: - | DH118: 1 | DI118: - | DJ118: - | DK118: 3 | DL118: - | DM118: - | DN118: - | DO118: - | DP118: - | DQ118: - | DR118: 3 | DS118: - | DT118: - | DU118: - | DV118: - | DW118: - | DX118: - | DY118: - | DZ118: - | EA118: 3 | EB118: 150 | EC118: - | ED118: 65 | EE118: 85 | EF118: 4 | EG118: 4 | EH118: 3 | EI118: 1 | EJ118: - | EK118: - | EL118: - | EM118: - | EN118: 4 | EO118: 3 | EP118: 3 | EQ118: - | ER118: - | ES118: 1 | ET118: - | EU118: -
A119: 茨城県 | B119: 水戸市 | C119: 緑岡村 | D119: 千波原，御茶園 | E119: 2 | F119: 1 | G119: x | H119: x | I119: x | J119: x | K119: x | L119: 1 | M119: x | N119: x | O119: x | P119: x | Q119: x | R119: x | S119: x | T119: x | U119: x | V119: x | W119: x | X119: x | Y119: x | Z119: x | AA119: x | AB119: x | AC119: 43.3 | AD119: 32.0 | AE119: 49.0 | AF119: x | AG119: x | AH119: x | AI119: x | AJ119: x | AK119: x | AL119: x | AM119: x | AN119: x | AO119: x | AP119: x | AQ119: x | AR119: x | AS119: x | AT119: x | AU119: x | AV119: 67.0 | AW119: … | AX119: 67.0 | AY119: x | AZ119: x | BA119: x | BB119: x | BC119: x | BD119: x | BE119: x | BF119: x | BG119: x | BH119: x | BI119: x | BJ119: x | BK119: x | BL119: x | BM119: x | BN119: x | BO119: 67.0 | BP119: … | BQ119: 67.0 | BR119: 1 | BS119: - | BT119: - | BU119: - | BV119: - | BW119: - | BX119: - | BY119: - | BZ119: - | CA119: - | CB119: - | CC119: 1 | CD119: - | CE119: - | CF119: - | CG119: - | CH119: 1 | CI119: - | CJ119: - | CK119: - | CL119: - | CM119: - | CN119: - | CO119: - | CP119: - | CQ119: 1 | CR119: - | CS119: - | CT119: - | CU119: - | DC119: 3 | DD119: 3 | DE119: 1 | DF119: 2 | DG119: - | DH119: - | DI119: - | DJ119: - | DK119: 1 | DL119: - | DM119: - | DN119: - | DO119: - | DP119: - | DQ119: - | DR119: 1 | DS119: - | DT119: - | DU119: - | DV119: - | DW119: - | DX119: - | DY119: - | DZ119: - | EA119: 1 | EB119: 40 | EC119: - | ED119: 20 | EE119: 20 | EF119: 1 | EG119: 1 | EH119: - | EI119: 1 | EJ119: - | EK119: - | EL119: - | EM119: - | EN119: 2 | EO119: 2 | EP119: 1 | EQ119: 1 | ER119: - | ES119: - | ET119: - | EU119: -
A120: 茨城県 | B120: 水戸市 | C120: 緑岡村 | D120: 上本郷，東 | E120: 5 | F120: 2 | G120: x | H120: x | I120: x | J120: x | K120: x | L120: 3 | M120: x | N120: x | O120: x | P120: x | Q120: x | R120: x | S120: x | T120: x | U120: x | V120: x | W120: x | X120: x | Y120: x | Z120: x | AA120: x | AB120: x | AC120: 66.0 | AD120: 68.0 | AE120: 64.0 | AF120: x | AG120: x | AH120: x | AI120: x | AJ120: x | AK120: x | AL120: x | AM120: x | AN120: x | AO120: x | AP120: x | AQ120: x | AR120: x | AS120: x | AT120: x | AU120: x | AV120: 71.8 | AW120: 74.0 | AX120: 69.5 | AY120: x | AZ120: x | BA120: x | BB120: x | BC120: x | BD120: x | BE120: x | BF120: x | BG120: x | BH120: x | BI120: x | BJ120: x | BK120: x | BL120: x | BM120: x | BN120: x | BO120: 71.8 | BP120: 74.0 | BQ120: 69.5 | BR120: 2 | BS120: - | BT120: - | BU120: - | BV120: - | BW120: - | BX120: - | BY120: - | BZ120: - | CA120: - | CB120: 1 | CC120: - | CD120: - | CE120: - | CF120: 1 | CG120: - | CH120: 2 | CI120: - | CJ120: - | CK120: - | CL120: - | CM120: - | CN120: - | CO120: - | CP120: 1 | CQ120: - | CR120: - | CS120: - | CT120: 1 | CU120: - | DC120: 6 | DD120: 5 | DE120: 4 | DF120: 1 | DG120: - | DH120: 1 | DI120: - | DJ120: - | DK120: 2 | DL120: - | DM120: - | DN120: - | DO120: - | DP120: - | DQ120: - | DR120: 2 | DS120: - | DT120: - | DU120: - | DV120: - | DW120: - | DX120: - | DY120: - | DZ120: - | EA120: 2 | EB120: 83 | EC120: - | ED120: 14 | EE120: 69 | EF120: 3 | EG120: 3 | EH120: 2 | EI120: 1 | EJ120: - | EK120: - | EL120: - | EM120: - | EN120: 3 | EO120: 2 | EP120: 2 | EQ120: - | ER120: - | ES120: 1 | ET120: - | EU120: -
A121: 茨城県 | B121: 水戸市 | C121: 緑岡村 | D121: 冨沢，十一軒 | E121: 10 | F121: 7 | G121: 3 | H121: 3 | I121: - | J121: - | K121: 4 | L121: 3 | M121: 20 | N121: - | O121: - | P121: 1 | Q121: - | R121: - | S121: - | T121: 2 | U121: 3 | V121: 4 | W121: - | X121: 1 | Y121: 3 | Z121: 4 | AA121: 1 | AB121: 1 | AC121: 62.7 | AD121: 57.6 | AE121: 68.9 | AF121: 15 | AG121: - | AH121: - | AI121: 1 | AJ121: - | AK121: - | AL121: - | AM121: - | AN121: 2 | AO121: 4 | AP121: - | AQ121: - | AR121: 3 | AS121: 3 | AT121: 1 | AU121: 1 | AV121: 64.4 | AW121: 59.1 | AX121: 69.0 | AY121: 12 | AZ121: - | BA121: - | BB121: 1 | BC121: - | BD121: - | BE121: - | BF121: - | BG121: 1 | BH121: 4 | BI121: - | BJ121: - | BK121: 3 | BL121: 2 | BM121: 1 | BN121: - | BO121: 62.6 | BP121: 59.1 | BQ121: 67.4 | BR121: 7 | BS121: - | BT121: - | BU121: - | BV121: - | BW121: - | BX121: - | BY121: - | BZ121: 2 | CA121: 2 | CB121: - | CC121: - | CD121: 2 | CE121: 1 | CF121: - | CG121: - | CH121: 3 | CI121: - | CJ121: - | CK121: - | CL121: - | CM121: - | CN121: 1 | CO121: 1 | CP121: - | CQ121: - | CR121: 1 | CS121: - | CT121: - | CU121: - | DC121: 26 | DD121: 19 | DE121: 12 | DF121: 5 | DG121: 2 | DH121: 2 | DI121: 2 | DJ121: 3 | DK121: 7 | DL121: 3 | DM121: - | DN121: - | DO121: - | DP121: - | DQ121: 2 | DR121: 1 | DS121: 1 | DT121: - | DU121: - | DV121: - | DW121: - | DX121: - | DY121: - | DZ121: - | EA121: 7 | EB121: 1,012 | EC121: 865 | ED121: 103 | EE121: 44 | EF121: 15 | EG121: 12 | EH121: 7 | EI121: 4 | EJ121: 1 | EK121: - | EL121: 2 | EM121: 1 | EN121: 11 | EO121: 7 | EP121: 5 | EQ121: 1 | ER121: 1 | ES121: 2 | ET121: - | EU121: 2
A122: 茨城県 | B122: 水戸市 | C122: 緑岡村 | D122: 中山，北葉山 | E122: 7 | F122: 1 | G122: x | H122: x | I122: x | J122: x | K122: x | L122: 6 | M122: x | N122: x | O122: x | P122: x | Q122: x | R122: x | S122: x | T122: x | U122: x | V122: x | W122: x | X122: x | Y122: x | Z122: x | AA122: x | AB122: x | AC122: 72.0 | AD122: 76.0 | AE122: 68.0 | AF122: x | AG122: x | AH122: x | AI122: x | AJ122: x | AK122: x | AL122: x | AM122: x | AN122: x | AO122: x | AP122: x | AQ122: x | AR122: x | AS122: x | AT122: x | AU122: x | AV122: … | AW122: … | AX122: … | AY122: x | AZ122: x | BA122: x | BB122: x | BC122: x | BD122: x | BE122: x | BF122: x | BG122: x | BH122: x | BI122: x | BJ122: x | BK122: x | BL122: x | BM122: x | BN122: x | BO122: … | BP122: … | BQ122: … | BR122: 1 | BS122: - | BT122: - | BU122: - | BV122: - | BW122: - | BX122: - | BY122: - | BZ122: - | CA122: - | CB122: - | CC122: - | CD122: - | CE122: 1 | CF122: - | CG122: - | CH122: - | CI122: - | CJ122: - | CK122: - | CL122: - | CM122: - | CN122: - | CO122: - | CP122: - | CQ122: - | CR122: - | CS122: - | CT122: - | CU122: - | DC122: 4 | DD122: 4 | DE122: - | DF122: 1 | DG122: 3 | DH122: - | DI122: - | DJ122: - | DK122: - | DL122: - | DM122: - | DN122: - | DO122: - | DP122: - | DQ122: - | DR122: - | DS122: - | DT122: - | DU122: - | DV122: - | DW122: - | DX122: - | DY122: - | DZ122: - | EA122: 1 | EB122: 32 | EC122: - | ED122: 16 | EE122: 16 | EF122: 2 | EG122: 2 | EH122: - | EI122: 1 | EJ122: 1 | EK122: - | EL122: - | EM122: - | EN122: 2 | EO122: 2 | EP122: - | EQ122: - | ER122: 2 | ES122: - | ET122: - | EU122: -
A123: 茨城県 | B123: 水戸市 | C123: 緑岡村 | D123: 下干波 | E123: - | F123: - | G123: - | H123: - | I123: - | J123: - | K123: - | L123: - | M123: - | N123: - | O123: - | P123: - | Q123: - | R123: - | S123: - | T123: - | U123: - | V123: - | W123: - | X123: - | Y123: - | Z123: - | AA123: - | AB123: - | AC123: … | AD123: … | AE123: … | AF123: - | AG123: - | AH123: - | AI123: - | AJ123: - | AK123: - | AL123: - | AM123: - | AN123: - | AO123: - | AP123: - | AQ123: - | AR123: - | AS123: - | AT123: - | AU123: - | AV123: … | AW123: … | AX123: … | AY123: - | AZ123: - | BA123: - | BB123: - | BC123: - | BD123: - | BE123: - | BF123: - | BG123: - | BH123: - | BI123: - | BJ123: - | BK123: - | BL123: - | BM123: - | BN123: - | BO123: … | BP123: … | BQ123: … | BR123: - | BS123: - | BT123: - | BU123: - | BV123: - | BW123: - | BX123: - | BY123: - | BZ123: - | CA123: - | CB123: - | CC123: - | CD123: - | CE123: - | CF123: - | CG123: - | CH123: - | CI123: - | CJ123: - | CK123: - | CL123: - | CM123: - | CN123: - | CO123: - | CP123: - | CQ123: - | CR123: - | CS123: - | CT123: - | CU123: - | DC123: - | DD123: - | DE123: - | DF123: - | DG123: - | DH123: - | DI123: - | DJ123: - | DK123: - | DL123: - | DM123: - | DN123: - | DO123: - | DP123: - | DQ123: - | DR123: - | DS123: - | DT123: - | DU123: - | DV123: - | DW123: - | DX123: - | DY123: - | DZ123: - | EA123: - | EB123: - | EC123: - | ED123: - | EE123: - | EF123: - | EG123: - | EH123: - | EI123: - | EJ123: - | EK123: - | EL123: - | EM123: - | EN123: - | EO123: - | EP123: - | EQ123: - | ER123: - | ES123: - | ET123: - | EU123: -
A124: 茨城県 | B124: 水戸市 | C124: 緑岡村 | D124: 笠原 | E124: 18 | F124: 14 | G124: - | H124: - | I124: 4 | J124: 3 | K124: 10 | L124: 4 | M124: 38 | N124: 1 | O124: 1 | P124: 3 | Q124: 1 | R124: 4 | S124: 2 | T124: 2 | U124: 7 | V124: 2 | W124: 3 | X124: 5 | Y124: 3 | Z124: 4 | AA124: - | AB124: - | AC124: 52.4 | AD124: 54.9 | AE124: 50.3 | AF124: 17 | AG124: - | AH124: - | AI124: - | AJ124: - | AK124: - | AL124: - | AM124: - | AN124: 1 | AO124: 1 | AP124: 3 | AQ124: 5 | AR124: 3 | AS124: 4 | AT124: - | AU124: - | AV124: 67.2 | AW124: 70.7 | AX124: 64.8 | AY124: 15 | AZ124: - | BA124: - | BB124: - | BC124: - | BD124: - | BE124: - | BF124: - | BG124: - | BH124: 1 | BI124: 2 | BJ124: 5 | BK124: 3 | BL124: 4 | BM124: - | BN124: - | BO124: 68.9 | BP124: 72.5 | BQ124: 66.4 | BR124: 14 | BS124: - | BT124: - | BU124: - | BV124: - | BW124: - | BX124: - | BY124: - | BZ124: 2 | CA124: 1 | CB124: 3 | CC124: 1 | CD124: 3 | CE124: 4 | CF124: - | CG124: - | CH124: 8 | CI124: - | CJ124: - | CK124: - | CL124: - | CM124: - | CN124: 1 | CO124: - | CP124: 2 | CQ124: 1 | CR124: 1 | CS124: 3 | CT124: - | CU124: - | DC124: 43 | DD124: 32 | DE124: 16 | DF124: 13 | DG124: 3 | DH124: 2 | DI124: 4 | DJ124: 5 | DK124: 9 | DL124: 7 | DM124: - | DN124: - | DO124: - | DP124: 2 | DQ124: - | DR124: - | DS124: - | DT124: - | DU124: - | DV124: - | DW124: - | DX124: - | DY124: - | DZ124: - | EA124: 14 | EB124: 1,165 | EC124: 709 | ED124: 426 | EE124: 30 | EF124: 20 | EG124: 15 | EH124: 6 | EI124: 7 | EJ124: 2 | EK124: - | EL124: 2 | EM124: 3 | EN124: 23 | EO124: 17 | EP124: 10 | EQ124: 6 | ER124: 1 | ES124: 2 | ET124: 2 | EU124: 2
A125: 茨城県 | B125: 水戸市 | C125: 緑岡村 | D125: 第一開拓 | E125: 7 | F125: - | G125: - | H125: - | I125: - | J125: - | K125: - | L125: 7 | M125: - | N125: - | O125: - | P125: - | Q125: - | R125: - | S125: - | T125: - | U125: - | V125: - | W125: - | X125: - | Y125: - | Z125: - | AA125: - | AB125: - | AC125: … | AD125: … | AE125: … | AF125: - | AG125: - | AH125: - | AI125: - | AJ125: - | AK125: - | AL125: - | AM125: - | AN125: - | AO125: - | AP125: - | AQ125: - | AR125: - | AS125: - | AT125: - | AU125: - | AV125: … | AW125: … | AX125: … | AY125: - | AZ125: - | BA125: - | BB125: - | BC125: - | BD125: - | BE125: - | BF125: - | BG125: - | BH125: - | BI125: - | BJ125: - | BK125: - | BL125: - | BM125: - | BN125: - | BO125: … | BP125: … | BQ125: … | BR125: - | BS125: - | BT125: - | BU125: - | BV125: - | BW125: - | BX125: - | BY125: - | BZ125: - | CA125: - | CB125: - | CC125: - | CD125: - | CE125: - | CF125: - | CG125: - | CH125: - | CI125: - | CJ125: - | CK125: - | CL125: - | CM125: - | CN125: - | CO125: - | CP125: - | CQ125: - | CR125: - | CS125: - | CT125: - | CU125: - | DC125: - | DD125: - | DE125: - | DF125: - | DG125: - | DH125: - | DI125: - | DJ125: - | DK125: - | DL125: - | DM125: - | DN125: - | DO125: - | DP125: - | DQ125: - | DR125: - | DS125: - | DT125: - | DU125: - | DV125: - | DW125: - | DX125: - | DY125: - | DZ125: - | EA125: - | EB125: - | EC125: - | ED125: - | EE125: - | EF125: - | EG125: - | EH125: - | EI125: - | EJ125: - | EK125: - | EL125: - | EM125: - | EN125: - | EO125: - | EP125: - | EQ125: - | ER125: - | ES125: - | ET125: - | EU125: -
A126: 茨城県 | B126: 水戸市 | C126: 緑岡村 | D126: 第二開拓 | E126: 10 | F126: 6 | G126: - | H126: - | I126: 3 | J126: - | K126: 3 | L126: 4 | M126: 16 | N126: - | O126: - | P126: - | Q126: - | R126: - | S126: 1 | T126: 2 | U126: 1 | V126: 3 | W126: - | X126: 2 | Y126: 2 | Z126: 4 | AA126: 1 | AB126: - | AC126: 64.6 | AD126: 62.7 | AE126: 67.1 | AF126: 9 | AG126: - | AH126: - | AI126: - | AJ126: - | AK126: - | AL126: - | AM126: - | AN126: - | AO126: 1 | AP126: - | AQ126: 1 | AR126: 2 | AS126: 4 | AT126: 1 | AU126: - | AV126: 73.4 | AW126: 73.3 | AX126: 73.6 | AY126: 8 | AZ126: - | BA126: - | BB126: - | BC126: - | BD126: - | BE126: - | BF126: - | BG126: - | BH126: 1 | BI126: - | BJ126: 1 | BK126: 2 | BL126: 3 | BM126: 1 | BN126: - | BO126: 72.9 | BP126: 73.3 | BQ126: 72.5 | BR126: 6 | BS126: - | BT126: - | BU126: - | BV126: - | BW126: - | BX126: - | BY126: - | BZ126: - | CA126: 2 | CB126: - | CC126: 1 | CD126: - | CE126: 3 | CF126: - | CG126: - | CH126: 4 | CI126: - | CJ126: - | CK126: - | CL126: - | CM126: - | CN126: - | CO126: - | CP126: - | CQ126: 1 | CR126: - | CS126: 3 | CT126: - | CU126: - | DC126: 19 | DD126: 17 | DE126: 8 | DF126: 8 | DG126: 1 | DH126: 1 | DI126: - | DJ126: 1 | DK126: 6 | DL126: 4 | DM126: - | DN126: - | DO126: - | DP126: - | DQ126: 2 | DR126: - | DS126: - | DT126: - | DU126: - | DV126: - | DW126: - | DX126: - | DY126: - | DZ126: - | EA126: 6 | EB126: 440 | EC126: 338 | ED126: 99 | EE126: 3 | EF126: 10 | EG126: 10 | EH126: 4 | EI126: 5 | EJ126: 1 | EK126: - | EL126: - | EM126: - | EN126: 9 | EO126: 7 | EP126: 4 | EQ126: 3 | ER126: - | ES126: 1 | ET126: - | EU126: 1
A127: 茨城県 | B127: 水戸市 | C127: 緑岡村 | D127: 原，新田 | E127: 22 | F127: 16 | G127: 3 | H127: 2 | I127: 2 | J127: - | K127: 11 | L127: 6 | M127: 43 | N127: 1 | O127: 3 | P127: - | Q127: - | R127: 2 | S127: 2 | T127: 3 | U127: 5 | V127: 6 | W127: 3 | X127: 4 | Y127: 4 | Z127: 9 | AA127: 1 | AB127: - | AC127: 58.1 | AD127: 55.5 | AE127: 62.1 | AF127: 22 | AG127: - | AH127: - | AI127: - | AJ127: - | AK127: 1 | AL127: - | AM127: 1 | AN127: - | AO127: 2 | AP127: 1 | AQ127: 4 | AR127: 4 | AS127: 8 | AT127: 1 | AU127: - | AV127: 69.0 | AW127: 67.0 | AX127: 70.9 | AY127: 17 | AZ127: - | BA127: - | BB127: - | BC127: - | BD127: 1 | BE127: - | BF127: 1 | BG127: - | BH127: 1 | BI127: 1 | BJ127: 3 | BK127: 3 | BL127: 7 | BM127: - | BN127: - | BO127: 68.4 | BP127: 66.1 | BQ127: 71.7 | BR127: 16 | BS127: - | BT127: - | BU127: - | BV127: - | BW127: - | BX127: - | BY127: - | BZ127: - | CA127: 2 | CB127: 2 | CC127: 4 | CD127: 2 | CE127: 6 | CF127: - | CG127: - | CH127: 11 | CI127: - | CJ127: - | CK127: - | CL127: - | CM127: - | CN127: - | CO127: 2 | CP127: 2 | CQ127: 2 | CR127: 1 | CS127: 4 | CT127: - | CU127: - | DC127: 60 | DD127: 40 | DE127: 17 | DF127: 22 | DG127: 1 | DH127: 6 | DI127: 6 | DJ127: 8 | DK127: 13 | DL127: 11 | DM127: - | DN127: 1 | DO127: - | DP127: - | DQ127: - | DR127: - | DS127: - | DT127: - | DU127: 1 | DV127: - | DW127: - | DX127: - | DY127: - | DZ127: - | EA127: 16 | EB127: 1,408 | EC127: 858 | ED127: 550 | EE127: - | EF127: 30 | EG127: 25 | EH127: 10 | EI127: 14 | EJ127: 1 | EK127: - | EL127: 4 | EM127: 1 | EN127: 30 | EO127: 15 | EP127: 7 | EQ127: 8 | ER127: - | ES127: 6 | ET127: 2 | EU127: 7
A128: 茨城県 | B128: 水戸市 | C128: 緑岡村 | D128: 檜木山，上坪，表原 | E128: 26 | F128: 15 | G128: 1 | H128: 1 | I128: 7 | J128: 3 | K128: 7 | L128: 11 | M128: 38 | N128: - | O128: 3 | P128: - | Q128: 2 | R128: 2 | S128: 4 | T128: 4 | U128: 1 | V128: 3 | W128: 4 | X128: 6 | Y128: 3 | Z128: 6 | AA128: - | AB128: - | AC128: 55.3 | AD128: 55.3 | AE128: 55.3 | AF128: 18 | AG128: - | AH128: - | AI128: - | AJ128: 2 | AK128: - | AL128: - | AM128: - | AN128: - | AO128: 1 | AP128: 1 | AQ128: 6 | AR128: 2 | AS128: 6 | AT128: - | AU128: - | AV128: 65.8 | AW128: 67.6 | AX128: 63.6 | AY128: 16 | AZ128: - | BA128: - | BB128: - | BC128: 2 | BD128: - | BE128: - | BF128: - | BG128: - | BH128: 1 | BI128: - | BJ128: 5 | BK128: 2 | BL128: 6 | BM128: - | BN128: - | BO128: 65.8 | BP128: 67.6 | BQ128: 62.7 | BR128: 15 | BS128: - | BT128: - | BU128: - | BV128: - | BW128: - | BX128: - | BY128: - | BZ128: 1 | CA128: 1 | CB128: 2 | CC128: 3 | CD128: 4 | CE128: 4 | CF128: - | CG128: - | CH128: 13 | CI128: - | CJ128: - | CK128: - | CL128: - | CM128: - | CN128: 1 | CO128: 1 | CP128: 1 | CQ128: 3 | CR128: 4 | CS128: 3 | CT128: - | CU128: - | DC128: 52 | DD128: 42 | DE128: 16 | DF128: 24 | DG128: 2 | DH128: 4 | DI128: 3 | DJ128: 3 | DK128: 14 | DL128: 11 | DM128: - | DN128: - | DO128: - | DP128: 1 | DQ128: 1 | DR128: - | DS128: 1 | DT128: - | DU128: - | DV128: - | DW128: - | DX128: - | DY128: - | DZ128: - | EA128: 15 | EB128: 1,253 | EC128: 745 | ED128: 508 | EE128: - | EF128: 27 | EG128: 26 | EH128: 10 | EI128: 14 | EJ128: 2 | EK128: - | EL128: - | EM128: 1 | EN128: 25 | EO128: 16 | EP128: 6 | EQ128: 10 | ER128: - | ES128: 4 | ET128: 3 | EU128: 2
A129: 茨城県 | B129: 水戸市 | C129: 緑岡村 | D129: 檜木山，中部 | E129: 15 | F129: 6 | G129: - | H129: - | I129: 1 | J129: 1 | K129: 5 | L129: 9 | M129: 16 | N129: - | O129: - | P129: 2 | Q129: 1 | R129: 1 | S129: - | T129: - | U129: - | V129: 1 | W129: 2 | X129: 2 | Y129: 1 | Z129: 3 | AA129: 1 | AB129: 2 | AC129: 62.2 | AD129: 69.9 | AE129: 54.5 | AF129: 9 | AG129: - | AH129: - | AI129: - | AJ129: - | AK129: - | AL129: - | AM129: - | AN129: - | AO129: - | AP129: 1 | AQ129: 2 | AR129: 1 | AS129: 2 | AT129: 1 | AU129: 2 | AV129: 75.3 | AW129: 75.5 | AX129: 75.0 | AY129: 7 | AZ129: - | BA129: - | BB129: - | BC129: - | BD129: - | BE129: - | BF129: - | BG129: - | BH129: - | BI129: 1 | BJ129: 2 | BK129: 1 | BL129: 2 | BM129: - | BN129: 1 | BO129: 72.6 | BP129: 72.6 | BQ129: 72.5 | BR129: 6 | BS129: - | BT129: - | BU129: - | BV129: - | BW129: - | BX129: - | BY129: - | BZ129: - | CA129: - | CB129: - | CC129: 1 | CD129: 1 | CE129: 2 | CF129: - | CG129: 2 | CH129: 3 | CI129: - | CJ129: - | CK129: - | CL129: - | CM129: - | CN129: - | CO129: - | CP129: - | CQ129: - | CR129: 1 | CS129: 1 | CT129: - | CU129: 1 | DC129: 20 | DD129: 16 | DE129: 7 | DF129: 4 | DG129: 5 | DH129: 3 | DI129: - | DJ129: 1 | DK129: 3 | DL129: 2 | DM129: - | DN129: - | DO129: - | DP129: - | DQ129: - | DR129: - | DS129: 1 | DT129: - | DU129: - | DV129: - | DW129: - | DX129: - | DY129: - | DZ129: - | EA129: 6 | EB129: 355 | EC129: 82 | ED129: 273 | EE129: - | EF129: 10 | EG129: 9 | EH129: 5 | EI129: 3 | EJ129: 1 | EK129: - | EL129: - | EM129: 1 | EN129: 10 | EO129: 7 | EP129: 2 | EQ129: 1 | ER129: 4 | ES129: 3 | ET129: - | EU129: -
A130: 茨城県 | B130: 水戸市 | C130: 緑岡村 | D130: 東，山中 | E130: 28 | F130: 24 | G130: 2 | H130: 1 | I130: 6 | J130: 2 | K130: 16 | L130: 4 | M130: 62 | N130: 3 | O130: - | P130: - | Q130: 1 | R130: 5 | S130: 1 | T130: 4 | U130: 6 | V130: 7 | W130: 12 | X130: 6 | Y130: 6 | Z130: 3 | AA130: 4 | AB130: 4 | AC130: 59.6 | AD130: 59.8 | AE130: 59.3 | AF130: 32 | AG130: - | AH130: - | AI130: - | AJ130: - | AK130: 1 | AL130: - | AM130: 1 | AN130: 1 | AO130: 2 | AP130: 6 | AQ130: 4 | AR130: 6 | AS130: 3 | AT130: 4 | AU130: 4 | AV130: 70.1 | AW130: 74.7 | AX130: 66.1 | AY130: 21 | AZ130: - | BA130: - | BB130: - | BC130: - | BD130: - | BE130: - | BF130: - | BG130: - | BH130: 1 | BI130: 5 | BJ130: 4 | BK130: 5 | BL130: 2 | BM130: 2 | BN130: 2 | BO130: 71.3 | BP130: 73.8 | BQ130: 67.3 | BR130: 24 | BS130: - | BT130: - | BU130: - | BV130: - | BW130: - | BX130: - | BY130: 1 | BZ130: 3 | CA130: 2 | CB130: 6 | CC130: 3 | CD130: 4 | CE130: 1 | CF130: 1 | CG130: 3 | CH130: 17 | CI130: - | CJ130: - | CK130: - | CL130: - | CM130: 1 | CN130: 3 | CO130: - | CP130: 4 | CQ130: 1 | CR130: 3 | CS130: 1 | CT130: 1 | CU130: 3 | DC130: 85 | DD130: 54 | DE130: 21 | DF130: 30 | DG130: 3 | DH130: 12 | DI130: 7 | DJ130: 12 | DK130: 17 | DL130: 16 | DM130: - | DN130: - | DO130: - | DP130: - | DQ130: 1 | DR130: - | DS130: - | DT130: - | DU130: - | DV130: - | DW130: - | DX130: - | DY130: - | DZ130: - | EA130: 24 | EB130: 1,591 | EC130: 1,110 | ED130: 471 | EE130: 10 | EF130: 37 | EG130: 30 | EH130: 13 | EI130: 15 | EJ130: 2 | EK130: - | EL130: 3 | EM130: 4 | EN130: 48 | EO130: 24 | EP130: 8 | EQ130: 15 | ER130: 1 | ES130: 12 | ET130: 4 | EU130: 8
A131: 茨城県 | B131: 水戸市 | C131: 緑岡村 | D131: 田向井 | E131: 19 | F131: 9 | G131: 3 | H131: 1 | I131: - | J131: - | K131: 6 | L131: 10 | M131: 28 | N131: - | O131: 3 | P131: - | Q131: - | R131: 3 | S131: 2 | T131: - | U131: 5 | V131: 1 | W131: 1 | X131: 7 | Y131: 3 | Z131: 3 | AA131: - | AB131: - | AC131: 55.6 | AD131: 53.1 | AE131: 58.1 | AF131: 14 | AG131: - | AH131: - | AI131: - | AJ131: - | AK131: 1 | AL131: - | AM131: - | AN131: 1 | AO131: 1 | AP131: 1 | AQ131: 5 | AR131: 3 | AS131: 2 | AT131: - | AU131: - | AV131: 65.4 | AW131: 68.5 | AX131: 63.1 | AY131: 12 | AZ131: - | BA131: - | BB131: - | BC131: - | BD131: 1 | BE131: - | BF131: - | BG131: 1 | BH131: 1 | BI131: 1 | BJ131: 5 | BK131: 2 | BL131: 1 | BM131: - | BN131: - | BO131: 63.8 | BP131: 66.4 | BQ131: 62.0 | BR131: 9 | BS131: - | BT131: - | BU131: - | BV131: - | BW131: - | BX131: - | BY131: - | BZ131: 2 | CA131: 1 | CB131: - | CC131: 4 | CD131: 1 | CE131: 1 | CF131: - | CG131: - | CH131: 8 | CI131: - | CJ131: - | CK131: - | CL131: - | CM131: - | CN131: 2 | CO131: 1 | CP131: - | CQ131: 4 | CR131: - | CS131: 1 | CT131: - | CU131: - | DC131: 35 | DD131: 24 | DE131: 12 | DF131: 9 | DG131: 3 | DH131: 2 | DI131: 1 | DJ131: 8 | DK131: 5 | DL131: 4 | DM131: - | DN131: - | DO131: - | DP131: 1 | DQ131: - | DR131: - | DS131: - | DT131: - | DU131: - | DV131: - | DW131: - | DX131: - | DY131: - | DZ131: - | EA131: 9 | EB131: 1,912 | EC131: 976 | ED131: 936 | EE131: - | EF131: 16 | EG131: 12 | EH131: 5 | EI131: 4 | EJ131: 3 | EK131: - | EL131: 1 | EM131: 3 | EN131: 19 | EO131: 12 | EP131: 7 | EQ131: 5 | ER131: - | ES131: 2 | ET131: - | EU131: 5
A132: 茨城県 | B132: 水戸市 | C132: 緑岡村 | D132: 向井 | E132: 14 | F132: 12 | G132: - | H132: - | I132: 3 | J132: 2 | K132: 9 | L132: 2 | M132: 33 | N132: - | O132: 1 | P132: 5 | Q132: 1 | R132: - | S132: 2 | T132: 2 | U132: 2 | V132: 6 | W132: 2 | X132: 5 | Y132: 4 | Z132: 1 | AA132: 2 | AB132: - | AC132: 54.7 | AD132: 53.8 | AE132: 56.1 | AF132: 16 | AG132: - | AH132: - | AI132: 1 | AJ132: 1 | AK132: - | AL132: - | AM132: 1 | AN132: - | AO132: 1 | AP132: 1 | AQ132: 4 | AR132: 4 | AS132: 1 | AT132: 2 | AU132: - | AV132: 64.1 | AW132: 65.2 | AX132: 62.7 | AY132: 16 | AZ132: - | BA132: - | BB132: 1 | BC132: 1 | BD132: - | BE132: - | BF132: 1 | BG132: - | BH132: 1 | BI132: 1 | BJ132: 4 | BK132: 4 | BL132: 1 | BM132: 2 | BN132: - | BO132: 64.1 | BP132: 65.2 | BQ132: 62.7 | BR132: 12 | BS132: - | BT132: - | BU132: - | BV132: - | BW132: - | BX132: - | BY132: - | BZ132: - | CA132: 4 | CB132: - | CC132: 2 | CD132: 3 | CE132: 1 | CF132: 2 | CG132: - | CH132: 6 | CI132: - | CJ132: - | CK132: - | CL132: - | CM132: - | CN132: - | CO132: 3 | CP132: - | CQ132: 1 | CR132: 2 | CS132: - | CT132: - | CU132: - | DC132: 42 | DD132: 38 | DE132: 16 | DF132: 21 | DG132: 1 | DH132: 1 | DI132: - | DJ132: 3 | DK132: 9 | DL132: 9 | DM132: - | DN132: - | DO132: - | DP132: - | DQ132: - | DR132: - | DS132: - | DT132: - | DU132: - | DV132: - | DW132: - | DX132: - | DY132: - | DZ132: - | EA132: 12 | EB132: 1,518 | EC132: 1,062 | ED132: 456 | EE132: - | EF132: 22 | EG132: 22 | EH132: 9 | EI132: 12 | EJ132: 1 | EK132: - | EL132: - | EM132: - | EN132: 20 | EO132: 16 | EP132: 7 | EQ132: 9 | ER132: - | ES132: 1 | ET132: - | EU132: 3
A133: 茨城県 | B133: 水戸市 | C133: 緑岡村 | D133: 小吹 | E133: 67 | F133: 51 | G133: 7 | H133: 5 | I133: 14 | J133: 2 | K133: 30 | L133: 16 | M133: 140 | N133: - | O133: 3 | P133: 3 | Q133: 3 | R133: 7 | S133: 7 | T133: 7 | U133: 12 | V133: 22 | W133: 9 | X133: 13 | Y133: 19 | Z133: 15 | AA133: 17 | AB133: 3 | AC133: 61.3 | AD133: 61.1 | AE133: 61.4 | AF133: 95 | AG133: - | AH133: - | AI133: - | AJ133: 2 | AK133: 4 | AL133: 3 | AM133: 3 | AN133: 4 | AO133: 7 | AP133: 8 | AQ133: 11 | AR133: 18 | AS133: 15 | AT133: 17 | AU133: 3 | AV133: 67.5 | AW133: 68.8 | AX133: 66.3 | AY133: 74 | AZ133: - | BA133: - | BB133: - | BC133: - | BD133: 4 | BE133: 3 | BF133: 1 | BG133: 3 | BH133: 5 | BI133: 7 | BJ133: 8 | BK133: 15 | BL133: 13 | BM133: 14 | BN133: 1 | BO133: 68.0 | BP133: 67.6 | BQ133: 68.4 | BR133: 51 | BS133: - | BT133: - | BU133: - | BV133: - | BW133: - | BX133: 2 | BY133: - | BZ133: 1 | CA133: 5 | CB133: 5 | CC133: 8 | CD133: 9 | CE133: 5 | CF133: 14 | CG133: 2 | CH133: 32 | CI133: - | CJ133: - | CK133: - | CL133: - | CM133: - | CN133: 1 | CO133: 2 | CP133: 2 | CQ133: 6 | CR133: 5 | CS133: 4 | CT133: 10 | CU133: 2 | DC133: 186 | DD133: 137 | DE133: 74 | DF133: 63 | DG133: - | DH133: 19 | DI133: 9 | DJ133: 21 | DK133: 40 | DL133: 33 | DM133: - | DN133: 1 | DO133: - | DP133: 4 | DQ133: 1 | DR133: - | DS133: - | DT133: - | DU133: - | DV133: - | DW133: - | DX133: 1 | DY133: - | DZ133: - | EA133: 51 | EB133: 7,136 | EC133: 5,176 | ED133: 1,950 | EE133: 10 | EF133: 84 | EG133: 72 | EH133: 36 | EI133: 36 | EJ133: - | EK133: - | EL133: 4 | EM133: 8 | EN133: 102 | EO133: 65 | EP133: 38 | EQ133: 27 | ER133: - | ES133: 19 | ET133: 5 | EU133: 13
A134: 茨城県 | B134: 水戸市 | C134: 緑岡村 | D134: 水源 | E134: 6 | F134: 6 | G134: 3 | H134: 2 | I134: 1 | J134: 1 | K134: 2 | L134: - | M134: 13 | N134: 1 | O134: - | P134: - | Q134: - | R134: - | S134: 2 | T134: 2 | U134: 2 | V134: - | W134: 3 | X134: 1 | Y134: 1 | Z134: 1 | AA134: - | AB134: - | AC134: 53.5 | AD134: 56.6 | AE134: 48.4 | AF134: 8 | AG134: - | AH134: - | AI134: - | AJ134: - | AK134: - | AL134: - | AM134: 2 | AN134: 1 | AO134: - | AP134: 3 | AQ134: - | AR134: 1 | AS134: 1 | AT134: - | AU134: - | AV134: 60.3 | AW134: 59.4 | AX134: 61.7 | AY134: 8 | AZ134: - | BA134: - | BB134: - | BC134: - | BD134: - | BE134: - | BF134: 2 | BG134: 1 | BH134: - | BI134: 3 | BJ134: - | BK134: 1 | BL134: 1 | BM134: - | BN134: - | BO134: 60.3 | BP134: 59.4 | BQ134: 61.7 | BR134: 6 | BS134: - | BT134: - | BU134: - | BV134: - | BW134: - | BX134: - | BY134: - | BZ134: 1 | CA134: - | CB134: 2 | CC134: 1 | CD134: 1 | CE134: 1 | CF134: - | CG134: - | CH134: 5 | CI134: - | CJ134: - | CK134: - | CL134: - | CM134: - | CN134: - | CO134: - | CP134: 2 | CQ134: 1 | CR134: 1 | CS134: 1 | CT134: - | CU134: - | DC134: 15 | DD134: 14 | DE134: 8 | DF134: 6 | DG134: - | DH134: - | DI134: 1 | DJ134: - | DK134: 5 | DL134: 2 | DM134: - | DN134: - | DO134: - | DP134: 1 | DQ134: 2 | DR134: - | DS134: - | DT134: - | DU134: - | DV134: - | DW134: - | DX134: - | DY134: - | DZ134: - | EA134: 6 | EB134: 863 | EC134: 311 | ED134: 552 | EE134: - | EF134: 8 | EG134: 8 | EH134: 5 | EI134: 3 | EJ134: - | EK134: - | EL134: - | EM134: - | EN134: 7 | EO134: 6 | EP134: 3 | EQ134: 3 | ER134: - | ES134: - | ET134: 1 | EU134: -
A135: 茨城県 | B135: 水戸市 | C135: 緑岡村 | D135: 見川町 | E135: 21 | F135: 5 | G135: 1 | H135: 1 | I135: - | J135: - | K135: 4 | L135: 16 | M135: 12 | N135: 1 | O135: - | P135: - | Q135: - | R135: - | S135: - | T135: - | U135: 3 | V135: - | W135: - | X135: - | Y135: 1 | Z135: 4 | AA135: 3 | AB135: - | AC135: 67.3 | AD135: 65.1 | AE135: 71.8 | AF135: 8 | AG135: - | AH135: - | AI135: - | AJ135: - | AK135: - | AL135: - | AM135: - | AN135: 1 | AO135: - | AP135: - | AQ135: - | AR135: 1 | AS135: 3 | AT135: 3 | AU135: - | AV135: 75.8 | AW135: 74.8 | AX135: 78.5 | AY135: 8 | AZ135: - | BA135: - | BB135: - | BC135: - | BD135: - | BE135: - | BF135: - | BG135: 1 | BH135: - | BI135: - | BJ135: - | BK135: 1 | BL135: 3 | BM135: 3 | BN135: - | BO135: 75.8 | BP135: 74.8 | BQ135: 78.5 | BR135: 5 | BS135: - | BT135: - | BU135: - | BV135: - | BW135: - | BX135: - | BY135: - | BZ135: - | CA135: - | CB135: - | CC135: - | CD135: 1 | CE135: 1 | CF135: 3 | CG135: - | CH135: 3 | CI135: - | CJ135: - | CK135: - | CL135: - | CM135: - | CN135: - | CO135: - | CP135: - | CQ135: - | CR135: - | CS135: - | CT135: 3 | CU135: - | DC135: 12 | DD135: 10 | DE135: 8 | DF135: 2 | DG135: - | DH135: 1 | DI135: 1 | DJ135: - | DK135: 4 | DL135: 2 | DM135: - | DN135: 1 | DO135: - | DP135: 1 | DQ135: - | DR135: - | DS135: - | DT135: - | DU135: - | DV135: - | DW135: - | DX135: - | DY135: - | DZ135: - | EA135: 5 | EB135: 242 | EC135: 74 | ED135: 168 | EE135: - | EF135: 8 | EG135: 7 | EH135: 6 | EI135: 1 | EJ135: - | EK135: - | EL135: 1 | EM135: - | EN135: 4 | EO135: 3 | EP135: 2 | EQ135: 1 | ER135: - | ES135: 1 | ET135: - | EU135: -
A136: 茨城県 | B136: 水戸市 | C136: 緑岡村 | D136: 丹下 | E136: 28 | F136: 23 | G136: 2 | H136: 2 | I136: 7 | J136: 2 | K136: 14 | L136: 5 | M136: 67 | N136: - | O136: 3 | P136: 5 | Q136: - | R136: 1 | S136: 1 | T136: 6 | U136: 12 | V136: 9 | W136: 5 | X136: 1 | Y136: 4 | Z136: 9 | AA136: 9 | AB136: 2 | AC136: 59.3 | AD136: 58.7 | AE136: 60.0 | AF136: 35 | AG136: - | AH136: - | AI136: - | AJ136: - | AK136: - | AL136: - | AM136: 4 | AN136: 4 | AO136: 2 | AP136: 1 | AQ136: 1 | AR136: 4 | AS136: 8 | AT136: 9 | AU136: 2 | AV136: 70.2 | AW136: 74.0 | AX136: 67.7 | AY136: 23 | AZ136: - | BA136: - | BB136: - | BC136: - | BD136: - | BE136: - | BF136: 4 | BG136: 2 | BH136: 2 | BI136: 1 | BJ136: 1 | BK136: 4 | BL136: 3 | BM136: 6 | BN136: - | BO136: 67.1 | BP136: 70.7 | BQ136: 64.3 | BR136: 23 | BS136: - | BT136: - | BU136: - | BV136: - | BW136: - | BX136: - | BY136: 2 | BZ136: 5 | CA136: 3 | CB136: 5 | CC136: - | CD136: 1 | CE136: 2 | CF136: 5 | CG136: - | CH136: 9 | CI136: - | CJ136: - | CK136: - | CL136: - | CM136: 1 | CN136: - | CO136: 3 | CP136: 2 | CQ136: - | CR136: - | CS136: - | CT136: 3 | CU136: - | DC136: 92 | DD136: 58 | DE136: 23 | DF136: 34 | DG136: 1 | DH136: 6 | DI136: 12 | DJ136: 16 | DK136: 18 | DL136: 9 | DM136: - | DN136: - | DO136: - | DP136: 1 | DQ136: 2 | DR136: 5 | DS136: - | DT136: - | DU136: 1 | DV136: - | DW136: - | DX136: - | DY136: - | DZ136: - | EA136: 23 | EB136: 2,713 | EC136: 1,364 | ED136: 1,014 | EE136: 335 | EF136: 45 | EG136: 31 | EH136: 10 | EI136: 21 | EJ136: - | EK136: - | EL136: 6 | EM136: 8 | EN136: 47 | EO136: 27 | EP136: 13 | EQ136: 13 | ER136: 1 | ES136: 6 | ET136: 6 | EU136: 8
A137: 茨城県 | B137: 水戸市 | C137: 緑岡村 | D137: 裡見和 | E137: 17 | F137: 9 | G137: - | H137: - | I137: 1 | J137: - | K137: 8 | L137: 8 | M137: 30 | N137: 1 | O137: 1 | P137: 3 | Q137: - | R137: - | S137: 2 | T137: 2 | U137: 4 | V137: 3 | W137: 2 | X137: 2 | Y137: 3 | Z137: 3 | AA137: 2 | AB137: 2 | AC137: 57.5 | AD137: 51.6 | AE137: 63.3 | AF137: 15 | AG137: - | AH137: - | AI137: - | AJ137: - | AK137: - | AL137: - | AM137: - | AN137: 2 | AO137: - | AP137: 2 | AQ137: 1 | AR137: 3 | AS137: 3 | AT137: 2 | AU137: 2 | AV137: 72.4 | AW137: 74.4 | AX137: 71.4 | AY137: 12 | AZ137: - | BA137: - | BB137: - | BC137: - | BD137: - | BE137: - | BF137: - | BG137: 1 | BH137: - | BI137: 2 | BJ137: 1 | BK137: 2 | BL137: 3 | BM137: 2 | BN137: 1 | BO137: 72.8 | BP137: 74.4 | BQ137: 71.6 | BR137: 9 | BS137: - | BT137: - | BU137: - | BV137: - | BW137: - | BX137: - | BY137: - | BZ137: 1 | CA137: 2 | CB137: 1 | CC137: 1 | CD137: 1 | CE137: 2 | CF137: - | CG137: 1 | CH137: 8 | CI137: - | CJ137: - | CK137: - | CL137: - | CM137: - | CN137: 1 | CO137: 2 | CP137: 1 | CQ137: - | CR137: 1 | CS137: 2 | CT137: - | CU137: 1 | DC137: 37 | DD137: 24 | DE137: 12 | DF137: 11 | DG137: 1 | DH137: 6 | DI137: 5 | DJ137: 2 | DK137: 4 | DL137: 2 | DM137: - | DN137: - | DO137: - | DP137: - | DQ137: - | DR137: 2 | DS137: - | DT137: - | DU137: - | DV137: - | DW137: - | DX137: - | DY137: - | DZ137: - | EA137: 9 | EB137: 905 | EC137: 45 | ED137: 439 | EE137: 421 | EF137: 17 | EG137: 13 | EH137: 5 | EI137: 8 | EJ137: - | EK137: - | EL137: 4 | EM137: - | EN137: 20 | EO137: 11 | EP137: 7 | EQ137: 3 | ER137: 1 | ES137: 6 | ET137: 1 | EU137: 2
A138: 茨城県 | B138: 水戸市 | C138: 緑岡村 | D138: 表見和 | E138: 5 | F138: 3 | G138: - | H138: - | I138: - | J138: - | K138: 3 | L138: 2 | M138: 6 | N138: - | O138: - | P138: - | Q138: - | R138: - | S138: - | T138: - | U138: - | V138: - | W138: - | X138: 3 | Y138: 1 | Z138: 2 | AA138: - | AB138: - | AC138: 71.5 | AD138: 72.3 | AE138: 70.7 | AF138: 5 | AG138: - | AH138: - | AI138: - | AJ138: - | AK138: - | AL138: - | AM138: - | AN138: - | AO138: - | AP138: - | AQ138: 2 | AR138: 1 | AS138: 2 | AT138: - | AU138: - | AV138: 72.0 | AW138: 72.3 | AX138: 71.5 | AY138: 5 | AZ138: - | BA138: - | BB138: - | BC138: - | BD138: - | BE138: - | BF138: - | BG138: - | BH138: - | BI138: - | BJ138: 2 | BK138: 1 | BL138: 2 | BM138: - | BN138: - | BO138: 72.0 | BP138: 72.3 | BQ138: 71.5 | BR138: 3 | BS138: - | BT138: - | BU138: - | BV138: - | BW138: - | BX138: - | BY138: - | BZ138: - | CA138: - | CB138: - | CC138: 1 | CD138: 1 | CE138: 1 | CF138: - | CG138: - | CH138: 2 | CI138: - | CJ138: - | CK138: - | CL138: - | CM138: - | CN138: - | CO138: - | CP138: - | CQ138: 1 | CR138: 1 | CS138: - | CT138: - | CU138: - | DC138: 6 | DD138: 5 | DE138: 5 | DF138: - | DG138: - | DH138: 1 | DI138: - | DJ138: - | DK138: 2 | DL138: 1 | DM138: - | DN138: 1 | DO138: - | DP138: - | DQ138: - | DR138: - | DS138: - | DT138: - | DU138: - | DV138: - | DW138: - | DX138: - | DY138: - | DZ138: - | EA138: 3 | EB138: 218 | EC138: 96 | ED138: 70 | EE138: 52 | EF138: 3 | EG138: 3 | EH138: 3 | EI138: - | EJ138: - | EK138: - | EL138: - | EM138: - | EN138: 3 | EO138: 2 | EP138: 2 | EQ138: - | ER138: - | ES138: 1 | ET138: - | EU138: -
A139: 茨城県 | B139: 水戸市 | C139: 飯富村 | E139: 313 | F139: 172 | G139: 34 | H139: 29 | I139: 32 | J139: 13 | K139: 106 | L139: 141 | M139: 440 | N139: 2 | O139: 9 | P139: 5 | Q139: 9 | R139: 16 | S139: 23 | T139: 35 | U139: 43 | V139: 43 | W139: 32 | X139: 42 | Y139: 76 | Z139: 56 | AA139: 33 | AB139: 16 | AC139: 61.8 | AD139: 61.1 | AE139: 62.6 | AF139: 295 | AG139: - | AH139: 2 | AI139: - | AJ139: 3 | AK139: 5 | AL139: 6 | AM139: 8 | AN139: 17 | AO139: 21 | AP139: 22 | AQ139: 34 | AR139: 73 | AS139: 56 | AT139: 32 | AU139: 16 | AV139: 68.6 | AW139: 69.9 | AX139: 67.4 | AY139: 259 | AZ139: - | BA139: 1 | BB139: - | BC139: 3 | BD139: 4 | BE139: 3 | BF139: 5 | BG139: 14 | BH139: 19 | BI139: 19 | BJ139: 33 | BK139: 72 | BL139: 51 | BM139: 28 | BN139: 7 | BO139: 68.8 | BP139: 69.1 | BQ139: 68.6 | BR139: 172 | BS139: - | BT139: - | BU139: - | BV139: - | BW139: 1 | BX139: 4 | BY139: 7 | BZ139: 14 | CA139: 23 | CB139: 13 | CC139: 13 | CD139: 50 | CE139: 24 | CF139: 14 | CG139: 9 | CH139: 97 | CI139: - | CJ139: - | CK139: - | CL139: 1 | CM139: - | CN139: 8 | CO139: 10 | CP139: 8 | CQ139: 9 | CR139: 27 | CS139: 18 | CT139: 7 | CU139: 9 | DC139: 586 | DD139: 440 | DE139: 259 | DF139: 173 | DG139: 8 | DH139: 45 | DI139: 43 | DJ139: 58 | DK139: 159 | DL139: 93 | DM139: 1 | DN139: - | DO139: - | DP139: 49 | DQ139: 6 | DR139: 1 | DS139: 2 | DT139: 1 | DU139: 3 | DV139: 2 | DW139: 1 | DX139: - | DY139: - | DZ139: - | EA139: 172 | EB139: 25,315 | EC139: 8,231 | ED139: 16,992 | EE139: 92 | EF139: 288 | EG139: 241 | EH139: 132 | EI139: 102 | EJ139: 7 | EK139: 1 | EL139: 21 | EM139: 25 | EN139: 298 | EO139: 199 | EP139: 127 | EQ139: 71 | ER139: 1 | ES139: 44 | ET139: 22 | EU139: 33
A140: 茨城県 | B140: 水戸市 | C140: 飯富村 | D140: 藤井町 | E140: 77 | F140: 33 | G140: 6 | H140: 4 | I140: 6 | J140: 4 | K140: 21 | L140: 44 | M140: 91 | N140: - | O140: 2 | P140: 3 | Q140: 3 | R140: 4 | S140: 3 | T140: 5 | U140: 9 | V140: 8 | W140: 9 | X140: 10 | Y140: 11 | Z140: 13 | AA140: 8 | AB140: 3 | AC140: 61.3 | AD140: 62.1 | AE140: 60.3 | AF140: 59 | AG140: - | AH140: 1 | AI140: - | AJ140: - | AK140: 1 | AL140: 1 | AM140: 1 | AN140: 3 | AO140: 3 | AP140: 6 | AQ140: 8 | AR140: 11 | AS140: 13 | AT140: 8 | AU140: 3 | AV140: 69.3 | AW140: 72.4 | AX140: 66.0 | AY140: 54 | AZ140: - | BA140: - | BB140: - | BC140: - | BD140: 1 | BE140: 1 | BF140: 1 | BG140: 3 | BH140: 3 | BI140: 5 | BJ140: 8 | BK140: 11 | BL140: 13 | BM140: 7 | BN140: 1 | BO140: 69.3 | BP140: 71.2 | BQ140: 67.3 | BR140: 33 | BS140: - | BT140: - | BU140: - | BV140: - | BW140: - | BX140: - | BY140: 1 | BZ140: 4 | CA140: 4 | CB140: 5 | CC140: 2 | CD140: 8 | CE140: 6 | CF140: 3 | CG140: - | CH140: 17 | CI140: - | CJ140: - | CK140: - | CL140: - | CM140: - | CN140: 3 | CO140: 2 | CP140: 4 | CQ140: 1 | CR140: 3 | CS140: 3 | CT140: 1 | CU140: - | DC140: 115 | DD140: 92 | DE140: 54 | DF140: 37 | DG140: 1 | DH140: 3 | DI140: 8 | DJ140: 12 | DK140: 31 | DL140: 22 | DM140: - | DN140: - | DO140: - | DP140: 8 | DQ140: 1 | DR140: - | DS140: - | DT140: - | DU140: - | DV140: - | DW140: - | DX140: - | DY140: - | DZ140: - | EA140: 33 | EB140: 4,019 | EC140: 1,296 | ED140: 2,723 | EE140: - | EF140: 58 | EG140: 50 | EH140: 28 | EI140: 21 | EJ140: 1 | EK140: - | EL140: 3 | EM140: 5 | EN140: 57 | EO140: 42 | EP140: 26 | EQ140: 16 | ER140: - | ES140: 3 | ET140: 5 | EU140: 7
A141: 茨城県 | B141: 水戸市 | C141: 飯富村 | D141: 岩根町 | E141: 49 | F141: 23 | G141: 6 | H141: 5 | I141: 5 | J141: 1 | K141: 12 | L141: 26 | M141: 56 | N141: - | O141: 1 | P141: - | Q141: 1 | R141: 2 | S141: 3 | T141: 4 | U141: 4 | V141: 9 | W141: 3 | X141: 5 | Y141: 13 | Z141: 7 | AA141: 3 | AB141: 1 | AC141: 62.7 | AD141: 59.7 | AE141: 65.8 | AF141: 39 | AG141: - | AH141: 1 | AI141: - | AJ141: 1 | AK141: 1 | AL141: - | AM141: - | AN141: 2 | AO141: 4 | AP141: 3 | AQ141: 4 | AR141: 12 | AS141: 7 | AT141: 3 | AU141: 1 | AV141: 67.4 | AW141: 63.8 | AX141: 70.1 | AY141: 38 | AZ141: - | BA141: 1 | BB141: - | BC141: 1 | BD141: 1 | BE141: - | BF141: - | BG141: 2 | BH141: 4 | BI141: 3 | BJ141: 4 | BK141: 12 | BL141: 7 | BM141: 3 | BN141: - | BO141: 66.7 | BP141: 63.8 | BQ141: 69.0 | BR141: 23 | BS141: - | BT141: - | BU141: - | BV141: - | BW141: - | BX141: 2 | BY141: 1 | BZ141: 1 | CA141: 6 | CB141: 1 | CC141: 2 | CD141: 7 | CE141: 2 | CF141: 1 | CG141: - | CH141: 9 | CI141: - | CJ141: - | CK141: - | CL141: - | CM141: - | CN141: - | CO141: 2 | CP141: - | CQ141: 1 | CR141: 3 | CS141: 2 | CT141: 1 | CU141: - | DC141: 65 | DD141: 56 | DE141: 38 | DF141: 17 | DG141: 1 | DH141: 2 | DI141: 4 | DJ141: 3 | DK141: 23 | DL141: 7 | DM141: - | DN141: - | DO141: - | DP141: 14 | DQ141: 2 | DR141: - | DS141: - | DT141: - | DU141: - | DV141: - | DW141: - | DX141: - | DY141: - | DZ141: - | EA141: 23 | EB141: 2,561 | EC141: 782 | ED141: 1,779 | EE141: - | EF141: 32 | EG141: 30 | EH141: 17 | EI141: 12 | EJ141: 1 | EK141: - | EL141: 1 | EM141: 1 | EN141: 33 | EO141: 26 | EP141: 21 | EQ141: 5 | ER141: - | ES141: 2 | ET141: 3 | EU141: 2
A142: 茨城県 | B142: 水戸市 | C142: 飯富村 | D142: 上合，塙 | E142: 22 | F142: 22 | G142: 2 | H142: 2 | I142: 5 | J142: - | K142: 15 | L142: - | M142: 64 | N142: 1 | O142: 2 | P142: - | Q142: 1 | R142: 1 | S142: 2 | T142: 10 | U142: 8 | V142: 2 | W142: 3 | X142: 2 | Y142: 14 | Z142: 9 | AA142: 9 | AB142: - | AC142: 62.0 | AD142: 61.1 | AE142: 63.0 | AF142: 41 | AG142: - | AH142: - | AI142: - | AJ142: - | AK142: - | AL142: 1 | AM142: 2 | AN142: 2 | AO142: 1 | AP142: 2 | AQ142: 1 | AR142: 14 | AS142: 9 | AT142: 9 | AU142: - | AV142: 71.4 | AW142: 74.9 | AX142: 68.6 | AY142: 37 | AZ142: - | BA142: - | BB142: - | BC142: - | BD142: - | BE142: - | BF142: 1 | BG142: 2 | BH142: 1 | BI142: 2 | BJ142: 1 | BK142: 14 | BL142: 9 | BM142: 7 | BN142: - | BO142: 72.3 | BP142: 74.4 | BQ142: 70.5 | BR142: 22 | BS142: - | BT142: - | BU142: - | BV142: - | BW142: - | BX142: - | BY142: 3 | BZ142: 2 | CA142: 2 | CB142: 1 | CC142: 1 | CD142: 6 | CE142: 4 | CF142: 3 | CG142: - | CH142: 15 | CI142: - | CJ142: - | CK142: - | CL142: - | CM142: - | CN142: 1 | CO142: 2 | CP142: 1 | CQ142: 1 | CR142: 3 | CS142: 4 | CT142: 3 | CU142: - | DC142: 86 | DD142: 62 | DE142: 37 | DF142: 25 | DG142: - | DH142: 7 | DI142: 10 | DJ142: 7 | DK142: 21 | DL142: 13 | DM142: - | DN142: - | DO142: - | DP142: 6 | DQ142: - | DR142: - | DS142: 1 | DT142: 1 | DU142: - | DV142: - | DW142: - | DX142: - | DY142: - | DZ142: - | EA142: 22 | EB142: 4,116 | EC142: 859 | ED142: 3,225 | EE142: 32 | EF142: 40 | EG142: 33 | EH142: 17 | EI142: 16 | EJ142: - | EK142: - | EL142: 4 | EM142: 3 | EN142: 46 | EO142: 29 | EP142: 20 | EQ142: 9 | ER142: - | ES142: 7 | ET142: 6 | EU142: 4
A143: 茨城県 | B143: 水戸市 | C143: 飯富村 | D143: 飯富町上 | E143: 47 | F143: 33 | G143: 9 | H143: 9 | I143: 5 | J143: 1 | K143: 19 | L143: 14 | M143: 89 | N143: - | O143: 3 | P143: 1 | Q143: 3 | R143: 3 | S143: 4 | T143: 6 | U143: 11 | V143: 10 | W143: 6 | X143: 10 | Y143: 17 | Z143: 6 | AA143: 4 | AB143: 5 | AC143: 60.0 | AD143: 60.1 | AE143: 59.9 | AF143: 60 | AG143: - | AH143: - | AI143: - | AJ143: 2 | AK143: 1 | AL143: 1 | AM143: 2 | AN143: 4 | AO143: 6 | AP143: 4 | AQ143: 9 | AR143: 17 | AS143: 6 | AT143: 3 | AU143: 5 | AV143: 66.4 | AW143: 68.8 | AX143: 63.6 | AY143: 51 | AZ143: - | BA143: - | BB143: - | BC143: 2 | BD143: - | BE143: 1 | BF143: 1 | BG143: 2 | BH143: 6 | BI143: 3 | BJ143: 8 | BK143: 17 | BL143: 5 | BM143: 3 | BN143: 3 | BO143: 67.1 | BP143: 67.9 | BQ143: 66.0 | BR143: 33 | BS143: - | BT143: - | BU143: - | BV143: - | BW143: - | BX143: 1 | BY143: - | BZ143: 2 | CA143: 3 | CB143: 2 | CC143: 4 | CD143: 12 | CE143: 3 | CF143: 2 | CG143: 4 | CH143: 23 | CI143: - | CJ143: - | CK143: - | CL143: - | CM143: - | CN143: 1 | CO143: - | CP143: 1 | CQ143: 3 | CR143: 10 | CS143: 3 | CT143: 1 | CU143: 4 | DC143: 132 | DD143: 87 | DE143: 51 | DF143: 34 | DG143: 2 | DH143: 16 | DI143: 11 | DJ143: 18 | DK143: 31 | DL143: 19 | DM143: - | DN143: - | DO143: - | DP143: 10 | DQ143: 1 | DR143: 1 | DS143: - | DT143: - | DU143: - | DV143: - | DW143: - | DX143: - | DY143: - | DZ143: - | EA143: 33 | EB143: 5,190 | EC143: 1,660 | ED143: 3,470 | EE143: 60 | EF143: 64 | EG143: 51 | EH143: 30 | EI143: 19 | EJ143: 2 | EK143: - | EL143: 5 | EM143: 8 | EN143: 68 | EO143: 36 | EP143: 21 | EQ143: 15 | ER143: - | ES143: 16 | ET143: 6 | EU143: 10
A144: 茨城県 | B144: 水戸市 | C144: 飯富村 | D144: 睦南，睦北，安戸星 | E144: 19 | F144: 7 | G144: 2 | H144: 2 | I144: - | J144: - | K144: 5 | L144: 12 | M144: 14 | N144: - | O144: - | P144: - | Q144: - | R144: - | S144: - | T144: 1 | U144: 1 | V144: 4 | W144: - | X144: 3 | Y144: 1 | Z144: 2 | AA144: 2 | AB144: - | AC144: 65.9 | AD144: 67.4 | AE144: 64.4 | AF144: 12 | AG144: - | AH144: - | AI144: - | AJ144: - | AK144: - | AL144: - | AM144: 1 | AN144: 1 | AO144: 2 | AP144: - | AQ144: 3 | AR144: 1 | AS144: 2 | AT144: 2 | AU144: - | AV144: 67.3 | AW144: 69.2 | AX144: 65.5 | AY144: 12 | AZ144: - | BA144: - | BB144: - | BC144: - | BD144: - | BE144: - | BF144: 1 | BG144: 1 | BH144: 2 | BI144: - | BJ144: 3 | BK144: 1 | BL144: 2 | BM144: 2 | BN144: - | BO144: 67.3 | BP144: 69.2 | BQ144: 65.5 | BR144: 7 | BS144: - | BT144: - | BU144: - | BV144: - | BW144: - | BX144: - | BY144: - | BZ144: - | CA144: 3 | CB144: - | CC144: 1 | CD144: 1 | CE144: 1 | CF144: 1 | CG144: - | CH144: 1 | CI144: - | CJ144: - | CK144: - | CL144: - | CM144: - | CN144: - | CO144: 1 | CP144: - | CQ144: - | CR144: - | CS144: - | CT144: - | CU144: - | DC144: 21 | DD144: 16 | DE144: 12 | DF144: 4 | DG144: - | DH144: - | DI144: 1 | DJ144: 4 | DK144: 7 | DL144: 5 | DM144: - | DN144: - | DO144: - | DP144: 2 | DQ144: - | DR144: - | DS144: - | DT144: - | DU144: - | DV144: - | DW144: - | DX144: - | DY144: - | DZ144: - | EA144: 7 | EB144: 1,626 | EC144: 682 | ED144: 944 | EE144: - | EF144: 9 | EG144: 7 | EH144: 6 | EI144: 1 | EJ144: - | EK144: - | EL144: 1 | EM144: 1 | EN144: 12 | EO144: 9 | EP144: 6 | EQ144: 3 | ER144: - | ES144: - | ET144: - | EU144: 3
A145: 茨城県 | B145: 水戸市 | C145: 飯富村 | D145: 台 | E145: 13 | F145: 10 | G145: 1 | H145: 1 | I145: 2 | J145: 1 | K145: 7 | L145: 3 | M145: 18 | N145: - | O145: - | P145: - | Q145: - | R145: 1 | S145: 1 | T145: 1 | U145: - | V145: - | W145: 1 | X145: 2 | Y145: 4 | Z145: 4 | AA145: 2 | AB145: 2 | AC145: 69.5 | AD145: 67.4 | AE145: 71.6 | AF145: 15 | AG145: - | AH145: - | AI145: - | AJ145: - | AK145: 1 | AL145: - | AM145: - | AN145: - | AO145: - | AP145: 1 | AQ145: 1 | AR145: 4 | AS145: 4 | AT145: 2 | AU145: 2 | AV145: 72.8 | AW145: 70.3 | AX145: 75.0 | AY145: 13 | AZ145: - | BA145: - | BB145: - | BC145: - | BD145: 1 | BE145: - | BF145: - | BG145: - | BH145: - | BI145: 1 | BJ145: 1 | BK145: 4 | BL145: 3 | BM145: 2 | BN145: 1 | BO145: 71.5 | BP145: 70.3 | BQ145: 72.8 | BR145: 10 | BS145: - | BT145: - | BU145: - | BV145: - | BW145: 1 | BX145: - | BY145: 1 | BZ145: - | CA145: - | CB145: - | CC145: - | CD145: 2 | CE145: 2 | CF145: 2 | CG145: 2 | CH145: 3 | CI145: - | CJ145: - | CK145: - | CL145: - | CM145: - | CN145: - | CO145: - | CP145: - | CQ145: - | CR145: - | CS145: 1 | CT145: - | CU145: 2 | DC145: 32 | DD145: 23 | DE145: 13 | DF145: 9 | DG145: 1 | DH145: 3 | DI145: 4 | DJ145: 2 | DK145: 9 | DL145: 4 | DM145: - | DN145: - | DO145: - | DP145: 4 | DQ145: - | DR145: - | DS145: 1 | DT145: - | DU145: - | DV145: - | DW145: - | DX145: - | DY145: - | DZ145: - | EA145: 10 | EB145: 800 | EC145: 328 | ED145: 472 | EE145: - | EF145: 17 | EG145: 14 | EH145: 7 | EI145: 6 | EJ145: 1 | EK145: - | EL145: 3 | EM145: - | EN145: 15 | EO145: 9 | EP145: 6 | EQ145: 3 | ER145: - | ES145: 3 | ET145: 1 | EU145: 2
A146: 茨城県 | B146: 水戸市 | C146: 飯富村 | D146: 下宿，高根 | E146: 36 | F146: 19 | G146: 2 | H146: 1 | I146: 4 | J146: 4 | K146: 13 | L146: 17 | M146: 52 | N146: 1 | O146: 1 | P146: - | Q146: - | R146: 3 | S146: 6 | T146: 3 | U146: 4 | V146: 3 | W146: 5 | X146: 5 | Y146: 8 | Z146: 6 | AA146: 2 | AB146: 5 | AC146: 61.4 | AD146: 62.2 | AE146: 60.7 | AF146: 34 | AG146: - | AH146: - | AI146: - | AJ146: - | AK146: 1 | AL146: 2 | AM146: - | AN146: 3 | AO146: - | AP146: 3 | AQ146: 4 | AR146: 8 | AS146: 6 | AT146: 2 | AU146: 5 | AV146: 69.6 | AW146: 71.9 | AX146: 67.5 | AY146: 26 | AZ146: - | BA146: - | BB146: - | BC146: - | BD146: 1 | BE146: 1 | BF146: - | BG146: 2 | BH146: - | BI146: 2 | BJ146: 4 | BK146: 8 | BL146: 4 | BM146: 2 | BN146: 2 | BO146: 69.0 | BP146: 68.8 | BQ146: 69.2 | BR146: 19 | BS146: - | BT146: - | BU146: - | BV146: - | BW146: - | BX146: - | BY146: - | BZ146: 2 | CA146: 1 | CB146: 2 | CC146: 1 | CD146: 6 | CE146: 3 | CF146: 1 | CG146: 3 | CH146: 12 | CI146: - | CJ146: - | CK146: - | CL146: - | CM146: - | CN146: 2 | CO146: - | CP146: 1 | CQ146: 1 | CR146: 2 | CS146: 3 | CT146: - | CU146: 3 | DC146: 58 | DD146: 45 | DE146: 26 | DF146: 18 | DG146: 1 | DH146: 5 | DI146: 1 | DJ146: 7 | DK146: 16 | DL146: 13 | DM146: - | DN146: - | DO146: - | DP146: 1 | DQ146: 1 | DR146: - | DS146: - | DT146: - | DU146: 1 | DV146: - | DW146: - | DX146: - | DY146: - | DZ146: - | EA146: 19 | EB146: 3,975 | EC146: 1,892 | ED146: 2,083 | EE146: - | EF146: 27 | EG146: 22 | EH146: 13 | EI146: 8 | EJ146: 1 | EK146: - | EL146: 1 | EM146: 4 | EN146: 31 | EO146: 23 | EP146: 13 | EQ146: 10 | ER146: - | ES146: 5 | ET146: - | EU146: 3
A147: 茨城県 | B147: 水戸市 | C147: 飯富村 | D147: 成沢 | E147: 50 | F147: 25 | G147: 6 | H147: 5 | I147: 5 | J147: 2 | K147: 14 | L147: 25 | M147: 56 | N147: - | O147: - | P147: 1 | Q147: 1 | R147: 2 | S147: 4 | T147: 5 | U147: 6 | V147: 7 | W147: 5 | X147: 5 | Y147: 8 | Z147: 9 | AA147: 3 | AB147: - | AC147: 60.9 | AD147: 58.1 | AE147: 64.4 | AF147: 35 | AG147: - | AH147: - | AI147: - | AJ147: - | AK147: - | AL147: 1 | AM147: 2 | AN147: 2 | AO147: 5 | AP147: 3 | AQ147: 4 | AR147: 6 | AS147: 9 | AT147: 3 | AU147: - | AV147: 67.1 | AW147: 66.3 | AX147: 67.9 | AY147: 28 | AZ147: - | BA147: - | BB147: - | BC147: - | BD147: - | BE147: - | BF147: 1 | BG147: 2 | BH147: 3 | BI147: 3 | BJ147: 4 | BK147: 5 | BL147: 8 | BM147: 2 | BN147: - | BO147: 68.6 | BP147: 66.6 | BQ147: 70.6 | BR147: 25 | BS147: - | BT147: - | BU147: - | BV147: - | BW147: - | BX147: 1 | BY147: 1 | BZ147: 3 | CA147: 4 | CB147: 2 | CC147: 2 | CD147: 8 | CE147: 3 | CF147: 1 | CG147: - | CH147: 17 | CI147: - | CJ147: - | CK147: - | CL147: 1 | CM147: - | CN147: 1 | CO147: 3 | CP147: 1 | CQ147: 2 | CR147: 6 | CS147: 2 | CT147: 1 | CU147: - | DC147: 77 | DD147: 59 | DE147: 28 | DF147: 29 | DG147: 2 | DH147: 9 | DI147: 4 | DJ147: 5 | DK147: 21 | DL147: 10 | DM147: 1 | DN147: - | DO147: - | DP147: 4 | DQ147: 1 | DR147: - | DS147: - | DT147: - | DU147: 2 | DV147: 2 | DW147: 1 | DX147: - | DY147: - | DZ147: - | EA147: 25 | EB147: 3,028 | EC147: 732 | ED147: 2,296 | EE147: - | EF147: 41 | EG147: 34 | EH147: 14 | EI147: 19 | EJ147: 1 | EK147: 1 | EL147: 3 | EM147: 3 | EN147: 36 | EO147: 25 | EP147: 14 | EQ147: 10 | ER147: 1 | ES147: 8 | ET147: 1 | EU147: 2
A148: 茨城県 | B148: 水戸市 | C148: 上中妻村 | E148: 257 | F148: 148 | G148: 17 | H148: 12 | I148: 33 | J148: 10 | K148: 98 | L148: 109 | M148: 378 | N148: 8 | O148: 8 | P148: 9 | Q148: 10 | R148: 7 | S148: 9 | T148: 26 | U148: 31 | V148: 41 | W148: 44 | X148: 47 | Y148: 52 | Z148: 35 | AA148: 28 | AB148: 23 | AC148: 61.8 | AD148: 60.9 | AE148: 62.8 | AF148: 229 | AG148: - | AH148: - | AI148: 1 | AJ148: 1 | AK148: 5 | AL148: 2 | AM148: 4 | AN148: 5 | AO148: 19 | AP148: 23 | AQ148: 40 | AR148: 49 | AS148: 34 | AT148: 26 | AU148: 20 | AV148: 70.1 | AW148: 70.9 | AX148: 69.3 | AY148: 192 | AZ148: - | BA148: - | BB148: 1 | BC148: 1 | BD148: 5 | BE148: - | BF148: 2 | BG148: 4 | BH148: 14 | BI148: 19 | BJ148: 35 | BK148: 46 | BL148: 29 | BM148: 23 | BN148: 13 | BO148: 70.2 | BP148: 70.3 | BQ148: 70.2 | BR148: 148 | BS148: - | BT148: - | BU148: - | BV148: - | BW148: - | BX148: 1 | BY148: 3 | BZ148: 12 | CA148: 16 | CB148: 22 | CC148: 20 | CD148: 32 | CE148: 18 | CF148: 11 | CG148: 13 | CH148: 95 | CI148: - | CJ148: - | CK148: - | CL148: 1 | CM148: 1 | CN148: 8 | CO148: 9 | CP148: 12 | CQ148: 15 | CR148: 17 | CS148: 11 | CT148: 10 | CU148: 11 | DC148: 508 | DD148: 378 | DE148: 193 | DF148: 172 | DG148: 13 | DH148: 31 | DI148: 34 | DJ148: 65 | DK148: 124 | DL148: 98 | DM148: - | DN148: 1 | DO148: - | DP148: 13 | DQ148: 6 | DR148: 5 | DS148: 1 | DT148: - | DU148: - | DV148: - | DW148: - | DX148: - | DY148: - | DZ148: - | EA148: 148 | EB148: 20,000 | EC148: 12,136 | ED148: 7,153 | EE148: 711 | EF148: 243 | EG148: 211 | EH148: 106 | EI148: 95 | EJ148: 10 | EK148: - | EL148: 14 | EM148: 18 | EN148: 265 | EO148: 167 | EP148: 87 | EQ148: 77 | ER148: 3 | ES148: 31 | ET148: 20 | EU148: 47
A149: 茨城県 | B149: 水戸市 | C149: 上中妻村 | D149: 大塚町 | E149: 92 | F149: 39 | G149: 3 | H149: 2 | I149: 13 | J149: 4 | K149: 23 | L149: 53 | M149: 99 | N149: 3 | O149: 3 | P149: 2 | Q149: 5 | R149: - | S149: 1 | T149: 8 | U149: 6 | V149: 12 | W149: 12 | X149: 12 | Y149: 14 | Z149: 9 | AA149: 5 | AB149: 7 | AC149: 61.1 | AD149: 60.7 | AE149: 61.4 | AF149: 60 | AG149: - | AH149: - | AI149: 1 | AJ149: - | AK149: - | AL149: 1 | AM149: 1 | AN149: 2 | AO149: 7 | AP149: 7 | AQ149: 11 | AR149: 12 | AS149: 8 | AT149: 4 | AU149: 6 | AV149: 69.3 | AW149: 71.5 | AX149: 67.3 | AY149: 48 | AZ149: - | BA149: - | BB149: 1 | BC149: - | BD149: - | BE149: - | BF149: - | BG149: 2 | BH149: 5 | BI149: 6 | BJ149: 8 | BK149: 12 | BL149: 7 | BM149: 4 | BN149: 3 | BO149: 69.5 | BP149: 70.1 | BQ149: 68.8 | BR149: 39 | BS149: - | BT149: - | BU149: - | BV149: - | BW149: - | BX149: - | BY149: 2 | BZ149: 2 | CA149: 6 | CB149: 3 | CC149: 4 | CD149: 9 | CE149: 6 | CF149: 2 | CG149: 5 | CH149: 24 | CI149: - | CJ149: - | CK149: - | CL149: - | CM149: - | CN149: 1 | CO149: 4 | CP149: 2 | CQ149: 3 | CR149: 6 | CS149: 2 | CT149: 2 | CU149: 4 | DC149: 119 | DD149: 88 | DE149: 49 | DF149: 37 | DG149: 2 | DH149: 10 | DI149: 10 | DJ149: 11 | DK149: 30 | DL149: 26 | DM149: - | DN149: - | DO149: - | DP149: - | DQ149: 1 | DR149: 3 | DS149: - | DT149: - | DU149: - | DV149: - | DW149: - | DX149: - | DY149: - | DZ149: - | EA149: 39 | EB149: 4,242 | EC149: 2,459 | ED149: 1,462 | EE149: 321 | EF149: 55 | EG149: 49 | EH149: 26 | EI149: 21 | EJ149: 2 | EK149: - | EL149: 3 | EM149: 3 | EN149: 64 | EO149: 39 | EP149: 23 | EQ149: 16 | ER149: - | ES149: 10 | ET149: 7 | EU149: 8
A150: 茨城県 | B150: 水戸市 | C150: 上中妻村 | D150: 加倉井町 | E150: 86 | F150: 53 | G150: 6 | H150: 4 | I150: 14 | J150: 4 | K150: 33 | L150: 33 | M150: 136 | N150: 3 | O150: 2 | P150: 3 | Q150: 2 | R150: 6 | S150: 4 | T150: 5 | U150: 8 | V150: 14 | W150: 23 | X150: 19 | Y150: 13 | Z150: 10 | AA150: 15 | AB150: 9 | AC150: 62.5 | AD150: 61.4 | AE150: 63.9 | AF150: 83 | AG150: - | AH150: - | AI150: - | AJ150: - | AK150: 4 | AL150: 1 | AM150: - | AN150: 2 | AO150: 4 | AP150: 12 | AQ150: 16 | AR150: 13 | AS150: 10 | AT150: 14 | AU150: 7 | AV150: 70.0 | AW150: 70.3 | AX150: 69.6 | AY150: 70 | AZ150: - | BA150: - | BB150: - | BC150: - | BD150: 4 | BE150: - | BF150: - | BG150: 1 | BH150: 3 | BI150: 10 | BJ150: 16 | BK150: 12 | BL150: 9 | BM150: 12 | BN150: 3 | BO150: 69.7 | BP150: 70.0 | BQ150: 69.3 | BR150: 53 | BS150: - | BT150: - | BU150: - | BV150: - | BW150: - | BX150: - | BY150: - | BZ150: 2 | CA150: 6 | CB150: 14 | CC150: 9 | CD150: 8 | CE150: 5 | CF150: 6 | CG150: 3 | CH150: 31 | CI150: - | CJ150: - | CK150: - | CL150: - | CM150: - | CN150: 1 | CO150: 3 | CP150: 8 | CQ150: 6 | CR150: 3 | CS150: 3 | CT150: 5 | CU150: 2 | DC150: 188 | DD150: 134 | DE150: 70 | DF150: 60 | DG150: 4 | DH150: 12 | DI150: 9 | DJ150: 33 | DK150: 41 | DL150: 28 | DM150: - | DN150: 1 | DO150: - | DP150: 8 | DQ150: 3 | DR150: 1 | DS150: - | DT150: - | DU150: - | DV150: - | DW150: - | DX150: - | DY150: - | DZ150: - | EA150: 53 | EB150: 6,263 | EC150: 3,316 | ED150: 2,758 | EE150: 189 | EF150: 95 | EG150: 80 | EH150: 41 | EI150: 36 | EJ150: 3 | EK150: - | EL150: 5 | EM150: 10 | EN150: 93 | EO150: 54 | EP150: 29 | EQ150: 24 | ER150: 1 | ES150: 12 | ET150: 4 | EU150: 23
A151: 茨城県 | B151: 水戸市 | C151: 上中妻村 | D151: 金谷町 | E151: 35 | F151: 28 | G151: 1 | H151: 1 | I151: 3 | J151: - | K151: 24 | L151: 7 | M151: 72 | N151: 1 | O151: - | P151: 3 | Q151: 2 | R151: - | S151: 2 | T151: 8 | U151: 8 | V151: 8 | W151: 4 | X151: 9 | Y151: 9 | Z151: 12 | AA151: 4 | AB151: 2 | AC151: 61.5 | AD151: 60.6 | AE151: 62.5 | AF151: 39 | AG151: - | AH151: - | AI151: - | AJ151: - | AK151: - | AL151: - | AM151: 1 | AN151: - | AO151: 3 | AP151: 1 | AQ151: 8 | AR151: 8 | AS151: 12 | AT151: 4 | AU151: 2 | AV151: 72.4 | AW151: 75.1 | AX151: 70.4 | AY151: 31 | AZ151: - | BA151: - | BB151: - | BC151: - | BD151: - | BE151: - | BF151: - | BG151: - | BH151: 1 | BI151: - | BJ151: 7 | BK151: 7 | BL151: 10 | BM151: 4 | BN151: 2 | BO151: 74.5 | BP151: 75.3 | BQ151: 73.9 | BR151: 28 | BS151: - | BT151: - | BU151: - | BV151: - | BW151: - | BX151: - | BY151: 1 | BZ151: 3 | CA151: 1 | CB151: 2 | CC151: 5 | CD151: 6 | CE151: 6 | CF151: 2 | CG151: 2 | CH151: 24 | CI151: - | CJ151: - | CK151: - | CL151: - | CM151: 1 | CN151: 2 | CO151: 1 | CP151: 1 | CQ151: 5 | CR151: 4 | CS151: 6 | CT151: 2 | CU151: 2 | DC151: 103 | DD151: 74 | DE151: 31 | DF151: 41 | DG151: 2 | DH151: 7 | DI151: 9 | DJ151: 13 | DK151: 28 | DL151: 23 | DM151: - | DN151: - | DO151: - | DP151: 3 | DQ151: 2 | DR151: - | DS151: - | DT151: - | DU151: - | DV151: - | DW151: - | DX151: - | DY151: - | DZ151: - | EA151: 28 | EB151: 2,995 | EC151: 2,516 | ED151: 472 | EE151: 7 | EF151: 47 | EG151: 40 | EH151: 14 | EI151: 24 | EJ151: 2 | EK151: - | EL151: 3 | EM151: 4 | EN151: 56 | EO151: 34 | EP151: 17 | EQ151: 17 | ER151: - | ES151: 7 | ET151: 6 | EU151: 9
A152: 茨城県 | B152: 水戸市 | C152: 上中妻村 | D152: 飯島町 | E152: 44 | F152: 28 | G152: 7 | H152: 5 | I152: 3 | J152: 2 | K152: 18 | L152: 16 | M152: 71 | N152: 1 | O152: 3 | P152: 1 | Q152: 1 | R152: 1 | S152: 2 | T152: 5 | U152: 9 | V152: 7 | W152: 5 | X152: 7 | Y152: 16 | Z152: 4 | AA152: 4 | AB152: 5 | AC152: 61.6 | AD152: 60.4 | AE152: 63.2 | AF152: 47 | AG152: - | AH152: - | AI152: - | AJ152: 1 | AK152: 1 | AL152: - | AM152: 2 | AN152: 1 | AO152: 5 | AP152: 3 | AQ152: 5 | AR152: 16 | AS152: 4 | AT152: 4 | AU152: 5 | AV152: 69.4 | AW152: 68.2 | AX152: 70.7 | AY152: 43 | AZ152: - | BA152: - | BB152: - | BC152: 1 | BD152: 1 | BE152: - | BF152: 2 | BG152: 1 | BH152: 5 | BI152: 3 | BJ152: 4 | BK152: 15 | BL152: 3 | BM152: 3 | BN152: 5 | BO152: 68.8 | BP152: 68.2 | BQ152: 69.7 | BR152: 28 | BS152: - | BT152: - | BU152: - | BV152: - | BW152: - | BX152: 1 | BY152: - | BZ152: 5 | CA152: 3 | CB152: 3 | CC152: 2 | CD152: 9 | CE152: 1 | CF152: 1 | CG152: 3 | CH152: 16 | CI152: - | CJ152: - | CK152: - | CL152: 1 | CM152: - | CN152: 4 | CO152: 1 | CP152: 1 | CQ152: 1 | CR152: 4 | CS152: - | CT152: 1 | CU152: 3 | DC152: 98 | DD152: 82 | DE152: 43 | DF152: 34 | DG152: 5 | DH152: 2 | DI152: 6 | DJ152: 8 | DK152: 25 | DL152: 21 | DM152: - | DN152: - | DO152: - | DP152: 2 | DQ152: - | DR152: 1 | DS152: 1 | DT152: - | DU152: - | DV152: - | DW152: - | DX152: - | DY152: - | DZ152: - | EA152: 28 | EB152: 6,500 | EC152: 3,845 | ED152: 2,461 | EE152: 194 | EF152: 46 | EG152: 42 | EH152: 25 | EI152: 14 | EJ152: 3 | EK152: - | EL152: 3 | EM152: 1 | EN152: 52 | EO152: 40 | EP152: 18 | EQ152: 20 | ER152: 2 | ES152: 2 | ET152: 3 | EU152: 7
A153: 茨城県 | B153: 水戸市 | C153: 山根村 | E153: 237 | F153: 130 | G153: 16 | H153: 11 | I153: 20 | J153: 7 | K153: 94 | L153: 107 | M153: 335 | N153: 3 | O153: 12 | P153: 9 | Q153: 4 | R153: 13 | S153: 17 | T153: 21 | U153: 39 | V153: 33 | W153: 38 | X153: 32 | Y153: 49 | Z153: 35 | AA153: 17 | AB153: 13 | AC153: 59.7 | AD153: 58.0 | AE153: 61.8 | AF153: 171 | AG153: - | AH153: 1 | AI153: - | AJ153: - | AK153: 1 | AL153: 3 | AM153: 3 | AN153: 12 | AO153: 8 | AP153: 16 | AQ153: 23 | AR153: 43 | AS153: 34 | AT153: 16 | AU153: 11 | AV153: 69.7 | AW153: 68.8 | AX153: 70.7 | AY153: 145 | AZ153: - | BA153: 1 | BB153: - | BC153: - | BD153: 1 | BE153: 1 | BF153: 2 | BG153: 11 | BH153: 8 | BI153: 13 | BJ153: 18 | BK153: 42 | BL153: 31 | BM153: 11 | BN153: 6 | BO153: 69.5 | BP153: 68.1 | BQ153: 71.2 | BR153: 130 | BS153: - | BT153: - | BU153: - | BV153: - | BW153: - | BX153: 3 | BY153: 5 | BZ153: 15 | CA153: 18 | CB153: 21 | CC153: 11 | CD153: 27 | CE153: 15 | CF153: 8 | CG153: 7 | CH153: 87 | CI153: - | CJ153: - | CK153: - | CL153: 1 | CM153: 3 | CN153: 10 | CO153: 11 | CP153: 11 | CQ153: 8 | CR153: 21 | CS153: 11 | CT153: 5 | CU153: 6 | DC153: 443 | DD153: 330 | DE153: 145 | DF153: 166 | DG153: 19 | DH153: 37 | DI153: 28 | DJ153: 48 | DK153: 99 | DL153: 72 | DM153: - | DN153: 2 | DO153: - | DP153: 2 | DQ153: - | DR153: 17 | DS153: 1 | DT153: 1 | DU153: 2 | DV153: 2 | DW153: - | DX153: - | DY153: - | DZ153: - | EA153: 130 | EB153: 11,614 | EC153: 5,886 | ED153: 4,389 | EE153: 1,339 | EF153: 219 | EG153: 188 | EH153: 81 | EI153: 93 | EJ153: 14 | EK153: - | EL153: 17 | EM153: 14 | EN153: 224 | EO153: 142 | EP153: 64 | EQ153: 73 | ER153: 5 | ES153: 37 | ET153: 11 | EU153: 34
A154: 茨城県 | B154: 水戸市 | C154: 山根村 | D154: 全隈町 | E154: 56 | F154: 34 | G154: 3 | H154: 2 | I154: 8 | J154: 3 | K154: 23 | L154: 22 | M154: 82 | N154: - | O154: 1 | P154: 2 | Q154: - | R154: 5 | S154: 8 | T154: 2 | U154: 7 | V154: 9 | W154: 11 | X154: 13 | Y154: 16 | Z154: 4 | AA154: 3 | AB154: 1 | AC154: 60.0 | AD154: 60.0 | AE154: 59.9 | AF154: 38 | AG154: - | AH154: - | AI154: - | AJ154: - | AK154: 1 | AL154: - | AM154: - | AN154: 2 | AO154: 1 | AP154: 5 | AQ154: 9 | AR154: 13 | AS154: 4 | AT154: 3 | AU154: - | AV154: 68.8 | AW154: 68.1 | AX154: 69.5 | AY154: 30 | AZ154: - | BA154: - | BB154: - | BC154: - | BD154: 1 | BE154: - | BF154: - | BG154: 1 | BH154: 1 | BI154: 3 | BJ154: 6 | BK154: 13 | BL154: 3 | BM154: 2 | BN154: - | BO154: 69.2 | BP154: 68.1 | BQ154: 71.2 | BR154: 34 | BS154: - | BT154: - | BU154: - | BV154: - | BW154: - | BX154: - | BY154: 1 | BZ154: 3 | CA154: 7 | CB154: 5 | CC154: 5 | CD154: 11 | CE154: - | CF154: 1 | CG154: 1 | CH154: 23 | CI154: - | CJ154: - | CK154: - | CL154: - | CM154: - | CN154: 2 | CO154: 6 | CP154: 1 | CQ154: 2 | CR154: 10 | CS154: - | CT154: 1 | CU154: 1 | DC154: 113 | DD154: 77 | DE154: 30 | DF154: 41 | DG154: 6 | DH154: 16 | DI154: 6 | DJ154: 14 | DK154: 29 | DL154: 25 | DM154: - | DN154: - | DO154: - | DP154: - | DQ154: - | DR154: 3 | DS154: - | DT154: - | DU154: 1 | DV154: - | DW154: - | DX154: - | DY154: - | DZ154: - | EA154: 34 | EB154: 3,060 | EC154: 2,150 | ED154: 546 | EE154: 364 | EF154: 55 | EG154: 49 | EH154: 19 | EI154: 25 | EJ154: 5 | EK154: - | EL154: 4 | EM154: 2 | EN154: 58 | EO154: 28 | EP154: 11 | EQ154: 16 | ER154: 1 | ES154: 16 | ET154: 2 | EU154: 12
A155: 茨城県 | B155: 水戸市 | C155: 山根村 | D155: 開江町 | E155: 71 | F155: 35 | G155: 6 | H155: 2 | I155: 2 | J155: - | K155: 27 | L155: 36 | M155: 89 | N155: 1 | O155: 2 | P155: - | Q155: 1 | R155: 1 | S155: 8 | T155: 7 | U155: 4 | V155: 8 | W155: 9 | X155: 11 | Y155: 16 | Z155: 9 | AA155: 6 | AB155: 6 | AC155: 62.9 | AD155: 61.0 | AE155: 64.8 | AF155: 50 | AG155: - | AH155: - | AI155: - | AJ155: - | AK155: - | AL155: 2 | AM155: 1 | AN155: - | AO155: 4 | AP155: 3 | AQ155: 7 | AR155: 13 | AS155: 9 | AT155: 5 | AU155: 6 | AV155: 71.3 | AW155: 72.4 | AX155: 70.4 | AY155: 42 | AZ155: - | BA155: - | BB155: - | BC155: - | BD155: - | BE155: - | BF155: 1 | BG155: - | BH155: 4 | BI155: 3 | BJ155: 6 | BK155: 12 | BL155: 9 | BM155: 3 | BN155: 4 | BO155: 71.5 | BP155: 71.7 | BQ155: 71.4 | BR155: 35 | BS155: - | BT155: - | BU155: - | BV155: - | BW155: - | BX155: 2 | BY155: - | BZ155: 2 | CA155: 3 | CB155: 3 | CC155: 3 | CD155: 9 | CE155: 6 | CF155: 4 | CG155: 3 | CH155: 22 | CI155: - | CJ155: - | CK155: - | CL155: 1 | CM155: - | CN155: 1 | CO155: 1 | CP155: 1 | CQ155: 3 | CR155: 6 | CS155: 4 | CT155: 2 | CU155: 3 | DC155: 120 | DD155: 83 | DE155: 42 | DF155: 33 | DG155: 8 | DH155: 11 | DI155: 13 | DJ155: 13 | DK155: 28 | DL155: 25 | DM155: - | DN155: - | DO155: - | DP155: 2 | DQ155: - | DR155: - | DS155: 1 | DT155: - | DU155: - | DV155: - | DW155: - | DX155: - | DY155: - | DZ155: - | EA155: 35 | EB155: 3,068 | EC155: 1,461 | ED155: 1,602 | EE155: 5 | EF155: 57 | EG155: 45 | EH155: 20 | EI155: 20 | EJ155: 5 | EK155: - | EL155: 8 | EM155: 4 | EN155: 63 | EO155: 38 | EP155: 22 | EQ155: 13 | ER155: 3 | ES155: 11 | ET155: 5 | EU155: 9
A156: 茨城県 | B156: 水戸市 | C156: 山根村 | D156: 開拓 | E156: 19 | F156: 6 | G156: - | H156: - | I156: - | J156: - | K156: 6 | L156: 13 | M156: 13 | N156: - | O156: - | P156: - | Q156: - | R156: - | S156: - | T156: - | U156: 1 | V156: 4 | W156: 1 | X156: - | Y156: 2 | Z156: 2 | AA156: 1 | AB156: 2 | AC156: 69.5 | AD156: 72.0 | AE156: 66.5 | AF156: 8 | AG156: - | AH156: - | AI156: - | AJ156: - | AK156: - | AL156: - | AM156: - | AN156: - | AO156: 1 | AP156: - | AQ156: - | AR156: 2 | AS156: 2 | AT156: 1 | AU156: 2 | AV156: 77.4 | AW156: 82.3 | AX156: 72.5 | AY156: 5 | AZ156: - | BA156: - | BB156: - | BC156: - | BD156: - | BE156: - | BF156: - | BG156: - | BH156: 1 | BI156: - | BJ156: - | BK156: 2 | BL156: 1 | BM156: - | BN156: 1 | BO156: 74.0 | BP156: 82.0 | BQ156: 68.7 | BR156: 6 | BS156: - | BT156: - | BU156: - | BV156: - | BW156: - | BX156: - | BY156: - | BZ156: - | CA156: 2 | CB156: 1 | CC156: - | CD156: - | CE156: 2 | CF156: - | CG156: 1 | CH156: 1 | CI156: - | CJ156: - | CK156: - | CL156: - | CM156: - | CN156: - | CO156: - | CP156: - | CQ156: - | CR156: - | CS156: - | CT156: - | CU156: 1 | DC156: 18 | DD156: 11 | DE156: 5 | DF156: 5 | DG156: 1 | DH156: 1 | DI156: 1 | DJ156: 5 | DK156: 4 | DL156: 2 | DM156: - | DN156: 1 | DO156: - | DP156: - | DQ156: - | DR156: - | DS156: - | DT156: 1 | DU156: - | DV156: - | DW156: - | DX156: - | DY156: - | DZ156: - | EA156: 6 | EB156: 310 | EC156: 161 | ED156: 52 | EE156: 97 | EF156: 9 | EG156: 6 | EH156: 2 | EI156: 3 | EJ156: 1 | EK156: - | EL156: 1 | EM156: 2 | EN156: 9 | EO156: 5 | EP156: 3 | EQ156: 2 | ER156: - | ES156: 1 | ET156: - | EU156: 3
A157: 茨城県 | B157: 水戸市 | C157: 山根村 | D157: 谷津町 | E157: 47 | F157: 22 | G157: 4 | H157: 4 | I157: 3 | J157: 1 | K157: 15 | L157: 25 | M157: 59 | N157: 2 | O157: 3 | P157: 2 | Q157: 1 | R157: 4 | S157: 1 | T157: 5 | U157: 12 | V157: 5 | W157: 6 | X157: 2 | Y157: 5 | Z157: 8 | AA157: 2 | AB157: 1 | AC157: 55.3 | AD157: 51.7 | AE157: 60.9 | AF157: 25 | AG157: - | AH157: - | AI157: - | AJ157: - | AK157: - | AL157: 1 | AM157: 1 | AN157: 3 | AO157: 1 | AP157: 3 | AQ157: 2 | AR157: 5 | AS157: 7 | AT157: 2 | AU157: - | AV157: 67.3 | AW157: 64.9 | AX157: 71.7 | AY157: 24 | AZ157: - | BA157: - | BB157: - | BC157: - | BD157: - | BE157: 1 | BF157: - | BG157: 3 | BH157: 1 | BI157: 3 | BJ157: 2 | BK157: 5 | BL157: 7 | BM157: 2 | BN157: - | BO157: 68.2 | BP157: 66.1 | BQ157: 71.7 | BR157: 22 | BS157: - | BT157: - | BU157: - | BV157: - | BW157: - | BX157: 1 | BY157: 2 | BZ157: 6 | CA157: 3 | CB157: 4 | CC157: 1 | CD157: 1 | CE157: 3 | CF157: - | CG157: 1 | CH157: 17 | CI157: - | CJ157: - | CK157: - | CL157: - | CM157: 2 | CN157: 4 | CO157: 2 | CP157: 3 | CQ157: 1 | CR157: 1 | CS157: 3 | CT157: - | CU157: 1 | DC157: 80 | DD157: 66 | DE157: 24 | DF157: 42 | DG157: - | DH157: 2 | DI157: 5 | DJ157: 7 | DK157: 11 | DL157: 7 | DM157: - | DN157: - | DO157: - | DP157: - | DQ157: - | DR157: 1 | DS157: - | DT157: - | DU157: 1 | DV157: 2 | DW157: - | DX157: - | DY157: - | DZ157: - | EA157: 22 | EB157: 2,617 | EC157: 835 | ED157: 1,727 | EE157: 55 | EF157: 40 | EG157: 35 | EH157: 15 | EI157: 20 | EJ157: - | EK157: - | EL157: 2 | EM157: 3 | EN157: 40 | EO157: 31 | EP157: 9 | EQ157: 22 | ER157: - | ES157: 2 | ET157: 3 | EU157: 4
A158: 茨城県 | B158: 水戸市 | C158: 山根村 | D158: 木葉下 | E158: 30 | F158: 22 | G158: 1 | H158: 1 | I158: 4 | J158: 2 | K158: 17 | L158: 8 | M158: 61 | N158: - | O158: 2 | P158: 5 | Q158: - | R158: 3 | S158: - | T158: 4 | U158: 8 | V158: 4 | W158: 7 | X158: 3 | Y158: 9 | Z158: 8 | AA158: 5 | AB158: 3 | AC158: 60.2 | AD158: 57.0 | AE158: 63.9 | AF158: 33 | AG158: - | AH158: - | AI158: - | AJ158: - | AK158: - | AL158: - | AM158: 1 | AN158: 2 | AO158: - | AP158: 2 | AQ158: 3 | AR158: 9 | AS158: 8 | AT158: 5 | AU158: 3 | AV158: 72.6 | AW158: 70.6 | AX158: 74.8 | AY158: 27 | AZ158: - | BA158: - | BB158: - | BC158: - | BD158: - | BE158: - | BF158: 1 | BG158: 2 | BH158: - | BI158: 1 | BJ158: 2 | BK158: 9 | BL158: 7 | BM158: 4 | BN158: 1 | BO158: 72.0 | BP158: 69.1 | BQ158: 75.6 | BR158: 22 | BS158: - | BT158: - | BU158: - | BV158: - | BW158: - | BX158: - | BY158: 1 | BZ158: 3 | CA158: 1 | CB158: 5 | CC158: 1 | CD158: 5 | CE158: 2 | CF158: 3 | CG158: 1 | CH158: 16 | CI158: - | CJ158: - | CK158: - | CL158: - | CM158: - | CN158: 2 | CO158: 1 | CP158: 4 | CQ158: 1 | CR158: 4 | CS158: 2 | CT158: 2 | CU158: - | DC158: 72 | DD158: 60 | DE158: 27 | DF158: 30 | DG158: 3 | DH158: 5 | DI158: 2 | DJ158: 5 | DK158: 17 | DL158: 10 | DM158: - | DN158: 1 | DO158: - | DP158: - | DQ158: - | DR158: 6 | DS158: - | DT158: - | DU158: - | DV158: - | DW158: - | DX158: - | DY158: - | DZ158: - | EA158: 22 | EB158: 1,611 | EC158: 969 | ED158: 244 | EE158: 398 | EF158: 38 | EG158: 34 | EH158: 15 | EI158: 17 | EJ158: 2 | EK158: - | EL158: 2 | EM158: 2 | EN158: 34 | EO158: 26 | EP158: 12 | EQ158: 13 | ER158: 1 | ES158: 5 | ET158: - | EU158: 3
A159: 茨城県 | B159: 水戸市 | C159: 山根村 | D159: 前沢 | E159: 14 | F159: 11 | G159: 2 | H159: 2 | I159: 3 | J159: 1 | K159: 6 | L159: 3 | M159: 31 | N159: - | O159: 4 | P159: - | Q159: 2 | R159: - | S159: - | T159: 3 | U159: 7 | V159: 3 | W159: 4 | X159: 3 | Y159: 1 | Z159: 4 | AA159: - | AB159: - | AC159: 53.7 | AD159: 54.4 | AE159: 52.9 | AF159: 17 | AG159: - | AH159: 1 | AI159: - | AJ159: - | AK159: - | AL159: - | AM159: - | AN159: 5 | AO159: 1 | AP159: 3 | AQ159: 2 | AR159: 1 | AS159: 4 | AT159: - | AU159: - | AV159: 61.4 | AW159: 60.0 | AX159: 63.4 | AY159: 17 | AZ159: - | BA159: 1 | BB159: - | BC159: - | BD159: - | BE159: - | BF159: - | BG159: 5 | BH159: 1 | BI159: 3 | BJ159: 2 | BK159: 1 | BL159: 4 | BM159: - | BN159: - | BO159: 61.4 | BP159: 60.0 | BQ159: 63.4 | BR159: 11 | BS159: - | BT159: - | BU159: - | BV159: - | BW159: - | BX159: - | BY159: 1 | BZ159: 1 | CA159: 2 | CB159: 3 | CC159: 1 | CD159: 1 | CE159: 2 | CF159: - | CG159: - | CH159: 8 | CI159: - | CJ159: - | CK159: - | CL159: - | CM159: 1 | CN159: 1 | CO159: 1 | CP159: 2 | CQ159: 1 | CR159: - | CS159: 2 | CT159: - | CU159: - | DC159: 40 | DD159: 33 | DE159: 17 | DF159: 15 | DG159: 1 | DH159: 2 | DI159: 1 | DJ159: 4 | DK159: 10 | DL159: 3 | DM159: - | DN159: - | DO159: - | DP159: - | DQ159: - | DR159: 7 | DS159: - | DT159: - | DU159: - | DV159: - | DW159: - | DX159: - | DY159: - | DZ159: - | EA159: 11 | EB159: 948 | EC159: 310 | ED159: 218 | EE159: 420 | EF159: 20 | EG159: 19 | EH159: 10 | EI159: 8 | EJ159: 1 | EK159: - | EL159: - | EM159: 1 | EN159: 20 | EO159: 14 | EP159: 7 | EQ159: 7 | ER159: - | ES159: 2 | ET159: 1 | EU159: 3
A160: 茨城県 | B160: 水戸市 | C160: 河和田村 | E160: 254 | F160: 182 | G160: 25 | H160: 19 | I160: 50 | J160: 18 | K160: 107 | L160: 72 | M160: 496 | N160: 6 | O160: 16 | P160: 29 | Q160: 15 | R160: 11 | S160: 19 | T160: 22 | U160: 48 | V160: 85 | W160: 61 | X160: 38 | Y160: 38 | Z160: 47 | AA160: 35 | AB160: 26 | AC160: 58.9 | AD160: 57.7 | AE160: 60.2 | AF160: 281 | AG160: 1 | AH160: 4 | AI160: 6 | AJ160: 2 | AK160: 3 | AL160: 2 | AM160: 3 | AN160: 17 | AO160: 40 | AP160: 34 | AQ160: 33 | AR160: 34 | AS160: 44 | AT160: 34 | AU160: 24 | AV160: 67.3 | AW160: 68.0 | AX160: 66.8 | AY160: 222 | AZ160: - | BA160: 1 | BB160: 5 | BC160: 1 | BD160: 2 | BE160: 1 | BF160: - | BG160: 15 | BH160: 37 | BI160: 30 | BJ160: 32 | BK160: 29 | BL160: 33 | BM160: 27 | BN160: 9 | BO160: 66.9 | BP160: 66.7 | BQ160: 67.1 | BR160: 182 | BS160: - | BT160: - | BU160: - | BV160: 1 | BW160: 1 | BX160: - | BY160: 2 | BZ160: 12 | CA160: 35 | CB160: 38 | CC160: 25 | CD160: 21 | CE160: 25 | CF160: 11 | CG160: 11 | CH160: 123 | CI160: - | CJ160: - | CK160: - | CL160: - | CM160: 1 | CN160: 6 | CO160: 25 | CP160: 26 | CQ160: 14 | CR160: 16 | CS160: 22 | CT160: 7 | CU160: 6 | DC160: 639 | DD160: 477 | DE160: 223 | DF160: 224 | DG160: 30 | DH160: 55 | DI160: 27 | DJ160: 80 | DK160: 156 | DL160: 115 | DM160: - | DN160: 1 | DO160: - | DP160: 10 | DQ160: 2 | DR160: 21 | DS160: 1 | DT160: 1 | DU160: 4 | DV160: 1 | DW160: - | DX160: - | DY160: - | DZ160: - | EA160: 182 | EB160: 23,388 | EC160: 15,549 | ED160: 5,530 | EE160: 2,309 | EF160: 314 | EG160: 270 | EH160: 110 | EI160: 139 | EJ160: 21 | EK160: 3 | EL160: 11 | EM160: 30 | EN160: 325 | EO160: 207 | EP160: 113 | EQ160: 85 | ER160: 9 | ES160: 52 | ET160: 16 | EU160: 50
A161: 茨城県 | B161: 水戸市 | C161: 河和田村 | D161: 街道端 | E161: 24 | F161: 16 | G161: 2 | H161: 2 | I161: 5 | J161: 2 | K161: 9 | L161: 8 | M161: 55 | N161: 2 | O161: 5 | P161: 5 | Q161: 3 | R161: 1 | S161: 1 | T161: 4 | U161: 4 | V161: 10 | W161: 3 | X161: 3 | Y161: 3 | Z161: 7 | AA161: 1 | AB161: 3 | AC161: 53.0 | AD161: 51.2 | AE161: 55.1 | AF161: 25 | AG161: - | AH161: 1 | AI161: 1 | AJ161: 1 | AK161: - | AL161: - | AM161: - | AN161: - | AO161: 4 | AP161: 2 | AQ161: 3 | AR161: 3 | AS161: 7 | AT161: 1 | AU161: 2 | AV161: 66.0 | AW161: 66.9 | AX161: 65.3 | AY161: 18 | AZ161: - | BA161: - | BB161: 1 | BC161: - | BD161: - | BE161: - | BF161: - | BG161: - | BH161: 3 | BI161: 2 | BJ161: 3 | BK161: 3 | BL161: 5 | BM161: 1 | BN161: - | BO161: 67.3 | BP161: 65.8 | BQ161: 69.1 | BR161: 16 | BS161: - | BT161: - | BU161: - | BV161: - | BW161: 1 | BX161: - | BY161: - | BZ161: 1 | CA161: 5 | CB161: 1 | CC161: 2 | CD161: 1 | CE161: 4 | CF161: - | CG161: 1 | CH161: 13 | CI161: - | CJ161: - | CK161: - | CL161: - | CM161: - | CN161: 1 | CO161: 4 | CP161: 1 | CQ161: 1 | CR161: 1 | CS161: 4 | CT161: - | CU161: 1 | DC161: 66 | DD161: 48 | DE161: 18 | DF161: 30 | DG161: - | DH161: 5 | DI161: 6 | DJ161: 7 | DK161: 16 | DL161: 14 | DM161: - | DN161: - | DO161: - | DP161: 1 | DQ161: - | DR161: 1 | DS161: - | DT161: - | DU161: - | DV161: - | DW161: - | DX161: - | DY161: - | DZ161: - | EA161: 16 | EB161: 2,916 | EC161: 2,192 | ED161: 613 | EE161: 111 | EF161: 31 | EG161: 26 | EH161: 10 | EI161: 16 | EJ161: - | EK161: - | EL161: 3 | EM161: 2 | EN161: 35 | EO161: 22 | EP161: 8 | EQ161: 14 | ER161: - | ES161: 5 | ET161: 3 | EU161: 5
A162: 茨城県 | B162: 水戸市 | C162: 河和田村 | D162: 本郷 | E162: 21 | F162: 14 | G162: 2 | H162: 1 | I162: 5 | J162: 1 | K162: 7 | L162: 7 | M162: 43 | N162: 2 | O162: 1 | P162: 3 | Q162: - | R162: 1 | S162: 2 | T162: 2 | U162: 8 | V162: 6 | W162: 2 | X162: 3 | Y162: 2 | Z162: 6 | AA162: 5 | AB162: - | AC162: 57.2 | AD162: 56.7 | AE162: 57.8 | AF162: 24 | AG162: 1 | AH162: 1 | AI162: - | AJ162: - | AK162: 1 | AL162: - | AM162: - | AN162: 4 | AO162: 2 | AP162: - | AQ162: 3 | AR162: 2 | AS162: 6 | AT162: 4 | AU162: - | AV162: 63.8 | AW162: 63.6 | AX162: 63.8 | AY162: 22 | AZ162: - | BA162: - | BB162: - | BC162: - | BD162: 1 | BE162: - | BF162: - | BG162: 4 | BH162: 2 | BI162: - | BJ162: 3 | BK162: 2 | BL162: 6 | BM162: 4 | BN162: - | BO162: 67.7 | BP162: 67.9 | BQ162: 67.6 | BR162: 14 | BS162: - | BT162: - | BU162: - | BV162: - | BW162: - | BX162: - | BY162: - | BZ162: 2 | CA162: 4 | CB162: 1 | CC162: 2 | CD162: 1 | CE162: 2 | CF162: 2 | CG162: - | CH162: 8 | CI162: - | CJ162: - | CK162: - | CL162: - | CM162: - | CN162: - | CO162: 4 | CP162: - | CQ162: 1 | CR162: - | CS162: 1 | CT162: 2 | CU162: - | DC162: 54 | DD162: 46 | DE162: 22 | DF162: 22 | DG162: 2 | DH162: 1 | DI162: 4 | DJ162: 3 | DK162: 13 | DL162: 13 | DM162: - | DN162: - | DO162: - | DP162: - | DQ162: - | DR162: - | DS162: - | DT162: - | DU162: - | DV162: - | DW162: - | DX162: - | DY162: - | DZ162: - | EA162: 14 | EB162: 1,670 | EC162: 1,347 | ED162: 318 | EE162: 5 | EF162: 25 | EG162: 23 | EH162: 10 | EI162: 13 | EJ162: - | EK162: - | EL162: 2 | EM162: - | EN162: 29 | EO162: 23 | EP162: 12 | EQ162: 9 | ER162: 2 | ES162: 1 | ET162: 2 | EU162: 3
A163: 茨城県 | B163: 水戸市 | C163: 河和田村 | D163: 東 | E163: 17 | F163: 15 | G163: 1 | H163: 1 | I163: 4 | J163: 3 | K163: 10 | L163: 2 | M163: 38 | N163: - | O163: - | P163: 1 | Q163: 2 | R163: 1 | S163: 3 | T163: 2 | U163: 1 | V163: 3 | W163: 7 | X163: 4 | Y163: 9 | Z163: 1 | AA163: 2 | AB163: 2 | AC163: 61.5 | AD163: 59.7 | AE163: 63.6 | AF163: 23 | AG163: - | AH163: - | AI163: - | AJ163: - | AK163: - | AL163: 1 | AM163: - | AN163: - | AO163: 2 | AP163: 4 | AQ163: 4 | AR163: 7 | AS163: 1 | AT163: 2 | AU163: 2 | AV163: 69.4 | AW163: 72.7 | AX163: 67.3 | AY163: 21 | AZ163: - | BA163: - | BB163: - | BC163: - | BD163: - | BE163: 1 | BF163: - | BG163: - | BH163: 2 | BI163: 4 | BJ163: 4 | BK163: 7 | BL163: 1 | BM163: 2 | BN163: - | BO163: 67.6 | BP163: 70.4 | BQ163: 65.9 | BR163: 15 | BS163: - | BT163: - | BU163: - | BV163: - | BW163: - | BX163: - | BY163: - | BZ163: - | CA163: 1 | CB163: 5 | CC163: 1 | CD163: 6 | CE163: 1 | CF163: 1 | CG163: - | CH163: 8 | CI163: - | CJ163: - | CK163: - | CL163: - | CM163: - | CN163: - | CO163: - | CP163: 3 | CQ163: - | CR163: 4 | CS163: 1 | CT163: - | CU163: - | DC163: 49 | DD163: 40 | DE163: 21 | DF163: 16 | DG163: 3 | DH163: 2 | DI163: 2 | DJ163: 5 | DK163: 11 | DL163: 6 | DM163: - | DN163: - | DO163: - | DP163: 3 | DQ163: - | DR163: 2 | DS163: - | DT163: - | DU163: - | DV163: - | DW163: - | DX163: - | DY163: - | DZ163: - | EA163: 15 | EB163: 2,477 | EC163: 1,480 | ED163: 812 | EE163: 185 | EF163: 24 | EG163: 21 | EH163: 8 | EI163: 11 | EJ163: 2 | EK163: - | EL163: - | EM163: 3 | EN163: 25 | EO163: 19 | EP163: 13 | EQ163: 5 | ER163: 1 | ES163: 2 | ET163: 2 | EU163: 2
A164: 茨城県 | B164: 水戸市 | C164: 河和田村 | D164: 丹下 | E164: 27 | F164: 23 | G164: 3 | H164: 2 | I164: 5 | J164: 2 | K164: 15 | L164: 4 | M164: 59 | N164: - | O164: 4 | P164: 1 | Q164: 3 | R164: 2 | S164: 2 | T164: 3 | U164: 4 | V164: 12 | W164: 6 | X164: 4 | Y164: 5 | Z164: 6 | AA164: 3 | AB164: 4 | AC164: 58.9 | AD164: 56.6 | AE164: 61.4 | AF164: 34 | AG164: - | AH164: 1 | AI164: - | AJ164: - | AK164: - | AL164: - | AM164: 1 | AN164: 1 | AO164: 6 | AP164: 5 | AQ164: 4 | AR164: 5 | AS164: 4 | AT164: 3 | AU164: 4 | AV164: 67.8 | AW164: 72.5 | AX164: 65.2 | AY164: 27 | AZ164: - | BA164: - | BB164: - | BC164: - | BD164: - | BE164: - | BF164: - | BG164: - | BH164: 6 | BI164: 5 | BJ164: 4 | BK164: 5 | BL164: 2 | BM164: 2 | BN164: 3 | BO164: 68.8 | BP164: 70.5 | BQ164: 67.8 | BR164: 23 | BS164: - | BT164: - | BU164: - | BV164: - | BW164: - | BX164: - | BY164: - | BZ164: 2 | CA164: 5 | CB164: 4 | CC164: 4 | CD164: 2 | CE164: 3 | CF164: - | CG164: 3 | CH164: 12 | CI164: - | CJ164: - | CK164: - | CL164: - | CM164: - | CN164: - | CO164: 3 | CP164: 2 | CQ164: 3 | CR164: 2 | CS164: 2 | CT164: - | CU164: - | DC164: 77 | DD164: 54 | DE164: 27 | DF164: 23 | DG164: 4 | DH164: 7 | DI164: 2 | DJ164: 14 | DK164: 20 | DL164: 16 | DM164: - | DN164: - | DO164: - | DP164: 1 | DQ164: 1 | DR164: 1 | DS164: - | DT164: - | DU164: 1 | DV164: - | DW164: - | DX164: - | DY164: - | DZ164: - | EA164: 23 | EB164: 2,660 | EC164: 2,077 | ED164: 513 | EE164: 70 | EF164: 36 | EG164: 29 | EH164: 10 | EI164: 15 | EJ164: 4 | EK164: - | EL164: 1 | EM164: 6 | EN164: 41 | EO164: 25 | EP164: 17 | EQ164: 8 | ER164: - | ES164: 7 | ET164: 1 | EU164: 8
A165: 茨城県 | B165: 水戸市 | C165: 河和田村 | D165: 報徳，相木 | E165: 57 | F165: 42 | G165: 10 | H165: 9 | I165: 15 | J165: 5 | K165: 17 | L165: 15 | M165: 126 | N165: - | O165: 5 | P165: 11 | Q165: 5 | R165: 4 | S165: 5 | T165: 2 | U165: 12 | V165: 27 | W165: 19 | X165: 10 | Y165: 3 | Z165: 7 | AA165: 8 | AB165: 8 | AC165: 56.9 | AD165: 54.7 | AE165: 59.8 | AF165: 75 | AG165: - | AH165: 1 | AI165: 3 | AJ165: 1 | AK165: 2 | AL165: - | AM165: - | AN165: 8 | AO165: 12 | AP165: 14 | AQ165: 9 | AR165: 3 | AS165: 7 | AT165: 8 | AU165: 7 | AV165: 64.4 | AW165: 63.4 | AX165: 65.6 | AY165: 61 | AZ165: - | BA165: 1 | BB165: 2 | BC165: 1 | BD165: 1 | BE165: - | BF165: - | BG165: 7 | BH165: 12 | BI165: 12 | BJ165: 9 | BK165: 3 | BL165: 3 | BM165: 8 | BN165: 2 | BO165: 62.7 | BP165: 61.5 | BQ165: 64.6 | BR165: 42 | BS165: - | BT165: - | BU165: - | BV165: - | BW165: - | BX165: - | BY165: - | BZ165: 2 | CA165: 10 | CB165: 13 | CC165: 6 | CD165: 3 | CE165: 2 | CF165: 4 | CG165: 2 | CH165: 24 | CI165: - | CJ165: - | CK165: - | CL165: - | CM165: - | CN165: 1 | CO165: 6 | CP165: 9 | CQ165: 2 | CR165: 2 | CS165: 1 | CT165: 2 | CU165: 1 | DC165: 159 | DD165: 123 | DE165: 61 | DF165: 57 | DG165: 5 | DH165: 12 | DI165: 6 | DJ165: 18 | DK165: 41 | DL165: 25 | DM165: - | DN165: - | DO165: - | DP165: 3 | DQ165: 1 | DR165: 8 | DS165: - | DT165: 1 | DU165: 3 | DV165: - | DW165: - | DX165: - | DY165: - | DZ165: - | EA165: 42 | EB165: 5,232 | EC165: 3,160 | ED165: 1,595 | EE165: 477 | EF165: 86 | EG165: 77 | EH165: 37 | EI165: 36 | EJ165: 4 | EK165: 1 | EL165: 3 | EM165: 5 | EN165: 73 | EO165: 46 | EP165: 24 | EQ165: 21 | ER165: 1 | ES165: 11 | ET165: 3 | EU165: 13
A166: 茨城県 | B166: 水戸市 | C166: 河和田村 | D166: 北赤塚 | E166: 12 | F166: 9 | G166: - | H166: - | I166: 2 | J166: 1 | K166: 7 | L166: 3 | M166: 25 | N166: 2 | O166: - | P166: - | Q166: - | R166: 2 | S166: 1 | T166: - | U166: 1 | V166: 2 | W166: 5 | X166: 5 | Y166: 2 | Z166: 1 | AA166: 2 | AB166: 2 | AC166: 60.8 | AD166: 63.3 | AE166: 58.5 | AF166: 12 | AG166: - | AH166: - | AI166: - | AJ166: - | AK166: - | AL166: - | AM166: - | AN166: - | AO166: 2 | AP166: 1 | AQ166: 4 | AR166: - | AS166: 1 | AT166: 2 | AU166: 2 | AV166: 72.3 | AW166: 72.6 | AX166: 72.1 | AY166: 11 | AZ166: - | BA166: - | BB166: - | BC166: - | BD166: - | BE166: - | BF166: - | BG166: - | BH166: 2 | BI166: 1 | BJ166: 4 | BK166: - | BL166: 1 | BM166: 2 | BN166: 1 | BO166: 70.9 | BP166: 72.6 | BQ166: 69.5 | BR166: 9 | BS166: - | BT166: - | BU166: - | BV166: - | BW166: - | BX166: - | BY166: - | BZ166: - | CA166: - | CB166: 2 | CC166: 3 | CD166: 2 | CE166: 1 | CF166: - | CG166: 1 | CH166: 8 | CI166: - | CJ166: - | CK166: - | CL166: - | CM166: - | CN166: - | CO166: - | CP166: 1 | CQ166: 3 | CR166: 2 | CS166: 1 | CT166: - | CU166: 1 | DC166: 30 | DD166: 23 | DE166: 11 | DF166: 5 | DG166: 7 | DH166: - | DI166: 2 | DJ166: 5 | DK166: 6 | DL166: 6 | DM166: - | DN166: - | DO166: - | DP166: - | DQ166: - | DR166: - | DS166: - | DT166: - | DU166: - | DV166: - | DW166: - | DX166: - | DY166: - | DZ166: - | EA166: 9 | EB166: 918 | EC166: 778 | ED166: 130 | EE166: 10 | EF166: 15 | EG166: 14 | EH166: 5 | EI166: 4 | EJ166: 5 | EK166: - | EL166: - | EM166: 1 | EN166: 15 | EO166: 9 | EP166: 6 | EQ166: 1 | ER166: 2 | ES166: - | ET166: 2 | EU166: 4
A167: 茨城県 | B167: 水戸市 | C167: 河和田村 | D167: 巡見 | E167: 7 | F167: 2 | G167: x | H167: x | I167: x | J167: x | K167: x | L167: 5 | M167: x | N167: x | O167: x | P167: x | Q167: x | R167: x | S167: x | T167: x | U167: x | V167: x | W167: x | X167: x | Y167: x | Z167: x | AA167: x | AB167: x | AC167: 53.7 | AD167: 53.5 | AE167: 54.0 | AF167: x | AG167: x | AH167: x | AI167: x | AJ167: x | AK167: x | AL167: x | AM167: x | AN167: x | AO167: x | AP167: x | AQ167: x | AR167: x | AS167: x | AT167: x | AU167: x | AV167: 61.2 | AW167: 56.0 | AX167: 69.0 | AY167: x | AZ167: x | BA167: x | BB167: x | BC167: x | BD167: x | BE167: x | BF167: x | BG167: x | BH167: x | BI167: x | BJ167: x | BK167: x | BL167: x | BM167: x | BN167: x | BO167: 61.2 | BP167: 56.0 | BQ167: 69.0 | BR167: 2 | BS167: - | BT167: - | BU167: - | BV167: - | BW167: - | BX167: - | BY167: 1 | BZ167: - | CA167: 1 | CB167: - | CC167: - | CD167: - | CE167: - | CF167: - | CG167: - | CH167: 1 | CI167: - | CJ167: - | CK167: - | CL167: - | CM167: - | CN167: - | CO167: 1 | CP167: - | CQ167: - | CR167: - | CS167: - | CT167: - | CU167: - | DC167: 9 | DD167: 9 | DE167: 5 | DF167: 4 | DG167: - | DH167: - | DI167: - | DJ167: - | DK167: 1 | DL167: - | DM167: - | DN167: - | DO167: - | DP167: - | DQ167: - | DR167: - | DS167: 1 | DT167: - | DU167: - | DV167: - | DW167: - | DX167: - | DY167: - | DZ167: - | EA167: 2 | EB167: 233 | EC167: 83 | ED167: 150 | EE167: - | EF167: 4 | EG167: 4 | EH167: 3 | EI167: 1 | EJ167: - | EK167: - | EL167: - | EM167: - | EN167: 5 | EO167: 5 | EP167: 2 | EQ167: 3 | ER167: - | ES167: - | ET167: - | EU167: -
A168: 茨城県 | B168: 水戸市 | C168: 河和田村 | D168: 共栄中丸 | E168: 26 | F168: 16 | G168: 1 | H168: 1 | I168: 4 | J168: 1 | K168: 11 | L168: 10 | M168: 35 | N168: - | O168: - | P168: 1 | Q168: 2 | R168: - | S168: - | T168: - | U168: 1 | V168: 7 | W168: 11 | X168: 4 | Y168: 2 | Z168: 3 | AA168: 2 | AB168: 2 | AC168: 62.8 | AD168: 61.4 | AE168: 64.2 | AF168: 19 | AG168: - | AH168: - | AI168: - | AJ168: - | AK168: - | AL168: - | AM168: - | AN168: - | AO168: 4 | AP168: 3 | AQ168: 3 | AR168: 2 | AS168: 3 | AT168: 2 | AU168: 2 | AV168: 70.3 | AW168: 72.9 | AX168: 68.8 | AY168: 11 | AZ168: - | BA168: - | BB168: - | BC168: - | BD168: - | BE168: - | BF168: - | BG168: - | BH168: 2 | BI168: 1 | BJ168: 2 | BK168: 2 | BL168: 3 | BM168: - | BN168: 1 | BO168: 69.9 | BP168: 67.5 | BQ168: 71.3 | BR168: 16 | BS168: - | BT168: - | BU168: - | BV168: 1 | BW168: - | BX168: - | BY168: - | BZ168: - | CA168: 2 | CB168: 6 | CC168: 4 | CD168: - | CE168: 2 | CF168: 1 | CG168: - | CH168: 9 | CI168: - | CJ168: - | CK168: - | CL168: - | CM168: - | CN168: - | CO168: 1 | CP168: 5 | CQ168: 1 | CR168: - | CS168: 2 | CT168: - | CU168: - | DC168: 43 | DD168: 28 | DE168: 11 | DF168: 12 | DG168: 5 | DH168: 6 | DI168: - | DJ168: 9 | DK168: 10 | DL168: 10 | DM168: - | DN168: - | DO168: - | DP168: - | DQ168: - | DR168: - | DS168: - | DT168: - | DU168: - | DV168: - | DW168: - | DX168: - | DY168: - | DZ168: - | EA168: 16 | EB168: 1,422 | EC168: 748 | ED168: 644 | EE168: 30 | EF168: 20 | EG168: 16 | EH168: 4 | EI168: 9 | EJ168: 3 | EK168: - | EL168: - | EM168: 4 | EN168: 23 | EO168: 12 | EP168: 7 | EQ168: 3 | ER168: 2 | ES168: 6 | ET168: - | EU168: 5
A169: 茨城県 | B169: 水戸市 | C169: 河和田村 | D169: 赤塚 | E169: 16 | F169: 4 | G169: - | H169: - | I169: 1 | J169: - | K169: 3 | L169: 12 | M169: 10 | N169: - | O169: - | P169: - | Q169: - | R169: - | S169: 1 | T169: - | U169: - | V169: 2 | W169: 1 | X169: 1 | Y169: 1 | Z169: 3 | AA169: 1 | AB169: - | AC169: 67.0 | AD169: 63.6 | AE169: 70.4 | AF169: 8 | AG169: - | AH169: - | AI169: - | AJ169: - | AK169: - | AL169: 1 | AM169: - | AN169: - | AO169: 1 | AP169: 1 | AQ169: - | AR169: 1 | AS169: 3 | AT169: 1 | AU169: - | AV169: 68.3 | AW169: 64.7 | AX169: 70.4 | AY169: 5 | AZ169: - | BA169: - | BB169: - | BC169: - | BD169: - | BE169: - | BF169: - | BG169: - | BH169: 1 | BI169: 1 | BJ169: - | BK169: - | BL169: 2 | BM169: 1 | BN169: - | BO169: 71.4 | BP169: 77.0 | BQ169: 67.7 | BR169: 4 | BS169: - | BT169: - | BU169: - | BV169: - | BW169: - | BX169: - | BY169: - | BZ169: - | CA169: 1 | CB169: - | CC169: 1 | CD169: - | CE169: 2 | CF169: - | CG169: - | CH169: 4 | CI169: - | CJ169: - | CK169: - | CL169: - | CM169: - | CN169: - | CO169: 1 | CP169: - | CQ169: 1 | CR169: - | CS169: 2 | CT169: - | CU169: - | DC169: 15 | DD169: 10 | DE169: 5 | DF169: 4 | DG169: 1 | DH169: 3 | DI169: - | DJ169: 2 | DK169: 3 | DL169: 1 | DM169: - | DN169: - | DO169: - | DP169: 1 | DQ169: - | DR169: 1 | DS169: - | DT169: - | DU169: - | DV169: - | DW169: - | DX169: - | DY169: - | DZ169: - | EA169: 4 | EB169: 280 | EC169: 61 | ED169: 124 | EE169: 95 | EF169: 7 | EG169: 6 | EH169: 2 | EI169: 3 | EJ169: 1 | EK169: - | EL169: - | EM169: 1 | EN169: 8 | EO169: 4 | EP169: 3 | EQ169: 1 | ER169: - | ES169: 3 | ET169: - | EU169: 1
A170: 茨城県 | B170: 水戸市 | C170: 河和田村 | D170: 萱場 | E170: 46 | F170: 40 | G170: 5 | H170: 2 | I170: 9 | J170: 3 | K170: 26 | L170: 6 | M170: 96 | N170: - | O170: - | P170: 6 | Q170: - | R170: - | S170: 4 | T170: 6 | U170: 16 | V170: 15 | W170: 7 | X170: 4 | Y170: 11 | Z170: 13 | AA170: 10 | AB170: 4 | AC170: 62.3 | AD170: 63.4 | AE170: 61.0 | AF170: 55 | AG170: - | AH170: - | AI170: 1 | AJ170: - | AK170: - | AL170: - | AM170: 1 | AN170: 3 | AO170: 6 | AP170: 4 | AQ170: 3 | AR170: 11 | AS170: 12 | AT170: 10 | AU170: 4 | AV170: 71.2 | AW170: 73.8 | AX170: 69.1 | AY170: 41 | AZ170: - | BA170: - | BB170: 1 | BC170: - | BD170: - | BE170: - | BF170: - | BG170: 3 | BH170: 6 | BI170: 4 | BJ170: 3 | BK170: 7 | BL170: 10 | BM170: 6 | BN170: 1 | BO170: 69.2 | BP170: 71.6 | BQ170: 66.9 | BR170: 40 | BS170: - | BT170: - | BU170: - | BV170: - | BW170: - | BX170: - | BY170: - | BZ170: 5 | CA170: 6 | CB170: 6 | CC170: 2 | CD170: 6 | CE170: 8 | CF170: 3 | CG170: 4 | CH170: 35 | CI170: - | CJ170: - | CK170: - | CL170: - | CM170: - | CN170: 4 | CO170: 5 | CP170: 5 | CQ170: 2 | CR170: 5 | CS170: 8 | CT170: 3 | CU170: 3 | DC170: 135 | DD170: 95 | DE170: 42 | DF170: 50 | DG170: 3 | DH170: 18 | DI170: 5 | DJ170: 17 | DK170: 35 | DL170: 24 | DM170: - | DN170: 1 | DO170: - | DP170: 1 | DQ170: - | DR170: 8 | DS170: - | DT170: - | DU170: - | DV170: 1 | DW170: - | DX170: - | DY170: - | DZ170: - | EA170: 40 | EB170: 5,500 | EC170: 3,553 | ED170: 621 | EE170: 1,326 | EF170: 65 | EG170: 53 | EH170: 21 | EI170: 30 | EJ170: 2 | EK170: 2 | EL170: 2 | EM170: 8 | EN170: 70 | EO170: 42 | EP170: 21 | EQ170: 20 | ER170: 1 | ES170: 16 | ET170: 3 | EU170: 9
A171: 茨城県 | B171: 水戸市 | C171: 河和田村 | D171: 高間原，若林 | E171: 1 | F171: 1 | G171: x | H171: x | I171: x | J171: x | K171: x | L171: - | M171: x | N171: x | O171: x | P171: x | Q171: x | R171: x | S171: x | T171: x | U171: x | V171: x | W171: x | X171: x | Y171: x | Z171: x | AA171: x | AB171: x | AC171: 47.0 | AD171: 49.0 | AE171: 45.0 | AF171: x | AG171: x | AH171: x | AI171: x | AJ171: x | AK171: x | AL171: x | AM171: x | AN171: x | AO171: x | AP171: x | AQ171: x | AR171: x | AS171: x | AT171: x | AU171: x | AV171: 45.0 | AW171: … | AX171: 45.0 | AY171: x | AZ171: x | BA171: x | BB171: x | BC171: x | BD171: x | BE171: x | BF171: x | BG171: x | BH171: x | BI171: x | BJ171: x | BK171: x | BL171: x | BM171: x | BN171: x | BO171: … | BP171: … | BQ171: … | BR171: 1 | BS171: - | BT171: - | BU171: - | BV171: - | BW171: - | BX171: - | BY171: 1 | BZ171: - | CA171: - | CB171: - | CC171: - | CD171: - | CE171: - | CF171: - | CG171: - | CH171: 1 | CI171: - | CJ171: - | CK171: - | CL171: - | CM171: 1 | CN171: - | CO171: - | CP171: - | CQ171: - | CR171: - | CS171: - | CT171: - | CU171: - | DC171: 2 | DD171: 1 | DE171: - | DF171: 1 | DG171: - | DH171: 1 | DI171: - | DJ171: - | DK171: - | DL171: - | DM171: - | DN171: - | DO171: - | DP171: - | DQ171: - | DR171: - | DS171: - | DT171: - | DU171: - | DV171: - | DW171: - | DX171: - | DY171: - | DZ171: - | EA171: 1 | EB171: 80 | EC171: 70 | ED171: 10 | EE171: - | EF171: 1 | EG171: 1 | EH171: - | EI171: 1 | EJ171: - | EK171: - | EL171: - | EM171: - | EN171: 1 | EO171: - | EP171: - | EQ171: - | ER171: - | ES171: 1 | ET171: - | EU171: -
A172: 茨城県 | B172: 水戸市 | C172: 下大野村 | E172: 290 | F172: 255 | G172: 41 | H172: 25 | I172: 72 | J172: 12 | K172: 142 | L172: 35 | M172: 778 | N172: 23 | O172: 32 | P172: 22 | Q172: 31 | R172: 37 | S172: 39 | T172: 57 | U172: 75 | V172: 104 | W172: 94 | X172: 68 | Y172: 55 | Z172: 71 | AA172: 53 | AB172: 17 | AC172: 56.3 | AD172: 54.9 | AE172: 57.9 | AF172: 339 | AG172: 5 | AH172: 2 | AI172: 1 | AJ172: 5 | AK172: 3 | AL172: 9 | AM172: 5 | AN172: 9 | AO172: 33 | AP172: 51 | AQ172: 56 | AR172: 43 | AS172: 66 | AT172: 38 | AU172: 13 | AV172: 67.1 | AW172: 68.2 | AX172: 66.1 | AY172: 240 | AZ172: - | BA172: 1 | BB172: - | BC172: 2 | BD172: 1 | BE172: 4 | BF172: 2 | BG172: 6 | BH172: 28 | BI172: 40 | BJ172: 45 | BK172: 32 | BL172: 57 | BM172: 16 | BN172: 6 | BO172: 68.0 | BP172: 68.2 | BQ172: 67.9 | BR172: 255 | BS172: - | BT172: - | BU172: 1 | BV172: - | BW172: 2 | BX172: 4 | BY172: 14 | BZ172: 27 | CA172: 51 | CB172: 53 | CC172: 39 | CD172: 30 | CE172: 19 | CF172: 12 | CG172: 3 | CH172: 182 | CI172: - | CJ172: - | CK172: 1 | CL172: - | CM172: 5 | CN172: 19 | CO172: 35 | CP172: 43 | CQ172: 27 | CR172: 22 | CS172: 17 | CT172: 11 | CU172: 2 | DC172: 1,004 | DD172: 686 | DE172: 242 | DF172: 394 | DG172: 50 | DH172: 84 | DI172: 88 | DJ172: 146 | DK172: 247 | DL172: 230 | DM172: - | DN172: - | DO172: - | DP172: 4 | DQ172: 8 | DR172: - | DS172: 5 | DT172: - | DU172: - | DV172: - | DW172: - | DX172: - | DY172: - | DZ172: - | EA172: 254 | EB172: 52,727 | EC172: 50,580 | ED172: 2,125 | EE172: 22 | EF172: 489 | EG172: 407 | EH172: 138 | EI172: 227 | EJ172: 42 | EK172: 2 | EL172: 40 | EM172: 40 | EN172: 515 | EO172: 279 | EP172: 104 | EQ172: 167 | ER172: 8 | ES172: 82 | ET172: 48 | EU172: 106
A173: 茨城県 | B173: 水戸市 | C173: 下大野村 | D173: 下大野一区 | E173: 59 | F173: 55 | G173: 9 | H173: 5 | I173: 21 | J173: 5 | K173: 25 | L173: 4 | M173: 185 | N173: 9 | O173: 9 | P173: 1 | Q173: 9 | R173: 20 | S173: 13 | T173: 15 | U173: 10 | V173: 15 | W173: 30 | X173: 16 | Y173: 12 | Z173: 16 | AA173: 7 | AB173: 3 | AC173: 53.4 | AD173: 53.5 | AE173: 53.3 | AF173: 75 | AG173: 1 | AH173: 1 | AI173: - | AJ173: 1 | AK173: 2 | AL173: 1 | AM173: 2 | AN173: 2 | AO173: 4 | AP173: 18 | AQ173: 13 | AR173: 10 | AS173: 13 | AT173: 6 | AU173: 1 | AV173: 65.3 | AW173: 69.4 | AX173: 61.6 | AY173: 56 | AZ173: - | BA173: - | BB173: - | BC173: - | BD173: - | BE173: - | BF173: 1 | BG173: 2 | BH173: 4 | BI173: 13 | BJ173: 12 | BK173: 9 | BL173: 11 | BM173: 4 | BN173: - | BO173: 68.1 | BP173: 68.0 | BQ173: 68.1 | BR173: 55 | BS173: - | BT173: - | BU173: - | BV173: - | BW173: - | BX173: - | BY173: 5 | BZ173: 4 | CA173: 5 | CB173: 16 | CC173: 11 | CD173: 6 | CE173: 4 | CF173: 3 | CG173: 1 | CH173: 43 | CI173: - | CJ173: - | CK173: - | CL173: - | CM173: 1 | CN173: 3 | CO173: 4 | CP173: 15 | CQ173: 10 | CR173: 4 | CS173: 3 | CT173: 3 | CU173: - | DC173: 229 | DD173: 153 | DE173: 58 | DF173: 83 | DG173: 12 | DH173: 16 | DI173: 22 | DJ173: 38 | DK173: 52 | DL173: 52 | DM173: - | DN173: - | DO173: - | DP173: - | DQ173: - | DR173: - | DS173: - | DT173: - | DU173: - | DV173: - | DW173: - | DX173: - | DY173: - | DZ173: - | EA173: 55 | EB173: 10,337 | EC173: 9,850 | ED173: 487 | EE173: - | EF173: 113 | EG173: 90 | EH173: 32 | EI173: 49 | EJ173: 9 | EK173: 2 | EL173: 11 | EM173: 10 | EN173: 116 | EO173: 63 | EP173: 26 | EQ173: 34 | ER173: 3 | ES173: 14 | ET173: 11 | EU173: 28
A174: 茨城県 | B174: 水戸市 | C174: 下大野村 | D174: 下大野二区 | E174: 38 | F174: 38 | G174: 7 | H174: 2 | I174: 11 | J174: 1 | K174: 20 | L174: - | M174: 110 | N174: 2 | O174: 2 | P174: 5 | Q174: 2 | R174: 4 | S174: 8 | T174: 8 | U174: 12 | V174: 13 | W174: 14 | X174: 7 | Y174: 10 | Z174: 8 | AA174: 13 | AB174: 2 | AC174: 58.3 | AD174: 56.5 | AE174: 60.7 | AF174: 40 | AG174: - | AH174: - | AI174: - | AJ174: - | AK174: - | AL174: 1 | AM174: - | AN174: 1 | AO174: 1 | AP174: 7 | AQ174: 7 | AR174: 9 | AS174: 7 | AT174: 5 | AU174: 2 | AV174: 70.9 | AW174: 70.7 | AX174: 71.1 | AY174: 29 | AZ174: - | BA174: - | BB174: - | BC174: - | BD174: - | BE174: 1 | BF174: - | BG174: 1 | BH174: 1 | BI174: 5 | BJ174: 5 | BK174: 6 | BL174: 7 | BM174: 3 | BN174: - | BO174: 69.8 | BP174: 70.2 | BQ174: 69.2 | BR174: 38 | BS174: - | BT174: - | BU174: 1 | BV174: - | BW174: - | BX174: 1 | BY174: 1 | BZ174: 2 | CA174: 9 | CB174: 9 | CC174: 4 | CD174: 7 | CE174: 1 | CF174: 3 | CG174: - | CH174: 20 | CI174: - | CJ174: - | CK174: - | CL174: - | CM174: - | CN174: - | CO174: 5 | CP174: 6 | CQ174: 1 | CR174: 4 | CS174: 1 | CT174: 3 | CU174: - | DC174: 149 | DD174: 94 | DE174: 29 | DF174: 61 | DG174: 4 | DH174: 12 | DI174: 13 | DJ174: 30 | DK174: 35 | DL174: 35 | DM174: - | DN174: - | DO174: - | DP174: - | DQ174: - | DR174: - | DS174: - | DT174: - | DU174: - | DV174: - | DW174: - | DX174: - | DY174: - | DZ174: - | EA174: 38 | EB174: 7,113 | EC174: 6,695 | ED174: 418 | EE174: - | EF174: 73 | EG174: 58 | EH174: 17 | EI174: 37 | EJ174: 4 | EK174: - | EL174: 4 | EM174: 11 | EN174: 76 | EO174: 36 | EP174: 12 | EQ174: 24 | ER174: - | ES174: 12 | ET174: 9 | EU174: 19
A175: 茨城県 | B175: 水戸市 | C175: 下大野村 | D175: 小泉 | E175: 51 | F175: 36 | G175: 7 | H175: 7 | I175: 17 | J175: 5 | K175: 12 | L175: 15 | M175: 113 | N175: - | O175: 6 | P175: 9 | Q175: 6 | R175: 4 | S175: 1 | T175: 9 | U175: 11 | V175: 18 | W175: 18 | X175: 6 | Y175: 3 | Z175: 9 | AA175: 8 | AB175: 5 | AC175: 55.7 | AD175: 56.2 | AE175: 55.1 | AF175: 47 | AG175: - | AH175: - | AI175: 1 | AJ175: 2 | AK175: - | AL175: 1 | AM175: 1 | AN175: 1 | AO175: 6 | AP175: 11 | AQ175: 5 | AR175: 3 | AS175: 8 | AT175: 5 | AU175: 3 | AV175: 65.7 | AW175: 68.2 | AX175: 63.2 | AY175: 36 | AZ175: - | BA175: - | BB175: - | BC175: 1 | BD175: - | BE175: 1 | BF175: 1 | BG175: 1 | BH175: 6 | BI175: 10 | BJ175: 4 | BK175: 2 | BL175: 7 | BM175: 2 | BN175: 1 | BO175: 64.7 | BP175: 66.0 | BQ175: 62.8 | BR175: 36 | BS175: - | BT175: - | BU175: - | BV175: - | BW175: 1 | BX175: - | BY175: 2 | BZ175: 5 | CA175: 9 | CB175: 9 | CC175: 4 | CD175: 1 | CE175: 3 | CF175: 2 | CG175: - | CH175: 28 | CI175: - | CJ175: - | CK175: 1 | CL175: - | CM175: 1 | CN175: 3 | CO175: 7 | CP175: 8 | CQ175: 3 | CR175: 1 | CS175: 2 | CT175: 2 | CU175: - | DC175: 137 | DD175: 91 | DE175: 36 | DF175: 48 | DG175: 7 | DH175: 15 | DI175: 14 | DJ175: 17 | DK175: 35 | DL175: 27 | DM175: - | DN175: - | DO175: - | DP175: 4 | DQ175: 2 | DR175: - | DS175: 2 | DT175: - | DU175: - | DV175: - | DW175: - | DX175: - | DY175: - | DZ175: - | EA175: 35 | EB175: 7,523 | EC175: 6,946 | ED175: 572 | EE175: 5 | EF175: 68 | EG175: 57 | EH175: 21 | EI175: 30 | EJ175: 6 | EK175: - | EL175: 6 | EM175: 5 | EN175: 69 | EO175: 34 | EP175: 15 | EQ175: 18 | ER175: 1 | ES175: 15 | ET175: 8 | EU175: 12
A176: 茨城県 | B176: 水戸市 | C176: 下大野村 | D176: 川又一 | E176: 23 | F176: 22 | G176: 3 | H176: 3 | I176: 6 | J176: 1 | K176: 13 | L176: 1 | M176: 64 | N176: 2 | O176: 2 | P176: 1 | Q176: - | R176: 1 | S176: 3 | T176: 7 | U176: 10 | V176: 9 | W176: 1 | X176: 4 | Y176: 5 | Z176: 15 | AA176: 3 | AB176: 1 | AC176: 59.5 | AD176: 56.4 | AE176: 63.5 | AF176: 36 | AG176: - | AH176: - | AI176: - | AJ176: - | AK176: - | AL176: 2 | AM176: - | AN176: - | AO176: 5 | AP176: 1 | AQ176: 4 | AR176: 5 | AS176: 15 | AT176: 3 | AU176: 1 | AV176: 70.7 | AW176: 71.2 | AX176: 70.3 | AY176: 31 | AZ176: - | BA176: - | BB176: - | BC176: - | BD176: - | BE176: 1 | BF176: - | BG176: - | BH176: 5 | BI176: 1 | BJ176: 4 | BK176: 3 | BL176: 13 | BM176: 3 | BN176: 1 | BO176: 71.0 | BP176: 71.2 | BQ176: 70.8 | BR176: 22 | BS176: - | BT176: - | BU176: - | BV176: - | BW176: - | BX176: 1 | BY176: 1 | BZ176: 5 | CA176: 5 | CB176: - | CC176: 1 | CD176: 2 | CE176: 5 | CF176: 1 | CG176: 1 | CH176: 16 | CI176: - | CJ176: - | CK176: - | CL176: - | CM176: 1 | CN176: 3 | CO176: 2 | CP176: - | CQ176: 1 | CR176: 2 | CS176: 5 | CT176: 1 | CU176: 1 | DC176: 84 | DD176: 61 | DE176: 31 | DF176: 30 | DG176: - | DH176: 6 | DI176: 9 | DJ176: 8 | DK176: 22 | DL176: 21 | DM176: - | DN176: - | DO176: - | DP176: - | DQ176: - | DR176: - | DS176: 1 | DT176: - | DU176: - | DV176: - | DW176: - | DX176: - | DY176: - | DZ176: - | EA176: 22 | EB176: 4,135 | EC176: 4,048 | ED176: 87 | EE176: - | EF176: 41 | EG176: 35 | EH176: 17 | EI176: 18 | EJ176: - | EK176: - | EL176: 5 | EM176: 1 | EN176: 43 | EO176: 26 | EP176: 14 | EQ176: 12 | ER176: - | ES176: 6 | ET176: 4 | EU176: 7
A177: 茨城県 | B177: 水戸市 | C177: 下大野村 | D177: 川又二 | E177: 29 | F177: 25 | G177: 1 | H177: - | I177: 4 | J177: - | K177: 20 | L177: 4 | M177: 72 | N177: 5 | O177: 3 | P177: 1 | Q177: 2 | R177: 2 | S177: 2 | T177: 6 | U177: 8 | V177: 9 | W177: 5 | X177: 11 | Y177: 8 | Z177: 2 | AA177: 6 | AB177: 2 | AC177: 56.3 | AD177: 52.7 | AE177: 61.1 | AF177: 35 | AG177: 4 | AH177: - | AI177: - | AJ177: - | AK177: 1 | AL177: - | AM177: 1 | AN177: - | AO177: 2 | AP177: 1 | AQ177: 9 | AR177: 7 | AS177: 2 | AT177: 6 | AU177: 2 | AV177: 64.4 | AW177: 60.4 | AX177: 67.7 | AY177: 18 | AZ177: - | BA177: - | BB177: - | BC177: - | BD177: 1 | BE177: - | BF177: - | BG177: - | BH177: - | BI177: 1 | BJ177: 6 | BK177: 6 | BL177: 2 | BM177: 1 | BN177: 1 | BO177: 69.4 | BP177: 69.9 | BQ177: 68.7 | BR177: 25 | BS177: - | BT177: - | BU177: - | BV177: - | BW177: - | BX177: 1 | BY177: - | BZ177: 3 | CA177: 5 | CB177: 4 | CC177: 4 | CD177: 4 | CE177: 2 | CF177: 1 | CG177: 1 | CH177: 16 | CI177: - | CJ177: - | CK177: - | CL177: - | CM177: - | CN177: 3 | CO177: 2 | CP177: 2 | CQ177: 2 | CR177: 3 | CS177: 2 | CT177: 1 | CU177: 1 | DC177: 90 | DD177: 63 | DE177: 18 | DF177: 39 | DG177: 6 | DH177: 8 | DI177: 9 | DJ177: 10 | DK177: 24 | DL177: 22 | DM177: - | DN177: - | DO177: - | DP177: - | DQ177: 1 | DR177: - | DS177: 1 | DT177: - | DU177: - | DV177: - | DW177: - | DX177: - | DY177: - | DZ177: - | EA177: 25 | EB177: 4,847 | EC177: 4,640 | ED177: 190 | EE177: 17 | EF177: 47 | EG177: 41 | EH177: 11 | EI177: 24 | EJ177: 6 | EK177: - | EL177: 4 | EM177: 2 | EN177: 43 | EO177: 22 | EP177: 7 | EQ177: 15 | ER177: - | ES177: 8 | ET177: 5 | EU177: 8
A178: 茨城県 | B178: 水戸市 | C178: 下大野村 | D178: 平戸 | E178: 25 | F178: 20 | G178: 8 | H178: 5 | I178: 1 | J178: - | K178: 11 | L178: 5 | M178: 61 | N178: 1 | O178: - | P178: 1 | Q178: 5 | R178: 1 | S178: 2 | T178: 1 | U178: 7 | V178: 13 | W178: 8 | X178: 5 | Y178: 4 | Z178: 8 | AA178: 1 | AB178: 4 | AC178: 59.7 | AD178: 58.7 | AE178: 60.9 | AF178: 34 | AG178: - | AH178: - | AI178: - | AJ178: 1 | AK178: - | AL178: - | AM178: - | AN178: 2 | AO178: 6 | AP178: 6 | AQ178: 4 | AR178: 2 | AS178: 8 | AT178: 1 | AU178: 4 | AV178: 68.0 | AW178: 71.7 | AX178: 65.4 | AY178: 26 | AZ178: - | BA178: - | BB178: - | BC178: - | BD178: - | BE178: - | BF178: - | BG178: - | BH178: 6 | BI178: 5 | BJ178: 4 | BK178: 1 | BL178: 7 | BM178: - | BN178: 3 | BO178: 69.2 | BP178: 70.7 | BQ178: 67.6 | BR178: 20 | BS178: - | BT178: - | BU178: - | BV178: - | BW178: - | BX178: - | BY178: 1 | BZ178: 1 | CA178: 4 | CB178: 6 | CC178: 4 | CD178: 2 | CE178: 2 | CF178: - | CG178: - | CH178: 16 | CI178: - | CJ178: - | CK178: - | CL178: - | CM178: 1 | CN178: 1 | CO178: 3 | CP178: 5 | CQ178: 2 | CR178: 2 | CS178: 2 | CT178: - | CU178: - | DC178: 79 | DD178: 61 | DE178: 26 | DF178: 29 | DG178: 6 | DH178: 8 | DI178: 3 | DJ178: 7 | DK178: 20 | DL178: 16 | DM178: - | DN178: - | DO178: - | DP178: - | DQ178: 3 | DR178: - | DS178: 1 | DT178: - | DU178: - | DV178: - | DW178: - | DX178: - | DY178: - | DZ178: - | EA178: 20 | EB178: 3,912 | EC178: 3,730 | ED178: 182 | EE178: - | EF178: 39 | EG178: 35 | EH178: 13 | EI178: 17 | EJ178: 5 | EK178: - | EL178: 1 | EM178: 3 | EN178: 40 | EO178: 26 | EP178: 13 | EQ178: 12 | ER178: 1 | ES178: 8 | ET178: 2 | EU178: 4
A179: 茨城県 | B179: 水戸市 | C179: 下大野村 | D179: 塩崎一 | E179: 43 | F179: 40 | G179: 3 | H179: 1 | I179: 9 | J179: - | K179: 28 | L179: 3 | M179: 123 | N179: 4 | O179: 8 | P179: 3 | Q179: 6 | R179: 2 | S179: 9 | T179: 9 | U179: 12 | V179: 20 | W179: 10 | X179: 12 | Y179: 8 | Z179: 9 | AA179: 11 | AB179: - | AC179: 54.8 | AD179: 52.1 | AE179: 58.0 | AF179: 41 | AG179: - | AH179: - | AI179: - | AJ179: - | AK179: - | AL179: 3 | AM179: - | AN179: - | AO179: 6 | AP179: 3 | AQ179: 8 | AR179: 4 | AS179: 9 | AT179: 8 | AU179: - | AV179: 69.0 | AW179: 71.6 | AX179: 67.4 | AY179: 24 | AZ179: - | BA179: - | BB179: - | BC179: - | BD179: - | BE179: 1 | BF179: - | BG179: - | BH179: 3 | BI179: 1 | BJ179: 6 | BK179: 3 | BL179: 7 | BM179: 3 | BN179: - | BO179: 70.6 | BP179: 70.9 | BQ179: 70.0 | BR179: 40 | BS179: - | BT179: - | BU179: - | BV179: - | BW179: 1 | BX179: 1 | BY179: 4 | BZ179: 7 | CA179: 10 | CB179: 4 | CC179: 7 | CD179: 4 | CE179: - | CF179: 2 | CG179: - | CH179: 32 | CI179: - | CJ179: - | CK179: - | CL179: - | CM179: 1 | CN179: 6 | CO179: 10 | CP179: 4 | CQ179: 6 | CR179: 4 | CS179: - | CT179: 1 | CU179: - | DC179: 161 | DD179: 109 | DE179: 24 | DF179: 74 | DG179: 11 | DH179: 14 | DI179: 13 | DJ179: 25 | DK179: 40 | DL179: 39 | DM179: - | DN179: - | DO179: - | DP179: - | DQ179: 1 | DR179: - | DS179: - | DT179: - | DU179: - | DV179: - | DW179: - | DX179: - | DY179: - | DZ179: - | EA179: 40 | EB179: 10,014 | EC179: 9,873 | ED179: 141 | EE179: - | EF179: 73 | EG179: 63 | EH179: 15 | EI179: 38 | EJ179: 10 | EK179: - | EL179: 7 | EM179: 3 | EN179: 88 | EO179: 46 | EP179: 9 | EQ179: 36 | ER179: 1 | ES179: 14 | ET179: 6 | EU179: 22
A180: 茨城県 | B180: 水戸市 | C180: 下大野村 | D180: 塩崎二 | E180: 22 | F180: 19 | G180: 3 | H180: 2 | I180: 3 | J180: - | K180: 13 | L180: 3 | M180: 50 | N180: - | O180: 2 | P180: 1 | Q180: 1 | R180: 3 | S180: 1 | T180: 2 | U180: 5 | V180: 7 | W180: 8 | X180: 7 | Y180: 5 | Z180: 4 | AA180: 4 | AB180: - | AC180: 59.4 | AD180: 57.5 | AE180: 61.7 | AF180: 31 | AG180: - | AH180: 1 | AI180: - | AJ180: 1 | AK180: - | AL180: 1 | AM180: 1 | AN180: 3 | AO180: 3 | AP180: 4 | AQ180: 6 | AR180: 3 | AS180: 4 | AT180: 4 | AU180: - | AV180: 63.8 | AW180: 60.3 | AX180: 67.5 | AY180: 20 | AZ180: - | BA180: 1 | BB180: - | BC180: 1 | BD180: - | BE180: - | BF180: - | BG180: 2 | BH180: 3 | BI180: 4 | BJ180: 4 | BK180: 2 | BL180: 3 | BM180: - | BN180: - | BO180: 61.1 | BP180: 57.2 | BQ180: 67.0 | BR180: 19 | BS180: - | BT180: - | BU180: - | BV180: - | BW180: - | BX180: - | BY180: - | BZ180: - | CA180: 4 | CB180: 5 | CC180: 4 | CD180: 4 | CE180: 2 | CF180: - | CG180: - | CH180: 11 | CI180: - | CJ180: - | CK180: - | CL180: - | CM180: - | CN180: - | CO180: 2 | CP180: 3 | CQ180: 2 | CR180: 2 | CS180: 2 | CT180: - | CU180: - | DC180: 75 | DD180: 54 | DE180: 20 | DF180: 30 | DG180: 4 | DH180: 5 | DI180: 5 | DJ180: 11 | DK180: 19 | DL180: 18 | DM180: - | DN180: - | DO180: - | DP180: - | DQ180: 1 | DR180: - | DS180: - | DT180: - | DU180: - | DV180: - | DW180: - | DX180: - | DY180: - | DZ180: - | EA180: 19 | EB180: 4,846 | EC180: 4,798 | ED180: 48 | EE180: - | EF180: 35 | EG180: 28 | EH180: 12 | EI180: 14 | EJ180: 2 | EK180: - | EL180: 2 | EM180: 5 | EN180: 40 | EO180: 26 | EP180: 8 | EQ180: 16 | ER180: 2 | ES180: 5 | ET180: 3 | EU180: 6
A181: 茨城県 | B181: 水戸市 | C181: 稲荷村 | E181: 293 | F181: 225 | G181: 40 | H181: 19 | I181: 78 | J181: 27 | K181: 107 | L181: 68 | M181: 641 | N181: 9 | O181: 20 | P181: 20 | Q181: 23 | R181: 18 | S181: 25 | T181: 61 | U181: 62 | V181: 93 | W181: 72 | X181: 50 | Y181: 71 | Z181: 54 | AA181: 48 | AB181: 15 | AC181: 58.2 | AD181: 56.8 | AE181: 59.8 | AF181: 330 | AG181: 3 | AH181: 3 | AI181: 6 | AJ181: 3 | AK181: 4 | AL181: 5 | AM181: 14 | AN181: 11 | AO181: 33 | AP181: 45 | AQ181: 38 | AR181: 64 | AS181: 43 | AT181: 45 | AU181: 13 | AV181: 66.5 | AW181: 67.5 | AX181: 65.6 | AY181: 252 | AZ181: - | BA181: 1 | BB181: 4 | BC181: 2 | BD181: 1 | BE181: 2 | BF181: 10 | BG181: 6 | BH181: 30 | BI181: 41 | BJ181: 36 | BK181: 50 | BL181: 33 | BM181: 31 | BN181: 5 | BO181: 67.1 | BP181: 66.9 | BQ181: 67.3 | BR181: 225 | BS181: - | BT181: - | BU181: - | BV181: - | BW181: 2 | BX181: 5 | BY181: 18 | BZ181: 23 | CA181: 45 | CB181: 39 | CC181: 30 | CD181: 28 | CE181: 20 | CF181: 12 | CG181: 3 | CH181: 143 | CI181: - | CJ181: - | CK181: - | CL181: - | CM181: 9 | CN181: 15 | CO181: 24 | CP181: 23 | CQ181: 21 | CR181: 22 | CS181: 16 | CT181: 10 | CU181: 3 | DC181: 889 | DD181: 633 | DE181: 252 | DF181: 343 | DG181: 38 | DH181: 73 | DI181: 64 | DJ181: 119 | DK181: 214 | DL181: 206 | DM181: - | DN181: 4 | DO181: - | DP181: 2 | DQ181: 1 | DR181: - | DS181: 1 | DT181: - | DU181: - | DV181: - | DW181: - | DX181: - | DY181: - | DZ181: - | EA181: 225 | EB181: 34,388 | EC181: 29,827 | ED181: 4,468 | EE181: 93 | EF181: 443 | EG181: 363 | EH181: 134 | EI181: 204 | EJ181: 25 | EK181: 1 | EL181: 39 | EM181: 40 | EN181: 446 | EO181: 270 | EP181: 118 | EQ181: 139 | ER181: 13 | ES181: 72 | ET181: 25 | EU181: 79
